Workbook

Sheet Instructions, Hints, Notes
A1: Instructions, Helpful Hints, and Notes
A2: For Support: Matt Abrahams | bettergov2@aol.com | 617-240-3435
A3: Here are some helpful hints with using the file:
A4: - Capital-planning selections are to be made on the “Town-Wide Capital Planning” tab.
A5: - Each of the items listed on the “Town-Wide Capital Planning” tab is from a detailed capital planning tab in the workbook. The tab on which the item can be found is listed in column A. If you are to tweak anything about an item, like the cost or the fiscal year, then do so on the individual tab and it will filter to the “Town-Wide Capital Planning” tab.
A6: - Cells in column G contain a drop-down box on whether the item should be included in the long-term capital plan or not. Selecting “Yes” includes it and “No” does not. If "No" is selected, the item remains in the plan, but the funding of it does not.
A7: - Cells in column H contain a drop-down box for the funding source. If a debt option is selected, then, based on the borrowing assumptions, projected debt is presented over multiple years starting with the year after the fiscal year listed and the costs include interest costs (if the interest rate is greater than 0%). Any non-debt selection has the cost listed in the long-term capital plan in the year it is to be purchased. The list of options for funding sources is based on the options in the Funding Sources table on the "Summary-General Government" tab. If changes need to be made, then adjust the funding sources in the list on that tab. Once changes are made, ensure all options are available in the Funding Sources drop-down boxes on the "Town-Wide Capital Planning" tab. If not, then adjust the Source cells for Data Validation on the Data menu in Excel and ensure the changes are made to each row on the tab.
A8: - The projected debt schedules rely on two selections for the calculations: Term in column I (initially defaulted to 20 years for each borrowing) and Interest Rate in column J (initially defaulted to 4.00% for each borrowing). Set them as you see fit. If each borrowing is to have the same interest rate, then change the interest rate at the top in cell N1 to filter it throughout. If not, then the rate can be changed on the individual rows.
A9: - Short-term debt (related to BANs) is not factored into the projected debt on the "Town-Wide Planning" tab.
A10: =CONCATENATE("- The costs for each capital item are in FY "&TEXT('Town-Wide Capital Planning'!$N$3,"0")&" dollars. An inflation rate can be used to inflate costs in future years, when the item is to be purchased or the project to be started. The inflation rate can be set in cell N2"," and should be set to 0.00% if no inflation rate is to be used. Below the inflation rate cell is a cell that holds the year of the dollar amounts used for costs of the capital items. That cell should be updated as needed.") -> - The costs for each capital item are in FY 2020 dollars. An inflation rate can be used to inflate costs in future years, when the item is to be purchased or the project to be started. The inflation rate can be set in cell N2 and should be set to 0.00% if no inflation rate is to be used. Below the inflation rate cell is a cell that holds the year of the dollar amounts used for costs of the capital items. That cell should be updated as needed.
A11: - Columns A-H have filters at the top that can be used to drill down to more specific data, if needed.
A12: - Find the projected expenditures tied to the long-term capital plan in columns P – AS. Any changes made to the selections in columns G-J will impact the plan.
A13: - Totals are found at the bottom. Totals by fund (Water, Sewer, and General) and by year are included.
A14: - There is a Summary tab for each fund (Water, Sewer, and General). Each tab is set up the same. It contains multiple tables and graphs. The first table and graph represent the capital needs for each town department (which is different from capital costs that contain debt projections). (The Municipal Complex is considered a department in the capital plan.) The second graph shows total projected capital costs, including debt. The next table and graph show funding source totals by year. The remaining tables and graph focus on debt, including an analysis on how debt compares to the yearly operating budget. There are comments in red (and highlighted in orange) that explain what the data represents. Yellow cells are configurable and can be changed.
A15: - For the analysis on how debt compares to the yearly operating budget, a configurable percentage increase of the budget from year to year is based on the budget for the first year in the list. That percentage should be set to a percent the Town is comfortable with. Update the budget amount as needed.
A16: - The "Town-Wide Capital Planning" tab is very large. Even though it is formatted for printing, it prints to many pages and should not be printed unless necessary. All other tabs in this file are formatted for printing. The graphs on the Summary tabs are easier to analyze in print format than on the computer screen.
A17: - The "Town-Wide Capital Planning" tab requires manual updating of items on the tab. The updating of the capital items listed in the file is recommended in this fashion: (1) Review each of the departmental tabs (tabs displayed in orange) in this file and update the items as needed, including deleting and adding rows, or have the departments do this review by sending them a copy of their tabs in this file only. If departments update files separate from this main one, then the most up-to-date information will need to be put into the departmental tabs in this file. The best way to add a row is to copy another row, insert the row in the desired place in the list, and update the cells so formatting remains consistent. Note which rows were added and/or updated. If rows were added to the beginning of a list or to the end of a list, ensure the formulas in the table and graph at the top of the tab reflect the latest list of items. (2) If rows from the departmental tabs are deleted and/or added, then similar changes will need to take place on the "Town-Wide Capital Planning" tab since there is a row on that tab for each row with an item on a departmental tab. The best way to add a row is to copy another row, insert the row in the desired place in the list, and update the cells so formatting and formulas remains consistent. Many formulas in the file focus on the entirety of the lists on the tabs. Therefore, if any rows are added to the beginning of a list or to the end of a list, ensure formulas are adjusted as needed. One way to avoid this is to ensure that any rows added are added to the middle of a list and are not added to the beginning of a list or to the end of a list. Review any added and/or updated items to ensure the selections on those rows are accurate since selections showing on any row may be from the prior year's planning. (3) Review all selections to ensure they are what the Town desires.
A18: - If multiple funding sources must be used for one capital item or project, the best way to show this is to create multiple rows on the departmental tab and divide the costs up appropriately for each row. Then, on the "Town-Wide Capital Planning" tab, select the appropriate funding source for the correct row.
A19: - A macro is embedded in this file that will help ensure no changes to the "Town-Wide Capital Planning" tab are made that would eliminate the link between the departmental tabs and the "Town-Wide Capital Planning" tab. The macro does not allow anything but a formula to be put into a cell with a capital item in columns A-E. The formulas are allowed since they are used to link to the departmental tabs. In order for the macro to do its checking, macros must be enabled in the Excel application in use. In Excel 2010 and on, macros can be enabled by going to File -> Options -> Trust Center -> Trust Center Settings... -> Macro Settings and selecting the Enable option.
A20: - There is an test on the status of the file in the Totals area at the bottom of the "Town-Wide Capital Planning" tab. The purpose of this test is to ensure that all capital items that exist on the departmental tabs also exist on the "Town-Wide Capital Planning" tab. If reconciled, the file will show that the status of the file is "OK" and display it in green. If not reconciled, the file will show that the status of the file is "Not OK" and display it in red. If "Not OK" shows, use the reconciliation information just below it to understand why and then compare the information on the departmental tabs to the information on the "Town-Wide Capital Planning" tab and adjust as needed. (Note that the first rendition of this file was provided to the town as not reconciled since costs for the sewer I/I projects were not known at that time.)
A21: - When maintaining this file from year to year, years in the file may need to change. For example, the file was created with FY 2020 as the first year in focus. Two years later, the first year in focus should be FY 2022. To change the years, only focus on cell P2 on the "Town-Wide Capital Planning" tab. When cell P2 on the "Town-Wide Capital Planning" tab is updated, years to the right of that cell update automatedly and years on other tabs update as well. Ensure cell P2 on the "Town-Wide Capital Planning" tab has an "FY" in front of the year and a space between the "FY" and the year to ensure functionality works as expected in the file.
A22: - When the file was first created, existing debt was used for the debt tracking on the Summary tabs. The "Existing Debt" tab in this file was used, via linking, to populate the debt tracking part of the Summary tabs. To update existing debt in this file, either replace the "Existing Debt" tab in this file with an updated one and use linking to it to update the tables or type into the tables the latest existing debt schedule. The same applies for the Proj Debt (authorizations) table on the Summary tabs, if there are borrowings authorized, but not yet borrowed, of which there was none when this file was created in early FY 2020.
A23: - If interested in creating multiple versions of the capital plan to compare multiple scenarios, focus on creating multiple files instead of multiple tabs within the same file. Considering the linking involved with the tabs inside this file, multiple files works better than multiple tabs, when trying to compare different scenarios.

Sheet Town-Wide Capital Planning
A1: 10-YEAR CAPITAL PLAN | C1: Columns A-E from individual tabs; update there | D1: Estimated | G1: Capital Planning Selections | I1: Borrowing Selections | L1: Interest Rate: | N1: 0.04 | P1: Capital Expenditures By Year ------------->
A2: Tab | B2: Location/Dept/Group | C2: Project/Purchase | D2: Cost | E2: FY | G2: Include? | H2: Funding? | I2: Term (Yrs) | J2: Interest Rate | L2: Inflation Rate: | N2: 0 | P2: FY 2020 | Q2: ="FY "&(RIGHT(P2,4)+1) -> FY 2021 | R2: ="FY "&(RIGHT(Q2,4)+1) -> FY 2022 | S2: FY 2023 | T2: FY 2024 | U2: FY 2025 | V2: FY 2026 | W2: FY 2027 | X2: FY 2028 | Y2: FY 2029 | Z2: FY 2030 | AA2: FY 2031 | AB2: FY 2032 | AC2: FY 2033 | AD2: FY 2034 | AE2: FY 2035 | AF2: FY 2036 | AG2: FY 2037 | AH2: FY 2038 | AI2: FY 2039 | AJ2: FY 2040 | AK2: FY 2041 | AL2: FY 2042 | AM2: FY 2043 | AN2: FY 2044 | AO2: FY 2045 | AP2: FY 2046 | AQ2: FY 2047 | AR2: FY 2048 | AS2: FY 2049
A3: =MID(CELL("filename",Water!A22),FIND("]",CELL("filename",Water!A22))+1,256) -> Water | B3: =Water!A22 -> Water | C3: =Water!B22 -> Upgrades to Pump Station No. 1 | D3: =Water!C22 -> 1500000 | E3: =IF(Water!D22=0,"",Water!D22) -> 2021 | G3: Yes | H3: =IF(D3>60000,IF(D3<=250000,"Debt (Non-Excluded)","Debt (Excluded)"),IF(B3="Water","Water Retained Earnings",IF(B3="Sewer","Sewer Retained Earnings","Free Cash"))) -> Debt (Excluded) | I3: =IF(LEFT(H3,4)="Debt",20,"") -> 20 | J3: =IF(LEFT(H3,4)="Debt",N$1,"") -> 0.04 | L3: $ Amounts as of: | N3: 2020 | P3: =IF($G3="Yes",IF(LEFT($H3,4)="Debt",IF(AND(VALUE(RIGHT(P$2,4))>=($E3+1),VALUE(RIGHT(P$2,4))<=($E3+IF(ISNUMBER($I3),$I3,0)),$I3>0,ISNUMBER($J3)),(($D3*((1+$N$2)^($E3-$N$3)))/$I3)+((($D3*((1+$N$2)^($E3-$N$3)))-((($D3*((1+$N$2)^($E3-$N$3)))/$I3)*(VALUE(RIGHT(P$2,4))-($E3+1))))*$J3),""),IF("FY "&$E3=P$2,$D3*((1+$N$2)^((VALUE(RIGHT(P$2,4)))-$N$3)),"")),"") ->  | Q3: =IF($G3="Yes",IF(LEFT($H3,4)="Debt",IF(AND(VALUE(RIGHT(Q$2,4))>=($E3+1),VALUE(RIGHT(Q$2,4))<=($E3+IF(ISNUMBER($I3),$I3,0)),$I3>0,ISNUMBER($J3)),(($D3*((1+$N$2)^($E3-(VALUE(RIGHT($P$2,4))))))/$I3)+((($D3*((1+$N$2)^($E3-(VALUE(RIGHT($P$2,4))))))-((($D3*((1+$N$2)^($E3-(VALUE(RIGHT($P$2,4))))))/$I3)*(VALUE(RIGHT(Q$2,4))-($E3+1))))*$J3),""),IF("FY "&$E3=Q$2,$D3*((1+$N$2)^((VALUE(RIGHT(Q$2,4)))-(VALUE(RIGHT($P$2,4))))),"")),"") ->  | R3: 135000 | S3: 132000 | T3: 129000 | U3: 126000 | V3: 123000 | W3: 120000 | X3: 117000 | Y3: 114000 | Z3: 111000 | AA3: 108000 | AB3: 105000 | AC3: 102000 | AD3: 99000 | AE3: 96000 | AF3: 93000 | AG3: 90000 | AH3: 87000 | AI3: 84000 | AJ3: 81000 | AK3: 78000
A4: =MID(CELL("filename",Water!A23),FIND("]",CELL("filename",Water!A23))+1,256) -> Water | B4: =Water!A23 -> Water | C4: =Water!B23 -> Upgrades to Pump Station No. 3 | D4: =Water!C23 -> 470000 | E4: =IF(Water!D23=0,"",Water!D23) -> 2021 | G4: Yes | H4: =IF(D4>60000,IF(D4<=250000,"Debt (Non-Excluded)","Debt (Excluded)"),IF(B4="Water","Water Retained Earnings",IF(B4="Sewer","Sewer Retained Earnings","Free Cash"))) -> Debt (Excluded) | I4: =IF(LEFT(H4,4)="Debt",20,"") -> 20 | J4: =IF(LEFT(H4,4)="Debt",N$1,"") -> 0.04 | P4: =IF($G4="Yes",IF(LEFT($H4,4)="Debt",IF(AND(VALUE(RIGHT(P$2,4))>=($E4+1),VALUE(RIGHT(P$2,4))<=($E4+IF(ISNUMBER($I4),$I4,0)),$I4>0,ISNUMBER($J4)),(($D4*((1+$N$2)^($E4-$N$3)))/$I4)+((($D4*((1+$N$2)^($E4-$N$3)))-((($D4*((1+$N$2)^($E4-$N$3)))/$I4)*(VALUE(RIGHT(P$2,4))-($E4+1))))*$J4),""),IF("FY "&$E4=P$2,$D4*((1+$N$2)^((VALUE(RIGHT(P$2,4)))-$N$3)),"")),"") ->  | Q4: =IF($G4="Yes",IF(LEFT($H4,4)="Debt",IF(AND(VALUE(RIGHT(Q$2,4))>=($E4+1),VALUE(RIGHT(Q$2,4))<=($E4+IF(ISNUMBER($I4),$I4,0)),$I4>0,ISNUMBER($J4)),(($D4*((1+$N$2)^($E4-(VALUE(RIGHT($P$2,4))))))/$I4)+((($D4*((1+$N$2)^($E4-(VALUE(RIGHT($P$2,4))))))-((($D4*((1+$N$2)^($E4-(VALUE(RIGHT($P$2,4))))))/$I4)*(VALUE(RIGHT(Q$2,4))-($E4+1))))*$J4),""),IF("FY "&$E4=Q$2,$D4*((1+$N$2)^((VALUE(RIGHT(Q$2,4)))-(VALUE(RIGHT($P$2,4))))),"")),"") ->  | R4: 42300 | S4: 41360 | T4: 40420 | U4: 39480 | V4: 38540 | W4: 37600 | X4: 36660 | Y4: 35720 | Z4: 34780 | AA4: 33840 | AB4: 32900 | AC4: 31960 | AD4: 31020 | AE4: 30080 | AF4: 29140 | AG4: =IF($G4="Yes",IF(LEFT($H4,4)="Debt",IF(AND(VALUE(RIGHT(AG$2,4))>=($E4+1),VALUE(RIGHT(AG$2,4))<=($E4+IF(ISNUMBER($I4),$I4,0)),$I4>0,ISNUMBER($J4)),(($D4*((1+$N$2)^($E4-(VALUE(RIGHT($P$2,4))))))/$I4)+((($D4*((1+$N$2)^($E4-(VALUE(RIGHT($P$2,4))))))-((($D4*((1+$N$2)^($E4-(VALUE(RIGHT($P$2,4))))))/$I4)*(VALUE(RIGHT(AG$2,4))-($E4+1))))*$J4),""),IF("FY "&$E4=AG$2,$D4*((1+$N$2)^((VALUE(RIGHT(AG$2,4)))-(VALUE(RIGHT($P$2,4))))),"")),"") -> 28200 | AH4: 27260 | AI4: 26320 | AJ4: 25380 | AK4: 24440
A5: =MID(CELL("filename",Water!A24),FIND("]",CELL("filename",Water!A24))+1,256) -> Water | B5: =Water!A24 -> Water | C5: =Water!B24 -> Upgrades to Pump Station No. 6 | D5: =Water!C24 -> 310000 | E5: =IF(Water!D24=0,"",Water!D24) -> 2021 | G5: Yes | H5: Debt (Excluded) | I5: 20 | J5: 0.04 | R5: 27900 | S5: 27280 | T5: 26660 | U5: 26040 | V5: 25420 | W5: 24800 | X5: 24180 | Y5: 23560 | Z5: 22940 | AA5: 22320 | AB5: 21700 | AC5: 21080 | AD5: 20460 | AE5: 19840 | AF5: 19220 | AG5: 18600 | AH5: 17980 | AI5: 17360 | AJ5: 16740 | AK5: 16120
A6: =MID(CELL("filename",Water!A25),FIND("]",CELL("filename",Water!A25))+1,256) -> Water | B6: =Water!A25 -> Water | C6: =Water!B25 -> Dresser Hill WST Rehabilitation | D6: =Water!C25 -> 600000 | E6: =IF(Water!D25=0,"",Water!D25) -> 2022 | G6: Yes | H6: Debt (Excluded) | I6: 20 | J6: 0.04 | S6: 54000 | T6: 52800 | U6: 51600 | V6: 50400 | W6: 49200 | X6: 48000 | Y6: 46800 | Z6: 45600 | AA6: 44400 | AB6: 43200 | AC6: 42000 | AD6: 40800 | AE6: 39600 | AF6: 38400 | AG6: 37200 | AH6: 36000 | AI6: 34800 | AJ6: 33600 | AK6: 32400 | AL6: 31200
A7: =MID(CELL("filename",Water!A26),FIND("]",CELL("filename",Water!A26))+1,256) -> Water | B7: =Water!A26 -> Water | C7: =Water!B26 -> Bates WST Rehabilitation | D7: =Water!C26 -> 180000 | E7: =IF(Water!D26=0,"",Water!D26) -> 2022 | G7: Yes | H7: Debt (Non-Excluded) | I7: 20 | J7: 0.04 | S7: 16200 | T7: 15840 | U7: 15480 | V7: 15120 | W7: 14760 | X7: 14400 | Y7: 14040 | Z7: 13680 | AA7: 13320 | AB7: 12960 | AC7: 12600 | AD7: 12240 | AE7: 11880 | AF7: 11520 | AG7: 11160 | AH7: 10800 | AI7: 10440 | AJ7: 10080 | AK7: 9720 | AL7: 9360
A8: =MID(CELL("filename",Water!A27),FIND("]",CELL("filename",Water!A27))+1,256) -> Water | B8: =Water!A27 -> Water | C8: =Water!B27 -> Mason Road and Mason Road Extension Water Main Replacement | D8: =Water!C27 -> 3140000 | E8: =IF(Water!D27=0,"",Water!D27) -> 2023 | G8: Yes | H8: Debt (Excluded) | I8: 20 | J8: 0.04 | T8: 282600 | U8: 276320 | V8: 270040 | W8: 263760 | X8: 257480 | Y8: 251200 | Z8: 244920 | AA8: 238640 | AB8: 232360 | AC8: 226080 | AD8: 219800 | AE8: 213520 | AF8: 207240 | AG8: 200960 | AH8: 194680 | AI8: 188400 | AJ8: 182120 | AK8: 175840 | AL8: 169560 | AM8: 163280
A9: =MID(CELL("filename",Water!A28),FIND("]",CELL("filename",Water!A28))+1,256) -> Water | B9: =Water!A28 -> Water | C9: =Water!B28 -> Delaney Road Water Main Replacement | D9: =Water!C28 -> 3490000 | E9: =IF(Water!D28=0,"",Water!D28) -> 2024 | G9: Yes | H9: Debt (Excluded) | I9: 20 | J9: 0.04 | U9: 314100 | V9: 307120 | W9: 300140 | X9: 293160 | Y9: 286180 | Z9: 279200 | AA9: 272220 | AB9: 265240 | AC9: 258260 | AD9: 251280 | AE9: 244300 | AF9: 237320 | AG9: 230340 | AH9: 223360 | AI9: 216380 | AJ9: 209400 | AK9: 202420 | AL9: 195440 | AM9: 188460 | AN9: 181480
A10: =MID(CELL("filename",Water!A29),FIND("]",CELL("filename",Water!A29))+1,256) -> Water | B10: =Water!A29 -> Water | C10: =Water!B29 -> Konkel Avenue Water Main Replacement | D10: =Water!C29 -> 3050000 | E10: =IF(Water!D29=0,"",Water!D29) -> 2025 | G10: Yes | H10: Debt (Excluded) | I10: 20 | J10: 0.04 | V10: 274500 | W10: 268400 | X10: 262300 | Y10: 256200 | Z10: 250100 | AA10: 244000 | AB10: 237900 | AC10: 231800 | AD10: 225700 | AE10: 219600 | AF10: 213500 | AG10: 207400 | AH10: 201300 | AI10: 195200 | AJ10: 189100 | AK10: 183000 | AL10: 176900 | AM10: 170800 | AN10: 164700 | AO10: 158600
A11: =MID(CELL("filename",Water!A30),FIND("]",CELL("filename",Water!A30))+1,256) -> Water | B11: =Water!A30 -> Water | C11: =Water!B30 -> Jaybee Avenue Water Main Replacement | D11: =Water!C30 -> 3470000 | E11: =IF(Water!D30=0,"",Water!D30) -> 2026 | G11: Yes | H11: Debt (Excluded) | I11: 20 | J11: 0.04 | W11: 312300 | X11: 305360 | Y11: 298420 | Z11: 291480 | AA11: 284540 | AB11: 277600 | AC11: 270660 | AD11: 263720 | AE11: 256780 | AF11: 249840 | AG11: 242900 | AH11: 235960 | AI11: 229020 | AJ11: 222080 | AK11: 215140 | AL11: 208200 | AM11: 201260 | AN11: 194320 | AO11: 187380 | AP11: 180440
A12: =MID(CELL("filename",Water!A31),FIND("]",CELL("filename",Water!A31))+1,256) -> Water | B12: =Water!A31 -> Water | C12: =Water!B31 -> Water Meter Replacement | D12: =Water!C31 -> 700000 | E12: =IF(Water!D31=0,"",Water!D31) -> 2021 | G12: Yes | H12: Debt (Excluded) | I12: 20 | J12: 0.04 | R12: 63000 | S12: 61600 | T12: 60200 | U12: 58800 | V12: 57400 | W12: 56000 | X12: 54600 | Y12: 53200 | Z12: 51800 | AA12: 50400 | AB12: 49000 | AC12: 47600 | AD12: 46200 | AE12: 44800 | AF12: 43400 | AG12: 42000 | AH12: 40600 | AI12: 39200 | AJ12: 37800 | AK12: 36400
A13: =MID(CELL("filename",Water!A32),FIND("]",CELL("filename",Water!A32))+1,256) -> Water | B13: =Water!A32 -> Water | C13: =Water!B32 -> Sunnyside Avenue to Oxford Avenue Water Main Replacement | D13: =Water!C32 -> 1500000 | E13: =IF(Water!D32=0,"",Water!D32) -> 2026 | G13: Yes | H13: Debt (Excluded) | I13: 20 | J13: 0.04 | W13: 135000 | X13: 132000 | Y13: 129000 | Z13: 126000 | AA13: 123000 | AB13: 120000 | AC13: 117000 | AD13: 114000 | AE13: 111000 | AF13: 108000 | AG13: 105000 | AH13: 102000 | AI13: 99000 | AJ13: 96000 | AK13: 93000 | AL13: 90000 | AM13: 87000 | AN13: 84000 | AO13: 81000 | AP13: 78000
A14: =MID(CELL("filename",Water!A33),FIND("]",CELL("filename",Water!A33))+1,256) -> Water | B14: =Water!A33 -> Water | C14: =Water!B33 -> Main Replacement (Placeholder) | D14: =Water!C33 -> 1000000 | E14: =IF(Water!D33=0,"",Water!D33) -> 2027 | G14: Yes | H14: Debt (Excluded) | I14: 20 | J14: 0.04 | X14: 90000 | Y14: 88000 | Z14: 86000 | AA14: 84000 | AB14: 82000 | AC14: 80000 | AD14: 78000 | AE14: 76000 | AF14: 74000 | AG14: 72000 | AH14: 70000 | AI14: 68000 | AJ14: 66000 | AK14: 64000 | AL14: 62000 | AM14: 60000 | AN14: 58000 | AO14: 56000 | AP14: 54000 | AQ14: 52000
A15: =MID(CELL("filename",Water!A34),FIND("]",CELL("filename",Water!A34))+1,256) -> Water | B15: =Water!A34 -> Water | C15: =Water!B34 -> Main Replacement (Placeholder) | D15: =Water!C34 -> 1000000 | E15: =IF(Water!D34=0,"",Water!D34) -> 2028 | G15: Yes | H15: Debt (Excluded) | I15: 20 | J15: 0.04 | Y15: 90000 | Z15: 88000 | AA15: 86000 | AB15: 84000 | AC15: 82000 | AD15: 80000 | AE15: 78000 | AF15: 76000 | AG15: 74000 | AH15: 72000 | AI15: 70000 | AJ15: 68000 | AK15: 66000 | AL15: 64000 | AM15: 62000 | AN15: 60000 | AO15: 58000 | AP15: 56000 | AQ15: 54000 | AR15: 52000
A16: =MID(CELL("filename",Water!A35),FIND("]",CELL("filename",Water!A35))+1,256) -> Water | B16: =Water!A35 -> Water | C16: =Water!B35 -> Main Replacement (Placeholder) | D16: =Water!C35 -> 1000000 | E16: =IF(Water!D35=0,"",Water!D35) -> 2029 | G16: Yes | H16: Debt (Excluded) | I16: 20 | J16: 0.04 | Z16: 90000 | AA16: 88000 | AB16: 86000 | AC16: 84000 | AD16: 82000 | AE16: 80000 | AF16: 78000 | AG16: 76000 | AH16: 74000 | AI16: 72000 | AJ16: 70000 | AK16: 68000 | AL16: 66000 | AM16: 64000 | AN16: 62000 | AO16: 60000 | AP16: 58000 | AQ16: 56000 | AR16: 54000 | AS16: 52000
A17: =MID(CELL("filename",Water!A36),FIND("]",CELL("filename",Water!A36))+1,256) -> Water | B17: =Water!A36 -> Water | C17: =Water!B36 -> Well #3 | D17: =Water!C36 -> 300000 | E17: =IF(Water!D36=0,"",Water!D36) -> 2020 | G17: Yes | H17: Debt (Excluded) | I17: 20 | J17: 0.04 | Q17: 27000 | R17: 26400 | S17: 25800 | T17: 25200 | U17: 24600 | V17: 24000 | W17: 23400 | X17: 22800 | Y17: 22200 | Z17: 21600 | AA17: 21000 | AB17: 20400 | AC17: 19800 | AD17: 19200 | AE17: 18600 | AF17: 18000 | AG17: 17400 | AH17: 16800 | AI17: 16200 | AJ17: 15600
A18: =MID(CELL("filename",Water!A37),FIND("]",CELL("filename",Water!A37))+1,256) -> Water | B18: =Water!A37 -> Water | C18: =Water!B37 -> Pickup Truck | D18: =Water!C37 -> 45000 | E18: =IF(Water!D37=0,"",Water!D37) -> 2021 | G18: Yes | H18: Water Retained Earnings | Q18: 45000
A19: =MID(CELL("filename",Water!A38),FIND("]",CELL("filename",Water!A38))+1,256) -> Water | B19: =Water!A38 -> Water | C19: =Water!B38 -> Pickup Truck | D19: =Water!C38 -> 35000 | E19: =IF(Water!D38=0,"",Water!D38) -> 2024 | G19: Yes | H19: Water Retained Earnings | T19: 35000 | AF19: =IF($G19="Yes",IF(LEFT($H19,4)="Debt",IF(AND(VALUE(RIGHT(AF$2,4))>=($E19+1),VALUE(RIGHT(AF$2,4))<=($E19+IF(ISNUMBER($I19),$I19,0)),$I19>0,ISNUMBER($J19)),(($D19*((1+$N$2)^($E19-(VALUE(RIGHT($P$2,4))))))/$I19)+((($D19*((1+$N$2)^($E19-(VALUE(RIGHT($P$2,4))))))-((($D19*((1+$N$2)^($E19-(VALUE(RIGHT($P$2,4))))))/$I19)*(VALUE(RIGHT(AF$2,4))-($E19+1))))*$J19),""),IF("FY "&$E19=AF$2,$D19*((1+$N$2)^((VALUE(RIGHT(AF$2,4)))-(VALUE(RIGHT($P$2,4))))),"")),"") -> 
A20: =MID(CELL("filename",Water!A39),FIND("]",CELL("filename",Water!A39))+1,256) -> Water | B20: =Water!A39 -> Water | C20: =Water!B39 -> Pickup Truck | D20: =Water!C39 -> 35000 | E20: =IF(Water!D39=0,"",Water!D39) -> 2029 | G20: Yes | H20: Water Retained Earnings | Q20: =IF($G20="Yes",IF(LEFT($H20,4)="Debt",IF(AND(VALUE(RIGHT(Q$2,4))>=($E20+1),VALUE(RIGHT(Q$2,4))<=($E20+IF(ISNUMBER($I20),$I20,0)),$I20>0,ISNUMBER($J20)),(($D20*((1+$N$2)^($E20-(VALUE(RIGHT($P$2,4))))))/$I20)+((($D20*((1+$N$2)^($E20-(VALUE(RIGHT($P$2,4))))))-((($D20*((1+$N$2)^($E20-(VALUE(RIGHT($P$2,4))))))/$I20)*(VALUE(RIGHT(Q$2,4))-($E20+1))))*$J20),""),IF("FY "&$E20=Q$2,$D20*((1+$N$2)^((VALUE(RIGHT(Q$2,4)))-(VALUE(RIGHT($P$2,4))))),"")),"") ->  | Y20: 35000
A21: =MID(CELL("filename",Water!A40),FIND("]",CELL("filename",Water!A40))+1,256) -> Water | B21: =Water!A40 -> Water | C21: =Water!B40 -> Utility Truck | D21: =Water!C40 -> 100000 | E21: =IF(Water!D40=0,"",Water!D40) -> 2026 | G21: Yes | H21: Debt (Non-Excluded) | I21: 20 | J21: 0.04 | W21: 9000 | X21: 8800 | Y21: 8600 | Z21: 8400 | AA21: 8200 | AB21: 8000 | AC21: 7800 | AD21: 7600 | AE21: 7400 | AF21: 7200 | AG21: 7000 | AH21: 6800 | AI21: 6600 | AJ21: 6400 | AK21: 6200 | AL21: 6000 | AM21: 5800 | AN21: 5600 | AO21: 5400 | AP21: 5200
A22: =MID(CELL("filename",Water!A41),FIND("]",CELL("filename",Water!A41))+1,256) -> Water | B22: =Water!A41 -> Water | C22: =Water!B41 -> Backhoe | D22: =Water!C41 -> 125000 | E22: =IF(Water!D41=0,"",Water!D41) -> 2025 | G22: Yes | H22: Debt (Non-Excluded) | I22: 20 | J22: 0.04 | V22: 11250 | W22: 11000 | X22: 10750 | Y22: 10500 | Z22: 10250 | AA22: 10000 | AB22: 9750 | AC22: 9500 | AD22: 9250 | AE22: 9000 | AF22: 8750 | AG22: 8500 | AH22: 8250 | AI22: 8000 | AJ22: 7750 | AK22: 7500 | AL22: 7250 | AM22: 7000 | AN22: 6750 | AO22: 6500
A23: =MID(CELL("filename",Water!A42),FIND("]",CELL("filename",Water!A42))+1,256) -> Water | B23: =Water!A42 -> Water | C23: =Water!B42 -> Dump Truck | D23: =Water!C42 -> 185000 | E23: =IF(Water!D42=0,"",Water!D42) -> 2026 | G23: Yes | H23: Debt (Non-Excluded) | I23: 20 | J23: 0.04 | W23: 16650 | X23: 16280 | Y23: 15910 | Z23: 15540 | AA23: 15170 | AB23: 14800 | AC23: 14430 | AD23: 14060 | AE23: 13690 | AF23: 13320 | AG23: 12950 | AH23: 12580 | AI23: 12210 | AJ23: 11840 | AK23: 11470 | AL23: 11100 | AM23: 10730 | AN23: 10360 | AO23: =IF($G23="Yes",IF(LEFT($H23,4)="Debt",IF(AND(VALUE(RIGHT(AO$2,4))>=($E23+1),VALUE(RIGHT(AO$2,4))<=($E23+IF(ISNUMBER($I23),$I23,0)),$I23>0,ISNUMBER($J23)),(($D23*((1+$N$2)^($E23-(VALUE(RIGHT($P$2,4))))))/$I23)+((($D23*((1+$N$2)^($E23-(VALUE(RIGHT($P$2,4))))))-((($D23*((1+$N$2)^($E23-(VALUE(RIGHT($P$2,4))))))/$I23)*(VALUE(RIGHT(AO$2,4))-($E23+1))))*$J23),""),IF("FY "&$E23=AO$2,$D23*((1+$N$2)^((VALUE(RIGHT(AO$2,4)))-(VALUE(RIGHT($P$2,4))))),"")),"") -> 9990 | AP23: 9620
A24: =MID(CELL("filename",Water!A43),FIND("]",CELL("filename",Water!A43))+1,256) -> Water | B24: =Water!A43 -> Water | C24: =Water!B43 -> Additional Water Source | D24: =Water!C43 -> 6000000 | E24: =IF(Water!D43=0,"",Water!D43) -> 2027 | G24: Yes | H24: Debt (Excluded) | I24: 20 | J24: 0.04 | X24: 540000 | Y24: 528000 | Z24: 516000 | AA24: 504000 | AB24: 492000 | AC24: 480000 | AD24: 468000 | AE24: 456000 | AF24: 444000 | AG24: 432000 | AH24: 420000 | AI24: 408000 | AJ24: 396000 | AK24: 384000 | AL24: 372000 | AM24: 360000 | AN24: 348000 | AO24: 336000 | AP24: 324000 | AQ24: 312000
A25: =MID(CELL("filename",Water!A44),FIND("]",CELL("filename",Water!A44))+1,256) -> Water | B25: =Water!A44 -> Water | C25: =Water!B44 -> Pressure Reducer Valve Upgrades | D25: =Water!C44 -> 600000 | E25: =IF(Water!D44=0,"",Water!D44) -> 2028 | G25: Yes | H25: Debt (Excluded) | I25: 20 | J25: 0.04 | Y25: 54000 | Z25: 52800 | AA25: 51600 | AB25: 50400 | AC25: 49200 | AD25: 48000 | AE25: 46800 | AF25: 45600 | AG25: 44400 | AH25: 43200 | AI25: 42000 | AJ25: 40800 | AK25: 39600 | AL25: 38400 | AM25: 37200 | AN25: 36000 | AO25: 34800 | AP25: 33600 | AQ25: 32400 | AR25: 31200
A26: =MID(CELL("filename",Water!A45),FIND("]",CELL("filename",Water!A45))+1,256) -> Water | B26: =Water!A45 -> Water | C26: =Water!B45 -> Increase SCADA Capacity for Tanks | D26: =Water!C45 -> 30000 | E26: =IF(Water!D45=0,"",Water!D45) -> 2022 | G26: Yes | H26: Water Retained Earnings | R26: 30000
A27: =MID(CELL("filename",Water!A46),FIND("]",CELL("filename",Water!A46))+1,256) -> Water | B27: =Water!A46 -> Water | C27: =Water!B46 -> HVAC System Upgrade | D27: =Water!C46 -> 25000 | E27: =IF(Water!D46=0,"",Water!D46) -> 2028 | G27: Yes | H27: Green Communities Grant | X27: 25000
A28: =MID(CELL("filename",Sewer!A22),FIND("]",CELL("filename",Sewer!A22))+1,256) -> Sewer | B28: =Sewer!A22 -> Sewer | C28: =Sewer!B22 -> Roof Upgrade at Pump Station | D28: =Sewer!C22 -> 20000 | E28: =IF(Sewer!D22=0,"",Sewer!D22) -> 2023 | G28: Yes | H28: Sewer Retained Earnings | S28: 20000
A29: =MID(CELL("filename",Sewer!A23),FIND("]",CELL("filename",Sewer!A23))+1,256) -> Sewer | B29: =Sewer!A23 -> Sewer | C29: =Sewer!B23 -> New Building for Trucks | D29: =Sewer!C23 -> 100000 | E29: =IF(Sewer!D23=0,"",Sewer!D23) -> 2024 | G29: Yes | H29: Debt (Non-Excluded) | I29: 20 | J29: 0.04 | U29: 9000 | V29: 8800 | W29: 8600 | X29: 8400 | Y29: 8200 | Z29: 8000 | AA29: 7800 | AB29: 7600 | AC29: 7400 | AD29: 7200 | AE29: 7000 | AF29: 6800 | AG29: 6600 | AH29: 6400 | AI29: 6200 | AJ29: 6000 | AK29: 5800 | AL29: 5600 | AM29: 5400 | AN29: 5200
A30: =MID(CELL("filename",Sewer!A24),FIND("]",CELL("filename",Sewer!A24))+1,256) -> Sewer | B30: =Sewer!A24 -> Sewer | C30: =Sewer!B24 -> Utility Truck | D30: =Sewer!C24 -> 45000 | E30: =IF(Sewer!D24=0,"",Sewer!D24) -> 2029 | G30: Yes | H30: Sewer Retained Earnings | Y30: 45000
A31: =MID(CELL("filename",Sewer!A25),FIND("]",CELL("filename",Sewer!A25))+1,256) -> Sewer | B31: =Sewer!A25 -> Sewer | C31: =Sewer!B25 -> Pickup Truck | D31: =Sewer!C25 -> 40000 | E31: =IF(Sewer!D25=0,"",Sewer!D25) -> 2024 | G31: Yes | H31: Sewer Retained Earnings | T31: 40000
A32: =MID(CELL("filename",Sewer!A26),FIND("]",CELL("filename",Sewer!A26))+1,256) -> Sewer | B32: =Sewer!A26 -> Sewer | C32: =Sewer!B26 -> Jetter | D32: =Sewer!C26 -> 200000 | E32: =Sewer!D26 -> 2022 | G32: Yes | H32: Debt (Non-Excluded) | I32: 20 | J32: 0.04 | S32: 18000 | T32: 17600 | U32: 17200 | V32: 16800 | W32: 16400 | X32: 16000 | Y32: 15600 | Z32: 15200 | AA32: 14800 | AB32: 14400 | AC32: 14000 | AD32: 13600 | AE32: 13200 | AF32: 12800 | AG32: 12400 | AH32: 12000 | AI32: 11600 | AJ32: 11200 | AK32: 10800 | AL32: 10400
A33: =MID(CELL("filename",Sewer!A27),FIND("]",CELL("filename",Sewer!A27))+1,256) -> Sewer | B33: =Sewer!A27 -> Sewer | C33: =Sewer!B27 -> I&I Sewer Main Repairs/Upgrades | D33: =Sewer!C27 -> 0 | E33: =IF(Sewer!D27=0,"",Sewer!D27) -> 2023 | G33: Yes | H33: Sewer Retained Earnings | S33: 0
A34: =MID(CELL("filename",Sewer!A28),FIND("]",CELL("filename",Sewer!A28))+1,256) -> Sewer | B34: =Sewer!A28 -> Sewer | C34: =Sewer!B28 -> I&I Sewer Main Repairs/Upgrades | D34: =Sewer!C28 -> 0 | E34: =IF(Sewer!D28=0,"",Sewer!D28) -> 2025 | G34: Yes | H34: Sewer Retained Earnings | U34: 0
A35: =MID(CELL("filename",Sewer!A29),FIND("]",CELL("filename",Sewer!A29))+1,256) -> Sewer | B35: =Sewer!A29 -> Sewer | C35: =Sewer!B29 -> I&I Sewer Main Repairs/Upgrades | D35: =Sewer!C29 -> 0 | E35: =IF(Sewer!D29=0,"",Sewer!D29) -> 2027 | G35: Yes | H35: Sewer Retained Earnings | W35: 0
A36: =MID(CELL("filename",Sewer!A30),FIND("]",CELL("filename",Sewer!A30))+1,256) -> Sewer | B36: =Sewer!A30 -> Sewer | C36: =Sewer!B30 -> I&I Sewer Main Repairs/Upgrades | D36: =Sewer!C30 -> 0 | E36: =IF(Sewer!D30=0,"",Sewer!D30) -> 2029 | G36: Yes | H36: Sewer Retained Earnings | Y36: 0
A37: =MID(CELL("filename",Sewer!A31),FIND("]",CELL("filename",Sewer!A31))+1,256) -> Sewer | B37: =Sewer!A31 -> Sewer | C37: =Sewer!B31 -> Station/Pump Upgrades | D37: =Sewer!C31 -> 100000 | E37: =IF(Sewer!D31=0,"",Sewer!D31) -> 2024 | G37: Yes | H37: Debt (Non-Excluded) | I37: 20 | J37: 0.04 | Q37: =IF($G37="Yes",IF(LEFT($H37,4)="Debt",IF(AND(VALUE(RIGHT(Q$2,4))>=($E37+1),VALUE(RIGHT(Q$2,4))<=($E37+IF(ISNUMBER($I37),$I37,0)),$I37>0,ISNUMBER($J37)),(($D37*((1+$N$2)^($E37-(VALUE(RIGHT($P$2,4))))))/$I37)+((($D37*((1+$N$2)^($E37-(VALUE(RIGHT($P$2,4))))))-((($D37*((1+$N$2)^($E37-(VALUE(RIGHT($P$2,4))))))/$I37)*(VALUE(RIGHT(Q$2,4))-($E37+1))))*$J37),""),IF("FY "&$E37=Q$2,$D37*((1+$N$2)^((VALUE(RIGHT(Q$2,4)))-(VALUE(RIGHT($P$2,4))))),"")),"") ->  | U37: 9000 | V37: 8800 | W37: 8600 | X37: 8400 | Y37: 8200 | Z37: 8000 | AA37: 7800 | AB37: 7600 | AC37: 7400 | AD37: 7200 | AE37: 7000 | AF37: 6800 | AG37: 6600 | AH37: 6400 | AI37: 6200 | AJ37: 6000 | AK37: 5800 | AL37: 5600 | AM37: 5400 | AN37: 5200
A38: =MID(CELL("filename",Sewer!A32),FIND("]",CELL("filename",Sewer!A32))+1,256) -> Sewer | B38: =Sewer!A32 -> Sewer | C38: =Sewer!B32 -> Station/Pump Upgrades | D38: =Sewer!C32 -> 100000 | E38: =IF(Sewer!D32=0,"",Sewer!D32) -> 2026 | G38: Yes | H38: Debt (Non-Excluded) | I38: 20 | J38: 0.04 | W38: 9000 | X38: 8800 | Y38: 8600 | Z38: 8400 | AA38: 8200 | AB38: 8000 | AC38: 7800 | AD38: 7600 | AE38: 7400 | AF38: 7200 | AG38: 7000 | AH38: 6800 | AI38: 6600 | AJ38: 6400 | AK38: 6200 | AL38: 6000 | AM38: 5800 | AN38: 5600 | AO38: 5400 | AP38: 5200
A39: =MID(CELL("filename",Sewer!A33),FIND("]",CELL("filename",Sewer!A33))+1,256) -> Sewer | B39: =Sewer!A33 -> Sewer | C39: =Sewer!B33 -> Station/Pump Upgrades | D39: =Sewer!C33 -> 100000 | E39: =IF(Sewer!D33=0,"",Sewer!D33) -> 2028 | G39: Yes | H39: Debt (Non-Excluded) | I39: 20 | J39: 0.04 | Y39: 9000 | Z39: 8800 | AA39: 8600 | AB39: 8400 | AC39: 8200 | AD39: 8000 | AE39: 7800 | AF39: 7600 | AG39: 7400 | AH39: 7200 | AI39: 7000 | AJ39: 6800 | AK39: 6600 | AL39: 6400 | AM39: 6200 | AN39: 6000 | AO39: 5800 | AP39: 5600 | AQ39: 5400 | AR39: 5200
A40: =MID(CELL("filename",Sewer!A34),FIND("]",CELL("filename",Sewer!A34))+1,256) -> Sewer | B40: =Sewer!A34 -> Sewer | C40: =Sewer!B34 -> Electrical Work | D40: =Sewer!C34 -> 130000 | E40: =IF(Sewer!D34=0,"",Sewer!D34) -> 2020 | G40: Yes | H40: Debt (Non-Excluded) | I40: 20 | J40: 0.04 | Q40: 11700 | R40: 11440 | S40: 11180 | T40: 10920 | U40: 10660 | V40: 10400 | W40: 10140 | X40: 9880 | Y40: 9620 | Z40: 9360 | AA40: 9100 | AB40: 8840 | AC40: 8580 | AD40: 8320 | AE40: 8060 | AF40: 7800 | AG40: 7540 | AH40: 7280 | AI40: 7020 | AJ40: 6760
A41: =MID(CELL("filename",Sewer!A35),FIND("]",CELL("filename",Sewer!A35))+1,256) -> Sewer | B41: =Sewer!A35 -> Sewer | C41: =Sewer!B35 -> Generator | D41: =Sewer!C35 -> 80000 | E41: =IF(Sewer!D35=0,"",Sewer!D35) -> 2021 | G41: Yes | H41: Debt (Non-Excluded) | I41: 20 | J41: 0.04 | R41: 7200 | S41: 7040 | T41: 6880 | U41: 6720 | V41: 6560 | W41: 6400 | X41: 6240 | Y41: 6080 | Z41: 5920 | AA41: 5760 | AB41: 5600 | AC41: 5440 | AD41: 5280 | AE41: 5120 | AF41: 4960 | AG41: 4800 | AH41: 4640 | AI41: 4480 | AJ41: 4320 | AK41: 4160
A42: =MID(CELL("filename",Sewer!A36),FIND("]",CELL("filename",Sewer!A36))+1,256) -> Sewer | B42: =Sewer!A36 -> Sewer | C42: =Sewer!B36 -> Generator | D42: =Sewer!C36 -> 80000 | E42: =IF(Sewer!D36=0,"",Sewer!D36) -> 2023 | G42: Yes | H42: Debt (Non-Excluded) | I42: 20 | J42: 0.04 | T42: 7200 | U42: 7040 | V42: 6880 | W42: 6720 | X42: 6560 | Y42: 6400 | Z42: 6240 | AA42: 6080 | AB42: 5920 | AC42: 5760 | AD42: 5600 | AE42: 5440 | AF42: 5280 | AG42: 5120 | AH42: 4960 | AI42: 4800 | AJ42: 4640 | AK42: 4480 | AL42: 4320 | AM42: 4160
A43: =MID(CELL("filename",Sewer!A37),FIND("]",CELL("filename",Sewer!A37))+1,256) -> Sewer | B43: =Sewer!A37 -> Sewer | C43: =Sewer!B37 -> Generator | D43: =Sewer!C37 -> 80000 | E43: =IF(Sewer!D37=0,"",Sewer!D37) -> 2025 | G43: Yes | H43: Debt (Non-Excluded) | I43: 20 | J43: 0.04 | V43: 7200 | W43: 7040 | X43: 6880 | Y43: 6720 | Z43: 6560 | AA43: 6400 | AB43: 6240 | AC43: 6080 | AD43: 5920 | AE43: 5760 | AF43: 5600 | AG43: 5440 | AH43: 5280 | AI43: 5120 | AJ43: 4960 | AK43: 4800 | AL43: 4640 | AM43: 4480 | AN43: 4320 | AO43: 4160
A44: =MID(CELL("filename",Sewer!A38),FIND("]",CELL("filename",Sewer!A38))+1,256) -> Sewer | B44: =Sewer!A38 -> Sewer | C44: =Sewer!B38 -> Generator | D44: =Sewer!C38 -> 80000 | E44: =IF(Sewer!D38=0,"",Sewer!D38) -> 2027 | G44: Yes | H44: Debt (Non-Excluded) | I44: 20 | J44: 0.04 | X44: 7200 | Y44: 7040 | Z44: 6880 | AA44: 6720 | AB44: 6560 | AC44: 6400 | AD44: 6240 | AE44: 6080 | AF44: 5920 | AG44: 5760 | AH44: 5600 | AI44: 5440 | AJ44: 5280 | AK44: 5120 | AL44: 4960 | AM44: 4800 | AN44: 4640 | AO44: 4480 | AP44: 4320 | AQ44: 4160
A45: =MID(CELL("filename",Sewer!A39),FIND("]",CELL("filename",Sewer!A39))+1,256) -> Sewer | B45: =Sewer!A39 -> Sewer | C45: =Sewer!B39 -> Generator | D45: =Sewer!C39 -> 80000 | E45: =IF(Sewer!D39=0,"",Sewer!D39) -> 2029 | G45: Yes | H45: Debt (Non-Excluded) | I45: 20 | J45: 0.04 | Z45: 7200 | AA45: 7040 | AB45: 6880 | AC45: 6720 | AD45: 6560 | AE45: 6400 | AF45: 6240 | AG45: 6080 | AH45: 5920 | AI45: 5760 | AJ45: 5600 | AK45: 5440 | AL45: 5280 | AM45: 5120 | AN45: 4960 | AO45: 4800 | AP45: 4640 | AQ45: 4480 | AR45: 4320 | AS45: 4160
A46: =MID(CELL("filename",Highway!A22),FIND("]",CELL("filename",Highway!A22))+1,256) -> Highway | B46: =Highway!A22 -> Highway | C46: =Highway!B22 -> Street Sweeper | D46: =Highway!C22 -> 230000 | E46: =IF(Highway!D22=0,"",Highway!D22) -> 2020 | G46: Yes | H46: Debt (Non-Excluded) | I46: 20 | J46: 0.04 | Q46: 20700 | R46: 20240 | S46: 19780 | T46: 19320 | U46: 18860 | V46: 18400 | W46: 17940 | X46: 17480 | Y46: 17020 | Z46: 16560 | AA46: 16100 | AB46: 15640 | AC46: 15180 | AD46: 14720 | AE46: 14260 | AF46: 13800 | AG46: 13340 | AH46: 12880 | AI46: 12420 | AJ46: 11960
A47: =MID(CELL("filename",Highway!A23),FIND("]",CELL("filename",Highway!A23))+1,256) -> Highway | B47: =Highway!A23 -> Highway | C47: =Highway!B23 -> Large Dump Truck (Chassis Only) | D47: =Highway!C23 -> 150000 | E47: =IF(Highway!D23=0,"",Highway!D23) -> 2021 | G47: Yes | H47: Debt (Non-Excluded) | I47: 20 | J47: 0.04 | R47: 13500 | S47: 13200 | T47: 12900 | U47: 12600 | V47: 12300 | W47: 12000 | X47: 11700 | Y47: 11400 | Z47: 11100 | AA47: 10800 | AB47: 10500 | AC47: 10200 | AD47: 9900 | AE47: 9600 | AF47: 9300 | AG47: 9000 | AH47: 8700 | AI47: 8400 | AJ47: 8100 | AK47: 7800
A48: =MID(CELL("filename",Highway!A24),FIND("]",CELL("filename",Highway!A24))+1,256) -> Highway | B48: =Highway!A24 -> Highway | C48: =Highway!B24 -> Large Dump Truck (Chassis Only) | D48: =Highway!C24 -> 150000 | E48: =IF(Highway!D24=0,"",Highway!D24) -> 2021 | G48: Yes | H48: Debt (Non-Excluded) | I48: 20 | J48: 0.04 | R48: 13500 | S48: 13200 | T48: 12900 | U48: 12600 | V48: 12300 | W48: 12000 | X48: 11700 | Y48: 11400 | Z48: 11100 | AA48: 10800 | AB48: 10500 | AC48: 10200 | AD48: 9900 | AE48: 9600 | AF48: 9300 | AG48: 9000 | AH48: 8700 | AI48: 8400 | AJ48: 8100 | AK48: 7800
A49: =MID(CELL("filename",Highway!A25),FIND("]",CELL("filename",Highway!A25))+1,256) -> Highway | B49: =Highway!A25 -> Highway | C49: =Highway!B25 -> Large Dump Truck | D49: =Highway!C25 -> 185000 | E49: =IF(Highway!D25=0,"",Highway!D25) -> 2022 | G49: Yes | H49: Debt (Non-Excluded) | I49: 20 | J49: 0.04 | S49: 16650 | T49: 16280 | U49: 15910 | V49: 15540 | W49: 15170 | X49: 14800 | Y49: 14430 | Z49: 14060 | AA49: 13690 | AB49: 13320 | AC49: 12950 | AD49: 12580 | AE49: 12210 | AF49: 11840 | AG49: 11470 | AH49: 11100 | AI49: 10730 | AJ49: 10360 | AK49: 9990 | AL49: 9620
A50: =MID(CELL("filename",Highway!A26),FIND("]",CELL("filename",Highway!A26))+1,256) -> Highway | B50: =Highway!A26 -> Highway | C50: =Highway!B26 -> Large Dump Truck | D50: =Highway!C26 -> 185000 | E50: =IF(Highway!D26=0,"",Highway!D26) -> 2024 | G50: Yes | H50: Debt (Non-Excluded) | I50: 20 | J50: 0.04 | U50: 16650 | V50: 16280 | W50: 15910 | X50: 15540 | Y50: 15170 | Z50: 14800 | AA50: 14430 | AB50: 14060 | AC50: 13690 | AD50: 13320 | AE50: 12950 | AF50: 12580 | AG50: 12210 | AH50: 11840 | AI50: 11470 | AJ50: 11100 | AK50: 10730 | AL50: 10360 | AM50: 9990 | AN50: 9620
A51: =MID(CELL("filename",Highway!A27),FIND("]",CELL("filename",Highway!A27))+1,256) -> Highway | B51: =Highway!A27 -> Highway | C51: =Highway!B27 -> Large Dump Truck | D51: =Highway!C27 -> 185000 | E51: =IF(Highway!D27=0,"",Highway!D27) -> 2025 | G51: Yes | H51: Debt (Non-Excluded) | I51: 20 | J51: 0.04 | V51: 16650 | W51: 16280 | X51: 15910 | Y51: 15540 | Z51: 15170 | AA51: 14800 | AB51: 14430 | AC51: 14060 | AD51: 13690 | AE51: 13320 | AF51: 12950 | AG51: =IF($G51="Yes",IF(LEFT($H51,4)="Debt",IF(AND(VALUE(RIGHT(AG$2,4))>=($E51+1),VALUE(RIGHT(AG$2,4))<=($E51+IF(ISNUMBER($I51),$I51,0)),$I51>0,ISNUMBER($J51)),(($D51*((1+$N$2)^($E51-(VALUE(RIGHT($P$2,4))))))/$I51)+((($D51*((1+$N$2)^($E51-(VALUE(RIGHT($P$2,4))))))-((($D51*((1+$N$2)^($E51-(VALUE(RIGHT($P$2,4))))))/$I51)*(VALUE(RIGHT(AG$2,4))-($E51+1))))*$J51),""),IF("FY "&$E51=AG$2,$D51*((1+$N$2)^((VALUE(RIGHT(AG$2,4)))-(VALUE(RIGHT($P$2,4))))),"")),"") -> 12580 | AH51: 12210 | AI51: 11840 | AJ51: 11470 | AK51: 11100 | AL51: 10730 | AM51: 10360 | AN51: 9990 | AO51: 9620
A52: =MID(CELL("filename",Highway!A28),FIND("]",CELL("filename",Highway!A28))+1,256) -> Highway | B52: =Highway!A28 -> Highway | C52: =Highway!B28 -> Large Dump Truck | D52: =Highway!C28 -> 185000 | E52: =IF(Highway!D28=0,"",Highway!D28) -> 2026 | G52: Yes | H52: Debt (Non-Excluded) | I52: 20 | J52: 0.04 | W52: 16650 | X52: 16280 | Y52: 15910 | Z52: 15540 | AA52: 15170 | AB52: 14800 | AC52: 14430 | AD52: 14060 | AE52: 13690 | AF52: 13320 | AG52: 12950 | AH52: 12580 | AI52: 12210 | AJ52: 11840 | AK52: 11470 | AL52: 11100 | AM52: 10730 | AN52: 10360 | AO52: 9990 | AP52: 9620
A53: =MID(CELL("filename",Highway!A29),FIND("]",CELL("filename",Highway!A29))+1,256) -> Highway | B53: =Highway!A29 -> Highway | C53: =Highway!B29 -> Large Dump Truck | D53: =Highway!C29 -> 185000 | E53: =IF(Highway!D29=0,"",Highway!D29) -> 2027 | G53: Yes | H53: Debt (Non-Excluded) | I53: 20 | J53: 0.04 | X53: 16650 | Y53: 16280 | Z53: 15910 | AA53: 15540 | AB53: 15170 | AC53: 14800 | AD53: =IF($G53="Yes",IF(LEFT($H53,4)="Debt",IF(AND(VALUE(RIGHT(AD$2,4))>=($E53+1),VALUE(RIGHT(AD$2,4))<=($E53+IF(ISNUMBER($I53),$I53,0)),$I53>0,ISNUMBER($J53)),(($D53*((1+$N$2)^($E53-(VALUE(RIGHT($P$2,4))))))/$I53)+((($D53*((1+$N$2)^($E53-(VALUE(RIGHT($P$2,4))))))-((($D53*((1+$N$2)^($E53-(VALUE(RIGHT($P$2,4))))))/$I53)*(VALUE(RIGHT(AD$2,4))-($E53+1))))*$J53),""),IF("FY "&$E53=AD$2,$D53*((1+$N$2)^((VALUE(RIGHT(AD$2,4)))-(VALUE(RIGHT($P$2,4))))),"")),"") -> 14430 | AE53: 14060 | AF53: 13690 | AG53: 13320 | AH53: 12950 | AI53: 12580 | AJ53: 12210 | AK53: 11840 | AL53: 11470 | AM53: 11100 | AN53: 10730 | AO53: 10360 | AP53: 9990 | AQ53: 9620
A54: =MID(CELL("filename",Highway!A30),FIND("]",CELL("filename",Highway!A30))+1,256) -> Highway | B54: =Highway!A30 -> Highway | C54: =Highway!B30 -> Large Dump Truck | D54: =Highway!C30 -> 185000 | E54: =IF(Highway!D30=0,"",Highway!D30) -> 2028 | G54: Yes | H54: Debt (Non-Excluded) | I54: 20 | J54: 0.04 | Q54: =IF($G54="Yes",IF(LEFT($H54,4)="Debt",IF(AND(VALUE(RIGHT(Q$2,4))>=($E54+1),VALUE(RIGHT(Q$2,4))<=($E54+IF(ISNUMBER($I54),$I54,0)),$I54>0,ISNUMBER($J54)),(($D54*((1+$N$2)^($E54-(VALUE(RIGHT($P$2,4))))))/$I54)+((($D54*((1+$N$2)^($E54-(VALUE(RIGHT($P$2,4))))))-((($D54*((1+$N$2)^($E54-(VALUE(RIGHT($P$2,4))))))/$I54)*(VALUE(RIGHT(Q$2,4))-($E54+1))))*$J54),""),IF("FY "&$E54=Q$2,$D54*((1+$N$2)^((VALUE(RIGHT(Q$2,4)))-(VALUE(RIGHT($P$2,4))))),"")),"") ->  | Y54: 16650 | Z54: 16280 | AA54: 15910 | AB54: 15540 | AC54: 15170 | AD54: 14800 | AE54: 14430 | AF54: 14060 | AG54: 13690 | AH54: 13320 | AI54: 12950 | AJ54: 12580 | AK54: 12210 | AL54: 11840 | AM54: 11470 | AN54: 11100 | AO54: 10730 | AP54: 10360 | AQ54: 9990 | AR54: 9620
A55: =MID(CELL("filename",Highway!A31),FIND("]",CELL("filename",Highway!A31))+1,256) -> Highway | B55: =Highway!A31 -> Highway | C55: =Highway!B31 -> Front End Loader | D55: =Highway!C31 -> 225000 | E55: =IF(Highway!D31=0,"",Highway!D31) -> 2022 | G55: Yes | H55: Debt (Non-Excluded) | I55: 20 | J55: 0.04 | S55: 20250 | T55: 19800 | U55: 19350 | V55: 18900 | W55: 18450 | X55: 18000 | Y55: 17550 | Z55: 17100 | AA55: 16650 | AB55: 16200 | AC55: 15750 | AD55: 15300 | AE55: 14850 | AF55: 14400 | AG55: 13950 | AH55: 13500 | AI55: 13050 | AJ55: 12600 | AK55: 12150 | AL55: 11700
A56: =MID(CELL("filename",Highway!A32),FIND("]",CELL("filename",Highway!A32))+1,256) -> Highway | B56: =Highway!A32 -> Highway | C56: =Highway!B32 -> Front End Loader | D56: =Highway!C32 -> 215000 | E56: =IF(Highway!D32=0,"",Highway!D32) -> 2027 | G56: Yes | H56: Debt (Non-Excluded) | I56: 20 | J56: 0.04 | X56: 19350 | Y56: 18920 | Z56: 18490 | AA56: 18060 | AB56: 17630 | AC56: 17200 | AD56: 16770 | AE56: 16340 | AF56: 15910 | AG56: 15480 | AH56: 15050 | AI56: 14620 | AJ56: 14190 | AK56: 13760 | AL56: 13330 | AM56: 12900 | AN56: 12470 | AO56: 12040 | AP56: 11610 | AQ56: 11180
A57: =MID(CELL("filename",Highway!A33),FIND("]",CELL("filename",Highway!A33))+1,256) -> Highway | B57: =Highway!A33 -> Highway | C57: =Highway!B33 -> Pickup Truck | D57: =Highway!C33 -> 35000 | E57: =IF(Highway!D33=0,"",Highway!D33) -> 2022 | G57: Yes | H57: Free Cash | R57: 35000
A58: =MID(CELL("filename",Highway!A34),FIND("]",CELL("filename",Highway!A34))+1,256) -> Highway | B58: =Highway!A34 -> Highway | C58: =Highway!B34 -> Pickup Truck | D58: =Highway!C34 -> 35000 | E58: =IF(Highway!D34=0,"",Highway!D34) -> 2021 | G58: Yes | H58: Free Cash | Q58: 35000
A59: =MID(CELL("filename",Highway!A35),FIND("]",CELL("filename",Highway!A35))+1,256) -> Highway | B59: =Highway!A35 -> Highway | C59: =Highway!B35 -> Pickup Truck | D59: =Highway!C35 -> 35000 | E59: =IF(Highway!D35=0,"",Highway!D35) -> 2021 | G59: Yes | H59: Free Cash | Q59: 35000
A60: =MID(CELL("filename",Highway!A36),FIND("]",CELL("filename",Highway!A36))+1,256) -> Highway | B60: =Highway!A36 -> Highway | C60: =Highway!B36 -> Pickup Truck | D60: =Highway!C36 -> 35000 | E60: =IF(Highway!D36=0,"",Highway!D36) -> 2026 | G60: Yes | H60: Free Cash | V60: 35000
A61: =MID(CELL("filename",Highway!A37),FIND("]",CELL("filename",Highway!A37))+1,256) -> Highway | B61: =Highway!A37 -> Highway | C61: =Highway!B37 -> Pickup Truck | D61: =Highway!C37 -> 35000 | E61: =IF(Highway!D37=0,"",Highway!D37) -> 2027 | G61: Yes | H61: Free Cash | W61: 35000
A62: =MID(CELL("filename",Highway!A38),FIND("]",CELL("filename",Highway!A38))+1,256) -> Highway | B62: =Highway!A38 -> Highway | C62: =Highway!B38 -> Pickup Truck | D62: =Highway!C38 -> 35000 | E62: =IF(Highway!D38=0,"",Highway!D38) -> 2029 | G62: Yes | H62: Free Cash | Y62: 35000
A63: =MID(CELL("filename",Highway!A39),FIND("]",CELL("filename",Highway!A39))+1,256) -> Highway | B63: =Highway!A39 -> Highway | C63: =Highway!B39 -> Small Dump Truck | D63: =Highway!C39 -> 69000 | E63: =IF(Highway!D39=0,"",Highway!D39) -> 2023 | G63: Yes | H63: Debt (Non-Excluded) | I63: 20 | J63: 0.04 | T63: 6210 | U63: 6072 | V63: 5934 | W63: 5796 | X63: 5658 | Y63: 5520 | Z63: 5382 | AA63: 5244 | AB63: 5106 | AC63: 4968 | AD63: 4830 | AE63: 4692 | AF63: 4554 | AG63: 4416 | AH63: 4278 | AI63: 4140 | AJ63: 4002 | AK63: 3864 | AL63: 3726 | AM63: 3588
A64: =MID(CELL("filename",Highway!A40),FIND("]",CELL("filename",Highway!A40))+1,256) -> Highway | B64: =Highway!A40 -> Highway | C64: =Highway!B40 -> Small Dump Truck | D64: =Highway!C40 -> 69000 | E64: =IF(Highway!D40=0,"",Highway!D40) -> 2027 | G64: Yes | H64: Debt (Non-Excluded) | I64: 20 | J64: 0.04 | X64: 6210 | Y64: 6072 | Z64: 5934 | AA64: 5796 | AB64: 5658 | AC64: 5520 | AD64: 5382 | AE64: 5244 | AF64: 5106 | AG64: 4968 | AH64: 4830 | AI64: 4692 | AJ64: 4554 | AK64: 4416 | AL64: 4278 | AM64: 4140 | AN64: 4002 | AO64: 3864 | AP64: 3726 | AQ64: 3588
A65: =MID(CELL("filename",Highway!A41),FIND("]",CELL("filename",Highway!A41))+1,256) -> Highway | B65: =Highway!A41 -> Highway | C65: =Highway!B41 -> Small Dump Truck | D65: =Highway!C41 -> 69000 | E65: =IF(Highway!D41=0,"",Highway!D41) -> 2029 | G65: Yes | H65: Debt (Non-Excluded) | I65: 20 | J65: 0.04 | Z65: 6210 | AA65: 6072 | AB65: 5934 | AC65: 5796 | AD65: 5658 | AE65: 5520 | AF65: 5382 | AG65: 5244 | AH65: 5106 | AI65: 4968 | AJ65: 4830 | AK65: 4692 | AL65: 4554 | AM65: 4416 | AN65: 4278 | AO65: 4140 | AP65: 4002 | AQ65: 3864 | AR65: 3726 | AS65: 3588
A66: =MID(CELL("filename",Highway!A42),FIND("]",CELL("filename",Highway!A42))+1,256) -> Highway | B66: =Highway!A42 -> Highway | C66: =Highway!B42 -> Clam Shell for Catch Basin Cleaning | D66: =Highway!C42 -> 75000 | E66: =IF(Highway!D42=0,"",Highway!D42) -> 2021 | G66: Yes | H66: Debt (Non-Excluded) | I66: 20 | J66: 0.04 | R66: 6750 | S66: 6600 | T66: 6450 | U66: 6300 | V66: 6150 | W66: 6000 | X66: 5850 | Y66: 5700 | Z66: 5550 | AA66: 5400 | AB66: 5250 | AC66: 5100 | AD66: 4950 | AE66: 4800 | AF66: 4650 | AG66: 4500 | AH66: 4350 | AI66: 4200 | AJ66: 4050 | AK66: 3900
A67: =MID(CELL("filename",Highway!A43),FIND("]",CELL("filename",Highway!A43))+1,256) -> Highway | B67: =Highway!A43 -> Highway | C67: =Highway!B43 -> Backhoe | D67: =Highway!C43 -> 125000 | E67: =IF(Highway!D43=0,"",Highway!D43) -> 2027 | G67: Yes | H67: Debt (Non-Excluded) | I67: 20 | J67: 0.04 | X67: 11250 | Y67: 11000 | Z67: 10750 | AA67: 10500 | AB67: 10250 | AC67: 10000 | AD67: 9750 | AE67: 9500 | AF67: 9250 | AG67: 9000 | AH67: 8750 | AI67: 8500 | AJ67: 8250 | AK67: 8000 | AL67: 7750 | AM67: 7500 | AN67: 7250 | AO67: 7000 | AP67: 6750 | AQ67: 6500
A68: =MID(CELL("filename",Highway!A44),FIND("]",CELL("filename",Highway!A44))+1,256) -> Highway | B68: =Highway!A44 -> Highway | C68: =Highway!B44 -> Bucket Truck | D68: =Highway!C44 -> 102000 | E68: =IF(Highway!D44=0,"",Highway!D44) -> 2025 | G68: Yes | H68: =IF(D68>60000,IF(D68<=250000,"Debt (Non-Excluded)","Debt (Excluded)"),IF(B68="Water","Water Retained Earnings",IF(B68="Sewer","Sewer Retained Earnings","Free Cash"))) -> Debt (Non-Excluded) | I68: =IF(LEFT(H68,4)="Debt",20,"") -> 20 | J68: =IF(LEFT(H68,4)="Debt",N$1,"") -> 0.04 | P68: =IF($G68="Yes",IF(LEFT($H68,4)="Debt",IF(AND(VALUE(RIGHT(P$2,4))>=($E68+1),VALUE(RIGHT(P$2,4))<=($E68+IF(ISNUMBER($I68),$I68,0)),$I68>0,ISNUMBER($J68)),(($D68*((1+$N$2)^($E68-$N$3)))/$I68)+((($D68*((1+$N$2)^($E68-$N$3)))-((($D68*((1+$N$2)^($E68-$N$3)))/$I68)*(VALUE(RIGHT(P$2,4))-($E68+1))))*$J68),""),IF("FY "&$E68=P$2,$D68*((1+$N$2)^((VALUE(RIGHT(P$2,4)))-$N$3)),"")),"") ->  | V68: 9180 | W68: 8976 | X68: 8772 | Y68: 8568 | Z68: 8364 | AA68: 8160 | AB68: 7956 | AC68: 7752 | AD68: 7548 | AE68: 7344 | AF68: 7140 | AG68: 6936 | AH68: 6732 | AI68: 6528 | AJ68: 6324 | AK68: 6120 | AL68: 5916 | AM68: 5712 | AN68: 5508 | AO68: 5304
A69: =MID(CELL("filename",Highway!A45),FIND("]",CELL("filename",Highway!A45))+1,256) -> Highway | B69: =Highway!A45 -> Highway | C69: =Highway!B45 -> Outdoor Sand and Salt Storage | D69: =Highway!C45 -> 163000 | E69: =IF(Highway!D45=0,"",Highway!D45) -> 2023 | G69: Yes | H69: Debt (Non-Excluded) | I69: 20 | J69: 0.04 | T69: 14670 | U69: 14344 | V69: 14018 | W69: 13692 | X69: 13366 | Y69: 13040 | Z69: 12714 | AA69: 12388 | AB69: 12062 | AC69: 11736 | AD69: 11410 | AE69: 11084 | AF69: 10758 | AG69: 10432 | AH69: 10106 | AI69: 9780 | AJ69: 9454 | AK69: 9128 | AL69: 8802 | AM69: 8476
A70: =MID(CELL("filename",Highway!A46),FIND("]",CELL("filename",Highway!A46))+1,256) -> Highway | B70: =Highway!A46 -> Highway | C70: =Highway!B46 -> Main Building Expansion | D70: =Highway!C46 -> 350000 | E70: =IF(Highway!D46=0,"",Highway!D46) -> 2026 | G70: Yes | H70: Debt (Excluded) | I70: 20 | J70: 0.04 | W70: 31500 | X70: 30800 | Y70: 30100 | Z70: 29400 | AA70: 28700 | AB70: 28000 | AC70: 27300 | AD70: 26600 | AE70: 25900 | AF70: 25200 | AG70: 24500 | AH70: 23800 | AI70: 23100 | AJ70: 22400 | AK70: 21700 | AL70: 21000 | AM70: 20300 | AN70: 19600 | AO70: 18900 | AP70: 18200
A71: =MID(CELL("filename",Highway!A47),FIND("]",CELL("filename",Highway!A47))+1,256) -> Highway | B71: =Highway!A47 -> Highway | C71: =Highway!B47 -> Recycling Center Upgrades | D71: =Highway!C47 -> 100000 | E71: =IF(Highway!D47=0,"",Highway!D47) -> 2021 | G71: Yes | H71: Debt (Non-Excluded) | I71: 20 | J71: 0.04 | R71: 9000 | S71: 8800 | T71: 8600 | U71: 8400 | V71: 8200 | W71: 8000 | X71: 7800 | Y71: 7600 | Z71: 7400 | AA71: 7200 | AB71: 7000 | AC71: 6800 | AD71: 6600 | AE71: 6400 | AF71: 6200 | AG71: 6000 | AH71: 5800 | AI71: 5600 | AJ71: 5400 | AK71: 5200
A72: =MID(CELL("filename",Highway!A48),FIND("]",CELL("filename",Highway!A48))+1,256) -> Highway | B72: =Highway!A48 -> Highway | C72: =Highway!B48 -> Upgrade Outdoor Storage Unit | D72: =Highway!C48 -> 100000 | E72: =IF(Highway!D48=0,"",Highway!D48) -> 2025 | G72: Yes | H72: Debt (Non-Excluded) | I72: 20 | J72: 0.04 | V72: 9000 | W72: 8800 | X72: 8600 | Y72: 8400 | Z72: 8200 | AA72: 8000 | AB72: 7800 | AC72: 7600 | AD72: 7400 | AE72: 7200 | AF72: 7000 | AG72: 6800 | AH72: 6600 | AI72: =IF($G72="Yes",IF(LEFT($H72,4)="Debt",IF(AND(VALUE(RIGHT(AI$2,4))>=($E72+1),VALUE(RIGHT(AI$2,4))<=($E72+IF(ISNUMBER($I72),$I72,0)),$I72>0,ISNUMBER($J72)),(($D72*((1+$N$2)^($E72-(VALUE(RIGHT($P$2,4))))))/$I72)+((($D72*((1+$N$2)^($E72-(VALUE(RIGHT($P$2,4))))))-((($D72*((1+$N$2)^($E72-(VALUE(RIGHT($P$2,4))))))/$I72)*(VALUE(RIGHT(AI$2,4))-($E72+1))))*$J72),""),IF("FY "&$E72=AI$2,$D72*((1+$N$2)^((VALUE(RIGHT(AI$2,4)))-(VALUE(RIGHT($P$2,4))))),"")),"") -> 6400 | AJ72: 6200 | AK72: 6000 | AL72: 5800 | AM72: 5600 | AN72: 5400 | AO72: 5200
A73: =MID(CELL("filename",Highway!A49),FIND("]",CELL("filename",Highway!A49))+1,256) -> Highway | B73: =Highway!A49 -> Highway | C73: =Highway!B49 -> Guardrail Replacement | D73: =Highway!C49 -> 14400 | E73: =IF(Highway!D49=0,"",Highway!D49) -> 2020 | G73: Yes | H73: Free Cash | P73: 14400 | Y73: =IF($G73="Yes",IF(LEFT($H73,4)="Debt",IF(AND(VALUE(RIGHT(Y$2,4))>=($E73+1),VALUE(RIGHT(Y$2,4))<=($E73+IF(ISNUMBER($I73),$I73,0)),$I73>0,ISNUMBER($J73)),(($D73*((1+$N$2)^($E73-(VALUE(RIGHT($P$2,4))))))/$I73)+((($D73*((1+$N$2)^($E73-(VALUE(RIGHT($P$2,4))))))-((($D73*((1+$N$2)^($E73-(VALUE(RIGHT($P$2,4))))))/$I73)*(VALUE(RIGHT(Y$2,4))-($E73+1))))*$J73),""),IF("FY "&$E73=Y$2,$D73*((1+$N$2)^((VALUE(RIGHT(Y$2,4)))-(VALUE(RIGHT($P$2,4))))),"")),"") -> 
A74: =MID(CELL("filename",Highway!A50),FIND("]",CELL("filename",Highway!A50))+1,256) -> Highway | B74: =Highway!A50 -> Highway | C74: =Highway!B50 -> Guardrail Replacement | D74: =Highway!C50 -> 15000 | E74: =IF(Highway!D50=0,"",Highway!D50) -> 2021 | G74: Yes | H74: Free Cash | Q74: =IF($G74="Yes",IF(LEFT($H74,4)="Debt",IF(AND(VALUE(RIGHT(Q$2,4))>=($E74+1),VALUE(RIGHT(Q$2,4))<=($E74+IF(ISNUMBER($I74),$I74,0)),$I74>0,ISNUMBER($J74)),(($D74*((1+$N$2)^($E74-(VALUE(RIGHT($P$2,4))))))/$I74)+((($D74*((1+$N$2)^($E74-(VALUE(RIGHT($P$2,4))))))-((($D74*((1+$N$2)^($E74-(VALUE(RIGHT($P$2,4))))))/$I74)*(VALUE(RIGHT(Q$2,4))-($E74+1))))*$J74),""),IF("FY "&$E74=Q$2,$D74*((1+$N$2)^((VALUE(RIGHT(Q$2,4)))-(VALUE(RIGHT($P$2,4))))),"")),"") -> 15000
A75: =MID(CELL("filename",Highway!A51),FIND("]",CELL("filename",Highway!A51))+1,256) -> Highway | B75: =Highway!A51 -> Highway | C75: =Highway!B51 -> Guardrail Replacement | D75: =Highway!C51 -> 15000 | E75: =IF(Highway!D51=0,"",Highway!D51) -> 2022 | G75: Yes | H75: Free Cash | R75: 15000
A76: =MID(CELL("filename",Highway!A52),FIND("]",CELL("filename",Highway!A52))+1,256) -> Highway | B76: =Highway!A52 -> Highway | C76: =Highway!B52 -> Guardrail Replacement | D76: =Highway!C52 -> 15000 | E76: =IF(Highway!D52=0,"",Highway!D52) -> 2023 | G76: Yes | H76: Free Cash | S76: 15000
A77: =MID(CELL("filename",Highway!A53),FIND("]",CELL("filename",Highway!A53))+1,256) -> Highway | B77: =Highway!A53 -> Highway | C77: =Highway!B53 -> Guardrail Replacement | D77: =Highway!C53 -> 15000 | E77: =IF(Highway!D53=0,"",Highway!D53) -> 2024 | G77: Yes | H77: Free Cash | T77: 15000
A78: =MID(CELL("filename",Highway!A54),FIND("]",CELL("filename",Highway!A54))+1,256) -> Highway | B78: =Highway!A54 -> Highway | C78: =Highway!B54 -> Guardrail Replacement | D78: =Highway!C54 -> 15000 | E78: =IF(Highway!D54=0,"",Highway!D54) -> 2025 | G78: Yes | H78: Free Cash | U78: 15000
A79: =MID(CELL("filename",Highway!A55),FIND("]",CELL("filename",Highway!A55))+1,256) -> Highway | B79: =Highway!A55 -> Highway | C79: =Highway!B55 -> Guardrail Replacement | D79: =Highway!C55 -> 15000 | E79: =IF(Highway!D55=0,"",Highway!D55) -> 2026 | G79: Yes | H79: Free Cash | V79: 15000
A80: =MID(CELL("filename",Highway!A56),FIND("]",CELL("filename",Highway!A56))+1,256) -> Highway | B80: =Highway!A56 -> Highway | C80: =Highway!B56 -> Guardrail Replacement | D80: =Highway!C56 -> 15000 | E80: =IF(Highway!D56=0,"",Highway!D56) -> 2027 | G80: Yes | H80: Free Cash | W80: 15000
A81: =MID(CELL("filename",Highway!A57),FIND("]",CELL("filename",Highway!A57))+1,256) -> Highway | B81: =Highway!A57 -> Highway | C81: =Highway!B57 -> Guardrail Replacement | D81: =Highway!C57 -> 15000 | E81: =IF(Highway!D57=0,"",Highway!D57) -> 2028 | G81: Yes | H81: Free Cash | X81: 15000
A82: =MID(CELL("filename",Highway!A58),FIND("]",CELL("filename",Highway!A58))+1,256) -> Highway | B82: =Highway!A58 -> Highway | C82: =Highway!B58 -> Guardrail Replacement | D82: =Highway!C58 -> 15000 | E82: =IF(Highway!D58=0,"",Highway!D58) -> 2029 | G82: Yes | H82: Free Cash | Y82: 15000
A83: =MID(CELL("filename",Highway!A59),FIND("]",CELL("filename",Highway!A59))+1,256) -> Highway | B83: =Highway!A59 -> Highway | C83: =Highway!B59 -> Access Road | D83: =Highway!C59 -> 500000 | E83: =IF(Highway!D59=0,"",Highway!D59) -> 2021 | G83: Yes | H83: Debt (Excluded) | I83: 20 | J83: 0.04 | R83: 45000 | S83: 44000 | T83: 43000 | U83: 42000 | V83: 41000 | W83: 40000 | X83: 39000 | Y83: 38000 | Z83: 37000 | AA83: 36000 | AB83: 35000 | AC83: 34000 | AD83: 33000 | AE83: 32000 | AF83: 31000 | AG83: 30000 | AH83: 29000 | AI83: 28000 | AJ83: 27000 | AK83: 26000
A84: =MID(CELL("filename",Highway!A60),FIND("]",CELL("filename",Highway!A60))+1,256) -> Highway | B84: =Highway!A60 -> Highway | C84: =Highway!B60 -> New Coating at Richard Carmignani Jr. Park | D84: =Highway!C60 -> 15000 | E84: =IF(Highway!D60=0,"",Highway!D60) -> 2022 | G84: Yes | H84: Free Cash | R84: 15000
A85: =MID(CELL("filename",Highway!A61),FIND("]",CELL("filename",Highway!A61))+1,256) -> Highway | B85: =Highway!A61 -> Highway | C85: =Highway!B61 -> Repave Parking Lot | D85: =Highway!C61 -> 70000 | E85: =IF(Highway!D61=0,"",Highway!D61) -> 2023 | G85: Yes | H85: Debt (Non-Excluded) | I85: 20 | J85: 0.04 | T85: 6300 | U85: 6160 | V85: 6020 | W85: 5880 | X85: 5740 | Y85: 5600 | Z85: 5460 | AA85: 5320 | AB85: 5180 | AC85: 5040 | AD85: 4900 | AE85: 4760 | AF85: 4620 | AG85: 4480 | AH85: 4340 | AI85: 4200 | AJ85: 4060 | AK85: 3920 | AL85: 3780 | AM85: 3640
A86: =MID(CELL("filename",'Municipal Complex'!A22),FIND("]",CELL("filename",'Municipal Complex'!A22))+1,256) -> Municipal Complex | B86: ='Municipal Complex'!A22 -> Municipal Complex | C86: ='Municipal Complex'!B22 -> New Fuel System | D86: ='Municipal Complex'!C22 -> 250000 | E86: =IF('Municipal Complex'!D22=0,"",'Municipal Complex'!D22) -> 2022 | G86: Yes | H86: Debt (Non-Excluded) | I86: 20 | J86: 0.04 | S86: 22500 | T86: 22000 | U86: 21500 | V86: 21000 | W86: 20500 | X86: 20000 | Y86: 19500 | Z86: 19000 | AA86: 18500 | AB86: 18000 | AC86: 17500 | AD86: 17000 | AE86: 16500 | AF86: 16000 | AG86: 15500 | AH86: 15000 | AI86: 14500 | AJ86: 14000 | AK86: 13500 | AL86: 13000
A87: =MID(CELL("filename",'Municipal Complex'!A23),FIND("]",CELL("filename",'Municipal Complex'!A23))+1,256) -> Municipal Complex | B87: ='Municipal Complex'!A23 -> Municipal Complex | C87: ='Municipal Complex'!B23 -> Radio Wiring Upgrade | D87: ='Municipal Complex'!C23 -> 300000 | E87: =IF('Municipal Complex'!D23=0,"",'Municipal Complex'!D23) -> 2023 | G87: Yes | H87: Debt (Excluded) | I87: 20 | J87: 0.04 | T87: 27000 | U87: 26400 | V87: 25800 | W87: 25200 | X87: 24600 | Y87: 24000 | Z87: 23400 | AA87: 22800 | AB87: 22200 | AC87: 21600 | AD87: 21000 | AE87: 20400 | AF87: 19800 | AG87: 19200 | AH87: 18600 | AI87: 18000 | AJ87: 17400 | AK87: 16800 | AL87: 16200 | AM87: 15600
A88: =MID(CELL("filename",'Municipal Complex'!A24),FIND("]",CELL("filename",'Municipal Complex'!A24))+1,256) -> Municipal Complex | B88: ='Municipal Complex'!A24 -> Municipal Complex | C88: ='Municipal Complex'!B24 -> HVAC System Upgrades | D88: ='Municipal Complex'!C24 -> 250000 | E88: =IF('Municipal Complex'!D24=0,"",'Municipal Complex'!D24) -> 2021 | G88: Yes | H88: Green Communities Grant | Q88: 250000
A89: =MID(CELL("filename",'Municipal Complex'!A25),FIND("]",CELL("filename",'Municipal Complex'!A25))+1,256) -> Municipal Complex | B89: ='Municipal Complex'!A25 -> Municipal Complex | C89: ='Municipal Complex'!B25 -> Land Purchase | D89: ='Municipal Complex'!C25 -> 90000 | E89: =IF('Municipal Complex'!D25=0,"",'Municipal Complex'!D25) -> 2027 | G89: Yes | H89: Debt (Non-Excluded) | I89: 20 | J89: 0.04 | X89: 8100 | Y89: 7920 | Z89: 7740 | AA89: 7560 | AB89: 7380 | AC89: 7200 | AD89: 7020 | AE89: 6840 | AF89: 6660 | AG89: 6480 | AH89: 6300 | AI89: 6120 | AJ89: 5940 | AK89: 5760 | AL89: 5580 | AM89: 5400 | AN89: 5220 | AO89: 5040 | AP89: 4860 | AQ89: 4680
A90: =MID(CELL("filename",'Municipal Complex'!A26),FIND("]",CELL("filename",'Municipal Complex'!A26))+1,256) -> Municipal Complex | B90: ='Municipal Complex'!A26 -> Municipal Complex | C90: ='Municipal Complex'!B26 -> Land Purchase | D90: ='Municipal Complex'!C26 -> 90000 | E90: =IF('Municipal Complex'!D26=0,"",'Municipal Complex'!D26) -> 2027 | G90: Yes | H90: Debt (Non-Excluded) | I90: 20 | J90: 0.04 | X90: 8100 | Y90: 7920 | Z90: 7740 | AA90: 7560 | AB90: 7380 | AC90: 7200 | AD90: 7020 | AE90: 6840 | AF90: 6660 | AG90: 6480 | AH90: 6300 | AI90: 6120 | AJ90: 5940 | AK90: 5760 | AL90: 5580 | AM90: 5400 | AN90: 5220 | AO90: 5040 | AP90: 4860 | AQ90: 4680
A91: =MID(CELL("filename",'Municipal Complex'!A27),FIND("]",CELL("filename",'Municipal Complex'!A27))+1,256) -> Municipal Complex | B91: ='Municipal Complex'!A27 -> Municipal Complex | C91: ='Municipal Complex'!B27 -> Security for all Town Buildings | D91: ='Municipal Complex'!C27 -> 45000 | E91: =IF('Municipal Complex'!D27=0,"",'Municipal Complex'!D27) -> 2021 | G91: Yes | H91: Free Cash | Q91: 45000
A92: =MID(CELL("filename",'Municipal Complex'!A28),FIND("]",CELL("filename",'Municipal Complex'!A28))+1,256) -> Municipal Complex | B92: ='Municipal Complex'!A28 -> Municipal Complex | C92: ='Municipal Complex'!B28 -> New Phone System | D92: ='Municipal Complex'!C28 -> 20000 | E92: =IF('Municipal Complex'!D28=0,"",'Municipal Complex'!D28) -> 2021 | G92: Yes | H92: Free Cash | Q92: 20000
A93: =MID(CELL("filename",'Municipal Complex'!A29),FIND("]",CELL("filename",'Municipal Complex'!A29))+1,256) -> Municipal Complex | B93: ='Municipal Complex'!A29 -> Municipal Complex | C93: ='Municipal Complex'!B29 -> Replace Windows | D93: ='Municipal Complex'!C29 -> 380000 | E93: =IF('Municipal Complex'!D29=0,"",'Municipal Complex'!D29) -> 2029 | G93: Yes | H93: Green Communities Grant | Y93: 380000
A94: =MID(CELL("filename",'Municipal Complex'!A30),FIND("]",CELL("filename",'Municipal Complex'!A30))+1,256) -> Municipal Complex | B94: ='Municipal Complex'!A30 -> Municipal Complex | C94: ='Municipal Complex'!B30 -> HVAC System Major Maintenance | D94: ='Municipal Complex'!C30 -> 10000 | E94: =IF('Municipal Complex'!D30=0,"",'Municipal Complex'!D30) -> 2027 | G94: Yes | H94: Green Communities Grant | W94: 10000
A95: =MID(CELL("filename",'Municipal Complex'!A31),FIND("]",CELL("filename",'Municipal Complex'!A31))+1,256) -> Municipal Complex | B95: ='Municipal Complex'!A31 -> Municipal Complex | C95: ='Municipal Complex'!B31 -> Reseal Parking Lot | D95: ='Municipal Complex'!C31 -> 20000 | E95: =IF('Municipal Complex'!D31=0,"",'Municipal Complex'!D31) -> 2026 | G95: Yes | H95: Free Cash | V95: 20000 | AK95: =IF($G95="Yes",IF(LEFT($H95,4)="Debt",IF(AND(VALUE(RIGHT(AK$2,4))>=($E95+1),VALUE(RIGHT(AK$2,4))<=($E95+IF(ISNUMBER($I95),$I95,0)),$I95>0,ISNUMBER($J95)),(($D95*((1+$N$2)^($E95-(VALUE(RIGHT($P$2,4))))))/$I95)+((($D95*((1+$N$2)^($E95-(VALUE(RIGHT($P$2,4))))))-((($D95*((1+$N$2)^($E95-(VALUE(RIGHT($P$2,4))))))/$I95)*(VALUE(RIGHT(AK$2,4))-($E95+1))))*$J95),""),IF("FY "&$E95=AK$2,$D95*((1+$N$2)^((VALUE(RIGHT(AK$2,4)))-(VALUE(RIGHT($P$2,4))))),"")),"") -> 
A96: =MID(CELL("filename",'Municipal Complex'!A32),FIND("]",CELL("filename",'Municipal Complex'!A32))+1,256) -> Municipal Complex | B96: ='Municipal Complex'!A32 -> Municipal Complex | C96: ='Municipal Complex'!B32 -> Carpeting | D96: ='Municipal Complex'!C32 -> 36000 | E96: =IF('Municipal Complex'!D32=0,"",'Municipal Complex'!D32) -> 2025 | G96: Yes | H96: Free Cash | U96: 36000
A97: =MID(CELL("filename",'Municipal Complex'!A33),FIND("]",CELL("filename",'Municipal Complex'!A33))+1,256) -> Municipal Complex | B97: ='Municipal Complex'!A33 -> Municipal Complex | C97: ='Municipal Complex'!B33 -> Ceiling Tiles | D97: ='Municipal Complex'!C33 -> 9000 | E97: =IF('Municipal Complex'!D33=0,"",'Municipal Complex'!D33) -> 2027 | G97: Yes | H97: Free Cash | W97: 9000
A98: =MID(CELL("filename",'Municipal Complex'!A34),FIND("]",CELL("filename",'Municipal Complex'!A34))+1,256) -> Municipal Complex | B98: ='Municipal Complex'!A34 -> Municipal Complex | C98: ='Municipal Complex'!B34 -> Replace Furniture | D98: ='Municipal Complex'!C34 -> 5000 | E98: =IF('Municipal Complex'!D34=0,"",'Municipal Complex'!D34) -> 2024 | G98: Yes | H98: Council on Aging Grant | T98: 5000
A99: =MID(CELL("filename",'Municipal Complex'!A35),FIND("]",CELL("filename",'Municipal Complex'!A35))+1,256) -> Municipal Complex | B99: ='Municipal Complex'!A35 -> Municipal Complex | C99: ='Municipal Complex'!B35 -> Replace Furniture | D99: ='Municipal Complex'!C35 -> 5000 | E99: =IF('Municipal Complex'!D35=0,"",'Municipal Complex'!D35) -> 2029 | G99: Yes | H99: Council on Aging Grant | Y99: 5000
A100: =MID(CELL("filename",'Municipal Complex'!A36),FIND("]",CELL("filename",'Municipal Complex'!A36))+1,256) -> Municipal Complex | B100: ='Municipal Complex'!A36 -> Municipal Complex | C100: ='Municipal Complex'!B36 -> Replace Conference and Meeting Room Chairs | D100: ='Municipal Complex'!C36 -> 49000 | E100: =IF('Municipal Complex'!D36=0,"",'Municipal Complex'!D36) -> 2024 | G100: Yes | H100: Free Cash | T100: 49000
A101: =MID(CELL("filename",'Municipal Complex'!A37),FIND("]",CELL("filename",'Municipal Complex'!A37))+1,256) -> Municipal Complex | B101: ='Municipal Complex'!A37 -> Municipal Complex | C101: ='Municipal Complex'!B37 -> Generator | D101: ='Municipal Complex'!C37 -> 100000 | E101: =IF('Municipal Complex'!D37=0,"",'Municipal Complex'!D37) -> 2029 | G101: Yes | H101: Debt (Non-Excluded) | I101: 20 | J101: 0.04 | Z101: 9000 | AA101: 8800 | AB101: 8600 | AC101: 8400 | AD101: 8200 | AE101: 8000 | AF101: 7800 | AG101: 7600 | AH101: 7400 | AI101: 7200 | AJ101: 7000 | AK101: 6800 | AL101: 6600 | AM101: 6400 | AN101: 6200 | AO101: 6000 | AP101: 5800 | AQ101: 5600 | AR101: 5400 | AS101: 5200
A102: =MID(CELL("filename",'Municipal Complex'!A38),FIND("]",CELL("filename",'Municipal Complex'!A38))+1,256) -> Municipal Complex | B102: ='Municipal Complex'!A38 -> Municipal Complex | C102: ='Municipal Complex'!B38 -> Elevator | D102: ='Municipal Complex'!C38 -> 50000 | E102: =IF('Municipal Complex'!D38=0,"",'Municipal Complex'!D38) -> 2029 | G102: Yes | H102: Free Cash | Y102: 50000
A103: =MID(CELL("filename",'Municipal Complex'!A39),FIND("]",CELL("filename",'Municipal Complex'!A39))+1,256) -> Municipal Complex | B103: ='Municipal Complex'!A39 -> Municipal Complex | C103: ='Municipal Complex'!B39 -> UPS Symmetra System | D103: ='Municipal Complex'!C39 -> 60000 | E103: =IF('Municipal Complex'!D39=0,"",'Municipal Complex'!D39) -> 2027 | G103: Yes | H103: Free Cash | W103: 60000 | Z103: =IF($G103="Yes",IF(LEFT($H103,4)="Debt",IF(AND(VALUE(RIGHT(Z$2,4))>=($E103+1),VALUE(RIGHT(Z$2,4))<=($E103+IF(ISNUMBER($I103),$I103,0)),$I103>0,ISNUMBER($J103)),(($D103*((1+$N$2)^($E103-(VALUE(RIGHT($P$2,4))))))/$I103)+((($D103*((1+$N$2)^($E103-(VALUE(RIGHT($P$2,4))))))-((($D103*((1+$N$2)^($E103-(VALUE(RIGHT($P$2,4))))))/$I103)*(VALUE(RIGHT(Z$2,4))-($E103+1))))*$J103),""),IF("FY "&$E103=Z$2,$D103*((1+$N$2)^((VALUE(RIGHT(Z$2,4)))-(VALUE(RIGHT($P$2,4))))),"")),"") -> 
A104: =MID(CELL("filename",'Municipal Complex'!A40),FIND("]",CELL("filename",'Municipal Complex'!A40))+1,256) -> Municipal Complex | B104: ='Municipal Complex'!A40 -> Municipal Complex | C104: ='Municipal Complex'!B40 -> Digital Sign Board | D104: ='Municipal Complex'!C40 -> 35000 | E104: =IF('Municipal Complex'!D40=0,"",'Municipal Complex'!D40) -> 2029 | G104: Yes | H104: Free Cash | Y104: 35000
A105: =MID(CELL("filename",'Municipal Complex'!A41),FIND("]",CELL("filename",'Municipal Complex'!A41))+1,256) -> Municipal Complex | B105: ='Municipal Complex'!A41 -> Municipal Complex | C105: ='Municipal Complex'!B41 -> Automatic Door | D105: ='Municipal Complex'!C41 -> 20000 | E105: =IF('Municipal Complex'!D41=0,"",'Municipal Complex'!D41) -> 2023 | G105: Yes | H105: Free Cash | S105: 20000 | W105: =IF($G105="Yes",IF(LEFT($H105,4)="Debt",IF(AND(VALUE(RIGHT(W$2,4))>=($E105+1),VALUE(RIGHT(W$2,4))<=($E105+IF(ISNUMBER($I105),$I105,0)),$I105>0,ISNUMBER($J105)),(($D105*((1+$N$2)^($E105-(VALUE(RIGHT($P$2,4))))))/$I105)+((($D105*((1+$N$2)^($E105-(VALUE(RIGHT($P$2,4))))))-((($D105*((1+$N$2)^($E105-(VALUE(RIGHT($P$2,4))))))/$I105)*(VALUE(RIGHT(W$2,4))-($E105+1))))*$J105),""),IF("FY "&$E105=W$2,$D105*((1+$N$2)^((VALUE(RIGHT(W$2,4)))-(VALUE(RIGHT($P$2,4))))),"")),"") -> 
A106: =MID(CELL("filename",'Municipal Complex'!A42),FIND("]",CELL("filename",'Municipal Complex'!A42))+1,256) -> Municipal Complex | B106: ='Municipal Complex'!A42 -> Municipal Complex | C106: ='Municipal Complex'!B42 -> Streetlight Arms Replacement | D106: ='Municipal Complex'!C42 -> 10000 | E106: =IF('Municipal Complex'!D42=0,"",'Municipal Complex'!D42) -> 2025 | G106: Yes | H106: Free Cash | Q106: =IF($G106="Yes",IF(LEFT($H106,4)="Debt",IF(AND(VALUE(RIGHT(Q$2,4))>=($E106+1),VALUE(RIGHT(Q$2,4))<=($E106+IF(ISNUMBER($I106),$I106,0)),$I106>0,ISNUMBER($J106)),(($D106*((1+$N$2)^($E106-(VALUE(RIGHT($P$2,4))))))/$I106)+((($D106*((1+$N$2)^($E106-(VALUE(RIGHT($P$2,4))))))-((($D106*((1+$N$2)^($E106-(VALUE(RIGHT($P$2,4))))))/$I106)*(VALUE(RIGHT(Q$2,4))-($E106+1))))*$J106),""),IF("FY "&$E106=Q$2,$D106*((1+$N$2)^((VALUE(RIGHT(Q$2,4)))-(VALUE(RIGHT($P$2,4))))),"")),"") ->  | U106: 10000
A107: =MID(CELL("filename",'Municipal Complex'!A43),FIND("]",CELL("filename",'Municipal Complex'!A43))+1,256) -> Municipal Complex | B107: ='Municipal Complex'!A43 -> Municipal Complex | C107: ='Municipal Complex'!B43 -> Hazard Mitigation | D107: ='Municipal Complex'!C43 -> 50000 | E107: =IF('Municipal Complex'!D43=0,"",'Municipal Complex'!D43) -> 2022 | G107: Yes | H107: Free Cash | R107: 50000
A108: =MID(CELL("filename",'Municipal Complex'!A44),FIND("]",CELL("filename",'Municipal Complex'!A44))+1,256) -> Municipal Complex | B108: ='Municipal Complex'!A44 -> Municipal Complex | C108: ='Municipal Complex'!B44 -> Maintenance on Dams | D108: ='Municipal Complex'!C44 -> 20000 | E108: =IF('Municipal Complex'!D44=0,"",'Municipal Complex'!D44) -> 2021 | G108: Yes | H108: Action Grant | Q108: 20000
A109: =MID(CELL("filename",'Municipal Complex'!A45),FIND("]",CELL("filename",'Municipal Complex'!A45))+1,256) -> Municipal Complex | B109: ='Municipal Complex'!A45 -> Municipal Complex | C109: ='Municipal Complex'!B45 -> Maintenance on Dams | D109: ='Municipal Complex'!C45 -> 20000 | E109: =IF('Municipal Complex'!D45=0,"",'Municipal Complex'!D45) -> 2023 | G109: Yes | H109: Action Grant | S109: 20000
A110: =MID(CELL("filename",'Municipal Complex'!A46),FIND("]",CELL("filename",'Municipal Complex'!A46))+1,256) -> Municipal Complex | B110: ='Municipal Complex'!A46 -> Municipal Complex | C110: ='Municipal Complex'!B46 -> Maintenance on Dams | D110: ='Municipal Complex'!C46 -> 20000 | E110: =IF('Municipal Complex'!D46=0,"",'Municipal Complex'!D46) -> 2025 | G110: Yes | H110: Action Grant | U110: 20000
A111: =MID(CELL("filename",'Municipal Complex'!A47),FIND("]",CELL("filename",'Municipal Complex'!A47))+1,256) -> Municipal Complex | B111: ='Municipal Complex'!A47 -> Municipal Complex | C111: ='Municipal Complex'!B47 -> Maintenance on Dams | D111: ='Municipal Complex'!C47 -> 20000 | E111: =IF('Municipal Complex'!D47=0,"",'Municipal Complex'!D47) -> 2027 | G111: Yes | H111: Action Grant | W111: 20000
A112: =MID(CELL("filename",'Municipal Complex'!A48),FIND("]",CELL("filename",'Municipal Complex'!A48))+1,256) -> Municipal Complex | B112: ='Municipal Complex'!A48 -> Municipal Complex | C112: ='Municipal Complex'!B48 -> Maintenance on Dams | D112: ='Municipal Complex'!C48 -> 20000 | E112: =IF('Municipal Complex'!D48=0,"",'Municipal Complex'!D48) -> 2029 | G112: Yes | H112: Action Grant | Y112: 20000
A113: =MID(CELL("filename",'Municipal Complex'!A49),FIND("]",CELL("filename",'Municipal Complex'!A49))+1,256) -> Municipal Complex | B113: ='Municipal Complex'!A49 -> Municipal Complex | C113: ='Municipal Complex'!B49 -> Archiving of Electronic Records | D113: ='Municipal Complex'!C49 -> 20000 | E113: =IF('Municipal Complex'!D49=0,"",'Municipal Complex'!D49) -> 2022 | G113: Yes | H113: Free Cash | R113: 20000
A114: =MID(CELL("filename",MIS!A22),FIND("]",CELL("filename",MIS!A22))+1,256) -> MIS | B114: =MIS!A22 -> MIS | C114: =MIS!B22 -> Server | D114: =MIS!C22 -> 25000 | E114: =IF(MIS!D22=0,"",MIS!D22) -> 2020 | G114: Yes | H114: Free Cash | P114: 25000
A115: =MID(CELL("filename",MIS!A23),FIND("]",CELL("filename",MIS!A23))+1,256) -> MIS | B115: =MIS!A23 -> MIS | C115: =MIS!B23 -> Server | D115: =MIS!C23 -> 25000 | E115: =IF(MIS!D23=0,"",MIS!D23) -> 2025 | G115: Yes | H115: Free Cash | U115: 25000
A116: =MID(CELL("filename",MIS!A24),FIND("]",CELL("filename",MIS!A24))+1,256) -> MIS | B116: =MIS!A24 -> MIS | C116: =MIS!B24 -> Switches | D116: =MIS!C24 -> 6000 | E116: =IF(MIS!D24=0,"",MIS!D24) -> 2025 | G116: Yes | H116: Free Cash | U116: 6000
A117: =MID(CELL("filename",MIS!A25),FIND("]",CELL("filename",MIS!A25))+1,256) -> MIS | B117: =MIS!A25 -> MIS | C117: =MIS!B25 -> Cyber Security | D117: =MIS!C25 -> 15000 | E117: =IF(MIS!D25=0,"",MIS!D25) -> 2021 | G117: Yes | H117: Free Cash | Q117: 15000
A118: =MID(CELL("filename",Police!A22),FIND("]",CELL("filename",Police!A22))+1,256) -> Police | B118: =Police!A22 -> Police | C118: =Police!B22 -> Carport | D118: =Police!C22 -> 200000 | E118: =IF(Police!D22=0,"",Police!D22) -> 2027 | G118: Yes | H118: Debt (Non-Excluded) | I118: 20 | J118: 0.04 | X118: 18000 | Y118: 17600 | Z118: 17200 | AA118: 16800 | AB118: 16400 | AC118: 16000 | AD118: 15600 | AE118: 15200 | AF118: 14800 | AG118: 14400 | AH118: 14000 | AI118: 13600 | AJ118: 13200 | AK118: 12800 | AL118: 12400 | AM118: 12000 | AN118: 11600 | AO118: 11200 | AP118: 10800 | AQ118: 10400
A119: =MID(CELL("filename",Police!A23),FIND("]",CELL("filename",Police!A23))+1,256) -> Police | B119: =Police!A23 -> Police | C119: =Police!B23 -> Server | D119: =Police!C23 -> 3500 | E119: =IF(Police!D23=0,"",Police!D23) -> 2021 | G119: Yes | H119: Free Cash | Q119: 3500
A120: =MID(CELL("filename",Police!A24),FIND("]",CELL("filename",Police!A24))+1,256) -> Police | B120: =Police!A24 -> Police | C120: =Police!B24 -> Server | D120: =Police!C24 -> 3500 | E120: =IF(Police!D24=0,"",Police!D24) -> 2026 | G120: Yes | H120: Free Cash | V120: 3500
A121: =MID(CELL("filename",Police!A25),FIND("]",CELL("filename",Police!A25))+1,256) -> Police | B121: =Police!A25 -> Police | C121: =Police!B25 -> Camera Equipment | D121: =Police!C25 -> 4800 | E121: =IF(Police!D25=0,"",Police!D25) -> 2028 | G121: Yes | H121: Free Cash | X121: 4800
A122: =MID(CELL("filename",Police!A26),FIND("]",CELL("filename",Police!A26))+1,256) -> Police | B122: =Police!A26 -> Police | C122: =Police!B26 -> Backup on Videos | D122: =Police!C26 -> 6000 | E122: =IF(Police!D26=0,"",Police!D26) -> 2025 | G122: Yes | H122: Free Cash | U122: 6000
A123: =MID(CELL("filename",Police!A27),FIND("]",CELL("filename",Police!A27))+1,256) -> Police | B123: =Police!A27 -> Police | C123: =Police!B27 -> Laptops | D123: =Police!C27 -> 10400 | E123: =IF(Police!D27=0,"",Police!D27) -> 2023 | G123: Yes | H123: Regional Dispatch Grant | S123: 10400 | AN123: =IF($G123="Yes",IF(LEFT($H123,4)="Debt",IF(AND(VALUE(RIGHT(AN$2,4))>=($E123+1),VALUE(RIGHT(AN$2,4))<=($E123+IF(ISNUMBER($I123),$I123,0)),$I123>0,ISNUMBER($J123)),(($D123*((1+$N$2)^($E123-(VALUE(RIGHT($P$2,4))))))/$I123)+((($D123*((1+$N$2)^($E123-(VALUE(RIGHT($P$2,4))))))-((($D123*((1+$N$2)^($E123-(VALUE(RIGHT($P$2,4))))))/$I123)*(VALUE(RIGHT(AN$2,4))-($E123+1))))*$J123),""),IF("FY "&$E123=AN$2,$D123*((1+$N$2)^((VALUE(RIGHT(AN$2,4)))-(VALUE(RIGHT($P$2,4))))),"")),"") -> 
A124: =MID(CELL("filename",Police!A28),FIND("]",CELL("filename",Police!A28))+1,256) -> Police | B124: =Police!A28 -> Police | C124: =Police!B28 -> Laptops | D124: =Police!C28 -> 10400 | E124: =IF(Police!D28=0,"",Police!D28) -> 2027 | G124: Yes | H124: Regional Dispatch Grant | W124: 10400
A125: =MID(CELL("filename",Police!A29),FIND("]",CELL("filename",Police!A29))+1,256) -> Police | B125: =Police!A29 -> Police | C125: =Police!B29 -> Improved Training Technology | D125: =Police!C29 -> 1500 | E125: =IF(Police!D29=0,"",Police!D29) -> 2021 | G125: Yes | H125: Free Cash | Q125: 1500 | AJ125: =IF($G125="Yes",IF(LEFT($H125,4)="Debt",IF(AND(VALUE(RIGHT(AJ$2,4))>=($E125+1),VALUE(RIGHT(AJ$2,4))<=($E125+IF(ISNUMBER($I125),$I125,0)),$I125>0,ISNUMBER($J125)),(($D125*((1+$N$2)^($E125-(VALUE(RIGHT($P$2,4))))))/$I125)+((($D125*((1+$N$2)^($E125-(VALUE(RIGHT($P$2,4))))))-((($D125*((1+$N$2)^($E125-(VALUE(RIGHT($P$2,4))))))/$I125)*(VALUE(RIGHT(AJ$2,4))-($E125+1))))*$J125),""),IF("FY "&$E125=AJ$2,$D125*((1+$N$2)^((VALUE(RIGHT(AJ$2,4)))-(VALUE(RIGHT($P$2,4))))),"")),"") -> 
A126: =MID(CELL("filename",Police!A30),FIND("]",CELL("filename",Police!A30))+1,256) -> Police | B126: =Police!A30 -> Police | C126: =Police!B30 -> File Storage Units for Evidence Room | D126: =Police!C30 -> 3000 | E126: =IF(Police!D30=0,"",Police!D30) -> 2024 | G126: Yes | H126: Free Cash | T126: 3000
A127: =MID(CELL("filename",Police!A31),FIND("]",CELL("filename",Police!A31))+1,256) -> Police | B127: =Police!A31 -> Police | C127: =Police!B31 -> Firearms (Assault Rifles) | D127: =Police!C31 -> 6000 | E127: =IF(Police!D31=0,"",Police!D31) -> 2022 | G127: Yes | H127: Free Cash | R127: 6000
A128: =MID(CELL("filename",Police!A32),FIND("]",CELL("filename",Police!A32))+1,256) -> Police | B128: =Police!A32 -> Police | C128: =Police!B32 -> Firearms (Handguns) | D128: =Police!C32 -> 3000 | E128: =IF(Police!D32=0,"",Police!D32) -> 2028 | G128: Yes | H128: Free Cash | X128: 3000
A129: =MID(CELL("filename",Police!A33),FIND("]",CELL("filename",Police!A33))+1,256) -> Police | B129: =Police!A33 -> Police | C129: =Police!B33 -> Mobile Radios | D129: =Police!C33 -> 2500 | E129: =IF(Police!D33=0,"",Police!D33) -> 2022 | G129: Yes | H129: Free Cash | R129: 2500
A130: =MID(CELL("filename",Police!A34),FIND("]",CELL("filename",Police!A34))+1,256) -> Police | B130: =Police!A34 -> Police | C130: =Police!B34 -> Mobile Radios | D130: =Police!C34 -> 2500 | E130: =IF(Police!D34=0,"",Police!D34) -> 2023 | G130: Yes | H130: Free Cash | S130: 2500
A131: =MID(CELL("filename",Police!A35),FIND("]",CELL("filename",Police!A35))+1,256) -> Police | B131: =Police!A35 -> Police | C131: =Police!B35 -> Mobile Radios | D131: =Police!C35 -> 2500 | E131: =IF(Police!D35=0,"",Police!D35) -> 2024 | G131: Yes | H131: Free Cash | T131: 2500
A132: =MID(CELL("filename",Police!A36),FIND("]",CELL("filename",Police!A36))+1,256) -> Police | B132: =Police!A36 -> Police | C132: =Police!B36 -> Tasers | D132: =Police!C36 -> 25000 | E132: =IF(Police!D36=0,"",Police!D36) -> 2025 | G132: Yes | H132: =IF(D132>60000,IF(D132<=250000,"Debt (Non-Excluded)","Debt (Excluded)"),IF(B132="Water","Water Retained Earnings",IF(B132="Sewer","Sewer Retained Earnings","Free Cash"))) -> Free Cash | I132: =IF(LEFT(H132,4)="Debt",20,"") ->  | J132: =IF(LEFT(H132,4)="Debt",N$1,"") ->  | P132: =IF($G132="Yes",IF(LEFT($H132,4)="Debt",IF(AND(VALUE(RIGHT(P$2,4))>=($E132+1),VALUE(RIGHT(P$2,4))<=($E132+IF(ISNUMBER($I132),$I132,0)),$I132>0,ISNUMBER($J132)),(($D132*((1+$N$2)^($E132-$N$3)))/$I132)+((($D132*((1+$N$2)^($E132-$N$3)))-((($D132*((1+$N$2)^($E132-$N$3)))/$I132)*(VALUE(RIGHT(P$2,4))-($E132+1))))*$J132),""),IF("FY "&$E132=P$2,$D132*((1+$N$2)^((VALUE(RIGHT(P$2,4)))-$N$3)),"")),"") ->  | U132: 25000
A133: =MID(CELL("filename",Police!A37),FIND("]",CELL("filename",Police!A37))+1,256) -> Police | B133: =Police!A37 -> Police | C133: =Police!B37 -> Body Cameras | D133: =Police!C37 -> 10000 | E133: =IF(Police!D37=0,"",Police!D37) -> 2029 | G133: Yes | H133: Free Cash | Y133: 10000
A134: =MID(CELL("filename",Police!A38),FIND("]",CELL("filename",Police!A38))+1,256) -> Police | B134: =Police!A38 -> Police | C134: =Police!B38 -> Dash Cameras | D134: =Police!C38 -> 10000 | E134: =IF(Police!D38=0,"",Police!D38) -> 2027 | G134: Yes | H134: Free Cash | W134: 10000
A135: =MID(CELL("filename",Police!A39),FIND("]",CELL("filename",Police!A39))+1,256) -> Police | B135: =Police!A39 -> Police | C135: =Police!B39 -> Drones | D135: =Police!C39 -> 10000 | E135: =IF(Police!D39=0,"",Police!D39) -> 2024 | G135: Yes | H135: Cable Franchise | T135: 10000
A136: =MID(CELL("filename",Police!A40),FIND("]",CELL("filename",Police!A40))+1,256) -> Police | B136: =Police!A40 -> Police | C136: =Police!B40 -> Body Armor | D136: =Police!C40 -> 20000 | E136: =IF(Police!D40=0,"",Police!D40) -> 2026 | G136: Yes | H136: Other Federal/State Grant | V136: 20000
A137: =MID(CELL("filename",Police!A41),FIND("]",CELL("filename",Police!A41))+1,256) -> Police | B137: =Police!A41 -> Police | C137: =Police!B41 -> Cruiser | D137: =Police!C41 -> 50000 | E137: =IF(Police!D41=0,"",Police!D41) -> 2020 | G137: Yes | H137: Free Cash | P137: 50000 | AG137: =IF($G137="Yes",IF(LEFT($H137,4)="Debt",IF(AND(VALUE(RIGHT(AG$2,4))>=($E137+1),VALUE(RIGHT(AG$2,4))<=($E137+IF(ISNUMBER($I137),$I137,0)),$I137>0,ISNUMBER($J137)),(($D137*((1+$N$2)^($E137-(VALUE(RIGHT($P$2,4))))))/$I137)+((($D137*((1+$N$2)^($E137-(VALUE(RIGHT($P$2,4))))))-((($D137*((1+$N$2)^($E137-(VALUE(RIGHT($P$2,4))))))/$I137)*(VALUE(RIGHT(AG$2,4))-($E137+1))))*$J137),""),IF("FY "&$E137=AG$2,$D137*((1+$N$2)^((VALUE(RIGHT(AG$2,4)))-(VALUE(RIGHT($P$2,4))))),"")),"") -> 
A138: =MID(CELL("filename",Police!A42),FIND("]",CELL("filename",Police!A42))+1,256) -> Police | B138: =Police!A42 -> Police | C138: =Police!B42 -> Cruiser | D138: =Police!C42 -> 50000 | E138: =IF(Police!D42=0,"",Police!D42) -> 2021 | G138: Yes | H138: Free Cash | Q138: =IF($G138="Yes",IF(LEFT($H138,4)="Debt",IF(AND(VALUE(RIGHT(Q$2,4))>=($E138+1),VALUE(RIGHT(Q$2,4))<=($E138+IF(ISNUMBER($I138),$I138,0)),$I138>0,ISNUMBER($J138)),(($D138*((1+$N$2)^($E138-(VALUE(RIGHT($P$2,4))))))/$I138)+((($D138*((1+$N$2)^($E138-(VALUE(RIGHT($P$2,4))))))-((($D138*((1+$N$2)^($E138-(VALUE(RIGHT($P$2,4))))))/$I138)*(VALUE(RIGHT(Q$2,4))-($E138+1))))*$J138),""),IF("FY "&$E138=Q$2,$D138*((1+$N$2)^((VALUE(RIGHT(Q$2,4)))-(VALUE(RIGHT($P$2,4))))),"")),"") -> 50000
A139: =MID(CELL("filename",Police!A43),FIND("]",CELL("filename",Police!A43))+1,256) -> Police | B139: =Police!A43 -> Police | C139: =Police!B43 -> Cruiser | D139: =Police!C43 -> 50000 | E139: =IF(Police!D43=0,"",Police!D43) -> 2022 | G139: Yes | H139: Free Cash | R139: 50000
A140: =MID(CELL("filename",Police!A44),FIND("]",CELL("filename",Police!A44))+1,256) -> Police | B140: =Police!A44 -> Police | C140: =Police!B44 -> Cruiser | D140: =Police!C44 -> 50000 | E140: =IF(Police!D44=0,"",Police!D44) -> 2023 | G140: Yes | H140: Free Cash | S140: 50000
A141: =MID(CELL("filename",Police!A45),FIND("]",CELL("filename",Police!A45))+1,256) -> Police | B141: =Police!A45 -> Police | C141: =Police!B45 -> Cruiser | D141: =Police!C45 -> 50000 | E141: =IF(Police!D45=0,"",Police!D45) -> 2024 | G141: Yes | H141: Free Cash | T141: 50000
A142: =MID(CELL("filename",Police!A46),FIND("]",CELL("filename",Police!A46))+1,256) -> Police | B142: =Police!A46 -> Police | C142: =Police!B46 -> Cruiser | D142: =Police!C46 -> 50000 | E142: =IF(Police!D46=0,"",Police!D46) -> 2025 | G142: Yes | H142: Free Cash | U142: 50000
A143: =MID(CELL("filename",Police!A47),FIND("]",CELL("filename",Police!A47))+1,256) -> Police | B143: =Police!A47 -> Police | C143: =Police!B47 -> Cruiser | D143: =Police!C47 -> 50000 | E143: =IF(Police!D47=0,"",Police!D47) -> 2026 | G143: Yes | H143: Free Cash | V143: 50000
A144: =MID(CELL("filename",Police!A48),FIND("]",CELL("filename",Police!A48))+1,256) -> Police | B144: =Police!A48 -> Police | C144: =Police!B48 -> Cruiser | D144: =Police!C48 -> 50000 | E144: =IF(Police!D48=0,"",Police!D48) -> 2027 | G144: Yes | H144: Free Cash | W144: 50000
A145: =MID(CELL("filename",Police!A49),FIND("]",CELL("filename",Police!A49))+1,256) -> Police | B145: =Police!A49 -> Police | C145: =Police!B49 -> Cruiser | D145: =Police!C49 -> 50000 | E145: =IF(Police!D49=0,"",Police!D49) -> 2028 | G145: Yes | H145: Free Cash | X145: 50000
A146: =MID(CELL("filename",Police!A50),FIND("]",CELL("filename",Police!A50))+1,256) -> Police | B146: =Police!A50 -> Police | C146: =Police!B50 -> Cruiser | D146: =Police!C50 -> 50000 | E146: =IF(Police!D50=0,"",Police!D50) -> 2029 | G146: Yes | H146: Free Cash | Y146: 50000
A147: =MID(CELL("filename",Police!A51),FIND("]",CELL("filename",Police!A51))+1,256) -> Police | B147: =Police!A51 -> Police | C147: =Police!B51 -> Additional Vehicle | D147: =Police!C51 -> 40000 | E147: =IF(Police!D51=0,"",Police!D51) -> 2021 | G147: Yes | H147: Free Cash | Q147: 40000
A148: =MID(CELL("filename",Police!A52),FIND("]",CELL("filename",Police!A52))+1,256) -> Police | B148: =Police!A52 -> Police | C148: =Police!B52 -> Chief's Car | D148: =Police!C52 -> 35000 | E148: =IF(Police!D52=0,"",Police!D52) -> 2027 | G148: Yes | H148: Free Cash | W148: 35000
A149: =MID(CELL("filename",Police!A53),FIND("]",CELL("filename",Police!A53))+1,256) -> Police | B149: =Police!A53 -> Police | C149: =Police!B53 -> Pickup Truck | D149: =Police!C53 -> 50000 | E149: =IF(Police!D53=0,"",Police!D53) -> 2020 | G149: Yes | H149: Free Cash | P149: 50000
A150: =MID(CELL("filename",Police!A54),FIND("]",CELL("filename",Police!A54))+1,256) -> Police | B150: =Police!A54 -> Police | C150: =Police!B54 -> Boat | D150: =Police!C54 -> 25000 | E150: =IF(Police!D54=0,"",Police!D54) -> 2029 | G150: Yes | H150: Free Cash | Y150: 25000
A151: =MID(CELL("filename",Police!A55),FIND("]",CELL("filename",Police!A55))+1,256) -> Police | B151: =Police!A55 -> Police | C151: =Police!B55 -> ATV | D151: =Police!C55 -> 4000 | E151: =IF(Police!D55=0,"",Police!D55) -> 2028 | G151: Yes | H151: Free Cash | X151: 4000
A152: =MID(CELL("filename",Police!A56),FIND("]",CELL("filename",Police!A56))+1,256) -> Police | B152: =Police!A56 -> Police | C152: =Police!B56 -> Secondary Radio System | D152: =Police!C56 -> 15000 | E152: =IF(Police!D56=0,"",Police!D56) -> 2021 | G152: Yes | H152: Free Cash | Q152: 15000
A153: =MID(CELL("filename",Police!A57),FIND("]",CELL("filename",Police!A57))+1,256) -> Police | B153: =Police!A57 -> Police | C153: =Police!B57 -> Repeater | D153: =Police!C57 -> 12000 | E153: =IF(Police!D57=0,"",Police!D57) -> 2021 | G153: Yes | H153: Free Cash | Q153: 12000 | AF153: =IF($G153="Yes",IF(LEFT($H153,4)="Debt",IF(AND(VALUE(RIGHT(AF$2,4))>=($E153+1),VALUE(RIGHT(AF$2,4))<=($E153+IF(ISNUMBER($I153),$I153,0)),$I153>0,ISNUMBER($J153)),(($D153*((1+$N$2)^($E153-(VALUE(RIGHT($P$2,4))))))/$I153)+((($D153*((1+$N$2)^($E153-(VALUE(RIGHT($P$2,4))))))-((($D153*((1+$N$2)^($E153-(VALUE(RIGHT($P$2,4))))))/$I153)*(VALUE(RIGHT(AF$2,4))-($E153+1))))*$J153),""),IF("FY "&$E153=AF$2,$D153*((1+$N$2)^((VALUE(RIGHT(AF$2,4)))-(VALUE(RIGHT($P$2,4))))),"")),"") -> 
A154: =MID(CELL("filename",Police!A58),FIND("]",CELL("filename",Police!A58))+1,256) -> Police | B154: =Police!A58 -> Police | C154: =Police!B58 -> Main Radio Replacement | D154: =Police!C58 -> 20000 | E154: =IF(Police!D58=0,"",Police!D58) -> 2026 | G154: Yes | H154: Free Cash | Q154: =IF($G154="Yes",IF(LEFT($H154,4)="Debt",IF(AND(VALUE(RIGHT(Q$2,4))>=($E154+1),VALUE(RIGHT(Q$2,4))<=($E154+IF(ISNUMBER($I154),$I154,0)),$I154>0,ISNUMBER($J154)),(($D154*((1+$N$2)^($E154-(VALUE(RIGHT($P$2,4))))))/$I154)+((($D154*((1+$N$2)^($E154-(VALUE(RIGHT($P$2,4))))))-((($D154*((1+$N$2)^($E154-(VALUE(RIGHT($P$2,4))))))/$I154)*(VALUE(RIGHT(Q$2,4))-($E154+1))))*$J154),""),IF("FY "&$E154=Q$2,$D154*((1+$N$2)^((VALUE(RIGHT(Q$2,4)))-(VALUE(RIGHT($P$2,4))))),"")),"") ->  | V154: 20000
A155: =MID(CELL("filename",Police!A59),FIND("]",CELL("filename",Police!A59))+1,256) -> Police | B155: =Police!A59 -> Police | C155: =Police!B59 -> Repeater | D155: =Police!C59 -> 15000 | E155: =IF(Police!D59=0,"",Police!D59) -> 2026 | G155: Yes | H155: Free Cash | V155: 15000
A156: =MID(CELL("filename",Police!A60),FIND("]",CELL("filename",Police!A60))+1,256) -> Police | B156: =Police!A60 -> Police | C156: =Police!B60 -> Repeater | D156: =Police!C60 -> 15000 | E156: =IF(Police!D60=0,"",Police!D60) -> 2026 | G156: Yes | H156: Free Cash | V156: 15000
A157: =MID(CELL("filename",Fire!A22),FIND("]",CELL("filename",Fire!A22))+1,256) -> Fire | B157: =Fire!A22 -> Fire | C157: =Fire!B22 -> Ambulance | D157: =Fire!C22 -> 260000 | E157: =IF(Fire!D22=0,"",Fire!D22) -> 2021 | G157: Yes | H157: Debt (Excluded) | I157: 20 | J157: 0.04 | R157: 23400 | S157: 22880 | T157: 22360 | U157: 21840 | V157: 21320 | W157: 20800 | X157: 20280 | Y157: 19760 | Z157: 19240 | AA157: 18720 | AB157: 18200 | AC157: 17680 | AD157: 17160 | AE157: 16640 | AF157: 16120 | AG157: 15600 | AH157: 15080 | AI157: 14560 | AJ157: 14040 | AK157: 13520
A158: =MID(CELL("filename",Fire!A23),FIND("]",CELL("filename",Fire!A23))+1,256) -> Fire | B158: =Fire!A23 -> Fire | C158: =Fire!B23 -> Engine | D158: =Fire!C23 -> 650000 | E158: =IF(Fire!D23=0,"",Fire!D23) -> 2022 | G158: Yes | H158: Debt (Excluded) | I158: 20 | J158: 0.04 | S158: 58500 | T158: 57200 | U158: 55900 | V158: 54600 | W158: 53300 | X158: 52000 | Y158: 50700 | Z158: 49400 | AA158: 48100 | AB158: 46800 | AC158: 45500 | AD158: 44200 | AE158: 42900 | AF158: 41600 | AG158: 40300 | AH158: 39000 | AI158: 37700 | AJ158: 36400 | AK158: 35100 | AL158: 33800
A159: =MID(CELL("filename",Fire!A24),FIND("]",CELL("filename",Fire!A24))+1,256) -> Fire | B159: =Fire!A24 -> Fire | C159: =Fire!B24 -> Car | D159: =Fire!C24 -> 45000 | E159: =IF(Fire!D24=0,"",Fire!D24) -> 2021 | G159: Yes | H159: Free Cash | Q159: 45000
A160: =MID(CELL("filename",Fire!A25),FIND("]",CELL("filename",Fire!A25))+1,256) -> Fire | B160: =Fire!A25 -> Fire | C160: =Fire!B25 -> Service Truck | D160: =Fire!C25 -> 60000 | E160: =IF(Fire!D25=0,"",Fire!D25) -> 2023 | G160: Yes | H160: Free Cash | S160: 60000
A161: =MID(CELL("filename",Fire!A26),FIND("]",CELL("filename",Fire!A26))+1,256) -> Fire | B161: =Fire!A26 -> Fire | C161: =Fire!B26 -> Engine | D161: =Fire!C26 -> 725000 | E161: =IF(Fire!D26=0,"",Fire!D26) -> 2024 | G161: Yes | H161: Debt (Excluded) | I161: 20 | J161: 0.04 | U161: 65250 | V161: 63800 | W161: 62350 | X161: 60900 | Y161: 59450 | Z161: 58000 | AA161: 56550 | AB161: 55100 | AC161: 53650 | AD161: 52200 | AE161: 50750 | AF161: 49300 | AG161: 47850 | AH161: 46400 | AI161: 44950 | AJ161: 43500 | AK161: 42050 | AL161: 40600 | AM161: 39150 | AN161: 37700
A162: =MID(CELL("filename",Fire!A27),FIND("]",CELL("filename",Fire!A27))+1,256) -> Fire | B162: =Fire!A27 -> Fire | C162: =Fire!B27 -> Ambulance | D162: =Fire!C27 -> 300000 | E162: =IF(Fire!D27=0,"",Fire!D27) -> 2028 | G162: Yes | H162: Debt (Excluded) | I162: 20 | J162: 0.04 | Y162: 27000 | Z162: 26400 | AA162: 25800 | AB162: 25200 | AC162: 24600 | AD162: 24000 | AE162: 23400 | AF162: 22800 | AG162: 22200 | AH162: 21600 | AI162: 21000 | AJ162: 20400 | AK162: 19800 | AL162: 19200 | AM162: 18600 | AN162: 18000 | AO162: 17400 | AP162: 16800 | AQ162: 16200 | AR162: 15600
A163: =MID(CELL("filename",Fire!A28),FIND("]",CELL("filename",Fire!A28))+1,256) -> Fire | B163: =Fire!A28 -> Fire | C163: =Fire!B28 -> Gear | D163: =Fire!C28 -> 25000 | E163: =IF(Fire!D28=0,"",Fire!D28) -> 2026 | G163: Yes | H163: Free Cash | V163: 25000
A164: =MID(CELL("filename",Fire!A29),FIND("]",CELL("filename",Fire!A29))+1,256) -> Fire | B164: =Fire!A29 -> Fire | C164: =Fire!B29 -> Gear | D164: =Fire!C29 -> 25000 | E164: =IF(Fire!D29=0,"",Fire!D29) -> 2027 | G164: Yes | H164: Free Cash | W164: 25000
A165: =MID(CELL("filename",Fire!A30),FIND("]",CELL("filename",Fire!A30))+1,256) -> Fire | B165: =Fire!A30 -> Fire | C165: =Fire!B30 -> Gear | D165: =Fire!C30 -> 25000 | E165: =IF(Fire!D30=0,"",Fire!D30) -> 2028 | G165: Yes | H165: Free Cash | X165: 25000
A166: =MID(CELL("filename",Fire!A31),FIND("]",CELL("filename",Fire!A31))+1,256) -> Fire | B166: =Fire!A31 -> Fire | C166: =Fire!B31 -> Gear | D166: =Fire!C31 -> 25000 | E166: =IF(Fire!D31=0,"",Fire!D31) -> 2029 | G166: Yes | H166: Free Cash | Y166: 25000
A167: =MID(CELL("filename",Fire!A32),FIND("]",CELL("filename",Fire!A32))+1,256) -> Fire | B167: =Fire!A32 -> Fire | C167: =Fire!B32 -> Radio Devices | D167: =Fire!C32 -> 100000 | E167: =IF(Fire!D32=0,"",Fire!D32) -> 2022 | G167: Yes | H167: Debt (Non-Excluded) | I167: 20 | J167: 0.04 | S167: 9000 | T167: 8800 | U167: 8600 | V167: 8400 | W167: 8200 | X167: 8000 | Y167: 7800 | Z167: 7600 | AA167: 7400 | AB167: 7200 | AC167: 7000 | AD167: 6800 | AE167: 6600 | AF167: 6400 | AG167: 6200 | AH167: 6000 | AI167: 5800 | AJ167: 5600 | AK167: 5400 | AL167: 5200
A168: =MID(CELL("filename",Fire!A33),FIND("]",CELL("filename",Fire!A33))+1,256) -> Fire | B168: =Fire!A33 -> Fire | C168: =Fire!B33 -> Radio Devices | D168: =Fire!C33 -> 100000 | E168: =IF(Fire!D33=0,"",Fire!D33) -> 2028 | G168: Yes | H168: Debt (Non-Excluded) | I168: 20 | J168: 0.04 | Y168: 9000 | Z168: 8800 | AA168: 8600 | AB168: 8400 | AC168: 8200 | AD168: 8000 | AE168: 7800 | AF168: 7600 | AG168: 7400 | AH168: 7200 | AI168: 7000 | AJ168: 6800 | AK168: 6600 | AL168: 6400 | AM168: 6200 | AN168: 6000 | AO168: 5800 | AP168: 5600 | AQ168: 5400 | AR168: 5200
A169: =MID(CELL("filename",Fire!A34),FIND("]",CELL("filename",Fire!A34))+1,256) -> Fire | B169: =Fire!A34 -> Fire | C169: =Fire!B34 -> New Server | D169: =Fire!C34 -> 5000 | E169: =IF(Fire!D34=0,"",Fire!D34) -> 2029 | G169: Yes | H169: Free Cash | Y169: 5000
A170: =MID(CELL("filename",Fire!A35),FIND("]",CELL("filename",Fire!A35))+1,256) -> Fire | B170: =Fire!A35 -> Fire | C170: =Fire!B35 -> UPS Symmetra System | D170: =Fire!C35 -> 60000 | E170: =IF(Fire!D35=0,"",Fire!D35) -> 2028 | G170: Yes | H170: Free Cash | X170: 60000
A171: =MID(CELL("filename",Library!A22),FIND("]",CELL("filename",Library!A22))+1,256) -> Library | B171: =Library!A22 -> Library | C171: =Library!B22 -> HVAC System | D171: =Library!C22 -> 500000 | E171: =IF(Library!D22=0,"",Library!D22) -> 2029 | G171: Yes | H171: Debt (Excluded) | I171: 20 | J171: 0.04 | Q171: =IF($G171="Yes",IF(LEFT($H171,4)="Debt",IF(AND(VALUE(RIGHT(Q$2,4))>=($E171+1),VALUE(RIGHT(Q$2,4))<=($E171+IF(ISNUMBER($I171),$I171,0)),$I171>0,ISNUMBER($J171)),(($D171*((1+$N$2)^($E171-(VALUE(RIGHT($P$2,4))))))/$I171)+((($D171*((1+$N$2)^($E171-(VALUE(RIGHT($P$2,4))))))-((($D171*((1+$N$2)^($E171-(VALUE(RIGHT($P$2,4))))))/$I171)*(VALUE(RIGHT(Q$2,4))-($E171+1))))*$J171),""),IF("FY "&$E171=Q$2,$D171*((1+$N$2)^((VALUE(RIGHT(Q$2,4)))-(VALUE(RIGHT($P$2,4))))),"")),"") ->  | Z171: 45000 | AA171: 44000 | AB171: 43000 | AC171: 42000 | AD171: 41000 | AE171: 40000 | AF171: 39000 | AG171: 38000 | AH171: 37000 | AI171: 36000 | AJ171: 35000 | AK171: 34000 | AL171: 33000 | AM171: 32000 | AN171: 31000 | AO171: 30000 | AP171: 29000 | AQ171: 28000 | AR171: 27000 | AS171: 26000
A172: =MID(CELL("filename",Library!A23),FIND("]",CELL("filename",Library!A23))+1,256) -> Library | B172: =Library!A23 -> Library | C172: =Library!B23 -> Replace Carpeting | D172: =Library!C23 -> 100000 | E172: =IF(Library!D23=0,"",Library!D23) -> 2021 | G172: Yes | H172: Debt (Non-Excluded) | I172: 20 | J172: 0.04 | R172: 9000 | S172: 8800 | T172: 8600 | U172: 8400 | V172: 8200 | W172: 8000 | X172: 7800 | Y172: 7600 | Z172: 7400 | AA172: 7200 | AB172: 7000 | AC172: 6800 | AD172: 6600 | AE172: 6400 | AF172: 6200 | AG172: 6000 | AH172: 5800 | AI172: 5600 | AJ172: 5400 | AK172: 5200
A173: =MID(CELL("filename",Library!A24),FIND("]",CELL("filename",Library!A24))+1,256) -> Library | B173: =Library!A24 -> Library | C173: =Library!B24 -> Replace Armchairs | D173: =Library!C24 -> 5000 | E173: =IF(Library!D24=0,"",Library!D24) -> 2025 | G173: Yes | H173: Free Cash | U173: 5000
A174: =MID(CELL("filename",Library!A25),FIND("]",CELL("filename",Library!A25))+1,256) -> Library | B174: =Library!A25 -> Library | C174: =Library!B25 -> Upgrade Adjacent Lot | D174: =Library!C25 -> 250000 | E174: =IF(Library!D25=0,"",Library!D25) -> 2023 | G174: Yes | H174: Library Endowment | S174: 250000
A175: =MID(CELL("filename",Library!A26),FIND("]",CELL("filename",Library!A26))+1,256) -> Library | B175: =Library!A26 -> Library | C175: =Library!B26 -> Digital Sign Board | D175: =Library!C26 -> 35000 | E175: =IF(Library!D26=0,"",Library!D26) -> 2026 | G175: Yes | H175: Free Cash | V175: 35000
A176: =MID(CELL("filename",Library!A27),FIND("]",CELL("filename",Library!A27))+1,256) -> Library | B176: =Library!A27 -> Library | C176: =Library!B27 -> Computers | D176: =Library!C27 -> 6000 | E176: =IF(Library!D27=0,"",Library!D27) -> 2021 | G176: Yes | H176: Free Cash | Q176: 6000
A177: =MID(CELL("filename",Library!A28),FIND("]",CELL("filename",Library!A28))+1,256) -> Library | B177: =Library!A28 -> Library | C177: =Library!B28 -> Computers | D177: =Library!C28 -> 6000 | E177: =IF(Library!D28=0,"",Library!D28) -> 2023 | G177: Yes | H177: Free Cash | S177: 6000
A178: =MID(CELL("filename",Library!A29),FIND("]",CELL("filename",Library!A29))+1,256) -> Library | B178: =Library!A29 -> Library | C178: =Library!B29 -> Computers | D178: =Library!C29 -> 6000 | E178: =IF(Library!D29=0,"",Library!D29) -> 2025 | G178: Yes | H178: Free Cash | U178: 6000
A179: =MID(CELL("filename",Library!A30),FIND("]",CELL("filename",Library!A30))+1,256) -> Library | B179: =Library!A30 -> Library | C179: =Library!B30 -> Computers | D179: =Library!C30 -> 6000 | E179: =IF(Library!D30=0,"",Library!D30) -> 2027 | G179: Yes | H179: Free Cash | W179: 6000
A180: =MID(CELL("filename",Library!A31),FIND("]",CELL("filename",Library!A31))+1,256) -> Library | B180: =Library!A31 -> Library | C180: =Library!B31 -> Computers | D180: =Library!C31 -> 8000 | E180: =IF(Library!D31=0,"",Library!D31) -> 2029 | G180: Yes | H180: Free Cash | Y180: 8000
A181: =MID(CELL("filename",Library!A32),FIND("]",CELL("filename",Library!A32))+1,256) -> Library | B181: =Library!A32 -> Library | C181: =Library!B32 -> Server | D181: =Library!C32 -> 4000 | E181: =IF(Library!D32=0,"",Library!D32) -> 2022 | G181: Yes | H181: Free Cash | R181: 4000
A182: =MID(CELL("filename",Library!A33),FIND("]",CELL("filename",Library!A33))+1,256) -> Library | B182: =Library!A33 -> Library | C182: =Library!B33 -> Office Chairs for Staff | D182: =Library!C33 -> 5000 | E182: =IF(Library!D33=0,"",Library!D33) -> 2021 | G182: Yes | H182: Free Cash | Q182: 5000
A183: =MID(CELL("filename",Library!A34),FIND("]",CELL("filename",Library!A34))+1,256) -> Library | B183: =Library!A34 -> Library | C183: =Library!B34 -> Replace Refrigerator | D183: =Library!C34 -> 3000 | E183: =IF(Library!D34=0,"",Library!D34) -> 2029 | G183: Yes | H183: Free Cash | Y183: 3000
A184: =MID(CELL("filename",Library!A35),FIND("]",CELL("filename",Library!A35))+1,256) -> Library | B184: =Library!A35 -> Library | C184: =Library!B35 -> Repave Parking Lot | D184: =Library!C35 -> 20000 | E184: =IF(Library!D35=0,"",Library!D35) -> 2029 | G184: Yes | H184: Free Cash | Y184: 20000
A185: =MID(CELL("filename",Library!A36),FIND("]",CELL("filename",Library!A36))+1,256) -> Library | B185: =Library!A36 -> Library | C185: =Library!B36 -> Replace Copier | D185: =Library!C36 -> 6500 | E185: =IF(Library!D36=0,"",Library!D36) -> 2021 | G185: Yes | H185: Free Cash | Q185: 6500
A187: Status of File: | B187: =IF(AND(A193=D193,B193=E193,A194=D194,B194=E194,A195=D195,B195=E195,A196=D196,B196=E196,A197=D197,B197=E197,A198=D198,B198=E198,A199=D199,B199=E199,A200=D200,B200=E200),"OK","Not OK") -> Not OK | D187: Totals | N187: Total $ | P187: =P$2 -> FY 2020 | Q187: =Q$2 -> FY 2021 | R187: FY 2022 | S187: FY 2023 | T187: FY 2024 | U187: FY 2025 | V187: FY 2026 | W187: FY 2027 | X187: FY 2028 | Y187: FY 2029 | Z187: FY 2030 | AA187: FY 2031 | AB187: FY 2032 | AC187: FY 2033 | AD187: FY 2034 | AE187: FY 2035 | AF187: FY 2036 | AG187: FY 2037 | AH187: FY 2038 | AI187: FY 2039 | AJ187: FY 2040 | AK187: FY 2041 | AL187: FY 2042 | AM187: FY 2043 | AN187: FY 2044 | AO187: FY 2045 | AP187: FY 2046 | AQ187: FY 2047 | AR187: FY 2048 | AS187: FY 2049
A188: If "Not OK", check reconciliation below. | D188: $ Amount | E188: # | M188: Totals | N188: =SUM(P188:AS188) -> 56622040 | P188: =SUM(P3:P185) -> 139400 | Q188: 723900 | R188: 681130 | S188: 1112520 | T188: 1197210 | U188: 1583176 | V188: 1928722 | W188: 2451704 | X188: 3027166 | Y188: 3745110 | Z188: 3065044 | AA188: 2990070 | AB188: 2915096 | AC188: 2840122 | AD188: 2765148 | AE188: 2690174 | AF188: 2615200 | AG188: 2540226 | AH188: 2465252 | AI188: 2390278 | AJ188: 2315304 | AK188: 2207330 | AL188: 1913926 | AM188: 1729562 | AN188: 1478378 | AO188: 1195938 | AP188: 970598 | AQ188: 640142 | AR188: 213266 | AS188: 90948
D189: =SUM(D3:D185) -> 40877500 | E189: =COUNT(D$3:D$185) -> 183
A191: For Reconciliation Only | D191: Capital Needs | G191: Included | N191: Total $ | P191: =P$2 -> FY 2020 | Q191: =Q$2 -> FY 2021 | R191: FY 2022 | S191: FY 2023 | T191: FY 2024 | U191: FY 2025 | V191: FY 2026 | W191: FY 2027 | X191: FY 2028 | Y191: FY 2029 | Z191: FY 2030 | AA191: FY 2031 | AB191: FY 2032 | AC191: FY 2033 | AD191: FY 2034 | AE191: FY 2035 | AF191: FY 2036 | AG191: FY 2037 | AH191: FY 2038 | AI191: FY 2039 | AJ191: FY 2040 | AK191: FY 2041 | AL191: FY 2042 | AM191: FY 2043 | AN191: FY 2044 | AO191: FY 2045 | AP191: FY 2046 | AQ191: FY 2047 | AR191: FY 2048 | AS191: FY 2049
A192: $ Amount | B192: # | C192: Totals By Tab | D192: $ Amount | E192: # | G192: $ Amount | H192: # | L192: Total | M192: Water | N192: =SUM(P192:AS192) -> 40952400 | P192: =SUMIF($B$3:$B$185,$M192,P$3:P$185) -> 0 | Q192: 72000 | R192: 324600 | S192: 358240 | T192: 667720 | U192: 932420 | V192: 1196790 | W192: 1642010 | X192: 2258770 | Y192: 2360530 | Z192: 2360090 | AA192: 2302650 | AB192: 2245210 | AC192: 2187770 | AD192: 2130330 | AE192: 2072890 | AF192: 2015450 | AG192: 1958010 | AH192: 1900570 | AI192: 1843130 | AJ192: 1785690 | AK192: 1713250 | AL192: 1507410 | AM192: 1417530 | AN192: 1211210 | AO192: 993670 | AP192: 798860 | AQ192: 506400 | AR192: 137200 | AS192: 52000
A193: =Water!D13 -> 28890000 | B193: =Water!D15 -> 25 | C193: Water | D193: =SUMIF(A$3:A$185,C193,D$3:D$185) -> 28890000 | E193: =COUNTIF(A$3:A$185,C193) -> 25 | G193: =SUMIFS(D$3:D$185,A$3:A$185,C193,G$3:G$185,"Yes") -> 28890000 | H193: =COUNTIFS(A$3:A$185,C193,G$3:G$185,"Yes") -> 25
A194: =Sewer!D13 -> 1235000 | B194: =Sewer!D15 -> 14 | C194: Sewer | D194: 1235000 | E194: 18 | G194: 1235000 | H194: 18 | N194: Total $ | P194: =P$2 -> FY 2020 | Q194: =Q$2 -> FY 2021 | R194: FY 2022 | S194: FY 2023 | T194: FY 2024 | U194: FY 2025 | V194: FY 2026 | W194: FY 2027 | X194: FY 2028 | Y194: FY 2029 | Z194: FY 2030 | AA194: FY 2031 | AB194: FY 2032 | AC194: FY 2033 | AD194: FY 2034 | AE194: FY 2035 | AF194: FY 2036 | AG194: FY 2037 | AH194: FY 2038 | AI194: FY 2039 | AJ194: FY 2040 | AK194: FY 2041 | AL194: FY 2042 | AM194: FY 2043 | AN194: FY 2044 | AO194: FY 2045 | AP194: FY 2046 | AQ194: FY 2047 | AR194: FY 2048 | AS194: FY 2049
A195: =Highway!D13 -> 4246400 | B195: =Highway!D15 -> 40 | C195: Highway | D195: 4246400 | E195: 40 | G195: 4246400 | H195: 40 | L195: Total | M195: Sewer | N195: =SUM(P195:AS195) -> 1709600 | P195: =SUMIF($B$3:$B$185,$M195,P$3:P$185) -> 0 | Q195: 11700 | R195: 18640 | S195: 56220 | T195: 82600 | U195: 59620 | V195: 65440 | W195: 72900 | X195: 78360 | Y195: 130460 | Z195: 90560 | AA195: 88300 | AB195: 86040 | AC195: 83780 | AD195: 81520 | AE195: 79260 | AF195: 77000 | AG195: 74740 | AH195: 72480 | AI195: 70220 | AJ195: 67960 | AK195: 59200 | AL195: 53200 | AM195: 41360 | AN195: 35920 | AO195: 24640 | AP195: 19760 | AQ195: 14040 | AR195: 9520 | AS195: 4160
A196: ='Municipal Complex'!D13 -> 2004000 | B196: ='Municipal Complex'!D15 -> 28 | C196: Municipal Complex | D196: 2004000 | E196: 28 | G196: 2004000 | H196: 28
A197: =MIS!D13 -> 71000 | B197: =MIS!D15 -> 4 | C197: MIS | D197: 71000 | E197: 4 | G197: 71000 | H197: 4 | N197: Total $ | P197: =P$2 -> FY 2020 | Q197: =Q$2 -> FY 2021 | R197: FY 2022 | S197: FY 2023 | T197: FY 2024 | U197: FY 2025 | V197: FY 2026 | W197: FY 2027 | X197: FY 2028 | Y197: FY 2029 | Z197: FY 2030 | AA197: FY 2031 | AB197: FY 2032 | AC197: FY 2033 | AD197: FY 2034 | AE197: FY 2035 | AF197: FY 2036 | AG197: FY 2037 | AH197: FY 2038 | AI197: FY 2039 | AJ197: FY 2040 | AK197: FY 2041 | AL197: FY 2042 | AM197: FY 2043 | AN197: FY 2044 | AO197: FY 2045 | AP197: FY 2046 | AQ197: FY 2047 | AR197: FY 2048 | AS197: FY 2049
A198: =Police!D13 -> 1065600 | B198: =Police!D15 -> 39 | C198: Police | D198: 1065600 | E198: 39 | G198: 1065600 | H198: 39 | L198: Total General Govt | N198: =SUM(P198:AS198) -> 13960040 | P198: =P188-(P192+P195) -> 139400 | Q198: =Q188-(Q192+Q195) -> 640200 | R198: 337890 | S198: 698060 | T198: 446890 | U198: 591136 | V198: 666492 | W198: 736794 | X198: 690036 | Y198: 1254120 | Z198: 614394 | AA198: 599120 | AB198: 583846 | AC198: 568572 | AD198: 553298 | AE198: 538024 | AF198: 522750 | AG198: 507476 | AH198: 492202 | AI198: 476928 | AJ198: 461654 | AK198: 434880 | AL198: 353316 | AM198: 270672 | AN198: 231248 | AO198: 177628 | AP198: 151978 | AQ198: 119702 | AR198: 66546 | AS198: 34788
A199: =Fire!D13 -> 2405000 | B199: =Fire!D15 -> 14 | C199: Fire | D199: 2405000 | E199: 14 | G199: 2405000 | H199: 14
A200: =Library!D13 -> 960500 | B200: =Library!D15 -> 15 | C200: Library | D200: 960500 | E200: 15 | G200: 960500 | H200: 15
A201: =SUM(A193:A200) -> 40877500 | B201: =SUM(B193:B200) -> 179 | C201: Totals | D201: =SUM(D193:D200) -> 40877500 | E201: =SUM(E193:E200) -> 183 | G201: =SUM(G193:G200) -> 40877500 | H201: =SUM(H193:H200) -> 183
A203: Notes: | B203: Estimated costs presented in FY 2020 dollars.
... 1 more rows

Sheet Summary-General Government
B1: Departmental Totals from Capital Needs Lists
B2: Year | C2: Highway | D2: Municipal Complex | E2: MIS | F2: Police | G2: Fire | H2: Library | I2: Total
B3: 2020 | C3: =SUMIF(Highway!$C$3:$C$12,$B3,Highway!$D$3:$D$12) -> 244400 | D3: =SUMIF('Municipal Complex'!$C$3:$C$12,$B3,'Municipal Complex'!$D$3:$D$12) -> 0 | E3: =SUMIF(MIS!$C$3:$C$12,$B3,MIS!$D$3:$D$12) -> 25000 | F3: =SUMIF(Police!$C$3:$C$12,$B3,Police!$D$3:$D$12) -> 100000 | G3: =SUMIF(Fire!$C$3:$C$12,$B3,Fire!$D$3:$D$12) -> 0 | H3: =SUMIF(Library!$C$3:$C$12,$B3,Library!$D$3:$D$12) -> 0 | I3: =SUM(C3:H3) -> 369400
B4: =B3+1 -> 2021 | C4: =SUMIF(Highway!$C$3:$C$12,$B4,Highway!$D$3:$D$12) -> 1060000 | D4: =SUMIF('Municipal Complex'!$C$3:$C$12,$B4,'Municipal Complex'!$D$3:$D$12) -> 335000 | E4: =SUMIF(MIS!$C$3:$C$12,$B4,MIS!$D$3:$D$12) -> 15000 | F4: =SUMIF(Police!$C$3:$C$12,$B4,Police!$D$3:$D$12) -> 122000 | G4: =SUMIF(Fire!$C$3:$C$12,$B4,Fire!$D$3:$D$12) -> 305000 | H4: =SUMIF(Library!$C$3:$C$12,$B4,Library!$D$3:$D$12) -> 117500 | I4: 1954500
B5: =B4+1 -> 2022 | C5: =SUMIF(Highway!$C$3:$C$12,$B5,Highway!$D$3:$D$12) -> 475000 | D5: =SUMIF('Municipal Complex'!$C$3:$C$12,$B5,'Municipal Complex'!$D$3:$D$12) -> 320000 | E5: =SUMIF(MIS!$C$3:$C$12,$B5,MIS!$D$3:$D$12) -> 0 | F5: =SUMIF(Police!$C$3:$C$12,$B5,Police!$D$3:$D$12) -> 58500 | G5: =SUMIF(Fire!$C$3:$C$12,$B5,Fire!$D$3:$D$12) -> 750000 | H5: =SUMIF(Library!$C$3:$C$12,$B5,Library!$D$3:$D$12) -> 4000 | I5: 1607500
B6: 2023 | C6: =SUMIF(Highway!$C$3:$C$12,$B6,Highway!$D$3:$D$12) -> 317000 | D6: =SUMIF('Municipal Complex'!$C$3:$C$12,$B6,'Municipal Complex'!$D$3:$D$12) -> 340000 | E6: =SUMIF(MIS!$C$3:$C$12,$B6,MIS!$D$3:$D$12) -> 0 | F6: =SUMIF(Police!$C$3:$C$12,$B6,Police!$D$3:$D$12) -> 62900 | G6: =SUMIF(Fire!$C$3:$C$12,$B6,Fire!$D$3:$D$12) -> 60000 | H6: =SUMIF(Library!$C$3:$C$12,$B6,Library!$D$3:$D$12) -> 256000 | I6: 1035900
B7: 2024 | C7: =SUMIF(Highway!$C$3:$C$12,$B7,Highway!$D$3:$D$12) -> 200000 | D7: =SUMIF('Municipal Complex'!$C$3:$C$12,$B7,'Municipal Complex'!$D$3:$D$12) -> 54000 | E7: =SUMIF(MIS!$C$3:$C$12,$B7,MIS!$D$3:$D$12) -> 0 | F7: =SUMIF(Police!$C$3:$C$12,$B7,Police!$D$3:$D$12) -> 65500 | G7: =SUMIF(Fire!$C$3:$C$12,$B7,Fire!$D$3:$D$12) -> 725000 | H7: =SUMIF(Library!$C$3:$C$12,$B7,Library!$D$3:$D$12) -> 0 | I7: 1044500
B8: 2025 | C8: =SUMIF(Highway!$C$3:$C$12,$B8,Highway!$D$3:$D$12) -> 402000 | D8: =SUMIF('Municipal Complex'!$C$3:$C$12,$B8,'Municipal Complex'!$D$3:$D$12) -> 66000 | E8: =SUMIF(MIS!$C$3:$C$12,$B8,MIS!$D$3:$D$12) -> 31000 | F8: =SUMIF(Police!$C$3:$C$12,$B8,Police!$D$3:$D$12) -> 81000 | G8: =SUMIF(Fire!$C$3:$C$12,$B8,Fire!$D$3:$D$12) -> 0 | H8: =SUMIF(Library!$C$3:$C$12,$B8,Library!$D$3:$D$12) -> 11000 | I8: 591000
B9: 2026 | C9: =SUMIF(Highway!$C$3:$C$12,$B9,Highway!$D$3:$D$12) -> 585000 | D9: =SUMIF('Municipal Complex'!$C$3:$C$12,$B9,'Municipal Complex'!$D$3:$D$12) -> 20000 | E9: =SUMIF(MIS!$C$3:$C$12,$B9,MIS!$D$3:$D$12) -> 0 | F9: =SUMIF(Police!$C$3:$C$12,$B9,Police!$D$3:$D$12) -> 123500 | G9: =SUMIF(Fire!$C$3:$C$12,$B9,Fire!$D$3:$D$12) -> 25000 | H9: =SUMIF(Library!$C$3:$C$12,$B9,Library!$D$3:$D$12) -> 35000 | I9: 788500
B10: 2027 | C10: =SUMIF(Highway!$C$3:$C$12,$B10,Highway!$D$3:$D$12) -> 644000 | D10: =SUMIF('Municipal Complex'!$C$3:$C$12,$B10,'Municipal Complex'!$D$3:$D$12) -> 279000 | E10: =SUMIF(MIS!$C$3:$C$12,$B10,MIS!$D$3:$D$12) -> 0 | F10: =SUMIF(Police!$C$3:$C$12,$B10,Police!$D$3:$D$12) -> 305400 | G10: =SUMIF(Fire!$C$3:$C$12,$B10,Fire!$D$3:$D$12) -> 25000 | H10: =SUMIF(Library!$C$3:$C$12,$B10,Library!$D$3:$D$12) -> 6000 | I10: 1259400
B11: 2028 | C11: =SUMIF(Highway!$C$3:$C$12,$B11,Highway!$D$3:$D$12) -> 200000 | D11: =SUMIF('Municipal Complex'!$C$3:$C$12,$B11,'Municipal Complex'!$D$3:$D$12) -> 0 | E11: =SUMIF(MIS!$C$3:$C$12,$B11,MIS!$D$3:$D$12) -> 0 | F11: =SUMIF(Police!$C$3:$C$12,$B11,Police!$D$3:$D$12) -> 61800 | G11: =SUMIF(Fire!$C$3:$C$12,$B11,Fire!$D$3:$D$12) -> 485000 | H11: =SUMIF(Library!$C$3:$C$12,$B11,Library!$D$3:$D$12) -> 0 | I11: 746800
B12: 2029 | C12: =SUMIF(Highway!$C$3:$C$12,$B12,Highway!$D$3:$D$12) -> 119000 | D12: =SUMIF('Municipal Complex'!$C$3:$C$12,$B12,'Municipal Complex'!$D$3:$D$12) -> 590000 | E12: =SUMIF(MIS!$C$3:$C$12,$B12,MIS!$D$3:$D$12) -> 0 | F12: =SUMIF(Police!$C$3:$C$12,$B12,Police!$D$3:$D$12) -> 85000 | G12: =SUMIF(Fire!$C$3:$C$12,$B12,Fire!$D$3:$D$12) -> 30000 | H12: =SUMIF(Library!$C$3:$C$12,$B12,Library!$D$3:$D$12) -> 531000 | I12: 1355000
B13: Total | C13: =SUM(C3:C12) -> 4246400 | D13: 2004000 | E13: 71000 | F13: 1065600 | G13: 2405000 | H13: 960500 | I13: 10752500
A92: Funding Sources
A93: Funding Sources | C93: ='Town-Wide Capital Planning'!P2 -> FY 2020 | D93: ='Town-Wide Capital Planning'!Q2 -> FY 2021 | E93: ='Town-Wide Capital Planning'!R2 -> FY 2022 | F93: ='Town-Wide Capital Planning'!S2 -> FY 2023 | G93: ='Town-Wide Capital Planning'!T2 -> FY 2024 | H93: ='Town-Wide Capital Planning'!U2 -> FY 2025 | I93: ='Town-Wide Capital Planning'!V2 -> FY 2026 | J93: ='Town-Wide Capital Planning'!W2 -> FY 2027 | K93: ='Town-Wide Capital Planning'!X2 -> FY 2028 | L93: ='Town-Wide Capital Planning'!Y2 -> FY 2029 | M93: Total
A94: Debt (Excluded) | C94: =SUMIFS('Town-Wide Capital Planning'!P:P,'Town-Wide Capital Planning'!$H:$H,$A94,'Town-Wide Capital Planning'!$B:$B,$C$2)+SUMIFS('Town-Wide Capital Planning'!P:P,'Town-Wide Capital Planning'!$H:$H,$A94,'Town-Wide Capital Planning'!$B:$B,$D$2)+SUMIFS('Town-Wide Capital Planning'!P:P,'Town-Wide Capital Planning'!$H:$H,$A94,'Town-Wide Capital Planning'!$B:$B,$E$2)+SUMIFS('Town-Wide Capital Planning'!P:P,'Town-Wide Capital Planning'!$H:$H,$A94,'Town-Wide Capital Planning'!$B:$B,$F$2)+SUMIFS('Town-Wide Capital Planning'!P:P,'Town-Wide Capital Planning'!$H:$H,$A94,'Town-Wide Capital Planning'!$B:$B,$G$2)+SUMIFS('Town-Wide Capital Planning'!P:P,'Town-Wide Capital Planning'!$H:$H,$A94,'Town-Wide Capital Planning'!$B:$B,$H$2) -> 0 | D94: =SUMIFS('Town-Wide Capital Planning'!Q:Q,'Town-Wide Capital Planning'!$H:$H,$A94,'Town-Wide Capital Planning'!$B:$B,$C$2)+SUMIFS('Town-Wide Capital Planning'!Q:Q,'Town-Wide Capital Planning'!$H:$H,$A94,'Town-Wide Capital Planning'!$B:$B,$D$2)+SUMIFS('Town-Wide Capital Planning'!Q:Q,'Town-Wide Capital Planning'!$H:$H,$A94,'Town-Wide Capital Planning'!$B:$B,$E$2)+SUMIFS('Town-Wide Capital Planning'!Q:Q,'Town-Wide Capital Planning'!$H:$H,$A94,'Town-Wide Capital Planning'!$B:$B,$F$2)+SUMIFS('Town-Wide Capital Planning'!Q:Q,'Town-Wide Capital Planning'!$H:$H,$A94,'Town-Wide Capital Planning'!$B:$B,$G$2)+SUMIFS('Town-Wide Capital Planning'!Q:Q,'Town-Wide Capital Planning'!$H:$H,$A94,'Town-Wide Capital Planning'!$B:$B,$H$2) -> 0 | E94: =SUMIFS('Town-Wide Capital Planning'!R:R,'Town-Wide Capital Planning'!$H:$H,$A94,'Town-Wide Capital Planning'!$B:$B,$C$2)+SUMIFS('Town-Wide Capital Planning'!R:R,'Town-Wide Capital Planning'!$H:$H,$A94,'Town-Wide Capital Planning'!$B:$B,$D$2)+SUMIFS('Town-Wide Capital Planning'!R:R,'Town-Wide Capital Planning'!$H:$H,$A94,'Town-Wide Capital Planning'!$B:$B,$E$2)+SUMIFS('Town-Wide Capital Planning'!R:R,'Town-Wide Capital Planning'!$H:$H,$A94,'Town-Wide Capital Planning'!$B:$B,$F$2)+SUMIFS('Town-Wide Capital Planning'!R:R,'Town-Wide Capital Planning'!$H:$H,$A94,'Town-Wide Capital Planning'!$B:$B,$G$2)+SUMIFS('Town-Wide Capital Planning'!R:R,'Town-Wide Capital Planning'!$H:$H,$A94,'Town-Wide Capital Planning'!$B:$B,$H$2) -> 68400 | F94: =SUMIFS('Town-Wide Capital Planning'!S:S,'Town-Wide Capital Planning'!$H:$H,$A94,'Town-Wide Capital Planning'!$B:$B,$C$2)+SUMIFS('Town-Wide Capital Planning'!S:S,'Town-Wide Capital Planning'!$H:$H,$A94,'Town-Wide Capital Planning'!$B:$B,$D$2)+SUMIFS('Town-Wide Capital Planning'!S:S,'Town-Wide Capital Planning'!$H:$H,$A94,'Town-Wide Capital Planning'!$B:$B,$E$2)+SUMIFS('Town-Wide Capital Planning'!S:S,'Town-Wide Capital Planning'!$H:$H,$A94,'Town-Wide Capital Planning'!$B:$B,$F$2)+SUMIFS('Town-Wide Capital Planning'!S:S,'Town-Wide Capital Planning'!$H:$H,$A94,'Town-Wide Capital Planning'!$B:$B,$G$2)+SUMIFS('Town-Wide Capital Planning'!S:S,'Town-Wide Capital Planning'!$H:$H,$A94,'Town-Wide Capital Planning'!$B:$B,$H$2) -> 125380 | G94: =SUMIFS('Town-Wide Capital Planning'!T:T,'Town-Wide Capital Planning'!$H:$H,$A94,'Town-Wide Capital Planning'!$B:$B,$C$2)+SUMIFS('Town-Wide Capital Planning'!T:T,'Town-Wide Capital Planning'!$H:$H,$A94,'Town-Wide Capital Planning'!$B:$B,$D$2)+SUMIFS('Town-Wide Capital Planning'!T:T,'Town-Wide Capital Planning'!$H:$H,$A94,'Town-Wide Capital Planning'!$B:$B,$E$2)+SUMIFS('Town-Wide Capital Planning'!T:T,'Town-Wide Capital Planning'!$H:$H,$A94,'Town-Wide Capital Planning'!$B:$B,$F$2)+SUMIFS('Town-Wide Capital Planning'!T:T,'Town-Wide Capital Planning'!$H:$H,$A94,'Town-Wide Capital Planning'!$B:$B,$G$2)+SUMIFS('Town-Wide Capital Planning'!T:T,'Town-Wide Capital Planning'!$H:$H,$A94,'Town-Wide Capital Planning'!$B:$B,$H$2) -> 149560 | H94: =SUMIFS('Town-Wide Capital Planning'!U:U,'Town-Wide Capital Planning'!$H:$H,$A94,'Town-Wide Capital Planning'!$B:$B,$C$2)+SUMIFS('Town-Wide Capital Planning'!U:U,'Town-Wide Capital Planning'!$H:$H,$A94,'Town-Wide Capital Planning'!$B:$B,$D$2)+SUMIFS('Town-Wide Capital Planning'!U:U,'Town-Wide Capital Planning'!$H:$H,$A94,'Town-Wide Capital Planning'!$B:$B,$E$2)+SUMIFS('Town-Wide Capital Planning'!U:U,'Town-Wide Capital Planning'!$H:$H,$A94,'Town-Wide Capital Planning'!$B:$B,$F$2)+SUMIFS('Town-Wide Capital Planning'!U:U,'Town-Wide Capital Planning'!$H:$H,$A94,'Town-Wide Capital Planning'!$B:$B,$G$2)+SUMIFS('Town-Wide Capital Planning'!U:U,'Town-Wide Capital Planning'!$H:$H,$A94,'Town-Wide Capital Planning'!$B:$B,$H$2) -> 211390 | I94: =SUMIFS('Town-Wide Capital Planning'!V:V,'Town-Wide Capital Planning'!$H:$H,$A94,'Town-Wide Capital Planning'!$B:$B,$C$2)+SUMIFS('Town-Wide Capital Planning'!V:V,'Town-Wide Capital Planning'!$H:$H,$A94,'Town-Wide Capital Planning'!$B:$B,$D$2)+SUMIFS('Town-Wide Capital Planning'!V:V,'Town-Wide Capital Planning'!$H:$H,$A94,'Town-Wide Capital Planning'!$B:$B,$E$2)+SUMIFS('Town-Wide Capital Planning'!V:V,'Town-Wide Capital Planning'!$H:$H,$A94,'Town-Wide Capital Planning'!$B:$B,$F$2)+SUMIFS('Town-Wide Capital Planning'!V:V,'Town-Wide Capital Planning'!$H:$H,$A94,'Town-Wide Capital Planning'!$B:$B,$G$2)+SUMIFS('Town-Wide Capital Planning'!V:V,'Town-Wide Capital Planning'!$H:$H,$A94,'Town-Wide Capital Planning'!$B:$B,$H$2) -> 206520 | J94: =SUMIFS('Town-Wide Capital Planning'!W:W,'Town-Wide Capital Planning'!$H:$H,$A94,'Town-Wide Capital Planning'!$B:$B,$C$2)+SUMIFS('Town-Wide Capital Planning'!W:W,'Town-Wide Capital Planning'!$H:$H,$A94,'Town-Wide Capital Planning'!$B:$B,$D$2)+SUMIFS('Town-Wide Capital Planning'!W:W,'Town-Wide Capital Planning'!$H:$H,$A94,'Town-Wide Capital Planning'!$B:$B,$E$2)+SUMIFS('Town-Wide Capital Planning'!W:W,'Town-Wide Capital Planning'!$H:$H,$A94,'Town-Wide Capital Planning'!$B:$B,$F$2)+SUMIFS('Town-Wide Capital Planning'!W:W,'Town-Wide Capital Planning'!$H:$H,$A94,'Town-Wide Capital Planning'!$B:$B,$G$2)+SUMIFS('Town-Wide Capital Planning'!W:W,'Town-Wide Capital Planning'!$H:$H,$A94,'Town-Wide Capital Planning'!$B:$B,$H$2) -> 233150 | K94: =SUMIFS('Town-Wide Capital Planning'!X:X,'Town-Wide Capital Planning'!$H:$H,$A94,'Town-Wide Capital Planning'!$B:$B,$C$2)+SUMIFS('Town-Wide Capital Planning'!X:X,'Town-Wide Capital Planning'!$H:$H,$A94,'Town-Wide Capital Planning'!$B:$B,$D$2)+SUMIFS('Town-Wide Capital Planning'!X:X,'Town-Wide Capital Planning'!$H:$H,$A94,'Town-Wide Capital Planning'!$B:$B,$E$2)+SUMIFS('Town-Wide Capital Planning'!X:X,'Town-Wide Capital Planning'!$H:$H,$A94,'Town-Wide Capital Planning'!$B:$B,$F$2)+SUMIFS('Town-Wide Capital Planning'!X:X,'Town-Wide Capital Planning'!$H:$H,$A94,'Town-Wide Capital Planning'!$B:$B,$G$2)+SUMIFS('Town-Wide Capital Planning'!X:X,'Town-Wide Capital Planning'!$H:$H,$A94,'Town-Wide Capital Planning'!$B:$B,$H$2) -> 227580 | L94: =SUMIFS('Town-Wide Capital Planning'!Y:Y,'Town-Wide Capital Planning'!$H:$H,$A94,'Town-Wide Capital Planning'!$B:$B,$C$2)+SUMIFS('Town-Wide Capital Planning'!Y:Y,'Town-Wide Capital Planning'!$H:$H,$A94,'Town-Wide Capital Planning'!$B:$B,$D$2)+SUMIFS('Town-Wide Capital Planning'!Y:Y,'Town-Wide Capital Planning'!$H:$H,$A94,'Town-Wide Capital Planning'!$B:$B,$E$2)+SUMIFS('Town-Wide Capital Planning'!Y:Y,'Town-Wide Capital Planning'!$H:$H,$A94,'Town-Wide Capital Planning'!$B:$B,$F$2)+SUMIFS('Town-Wide Capital Planning'!Y:Y,'Town-Wide Capital Planning'!$H:$H,$A94,'Town-Wide Capital Planning'!$B:$B,$G$2)+SUMIFS('Town-Wide Capital Planning'!Y:Y,'Town-Wide Capital Planning'!$H:$H,$A94,'Town-Wide Capital Planning'!$B:$B,$H$2) -> 249010 | M94: =SUM(C94:L94) -> 1470990
A95: Debt (Non-Excluded) | C95: =SUMIFS('Town-Wide Capital Planning'!P:P,'Town-Wide Capital Planning'!$H:$H,$A95,'Town-Wide Capital Planning'!$B:$B,$C$2)+SUMIFS('Town-Wide Capital Planning'!P:P,'Town-Wide Capital Planning'!$H:$H,$A95,'Town-Wide Capital Planning'!$B:$B,$D$2)+SUMIFS('Town-Wide Capital Planning'!P:P,'Town-Wide Capital Planning'!$H:$H,$A95,'Town-Wide Capital Planning'!$B:$B,$E$2)+SUMIFS('Town-Wide Capital Planning'!P:P,'Town-Wide Capital Planning'!$H:$H,$A95,'Town-Wide Capital Planning'!$B:$B,$F$2)+SUMIFS('Town-Wide Capital Planning'!P:P,'Town-Wide Capital Planning'!$H:$H,$A95,'Town-Wide Capital Planning'!$B:$B,$G$2)+SUMIFS('Town-Wide Capital Planning'!P:P,'Town-Wide Capital Planning'!$H:$H,$A95,'Town-Wide Capital Planning'!$B:$B,$H$2) -> 0 | D95: =SUMIFS('Town-Wide Capital Planning'!Q:Q,'Town-Wide Capital Planning'!$H:$H,$A95,'Town-Wide Capital Planning'!$B:$B,$C$2)+SUMIFS('Town-Wide Capital Planning'!Q:Q,'Town-Wide Capital Planning'!$H:$H,$A95,'Town-Wide Capital Planning'!$B:$B,$D$2)+SUMIFS('Town-Wide Capital Planning'!Q:Q,'Town-Wide Capital Planning'!$H:$H,$A95,'Town-Wide Capital Planning'!$B:$B,$E$2)+SUMIFS('Town-Wide Capital Planning'!Q:Q,'Town-Wide Capital Planning'!$H:$H,$A95,'Town-Wide Capital Planning'!$B:$B,$F$2)+SUMIFS('Town-Wide Capital Planning'!Q:Q,'Town-Wide Capital Planning'!$H:$H,$A95,'Town-Wide Capital Planning'!$B:$B,$G$2)+SUMIFS('Town-Wide Capital Planning'!Q:Q,'Town-Wide Capital Planning'!$H:$H,$A95,'Town-Wide Capital Planning'!$B:$B,$H$2) -> 20700 | E95: =SUMIFS('Town-Wide Capital Planning'!R:R,'Town-Wide Capital Planning'!$H:$H,$A95,'Town-Wide Capital Planning'!$B:$B,$C$2)+SUMIFS('Town-Wide Capital Planning'!R:R,'Town-Wide Capital Planning'!$H:$H,$A95,'Town-Wide Capital Planning'!$B:$B,$D$2)+SUMIFS('Town-Wide Capital Planning'!R:R,'Town-Wide Capital Planning'!$H:$H,$A95,'Town-Wide Capital Planning'!$B:$B,$E$2)+SUMIFS('Town-Wide Capital Planning'!R:R,'Town-Wide Capital Planning'!$H:$H,$A95,'Town-Wide Capital Planning'!$B:$B,$F$2)+SUMIFS('Town-Wide Capital Planning'!R:R,'Town-Wide Capital Planning'!$H:$H,$A95,'Town-Wide Capital Planning'!$B:$B,$G$2)+SUMIFS('Town-Wide Capital Planning'!R:R,'Town-Wide Capital Planning'!$H:$H,$A95,'Town-Wide Capital Planning'!$B:$B,$H$2) -> 71990 | F95: =SUMIFS('Town-Wide Capital Planning'!S:S,'Town-Wide Capital Planning'!$H:$H,$A95,'Town-Wide Capital Planning'!$B:$B,$C$2)+SUMIFS('Town-Wide Capital Planning'!S:S,'Town-Wide Capital Planning'!$H:$H,$A95,'Town-Wide Capital Planning'!$B:$B,$D$2)+SUMIFS('Town-Wide Capital Planning'!S:S,'Town-Wide Capital Planning'!$H:$H,$A95,'Town-Wide Capital Planning'!$B:$B,$E$2)+SUMIFS('Town-Wide Capital Planning'!S:S,'Town-Wide Capital Planning'!$H:$H,$A95,'Town-Wide Capital Planning'!$B:$B,$F$2)+SUMIFS('Town-Wide Capital Planning'!S:S,'Town-Wide Capital Planning'!$H:$H,$A95,'Town-Wide Capital Planning'!$B:$B,$G$2)+SUMIFS('Town-Wide Capital Planning'!S:S,'Town-Wide Capital Planning'!$H:$H,$A95,'Town-Wide Capital Planning'!$B:$B,$H$2) -> 138780 | G95: =SUMIFS('Town-Wide Capital Planning'!T:T,'Town-Wide Capital Planning'!$H:$H,$A95,'Town-Wide Capital Planning'!$B:$B,$C$2)+SUMIFS('Town-Wide Capital Planning'!T:T,'Town-Wide Capital Planning'!$H:$H,$A95,'Town-Wide Capital Planning'!$B:$B,$D$2)+SUMIFS('Town-Wide Capital Planning'!T:T,'Town-Wide Capital Planning'!$H:$H,$A95,'Town-Wide Capital Planning'!$B:$B,$E$2)+SUMIFS('Town-Wide Capital Planning'!T:T,'Town-Wide Capital Planning'!$H:$H,$A95,'Town-Wide Capital Planning'!$B:$B,$F$2)+SUMIFS('Town-Wide Capital Planning'!T:T,'Town-Wide Capital Planning'!$H:$H,$A95,'Town-Wide Capital Planning'!$B:$B,$G$2)+SUMIFS('Town-Wide Capital Planning'!T:T,'Town-Wide Capital Planning'!$H:$H,$A95,'Town-Wide Capital Planning'!$B:$B,$H$2) -> 162830 | H95: =SUMIFS('Town-Wide Capital Planning'!U:U,'Town-Wide Capital Planning'!$H:$H,$A95,'Town-Wide Capital Planning'!$B:$B,$C$2)+SUMIFS('Town-Wide Capital Planning'!U:U,'Town-Wide Capital Planning'!$H:$H,$A95,'Town-Wide Capital Planning'!$B:$B,$D$2)+SUMIFS('Town-Wide Capital Planning'!U:U,'Town-Wide Capital Planning'!$H:$H,$A95,'Town-Wide Capital Planning'!$B:$B,$E$2)+SUMIFS('Town-Wide Capital Planning'!U:U,'Town-Wide Capital Planning'!$H:$H,$A95,'Town-Wide Capital Planning'!$B:$B,$F$2)+SUMIFS('Town-Wide Capital Planning'!U:U,'Town-Wide Capital Planning'!$H:$H,$A95,'Town-Wide Capital Planning'!$B:$B,$G$2)+SUMIFS('Town-Wide Capital Planning'!U:U,'Town-Wide Capital Planning'!$H:$H,$A95,'Town-Wide Capital Planning'!$B:$B,$H$2) -> 175746 | I95: =SUMIFS('Town-Wide Capital Planning'!V:V,'Town-Wide Capital Planning'!$H:$H,$A95,'Town-Wide Capital Planning'!$B:$B,$C$2)+SUMIFS('Town-Wide Capital Planning'!V:V,'Town-Wide Capital Planning'!$H:$H,$A95,'Town-Wide Capital Planning'!$B:$B,$D$2)+SUMIFS('Town-Wide Capital Planning'!V:V,'Town-Wide Capital Planning'!$H:$H,$A95,'Town-Wide Capital Planning'!$B:$B,$E$2)+SUMIFS('Town-Wide Capital Planning'!V:V,'Town-Wide Capital Planning'!$H:$H,$A95,'Town-Wide Capital Planning'!$B:$B,$F$2)+SUMIFS('Town-Wide Capital Planning'!V:V,'Town-Wide Capital Planning'!$H:$H,$A95,'Town-Wide Capital Planning'!$B:$B,$G$2)+SUMIFS('Town-Wide Capital Planning'!V:V,'Town-Wide Capital Planning'!$H:$H,$A95,'Town-Wide Capital Planning'!$B:$B,$H$2) -> 206472 | J95: =SUMIFS('Town-Wide Capital Planning'!W:W,'Town-Wide Capital Planning'!$H:$H,$A95,'Town-Wide Capital Planning'!$B:$B,$C$2)+SUMIFS('Town-Wide Capital Planning'!W:W,'Town-Wide Capital Planning'!$H:$H,$A95,'Town-Wide Capital Planning'!$B:$B,$D$2)+SUMIFS('Town-Wide Capital Planning'!W:W,'Town-Wide Capital Planning'!$H:$H,$A95,'Town-Wide Capital Planning'!$B:$B,$E$2)+SUMIFS('Town-Wide Capital Planning'!W:W,'Town-Wide Capital Planning'!$H:$H,$A95,'Town-Wide Capital Planning'!$B:$B,$F$2)+SUMIFS('Town-Wide Capital Planning'!W:W,'Town-Wide Capital Planning'!$H:$H,$A95,'Town-Wide Capital Planning'!$B:$B,$G$2)+SUMIFS('Town-Wide Capital Planning'!W:W,'Town-Wide Capital Planning'!$H:$H,$A95,'Town-Wide Capital Planning'!$B:$B,$H$2) -> 218244 | K95: =SUMIFS('Town-Wide Capital Planning'!X:X,'Town-Wide Capital Planning'!$H:$H,$A95,'Town-Wide Capital Planning'!$B:$B,$C$2)+SUMIFS('Town-Wide Capital Planning'!X:X,'Town-Wide Capital Planning'!$H:$H,$A95,'Town-Wide Capital Planning'!$B:$B,$D$2)+SUMIFS('Town-Wide Capital Planning'!X:X,'Town-Wide Capital Planning'!$H:$H,$A95,'Town-Wide Capital Planning'!$B:$B,$E$2)+SUMIFS('Town-Wide Capital Planning'!X:X,'Town-Wide Capital Planning'!$H:$H,$A95,'Town-Wide Capital Planning'!$B:$B,$F$2)+SUMIFS('Town-Wide Capital Planning'!X:X,'Town-Wide Capital Planning'!$H:$H,$A95,'Town-Wide Capital Planning'!$B:$B,$G$2)+SUMIFS('Town-Wide Capital Planning'!X:X,'Town-Wide Capital Planning'!$H:$H,$A95,'Town-Wide Capital Planning'!$B:$B,$H$2) -> 300656 | L95: =SUMIFS('Town-Wide Capital Planning'!Y:Y,'Town-Wide Capital Planning'!$H:$H,$A95,'Town-Wide Capital Planning'!$B:$B,$C$2)+SUMIFS('Town-Wide Capital Planning'!Y:Y,'Town-Wide Capital Planning'!$H:$H,$A95,'Town-Wide Capital Planning'!$B:$B,$D$2)+SUMIFS('Town-Wide Capital Planning'!Y:Y,'Town-Wide Capital Planning'!$H:$H,$A95,'Town-Wide Capital Planning'!$B:$B,$E$2)+SUMIFS('Town-Wide Capital Planning'!Y:Y,'Town-Wide Capital Planning'!$H:$H,$A95,'Town-Wide Capital Planning'!$B:$B,$F$2)+SUMIFS('Town-Wide Capital Planning'!Y:Y,'Town-Wide Capital Planning'!$H:$H,$A95,'Town-Wide Capital Planning'!$B:$B,$G$2)+SUMIFS('Town-Wide Capital Planning'!Y:Y,'Town-Wide Capital Planning'!$H:$H,$A95,'Town-Wide Capital Planning'!$B:$B,$H$2) -> 319110 | M95: =SUM(C95:L95) -> 1614528
A96: Free Cash | C96: =SUMIFS('Town-Wide Capital Planning'!P:P,'Town-Wide Capital Planning'!$H:$H,$A96,'Town-Wide Capital Planning'!$B:$B,$C$2)+SUMIFS('Town-Wide Capital Planning'!P:P,'Town-Wide Capital Planning'!$H:$H,$A96,'Town-Wide Capital Planning'!$B:$B,$D$2)+SUMIFS('Town-Wide Capital Planning'!P:P,'Town-Wide Capital Planning'!$H:$H,$A96,'Town-Wide Capital Planning'!$B:$B,$E$2)+SUMIFS('Town-Wide Capital Planning'!P:P,'Town-Wide Capital Planning'!$H:$H,$A96,'Town-Wide Capital Planning'!$B:$B,$F$2)+SUMIFS('Town-Wide Capital Planning'!P:P,'Town-Wide Capital Planning'!$H:$H,$A96,'Town-Wide Capital Planning'!$B:$B,$G$2)+SUMIFS('Town-Wide Capital Planning'!P:P,'Town-Wide Capital Planning'!$H:$H,$A96,'Town-Wide Capital Planning'!$B:$B,$H$2) -> 139400 | D96: =SUMIFS('Town-Wide Capital Planning'!Q:Q,'Town-Wide Capital Planning'!$H:$H,$A96,'Town-Wide Capital Planning'!$B:$B,$C$2)+SUMIFS('Town-Wide Capital Planning'!Q:Q,'Town-Wide Capital Planning'!$H:$H,$A96,'Town-Wide Capital Planning'!$B:$B,$D$2)+SUMIFS('Town-Wide Capital Planning'!Q:Q,'Town-Wide Capital Planning'!$H:$H,$A96,'Town-Wide Capital Planning'!$B:$B,$E$2)+SUMIFS('Town-Wide Capital Planning'!Q:Q,'Town-Wide Capital Planning'!$H:$H,$A96,'Town-Wide Capital Planning'!$B:$B,$F$2)+SUMIFS('Town-Wide Capital Planning'!Q:Q,'Town-Wide Capital Planning'!$H:$H,$A96,'Town-Wide Capital Planning'!$B:$B,$G$2)+SUMIFS('Town-Wide Capital Planning'!Q:Q,'Town-Wide Capital Planning'!$H:$H,$A96,'Town-Wide Capital Planning'!$B:$B,$H$2) -> 349500 | E96: =SUMIFS('Town-Wide Capital Planning'!R:R,'Town-Wide Capital Planning'!$H:$H,$A96,'Town-Wide Capital Planning'!$B:$B,$C$2)+SUMIFS('Town-Wide Capital Planning'!R:R,'Town-Wide Capital Planning'!$H:$H,$A96,'Town-Wide Capital Planning'!$B:$B,$D$2)+SUMIFS('Town-Wide Capital Planning'!R:R,'Town-Wide Capital Planning'!$H:$H,$A96,'Town-Wide Capital Planning'!$B:$B,$E$2)+SUMIFS('Town-Wide Capital Planning'!R:R,'Town-Wide Capital Planning'!$H:$H,$A96,'Town-Wide Capital Planning'!$B:$B,$F$2)+SUMIFS('Town-Wide Capital Planning'!R:R,'Town-Wide Capital Planning'!$H:$H,$A96,'Town-Wide Capital Planning'!$B:$B,$G$2)+SUMIFS('Town-Wide Capital Planning'!R:R,'Town-Wide Capital Planning'!$H:$H,$A96,'Town-Wide Capital Planning'!$B:$B,$H$2) -> 197500 | F96: =SUMIFS('Town-Wide Capital Planning'!S:S,'Town-Wide Capital Planning'!$H:$H,$A96,'Town-Wide Capital Planning'!$B:$B,$C$2)+SUMIFS('Town-Wide Capital Planning'!S:S,'Town-Wide Capital Planning'!$H:$H,$A96,'Town-Wide Capital Planning'!$B:$B,$D$2)+SUMIFS('Town-Wide Capital Planning'!S:S,'Town-Wide Capital Planning'!$H:$H,$A96,'Town-Wide Capital Planning'!$B:$B,$E$2)+SUMIFS('Town-Wide Capital Planning'!S:S,'Town-Wide Capital Planning'!$H:$H,$A96,'Town-Wide Capital Planning'!$B:$B,$F$2)+SUMIFS('Town-Wide Capital Planning'!S:S,'Town-Wide Capital Planning'!$H:$H,$A96,'Town-Wide Capital Planning'!$B:$B,$G$2)+SUMIFS('Town-Wide Capital Planning'!S:S,'Town-Wide Capital Planning'!$H:$H,$A96,'Town-Wide Capital Planning'!$B:$B,$H$2) -> 153500 | G96: =SUMIFS('Town-Wide Capital Planning'!T:T,'Town-Wide Capital Planning'!$H:$H,$A96,'Town-Wide Capital Planning'!$B:$B,$C$2)+SUMIFS('Town-Wide Capital Planning'!T:T,'Town-Wide Capital Planning'!$H:$H,$A96,'Town-Wide Capital Planning'!$B:$B,$D$2)+SUMIFS('Town-Wide Capital Planning'!T:T,'Town-Wide Capital Planning'!$H:$H,$A96,'Town-Wide Capital Planning'!$B:$B,$E$2)+SUMIFS('Town-Wide Capital Planning'!T:T,'Town-Wide Capital Planning'!$H:$H,$A96,'Town-Wide Capital Planning'!$B:$B,$F$2)+SUMIFS('Town-Wide Capital Planning'!T:T,'Town-Wide Capital Planning'!$H:$H,$A96,'Town-Wide Capital Planning'!$B:$B,$G$2)+SUMIFS('Town-Wide Capital Planning'!T:T,'Town-Wide Capital Planning'!$H:$H,$A96,'Town-Wide Capital Planning'!$B:$B,$H$2) -> 119500 | H96: =SUMIFS('Town-Wide Capital Planning'!U:U,'Town-Wide Capital Planning'!$H:$H,$A96,'Town-Wide Capital Planning'!$B:$B,$C$2)+SUMIFS('Town-Wide Capital Planning'!U:U,'Town-Wide Capital Planning'!$H:$H,$A96,'Town-Wide Capital Planning'!$B:$B,$D$2)+SUMIFS('Town-Wide Capital Planning'!U:U,'Town-Wide Capital Planning'!$H:$H,$A96,'Town-Wide Capital Planning'!$B:$B,$E$2)+SUMIFS('Town-Wide Capital Planning'!U:U,'Town-Wide Capital Planning'!$H:$H,$A96,'Town-Wide Capital Planning'!$B:$B,$F$2)+SUMIFS('Town-Wide Capital Planning'!U:U,'Town-Wide Capital Planning'!$H:$H,$A96,'Town-Wide Capital Planning'!$B:$B,$G$2)+SUMIFS('Town-Wide Capital Planning'!U:U,'Town-Wide Capital Planning'!$H:$H,$A96,'Town-Wide Capital Planning'!$B:$B,$H$2) -> 184000 | I96: =SUMIFS('Town-Wide Capital Planning'!V:V,'Town-Wide Capital Planning'!$H:$H,$A96,'Town-Wide Capital Planning'!$B:$B,$C$2)+SUMIFS('Town-Wide Capital Planning'!V:V,'Town-Wide Capital Planning'!$H:$H,$A96,'Town-Wide Capital Planning'!$B:$B,$D$2)+SUMIFS('Town-Wide Capital Planning'!V:V,'Town-Wide Capital Planning'!$H:$H,$A96,'Town-Wide Capital Planning'!$B:$B,$E$2)+SUMIFS('Town-Wide Capital Planning'!V:V,'Town-Wide Capital Planning'!$H:$H,$A96,'Town-Wide Capital Planning'!$B:$B,$F$2)+SUMIFS('Town-Wide Capital Planning'!V:V,'Town-Wide Capital Planning'!$H:$H,$A96,'Town-Wide Capital Planning'!$B:$B,$G$2)+SUMIFS('Town-Wide Capital Planning'!V:V,'Town-Wide Capital Planning'!$H:$H,$A96,'Town-Wide Capital Planning'!$B:$B,$H$2) -> 233500 | J96: =SUMIFS('Town-Wide Capital Planning'!W:W,'Town-Wide Capital Planning'!$H:$H,$A96,'Town-Wide Capital Planning'!$B:$B,$C$2)+SUMIFS('Town-Wide Capital Planning'!W:W,'Town-Wide Capital Planning'!$H:$H,$A96,'Town-Wide Capital Planning'!$B:$B,$D$2)+SUMIFS('Town-Wide Capital Planning'!W:W,'Town-Wide Capital Planning'!$H:$H,$A96,'Town-Wide Capital Planning'!$B:$B,$E$2)+SUMIFS('Town-Wide Capital Planning'!W:W,'Town-Wide Capital Planning'!$H:$H,$A96,'Town-Wide Capital Planning'!$B:$B,$F$2)+SUMIFS('Town-Wide Capital Planning'!W:W,'Town-Wide Capital Planning'!$H:$H,$A96,'Town-Wide Capital Planning'!$B:$B,$G$2)+SUMIFS('Town-Wide Capital Planning'!W:W,'Town-Wide Capital Planning'!$H:$H,$A96,'Town-Wide Capital Planning'!$B:$B,$H$2) -> 245000 | K96: =SUMIFS('Town-Wide Capital Planning'!X:X,'Town-Wide Capital Planning'!$H:$H,$A96,'Town-Wide Capital Planning'!$B:$B,$C$2)+SUMIFS('Town-Wide Capital Planning'!X:X,'Town-Wide Capital Planning'!$H:$H,$A96,'Town-Wide Capital Planning'!$B:$B,$D$2)+SUMIFS('Town-Wide Capital Planning'!X:X,'Town-Wide Capital Planning'!$H:$H,$A96,'Town-Wide Capital Planning'!$B:$B,$E$2)+SUMIFS('Town-Wide Capital Planning'!X:X,'Town-Wide Capital Planning'!$H:$H,$A96,'Town-Wide Capital Planning'!$B:$B,$F$2)+SUMIFS('Town-Wide Capital Planning'!X:X,'Town-Wide Capital Planning'!$H:$H,$A96,'Town-Wide Capital Planning'!$B:$B,$G$2)+SUMIFS('Town-Wide Capital Planning'!X:X,'Town-Wide Capital Planning'!$H:$H,$A96,'Town-Wide Capital Planning'!$B:$B,$H$2) -> 161800 | L96: =SUMIFS('Town-Wide Capital Planning'!Y:Y,'Town-Wide Capital Planning'!$H:$H,$A96,'Town-Wide Capital Planning'!$B:$B,$C$2)+SUMIFS('Town-Wide Capital Planning'!Y:Y,'Town-Wide Capital Planning'!$H:$H,$A96,'Town-Wide Capital Planning'!$B:$B,$D$2)+SUMIFS('Town-Wide Capital Planning'!Y:Y,'Town-Wide Capital Planning'!$H:$H,$A96,'Town-Wide Capital Planning'!$B:$B,$E$2)+SUMIFS('Town-Wide Capital Planning'!Y:Y,'Town-Wide Capital Planning'!$H:$H,$A96,'Town-Wide Capital Planning'!$B:$B,$F$2)+SUMIFS('Town-Wide Capital Planning'!Y:Y,'Town-Wide Capital Planning'!$H:$H,$A96,'Town-Wide Capital Planning'!$B:$B,$G$2)+SUMIFS('Town-Wide Capital Planning'!Y:Y,'Town-Wide Capital Planning'!$H:$H,$A96,'Town-Wide Capital Planning'!$B:$B,$H$2) -> 281000 | M96: =SUM(C96:L96) -> 2064700
A97: Cable Franchise | C97: =SUMIFS('Town-Wide Capital Planning'!P:P,'Town-Wide Capital Planning'!$H:$H,$A97,'Town-Wide Capital Planning'!$B:$B,$C$2)+SUMIFS('Town-Wide Capital Planning'!P:P,'Town-Wide Capital Planning'!$H:$H,$A97,'Town-Wide Capital Planning'!$B:$B,$D$2)+SUMIFS('Town-Wide Capital Planning'!P:P,'Town-Wide Capital Planning'!$H:$H,$A97,'Town-Wide Capital Planning'!$B:$B,$E$2)+SUMIFS('Town-Wide Capital Planning'!P:P,'Town-Wide Capital Planning'!$H:$H,$A97,'Town-Wide Capital Planning'!$B:$B,$F$2)+SUMIFS('Town-Wide Capital Planning'!P:P,'Town-Wide Capital Planning'!$H:$H,$A97,'Town-Wide Capital Planning'!$B:$B,$G$2)+SUMIFS('Town-Wide Capital Planning'!P:P,'Town-Wide Capital Planning'!$H:$H,$A97,'Town-Wide Capital Planning'!$B:$B,$H$2) -> 0 | D97: =SUMIFS('Town-Wide Capital Planning'!Q:Q,'Town-Wide Capital Planning'!$H:$H,$A97,'Town-Wide Capital Planning'!$B:$B,$C$2)+SUMIFS('Town-Wide Capital Planning'!Q:Q,'Town-Wide Capital Planning'!$H:$H,$A97,'Town-Wide Capital Planning'!$B:$B,$D$2)+SUMIFS('Town-Wide Capital Planning'!Q:Q,'Town-Wide Capital Planning'!$H:$H,$A97,'Town-Wide Capital Planning'!$B:$B,$E$2)+SUMIFS('Town-Wide Capital Planning'!Q:Q,'Town-Wide Capital Planning'!$H:$H,$A97,'Town-Wide Capital Planning'!$B:$B,$F$2)+SUMIFS('Town-Wide Capital Planning'!Q:Q,'Town-Wide Capital Planning'!$H:$H,$A97,'Town-Wide Capital Planning'!$B:$B,$G$2)+SUMIFS('Town-Wide Capital Planning'!Q:Q,'Town-Wide Capital Planning'!$H:$H,$A97,'Town-Wide Capital Planning'!$B:$B,$H$2) -> 0 | E97: =SUMIFS('Town-Wide Capital Planning'!R:R,'Town-Wide Capital Planning'!$H:$H,$A97,'Town-Wide Capital Planning'!$B:$B,$C$2)+SUMIFS('Town-Wide Capital Planning'!R:R,'Town-Wide Capital Planning'!$H:$H,$A97,'Town-Wide Capital Planning'!$B:$B,$D$2)+SUMIFS('Town-Wide Capital Planning'!R:R,'Town-Wide Capital Planning'!$H:$H,$A97,'Town-Wide Capital Planning'!$B:$B,$E$2)+SUMIFS('Town-Wide Capital Planning'!R:R,'Town-Wide Capital Planning'!$H:$H,$A97,'Town-Wide Capital Planning'!$B:$B,$F$2)+SUMIFS('Town-Wide Capital Planning'!R:R,'Town-Wide Capital Planning'!$H:$H,$A97,'Town-Wide Capital Planning'!$B:$B,$G$2)+SUMIFS('Town-Wide Capital Planning'!R:R,'Town-Wide Capital Planning'!$H:$H,$A97,'Town-Wide Capital Planning'!$B:$B,$H$2) -> 0 | F97: =SUMIFS('Town-Wide Capital Planning'!S:S,'Town-Wide Capital Planning'!$H:$H,$A97,'Town-Wide Capital Planning'!$B:$B,$C$2)+SUMIFS('Town-Wide Capital Planning'!S:S,'Town-Wide Capital Planning'!$H:$H,$A97,'Town-Wide Capital Planning'!$B:$B,$D$2)+SUMIFS('Town-Wide Capital Planning'!S:S,'Town-Wide Capital Planning'!$H:$H,$A97,'Town-Wide Capital Planning'!$B:$B,$E$2)+SUMIFS('Town-Wide Capital Planning'!S:S,'Town-Wide Capital Planning'!$H:$H,$A97,'Town-Wide Capital Planning'!$B:$B,$F$2)+SUMIFS('Town-Wide Capital Planning'!S:S,'Town-Wide Capital Planning'!$H:$H,$A97,'Town-Wide Capital Planning'!$B:$B,$G$2)+SUMIFS('Town-Wide Capital Planning'!S:S,'Town-Wide Capital Planning'!$H:$H,$A97,'Town-Wide Capital Planning'!$B:$B,$H$2) -> 0 | G97: =SUMIFS('Town-Wide Capital Planning'!T:T,'Town-Wide Capital Planning'!$H:$H,$A97,'Town-Wide Capital Planning'!$B:$B,$C$2)+SUMIFS('Town-Wide Capital Planning'!T:T,'Town-Wide Capital Planning'!$H:$H,$A97,'Town-Wide Capital Planning'!$B:$B,$D$2)+SUMIFS('Town-Wide Capital Planning'!T:T,'Town-Wide Capital Planning'!$H:$H,$A97,'Town-Wide Capital Planning'!$B:$B,$E$2)+SUMIFS('Town-Wide Capital Planning'!T:T,'Town-Wide Capital Planning'!$H:$H,$A97,'Town-Wide Capital Planning'!$B:$B,$F$2)+SUMIFS('Town-Wide Capital Planning'!T:T,'Town-Wide Capital Planning'!$H:$H,$A97,'Town-Wide Capital Planning'!$B:$B,$G$2)+SUMIFS('Town-Wide Capital Planning'!T:T,'Town-Wide Capital Planning'!$H:$H,$A97,'Town-Wide Capital Planning'!$B:$B,$H$2) -> 10000 | H97: =SUMIFS('Town-Wide Capital Planning'!U:U,'Town-Wide Capital Planning'!$H:$H,$A97,'Town-Wide Capital Planning'!$B:$B,$C$2)+SUMIFS('Town-Wide Capital Planning'!U:U,'Town-Wide Capital Planning'!$H:$H,$A97,'Town-Wide Capital Planning'!$B:$B,$D$2)+SUMIFS('Town-Wide Capital Planning'!U:U,'Town-Wide Capital Planning'!$H:$H,$A97,'Town-Wide Capital Planning'!$B:$B,$E$2)+SUMIFS('Town-Wide Capital Planning'!U:U,'Town-Wide Capital Planning'!$H:$H,$A97,'Town-Wide Capital Planning'!$B:$B,$F$2)+SUMIFS('Town-Wide Capital Planning'!U:U,'Town-Wide Capital Planning'!$H:$H,$A97,'Town-Wide Capital Planning'!$B:$B,$G$2)+SUMIFS('Town-Wide Capital Planning'!U:U,'Town-Wide Capital Planning'!$H:$H,$A97,'Town-Wide Capital Planning'!$B:$B,$H$2) -> 0 | I97: =SUMIFS('Town-Wide Capital Planning'!V:V,'Town-Wide Capital Planning'!$H:$H,$A97,'Town-Wide Capital Planning'!$B:$B,$C$2)+SUMIFS('Town-Wide Capital Planning'!V:V,'Town-Wide Capital Planning'!$H:$H,$A97,'Town-Wide Capital Planning'!$B:$B,$D$2)+SUMIFS('Town-Wide Capital Planning'!V:V,'Town-Wide Capital Planning'!$H:$H,$A97,'Town-Wide Capital Planning'!$B:$B,$E$2)+SUMIFS('Town-Wide Capital Planning'!V:V,'Town-Wide Capital Planning'!$H:$H,$A97,'Town-Wide Capital Planning'!$B:$B,$F$2)+SUMIFS('Town-Wide Capital Planning'!V:V,'Town-Wide Capital Planning'!$H:$H,$A97,'Town-Wide Capital Planning'!$B:$B,$G$2)+SUMIFS('Town-Wide Capital Planning'!V:V,'Town-Wide Capital Planning'!$H:$H,$A97,'Town-Wide Capital Planning'!$B:$B,$H$2) -> 0 | J97: =SUMIFS('Town-Wide Capital Planning'!W:W,'Town-Wide Capital Planning'!$H:$H,$A97,'Town-Wide Capital Planning'!$B:$B,$C$2)+SUMIFS('Town-Wide Capital Planning'!W:W,'Town-Wide Capital Planning'!$H:$H,$A97,'Town-Wide Capital Planning'!$B:$B,$D$2)+SUMIFS('Town-Wide Capital Planning'!W:W,'Town-Wide Capital Planning'!$H:$H,$A97,'Town-Wide Capital Planning'!$B:$B,$E$2)+SUMIFS('Town-Wide Capital Planning'!W:W,'Town-Wide Capital Planning'!$H:$H,$A97,'Town-Wide Capital Planning'!$B:$B,$F$2)+SUMIFS('Town-Wide Capital Planning'!W:W,'Town-Wide Capital Planning'!$H:$H,$A97,'Town-Wide Capital Planning'!$B:$B,$G$2)+SUMIFS('Town-Wide Capital Planning'!W:W,'Town-Wide Capital Planning'!$H:$H,$A97,'Town-Wide Capital Planning'!$B:$B,$H$2) -> 0 | K97: =SUMIFS('Town-Wide Capital Planning'!X:X,'Town-Wide Capital Planning'!$H:$H,$A97,'Town-Wide Capital Planning'!$B:$B,$C$2)+SUMIFS('Town-Wide Capital Planning'!X:X,'Town-Wide Capital Planning'!$H:$H,$A97,'Town-Wide Capital Planning'!$B:$B,$D$2)+SUMIFS('Town-Wide Capital Planning'!X:X,'Town-Wide Capital Planning'!$H:$H,$A97,'Town-Wide Capital Planning'!$B:$B,$E$2)+SUMIFS('Town-Wide Capital Planning'!X:X,'Town-Wide Capital Planning'!$H:$H,$A97,'Town-Wide Capital Planning'!$B:$B,$F$2)+SUMIFS('Town-Wide Capital Planning'!X:X,'Town-Wide Capital Planning'!$H:$H,$A97,'Town-Wide Capital Planning'!$B:$B,$G$2)+SUMIFS('Town-Wide Capital Planning'!X:X,'Town-Wide Capital Planning'!$H:$H,$A97,'Town-Wide Capital Planning'!$B:$B,$H$2) -> 0 | L97: =SUMIFS('Town-Wide Capital Planning'!Y:Y,'Town-Wide Capital Planning'!$H:$H,$A97,'Town-Wide Capital Planning'!$B:$B,$C$2)+SUMIFS('Town-Wide Capital Planning'!Y:Y,'Town-Wide Capital Planning'!$H:$H,$A97,'Town-Wide Capital Planning'!$B:$B,$D$2)+SUMIFS('Town-Wide Capital Planning'!Y:Y,'Town-Wide Capital Planning'!$H:$H,$A97,'Town-Wide Capital Planning'!$B:$B,$E$2)+SUMIFS('Town-Wide Capital Planning'!Y:Y,'Town-Wide Capital Planning'!$H:$H,$A97,'Town-Wide Capital Planning'!$B:$B,$F$2)+SUMIFS('Town-Wide Capital Planning'!Y:Y,'Town-Wide Capital Planning'!$H:$H,$A97,'Town-Wide Capital Planning'!$B:$B,$G$2)+SUMIFS('Town-Wide Capital Planning'!Y:Y,'Town-Wide Capital Planning'!$H:$H,$A97,'Town-Wide Capital Planning'!$B:$B,$H$2) -> 0 | M97: 10000
A98: Capital Stabilization Fees | C98: =SUMIFS('Town-Wide Capital Planning'!P:P,'Town-Wide Capital Planning'!$H:$H,$A98,'Town-Wide Capital Planning'!$B:$B,$C$2)+SUMIFS('Town-Wide Capital Planning'!P:P,'Town-Wide Capital Planning'!$H:$H,$A98,'Town-Wide Capital Planning'!$B:$B,$D$2)+SUMIFS('Town-Wide Capital Planning'!P:P,'Town-Wide Capital Planning'!$H:$H,$A98,'Town-Wide Capital Planning'!$B:$B,$E$2)+SUMIFS('Town-Wide Capital Planning'!P:P,'Town-Wide Capital Planning'!$H:$H,$A98,'Town-Wide Capital Planning'!$B:$B,$F$2)+SUMIFS('Town-Wide Capital Planning'!P:P,'Town-Wide Capital Planning'!$H:$H,$A98,'Town-Wide Capital Planning'!$B:$B,$G$2)+SUMIFS('Town-Wide Capital Planning'!P:P,'Town-Wide Capital Planning'!$H:$H,$A98,'Town-Wide Capital Planning'!$B:$B,$H$2) -> 0 | D98: =SUMIFS('Town-Wide Capital Planning'!Q:Q,'Town-Wide Capital Planning'!$H:$H,$A98,'Town-Wide Capital Planning'!$B:$B,$C$2)+SUMIFS('Town-Wide Capital Planning'!Q:Q,'Town-Wide Capital Planning'!$H:$H,$A98,'Town-Wide Capital Planning'!$B:$B,$D$2)+SUMIFS('Town-Wide Capital Planning'!Q:Q,'Town-Wide Capital Planning'!$H:$H,$A98,'Town-Wide Capital Planning'!$B:$B,$E$2)+SUMIFS('Town-Wide Capital Planning'!Q:Q,'Town-Wide Capital Planning'!$H:$H,$A98,'Town-Wide Capital Planning'!$B:$B,$F$2)+SUMIFS('Town-Wide Capital Planning'!Q:Q,'Town-Wide Capital Planning'!$H:$H,$A98,'Town-Wide Capital Planning'!$B:$B,$G$2)+SUMIFS('Town-Wide Capital Planning'!Q:Q,'Town-Wide Capital Planning'!$H:$H,$A98,'Town-Wide Capital Planning'!$B:$B,$H$2) -> 0 | E98: =SUMIFS('Town-Wide Capital Planning'!R:R,'Town-Wide Capital Planning'!$H:$H,$A98,'Town-Wide Capital Planning'!$B:$B,$C$2)+SUMIFS('Town-Wide Capital Planning'!R:R,'Town-Wide Capital Planning'!$H:$H,$A98,'Town-Wide Capital Planning'!$B:$B,$D$2)+SUMIFS('Town-Wide Capital Planning'!R:R,'Town-Wide Capital Planning'!$H:$H,$A98,'Town-Wide Capital Planning'!$B:$B,$E$2)+SUMIFS('Town-Wide Capital Planning'!R:R,'Town-Wide Capital Planning'!$H:$H,$A98,'Town-Wide Capital Planning'!$B:$B,$F$2)+SUMIFS('Town-Wide Capital Planning'!R:R,'Town-Wide Capital Planning'!$H:$H,$A98,'Town-Wide Capital Planning'!$B:$B,$G$2)+SUMIFS('Town-Wide Capital Planning'!R:R,'Town-Wide Capital Planning'!$H:$H,$A98,'Town-Wide Capital Planning'!$B:$B,$H$2) -> 0 | F98: =SUMIFS('Town-Wide Capital Planning'!S:S,'Town-Wide Capital Planning'!$H:$H,$A98,'Town-Wide Capital Planning'!$B:$B,$C$2)+SUMIFS('Town-Wide Capital Planning'!S:S,'Town-Wide Capital Planning'!$H:$H,$A98,'Town-Wide Capital Planning'!$B:$B,$D$2)+SUMIFS('Town-Wide Capital Planning'!S:S,'Town-Wide Capital Planning'!$H:$H,$A98,'Town-Wide Capital Planning'!$B:$B,$E$2)+SUMIFS('Town-Wide Capital Planning'!S:S,'Town-Wide Capital Planning'!$H:$H,$A98,'Town-Wide Capital Planning'!$B:$B,$F$2)+SUMIFS('Town-Wide Capital Planning'!S:S,'Town-Wide Capital Planning'!$H:$H,$A98,'Town-Wide Capital Planning'!$B:$B,$G$2)+SUMIFS('Town-Wide Capital Planning'!S:S,'Town-Wide Capital Planning'!$H:$H,$A98,'Town-Wide Capital Planning'!$B:$B,$H$2) -> 0 | G98: =SUMIFS('Town-Wide Capital Planning'!T:T,'Town-Wide Capital Planning'!$H:$H,$A98,'Town-Wide Capital Planning'!$B:$B,$C$2)+SUMIFS('Town-Wide Capital Planning'!T:T,'Town-Wide Capital Planning'!$H:$H,$A98,'Town-Wide Capital Planning'!$B:$B,$D$2)+SUMIFS('Town-Wide Capital Planning'!T:T,'Town-Wide Capital Planning'!$H:$H,$A98,'Town-Wide Capital Planning'!$B:$B,$E$2)+SUMIFS('Town-Wide Capital Planning'!T:T,'Town-Wide Capital Planning'!$H:$H,$A98,'Town-Wide Capital Planning'!$B:$B,$F$2)+SUMIFS('Town-Wide Capital Planning'!T:T,'Town-Wide Capital Planning'!$H:$H,$A98,'Town-Wide Capital Planning'!$B:$B,$G$2)+SUMIFS('Town-Wide Capital Planning'!T:T,'Town-Wide Capital Planning'!$H:$H,$A98,'Town-Wide Capital Planning'!$B:$B,$H$2) -> 0 | H98: =SUMIFS('Town-Wide Capital Planning'!U:U,'Town-Wide Capital Planning'!$H:$H,$A98,'Town-Wide Capital Planning'!$B:$B,$C$2)+SUMIFS('Town-Wide Capital Planning'!U:U,'Town-Wide Capital Planning'!$H:$H,$A98,'Town-Wide Capital Planning'!$B:$B,$D$2)+SUMIFS('Town-Wide Capital Planning'!U:U,'Town-Wide Capital Planning'!$H:$H,$A98,'Town-Wide Capital Planning'!$B:$B,$E$2)+SUMIFS('Town-Wide Capital Planning'!U:U,'Town-Wide Capital Planning'!$H:$H,$A98,'Town-Wide Capital Planning'!$B:$B,$F$2)+SUMIFS('Town-Wide Capital Planning'!U:U,'Town-Wide Capital Planning'!$H:$H,$A98,'Town-Wide Capital Planning'!$B:$B,$G$2)+SUMIFS('Town-Wide Capital Planning'!U:U,'Town-Wide Capital Planning'!$H:$H,$A98,'Town-Wide Capital Planning'!$B:$B,$H$2) -> 0 | I98: =SUMIFS('Town-Wide Capital Planning'!V:V,'Town-Wide Capital Planning'!$H:$H,$A98,'Town-Wide Capital Planning'!$B:$B,$C$2)+SUMIFS('Town-Wide Capital Planning'!V:V,'Town-Wide Capital Planning'!$H:$H,$A98,'Town-Wide Capital Planning'!$B:$B,$D$2)+SUMIFS('Town-Wide Capital Planning'!V:V,'Town-Wide Capital Planning'!$H:$H,$A98,'Town-Wide Capital Planning'!$B:$B,$E$2)+SUMIFS('Town-Wide Capital Planning'!V:V,'Town-Wide Capital Planning'!$H:$H,$A98,'Town-Wide Capital Planning'!$B:$B,$F$2)+SUMIFS('Town-Wide Capital Planning'!V:V,'Town-Wide Capital Planning'!$H:$H,$A98,'Town-Wide Capital Planning'!$B:$B,$G$2)+SUMIFS('Town-Wide Capital Planning'!V:V,'Town-Wide Capital Planning'!$H:$H,$A98,'Town-Wide Capital Planning'!$B:$B,$H$2) -> 0 | J98: =SUMIFS('Town-Wide Capital Planning'!W:W,'Town-Wide Capital Planning'!$H:$H,$A98,'Town-Wide Capital Planning'!$B:$B,$C$2)+SUMIFS('Town-Wide Capital Planning'!W:W,'Town-Wide Capital Planning'!$H:$H,$A98,'Town-Wide Capital Planning'!$B:$B,$D$2)+SUMIFS('Town-Wide Capital Planning'!W:W,'Town-Wide Capital Planning'!$H:$H,$A98,'Town-Wide Capital Planning'!$B:$B,$E$2)+SUMIFS('Town-Wide Capital Planning'!W:W,'Town-Wide Capital Planning'!$H:$H,$A98,'Town-Wide Capital Planning'!$B:$B,$F$2)+SUMIFS('Town-Wide Capital Planning'!W:W,'Town-Wide Capital Planning'!$H:$H,$A98,'Town-Wide Capital Planning'!$B:$B,$G$2)+SUMIFS('Town-Wide Capital Planning'!W:W,'Town-Wide Capital Planning'!$H:$H,$A98,'Town-Wide Capital Planning'!$B:$B,$H$2) -> 0 | K98: =SUMIFS('Town-Wide Capital Planning'!X:X,'Town-Wide Capital Planning'!$H:$H,$A98,'Town-Wide Capital Planning'!$B:$B,$C$2)+SUMIFS('Town-Wide Capital Planning'!X:X,'Town-Wide Capital Planning'!$H:$H,$A98,'Town-Wide Capital Planning'!$B:$B,$D$2)+SUMIFS('Town-Wide Capital Planning'!X:X,'Town-Wide Capital Planning'!$H:$H,$A98,'Town-Wide Capital Planning'!$B:$B,$E$2)+SUMIFS('Town-Wide Capital Planning'!X:X,'Town-Wide Capital Planning'!$H:$H,$A98,'Town-Wide Capital Planning'!$B:$B,$F$2)+SUMIFS('Town-Wide Capital Planning'!X:X,'Town-Wide Capital Planning'!$H:$H,$A98,'Town-Wide Capital Planning'!$B:$B,$G$2)+SUMIFS('Town-Wide Capital Planning'!X:X,'Town-Wide Capital Planning'!$H:$H,$A98,'Town-Wide Capital Planning'!$B:$B,$H$2) -> 0 | L98: =SUMIFS('Town-Wide Capital Planning'!Y:Y,'Town-Wide Capital Planning'!$H:$H,$A98,'Town-Wide Capital Planning'!$B:$B,$C$2)+SUMIFS('Town-Wide Capital Planning'!Y:Y,'Town-Wide Capital Planning'!$H:$H,$A98,'Town-Wide Capital Planning'!$B:$B,$D$2)+SUMIFS('Town-Wide Capital Planning'!Y:Y,'Town-Wide Capital Planning'!$H:$H,$A98,'Town-Wide Capital Planning'!$B:$B,$E$2)+SUMIFS('Town-Wide Capital Planning'!Y:Y,'Town-Wide Capital Planning'!$H:$H,$A98,'Town-Wide Capital Planning'!$B:$B,$F$2)+SUMIFS('Town-Wide Capital Planning'!Y:Y,'Town-Wide Capital Planning'!$H:$H,$A98,'Town-Wide Capital Planning'!$B:$B,$G$2)+SUMIFS('Town-Wide Capital Planning'!Y:Y,'Town-Wide Capital Planning'!$H:$H,$A98,'Town-Wide Capital Planning'!$B:$B,$H$2) -> 0 | M98: 0
A99: Cruiser Revolving | C99: =SUMIFS('Town-Wide Capital Planning'!P:P,'Town-Wide Capital Planning'!$H:$H,$A99,'Town-Wide Capital Planning'!$B:$B,$C$2)+SUMIFS('Town-Wide Capital Planning'!P:P,'Town-Wide Capital Planning'!$H:$H,$A99,'Town-Wide Capital Planning'!$B:$B,$D$2)+SUMIFS('Town-Wide Capital Planning'!P:P,'Town-Wide Capital Planning'!$H:$H,$A99,'Town-Wide Capital Planning'!$B:$B,$E$2)+SUMIFS('Town-Wide Capital Planning'!P:P,'Town-Wide Capital Planning'!$H:$H,$A99,'Town-Wide Capital Planning'!$B:$B,$F$2)+SUMIFS('Town-Wide Capital Planning'!P:P,'Town-Wide Capital Planning'!$H:$H,$A99,'Town-Wide Capital Planning'!$B:$B,$G$2)+SUMIFS('Town-Wide Capital Planning'!P:P,'Town-Wide Capital Planning'!$H:$H,$A99,'Town-Wide Capital Planning'!$B:$B,$H$2) -> 0 | D99: =SUMIFS('Town-Wide Capital Planning'!Q:Q,'Town-Wide Capital Planning'!$H:$H,$A99,'Town-Wide Capital Planning'!$B:$B,$C$2)+SUMIFS('Town-Wide Capital Planning'!Q:Q,'Town-Wide Capital Planning'!$H:$H,$A99,'Town-Wide Capital Planning'!$B:$B,$D$2)+SUMIFS('Town-Wide Capital Planning'!Q:Q,'Town-Wide Capital Planning'!$H:$H,$A99,'Town-Wide Capital Planning'!$B:$B,$E$2)+SUMIFS('Town-Wide Capital Planning'!Q:Q,'Town-Wide Capital Planning'!$H:$H,$A99,'Town-Wide Capital Planning'!$B:$B,$F$2)+SUMIFS('Town-Wide Capital Planning'!Q:Q,'Town-Wide Capital Planning'!$H:$H,$A99,'Town-Wide Capital Planning'!$B:$B,$G$2)+SUMIFS('Town-Wide Capital Planning'!Q:Q,'Town-Wide Capital Planning'!$H:$H,$A99,'Town-Wide Capital Planning'!$B:$B,$H$2) -> 0 | E99: =SUMIFS('Town-Wide Capital Planning'!R:R,'Town-Wide Capital Planning'!$H:$H,$A99,'Town-Wide Capital Planning'!$B:$B,$C$2)+SUMIFS('Town-Wide Capital Planning'!R:R,'Town-Wide Capital Planning'!$H:$H,$A99,'Town-Wide Capital Planning'!$B:$B,$D$2)+SUMIFS('Town-Wide Capital Planning'!R:R,'Town-Wide Capital Planning'!$H:$H,$A99,'Town-Wide Capital Planning'!$B:$B,$E$2)+SUMIFS('Town-Wide Capital Planning'!R:R,'Town-Wide Capital Planning'!$H:$H,$A99,'Town-Wide Capital Planning'!$B:$B,$F$2)+SUMIFS('Town-Wide Capital Planning'!R:R,'Town-Wide Capital Planning'!$H:$H,$A99,'Town-Wide Capital Planning'!$B:$B,$G$2)+SUMIFS('Town-Wide Capital Planning'!R:R,'Town-Wide Capital Planning'!$H:$H,$A99,'Town-Wide Capital Planning'!$B:$B,$H$2) -> 0 | F99: =SUMIFS('Town-Wide Capital Planning'!S:S,'Town-Wide Capital Planning'!$H:$H,$A99,'Town-Wide Capital Planning'!$B:$B,$C$2)+SUMIFS('Town-Wide Capital Planning'!S:S,'Town-Wide Capital Planning'!$H:$H,$A99,'Town-Wide Capital Planning'!$B:$B,$D$2)+SUMIFS('Town-Wide Capital Planning'!S:S,'Town-Wide Capital Planning'!$H:$H,$A99,'Town-Wide Capital Planning'!$B:$B,$E$2)+SUMIFS('Town-Wide Capital Planning'!S:S,'Town-Wide Capital Planning'!$H:$H,$A99,'Town-Wide Capital Planning'!$B:$B,$F$2)+SUMIFS('Town-Wide Capital Planning'!S:S,'Town-Wide Capital Planning'!$H:$H,$A99,'Town-Wide Capital Planning'!$B:$B,$G$2)+SUMIFS('Town-Wide Capital Planning'!S:S,'Town-Wide Capital Planning'!$H:$H,$A99,'Town-Wide Capital Planning'!$B:$B,$H$2) -> 0 | G99: =SUMIFS('Town-Wide Capital Planning'!T:T,'Town-Wide Capital Planning'!$H:$H,$A99,'Town-Wide Capital Planning'!$B:$B,$C$2)+SUMIFS('Town-Wide Capital Planning'!T:T,'Town-Wide Capital Planning'!$H:$H,$A99,'Town-Wide Capital Planning'!$B:$B,$D$2)+SUMIFS('Town-Wide Capital Planning'!T:T,'Town-Wide Capital Planning'!$H:$H,$A99,'Town-Wide Capital Planning'!$B:$B,$E$2)+SUMIFS('Town-Wide Capital Planning'!T:T,'Town-Wide Capital Planning'!$H:$H,$A99,'Town-Wide Capital Planning'!$B:$B,$F$2)+SUMIFS('Town-Wide Capital Planning'!T:T,'Town-Wide Capital Planning'!$H:$H,$A99,'Town-Wide Capital Planning'!$B:$B,$G$2)+SUMIFS('Town-Wide Capital Planning'!T:T,'Town-Wide Capital Planning'!$H:$H,$A99,'Town-Wide Capital Planning'!$B:$B,$H$2) -> 0 | H99: =SUMIFS('Town-Wide Capital Planning'!U:U,'Town-Wide Capital Planning'!$H:$H,$A99,'Town-Wide Capital Planning'!$B:$B,$C$2)+SUMIFS('Town-Wide Capital Planning'!U:U,'Town-Wide Capital Planning'!$H:$H,$A99,'Town-Wide Capital Planning'!$B:$B,$D$2)+SUMIFS('Town-Wide Capital Planning'!U:U,'Town-Wide Capital Planning'!$H:$H,$A99,'Town-Wide Capital Planning'!$B:$B,$E$2)+SUMIFS('Town-Wide Capital Planning'!U:U,'Town-Wide Capital Planning'!$H:$H,$A99,'Town-Wide Capital Planning'!$B:$B,$F$2)+SUMIFS('Town-Wide Capital Planning'!U:U,'Town-Wide Capital Planning'!$H:$H,$A99,'Town-Wide Capital Planning'!$B:$B,$G$2)+SUMIFS('Town-Wide Capital Planning'!U:U,'Town-Wide Capital Planning'!$H:$H,$A99,'Town-Wide Capital Planning'!$B:$B,$H$2) -> 0 | I99: =SUMIFS('Town-Wide Capital Planning'!V:V,'Town-Wide Capital Planning'!$H:$H,$A99,'Town-Wide Capital Planning'!$B:$B,$C$2)+SUMIFS('Town-Wide Capital Planning'!V:V,'Town-Wide Capital Planning'!$H:$H,$A99,'Town-Wide Capital Planning'!$B:$B,$D$2)+SUMIFS('Town-Wide Capital Planning'!V:V,'Town-Wide Capital Planning'!$H:$H,$A99,'Town-Wide Capital Planning'!$B:$B,$E$2)+SUMIFS('Town-Wide Capital Planning'!V:V,'Town-Wide Capital Planning'!$H:$H,$A99,'Town-Wide Capital Planning'!$B:$B,$F$2)+SUMIFS('Town-Wide Capital Planning'!V:V,'Town-Wide Capital Planning'!$H:$H,$A99,'Town-Wide Capital Planning'!$B:$B,$G$2)+SUMIFS('Town-Wide Capital Planning'!V:V,'Town-Wide Capital Planning'!$H:$H,$A99,'Town-Wide Capital Planning'!$B:$B,$H$2) -> 0 | J99: =SUMIFS('Town-Wide Capital Planning'!W:W,'Town-Wide Capital Planning'!$H:$H,$A99,'Town-Wide Capital Planning'!$B:$B,$C$2)+SUMIFS('Town-Wide Capital Planning'!W:W,'Town-Wide Capital Planning'!$H:$H,$A99,'Town-Wide Capital Planning'!$B:$B,$D$2)+SUMIFS('Town-Wide Capital Planning'!W:W,'Town-Wide Capital Planning'!$H:$H,$A99,'Town-Wide Capital Planning'!$B:$B,$E$2)+SUMIFS('Town-Wide Capital Planning'!W:W,'Town-Wide Capital Planning'!$H:$H,$A99,'Town-Wide Capital Planning'!$B:$B,$F$2)+SUMIFS('Town-Wide Capital Planning'!W:W,'Town-Wide Capital Planning'!$H:$H,$A99,'Town-Wide Capital Planning'!$B:$B,$G$2)+SUMIFS('Town-Wide Capital Planning'!W:W,'Town-Wide Capital Planning'!$H:$H,$A99,'Town-Wide Capital Planning'!$B:$B,$H$2) -> 0 | K99: =SUMIFS('Town-Wide Capital Planning'!X:X,'Town-Wide Capital Planning'!$H:$H,$A99,'Town-Wide Capital Planning'!$B:$B,$C$2)+SUMIFS('Town-Wide Capital Planning'!X:X,'Town-Wide Capital Planning'!$H:$H,$A99,'Town-Wide Capital Planning'!$B:$B,$D$2)+SUMIFS('Town-Wide Capital Planning'!X:X,'Town-Wide Capital Planning'!$H:$H,$A99,'Town-Wide Capital Planning'!$B:$B,$E$2)+SUMIFS('Town-Wide Capital Planning'!X:X,'Town-Wide Capital Planning'!$H:$H,$A99,'Town-Wide Capital Planning'!$B:$B,$F$2)+SUMIFS('Town-Wide Capital Planning'!X:X,'Town-Wide Capital Planning'!$H:$H,$A99,'Town-Wide Capital Planning'!$B:$B,$G$2)+SUMIFS('Town-Wide Capital Planning'!X:X,'Town-Wide Capital Planning'!$H:$H,$A99,'Town-Wide Capital Planning'!$B:$B,$H$2) -> 0 | L99: =SUMIFS('Town-Wide Capital Planning'!Y:Y,'Town-Wide Capital Planning'!$H:$H,$A99,'Town-Wide Capital Planning'!$B:$B,$C$2)+SUMIFS('Town-Wide Capital Planning'!Y:Y,'Town-Wide Capital Planning'!$H:$H,$A99,'Town-Wide Capital Planning'!$B:$B,$D$2)+SUMIFS('Town-Wide Capital Planning'!Y:Y,'Town-Wide Capital Planning'!$H:$H,$A99,'Town-Wide Capital Planning'!$B:$B,$E$2)+SUMIFS('Town-Wide Capital Planning'!Y:Y,'Town-Wide Capital Planning'!$H:$H,$A99,'Town-Wide Capital Planning'!$B:$B,$F$2)+SUMIFS('Town-Wide Capital Planning'!Y:Y,'Town-Wide Capital Planning'!$H:$H,$A99,'Town-Wide Capital Planning'!$B:$B,$G$2)+SUMIFS('Town-Wide Capital Planning'!Y:Y,'Town-Wide Capital Planning'!$H:$H,$A99,'Town-Wide Capital Planning'!$B:$B,$H$2) -> 0 | M99: 0
A100: Ambulance Revolving | C100: =SUMIFS('Town-Wide Capital Planning'!P:P,'Town-Wide Capital Planning'!$H:$H,$A100,'Town-Wide Capital Planning'!$B:$B,$C$2)+SUMIFS('Town-Wide Capital Planning'!P:P,'Town-Wide Capital Planning'!$H:$H,$A100,'Town-Wide Capital Planning'!$B:$B,$D$2)+SUMIFS('Town-Wide Capital Planning'!P:P,'Town-Wide Capital Planning'!$H:$H,$A100,'Town-Wide Capital Planning'!$B:$B,$E$2)+SUMIFS('Town-Wide Capital Planning'!P:P,'Town-Wide Capital Planning'!$H:$H,$A100,'Town-Wide Capital Planning'!$B:$B,$F$2)+SUMIFS('Town-Wide Capital Planning'!P:P,'Town-Wide Capital Planning'!$H:$H,$A100,'Town-Wide Capital Planning'!$B:$B,$G$2)+SUMIFS('Town-Wide Capital Planning'!P:P,'Town-Wide Capital Planning'!$H:$H,$A100,'Town-Wide Capital Planning'!$B:$B,$H$2) -> 0 | D100: =SUMIFS('Town-Wide Capital Planning'!Q:Q,'Town-Wide Capital Planning'!$H:$H,$A100,'Town-Wide Capital Planning'!$B:$B,$C$2)+SUMIFS('Town-Wide Capital Planning'!Q:Q,'Town-Wide Capital Planning'!$H:$H,$A100,'Town-Wide Capital Planning'!$B:$B,$D$2)+SUMIFS('Town-Wide Capital Planning'!Q:Q,'Town-Wide Capital Planning'!$H:$H,$A100,'Town-Wide Capital Planning'!$B:$B,$E$2)+SUMIFS('Town-Wide Capital Planning'!Q:Q,'Town-Wide Capital Planning'!$H:$H,$A100,'Town-Wide Capital Planning'!$B:$B,$F$2)+SUMIFS('Town-Wide Capital Planning'!Q:Q,'Town-Wide Capital Planning'!$H:$H,$A100,'Town-Wide Capital Planning'!$B:$B,$G$2)+SUMIFS('Town-Wide Capital Planning'!Q:Q,'Town-Wide Capital Planning'!$H:$H,$A100,'Town-Wide Capital Planning'!$B:$B,$H$2) -> 0 | E100: =SUMIFS('Town-Wide Capital Planning'!R:R,'Town-Wide Capital Planning'!$H:$H,$A100,'Town-Wide Capital Planning'!$B:$B,$C$2)+SUMIFS('Town-Wide Capital Planning'!R:R,'Town-Wide Capital Planning'!$H:$H,$A100,'Town-Wide Capital Planning'!$B:$B,$D$2)+SUMIFS('Town-Wide Capital Planning'!R:R,'Town-Wide Capital Planning'!$H:$H,$A100,'Town-Wide Capital Planning'!$B:$B,$E$2)+SUMIFS('Town-Wide Capital Planning'!R:R,'Town-Wide Capital Planning'!$H:$H,$A100,'Town-Wide Capital Planning'!$B:$B,$F$2)+SUMIFS('Town-Wide Capital Planning'!R:R,'Town-Wide Capital Planning'!$H:$H,$A100,'Town-Wide Capital Planning'!$B:$B,$G$2)+SUMIFS('Town-Wide Capital Planning'!R:R,'Town-Wide Capital Planning'!$H:$H,$A100,'Town-Wide Capital Planning'!$B:$B,$H$2) -> 0 | F100: =SUMIFS('Town-Wide Capital Planning'!S:S,'Town-Wide Capital Planning'!$H:$H,$A100,'Town-Wide Capital Planning'!$B:$B,$C$2)+SUMIFS('Town-Wide Capital Planning'!S:S,'Town-Wide Capital Planning'!$H:$H,$A100,'Town-Wide Capital Planning'!$B:$B,$D$2)+SUMIFS('Town-Wide Capital Planning'!S:S,'Town-Wide Capital Planning'!$H:$H,$A100,'Town-Wide Capital Planning'!$B:$B,$E$2)+SUMIFS('Town-Wide Capital Planning'!S:S,'Town-Wide Capital Planning'!$H:$H,$A100,'Town-Wide Capital Planning'!$B:$B,$F$2)+SUMIFS('Town-Wide Capital Planning'!S:S,'Town-Wide Capital Planning'!$H:$H,$A100,'Town-Wide Capital Planning'!$B:$B,$G$2)+SUMIFS('Town-Wide Capital Planning'!S:S,'Town-Wide Capital Planning'!$H:$H,$A100,'Town-Wide Capital Planning'!$B:$B,$H$2) -> 0 | G100: =SUMIFS('Town-Wide Capital Planning'!T:T,'Town-Wide Capital Planning'!$H:$H,$A100,'Town-Wide Capital Planning'!$B:$B,$C$2)+SUMIFS('Town-Wide Capital Planning'!T:T,'Town-Wide Capital Planning'!$H:$H,$A100,'Town-Wide Capital Planning'!$B:$B,$D$2)+SUMIFS('Town-Wide Capital Planning'!T:T,'Town-Wide Capital Planning'!$H:$H,$A100,'Town-Wide Capital Planning'!$B:$B,$E$2)+SUMIFS('Town-Wide Capital Planning'!T:T,'Town-Wide Capital Planning'!$H:$H,$A100,'Town-Wide Capital Planning'!$B:$B,$F$2)+SUMIFS('Town-Wide Capital Planning'!T:T,'Town-Wide Capital Planning'!$H:$H,$A100,'Town-Wide Capital Planning'!$B:$B,$G$2)+SUMIFS('Town-Wide Capital Planning'!T:T,'Town-Wide Capital Planning'!$H:$H,$A100,'Town-Wide Capital Planning'!$B:$B,$H$2) -> 0 | H100: =SUMIFS('Town-Wide Capital Planning'!U:U,'Town-Wide Capital Planning'!$H:$H,$A100,'Town-Wide Capital Planning'!$B:$B,$C$2)+SUMIFS('Town-Wide Capital Planning'!U:U,'Town-Wide Capital Planning'!$H:$H,$A100,'Town-Wide Capital Planning'!$B:$B,$D$2)+SUMIFS('Town-Wide Capital Planning'!U:U,'Town-Wide Capital Planning'!$H:$H,$A100,'Town-Wide Capital Planning'!$B:$B,$E$2)+SUMIFS('Town-Wide Capital Planning'!U:U,'Town-Wide Capital Planning'!$H:$H,$A100,'Town-Wide Capital Planning'!$B:$B,$F$2)+SUMIFS('Town-Wide Capital Planning'!U:U,'Town-Wide Capital Planning'!$H:$H,$A100,'Town-Wide Capital Planning'!$B:$B,$G$2)+SUMIFS('Town-Wide Capital Planning'!U:U,'Town-Wide Capital Planning'!$H:$H,$A100,'Town-Wide Capital Planning'!$B:$B,$H$2) -> 0 | I100: =SUMIFS('Town-Wide Capital Planning'!V:V,'Town-Wide Capital Planning'!$H:$H,$A100,'Town-Wide Capital Planning'!$B:$B,$C$2)+SUMIFS('Town-Wide Capital Planning'!V:V,'Town-Wide Capital Planning'!$H:$H,$A100,'Town-Wide Capital Planning'!$B:$B,$D$2)+SUMIFS('Town-Wide Capital Planning'!V:V,'Town-Wide Capital Planning'!$H:$H,$A100,'Town-Wide Capital Planning'!$B:$B,$E$2)+SUMIFS('Town-Wide Capital Planning'!V:V,'Town-Wide Capital Planning'!$H:$H,$A100,'Town-Wide Capital Planning'!$B:$B,$F$2)+SUMIFS('Town-Wide Capital Planning'!V:V,'Town-Wide Capital Planning'!$H:$H,$A100,'Town-Wide Capital Planning'!$B:$B,$G$2)+SUMIFS('Town-Wide Capital Planning'!V:V,'Town-Wide Capital Planning'!$H:$H,$A100,'Town-Wide Capital Planning'!$B:$B,$H$2) -> 0 | J100: =SUMIFS('Town-Wide Capital Planning'!W:W,'Town-Wide Capital Planning'!$H:$H,$A100,'Town-Wide Capital Planning'!$B:$B,$C$2)+SUMIFS('Town-Wide Capital Planning'!W:W,'Town-Wide Capital Planning'!$H:$H,$A100,'Town-Wide Capital Planning'!$B:$B,$D$2)+SUMIFS('Town-Wide Capital Planning'!W:W,'Town-Wide Capital Planning'!$H:$H,$A100,'Town-Wide Capital Planning'!$B:$B,$E$2)+SUMIFS('Town-Wide Capital Planning'!W:W,'Town-Wide Capital Planning'!$H:$H,$A100,'Town-Wide Capital Planning'!$B:$B,$F$2)+SUMIFS('Town-Wide Capital Planning'!W:W,'Town-Wide Capital Planning'!$H:$H,$A100,'Town-Wide Capital Planning'!$B:$B,$G$2)+SUMIFS('Town-Wide Capital Planning'!W:W,'Town-Wide Capital Planning'!$H:$H,$A100,'Town-Wide Capital Planning'!$B:$B,$H$2) -> 0 | K100: =SUMIFS('Town-Wide Capital Planning'!X:X,'Town-Wide Capital Planning'!$H:$H,$A100,'Town-Wide Capital Planning'!$B:$B,$C$2)+SUMIFS('Town-Wide Capital Planning'!X:X,'Town-Wide Capital Planning'!$H:$H,$A100,'Town-Wide Capital Planning'!$B:$B,$D$2)+SUMIFS('Town-Wide Capital Planning'!X:X,'Town-Wide Capital Planning'!$H:$H,$A100,'Town-Wide Capital Planning'!$B:$B,$E$2)+SUMIFS('Town-Wide Capital Planning'!X:X,'Town-Wide Capital Planning'!$H:$H,$A100,'Town-Wide Capital Planning'!$B:$B,$F$2)+SUMIFS('Town-Wide Capital Planning'!X:X,'Town-Wide Capital Planning'!$H:$H,$A100,'Town-Wide Capital Planning'!$B:$B,$G$2)+SUMIFS('Town-Wide Capital Planning'!X:X,'Town-Wide Capital Planning'!$H:$H,$A100,'Town-Wide Capital Planning'!$B:$B,$H$2) -> 0 | L100: =SUMIFS('Town-Wide Capital Planning'!Y:Y,'Town-Wide Capital Planning'!$H:$H,$A100,'Town-Wide Capital Planning'!$B:$B,$C$2)+SUMIFS('Town-Wide Capital Planning'!Y:Y,'Town-Wide Capital Planning'!$H:$H,$A100,'Town-Wide Capital Planning'!$B:$B,$D$2)+SUMIFS('Town-Wide Capital Planning'!Y:Y,'Town-Wide Capital Planning'!$H:$H,$A100,'Town-Wide Capital Planning'!$B:$B,$E$2)+SUMIFS('Town-Wide Capital Planning'!Y:Y,'Town-Wide Capital Planning'!$H:$H,$A100,'Town-Wide Capital Planning'!$B:$B,$F$2)+SUMIFS('Town-Wide Capital Planning'!Y:Y,'Town-Wide Capital Planning'!$H:$H,$A100,'Town-Wide Capital Planning'!$B:$B,$G$2)+SUMIFS('Town-Wide Capital Planning'!Y:Y,'Town-Wide Capital Planning'!$H:$H,$A100,'Town-Wide Capital Planning'!$B:$B,$H$2) -> 0 | M100: 0
A101: Rebates | C101: =SUMIFS('Town-Wide Capital Planning'!P:P,'Town-Wide Capital Planning'!$H:$H,$A101,'Town-Wide Capital Planning'!$B:$B,$C$2)+SUMIFS('Town-Wide Capital Planning'!P:P,'Town-Wide Capital Planning'!$H:$H,$A101,'Town-Wide Capital Planning'!$B:$B,$D$2)+SUMIFS('Town-Wide Capital Planning'!P:P,'Town-Wide Capital Planning'!$H:$H,$A101,'Town-Wide Capital Planning'!$B:$B,$E$2)+SUMIFS('Town-Wide Capital Planning'!P:P,'Town-Wide Capital Planning'!$H:$H,$A101,'Town-Wide Capital Planning'!$B:$B,$F$2)+SUMIFS('Town-Wide Capital Planning'!P:P,'Town-Wide Capital Planning'!$H:$H,$A101,'Town-Wide Capital Planning'!$B:$B,$G$2)+SUMIFS('Town-Wide Capital Planning'!P:P,'Town-Wide Capital Planning'!$H:$H,$A101,'Town-Wide Capital Planning'!$B:$B,$H$2) -> 0 | D101: =SUMIFS('Town-Wide Capital Planning'!Q:Q,'Town-Wide Capital Planning'!$H:$H,$A101,'Town-Wide Capital Planning'!$B:$B,$C$2)+SUMIFS('Town-Wide Capital Planning'!Q:Q,'Town-Wide Capital Planning'!$H:$H,$A101,'Town-Wide Capital Planning'!$B:$B,$D$2)+SUMIFS('Town-Wide Capital Planning'!Q:Q,'Town-Wide Capital Planning'!$H:$H,$A101,'Town-Wide Capital Planning'!$B:$B,$E$2)+SUMIFS('Town-Wide Capital Planning'!Q:Q,'Town-Wide Capital Planning'!$H:$H,$A101,'Town-Wide Capital Planning'!$B:$B,$F$2)+SUMIFS('Town-Wide Capital Planning'!Q:Q,'Town-Wide Capital Planning'!$H:$H,$A101,'Town-Wide Capital Planning'!$B:$B,$G$2)+SUMIFS('Town-Wide Capital Planning'!Q:Q,'Town-Wide Capital Planning'!$H:$H,$A101,'Town-Wide Capital Planning'!$B:$B,$H$2) -> 0 | E101: =SUMIFS('Town-Wide Capital Planning'!R:R,'Town-Wide Capital Planning'!$H:$H,$A101,'Town-Wide Capital Planning'!$B:$B,$C$2)+SUMIFS('Town-Wide Capital Planning'!R:R,'Town-Wide Capital Planning'!$H:$H,$A101,'Town-Wide Capital Planning'!$B:$B,$D$2)+SUMIFS('Town-Wide Capital Planning'!R:R,'Town-Wide Capital Planning'!$H:$H,$A101,'Town-Wide Capital Planning'!$B:$B,$E$2)+SUMIFS('Town-Wide Capital Planning'!R:R,'Town-Wide Capital Planning'!$H:$H,$A101,'Town-Wide Capital Planning'!$B:$B,$F$2)+SUMIFS('Town-Wide Capital Planning'!R:R,'Town-Wide Capital Planning'!$H:$H,$A101,'Town-Wide Capital Planning'!$B:$B,$G$2)+SUMIFS('Town-Wide Capital Planning'!R:R,'Town-Wide Capital Planning'!$H:$H,$A101,'Town-Wide Capital Planning'!$B:$B,$H$2) -> 0 | F101: =SUMIFS('Town-Wide Capital Planning'!S:S,'Town-Wide Capital Planning'!$H:$H,$A101,'Town-Wide Capital Planning'!$B:$B,$C$2)+SUMIFS('Town-Wide Capital Planning'!S:S,'Town-Wide Capital Planning'!$H:$H,$A101,'Town-Wide Capital Planning'!$B:$B,$D$2)+SUMIFS('Town-Wide Capital Planning'!S:S,'Town-Wide Capital Planning'!$H:$H,$A101,'Town-Wide Capital Planning'!$B:$B,$E$2)+SUMIFS('Town-Wide Capital Planning'!S:S,'Town-Wide Capital Planning'!$H:$H,$A101,'Town-Wide Capital Planning'!$B:$B,$F$2)+SUMIFS('Town-Wide Capital Planning'!S:S,'Town-Wide Capital Planning'!$H:$H,$A101,'Town-Wide Capital Planning'!$B:$B,$G$2)+SUMIFS('Town-Wide Capital Planning'!S:S,'Town-Wide Capital Planning'!$H:$H,$A101,'Town-Wide Capital Planning'!$B:$B,$H$2) -> 0 | G101: =SUMIFS('Town-Wide Capital Planning'!T:T,'Town-Wide Capital Planning'!$H:$H,$A101,'Town-Wide Capital Planning'!$B:$B,$C$2)+SUMIFS('Town-Wide Capital Planning'!T:T,'Town-Wide Capital Planning'!$H:$H,$A101,'Town-Wide Capital Planning'!$B:$B,$D$2)+SUMIFS('Town-Wide Capital Planning'!T:T,'Town-Wide Capital Planning'!$H:$H,$A101,'Town-Wide Capital Planning'!$B:$B,$E$2)+SUMIFS('Town-Wide Capital Planning'!T:T,'Town-Wide Capital Planning'!$H:$H,$A101,'Town-Wide Capital Planning'!$B:$B,$F$2)+SUMIFS('Town-Wide Capital Planning'!T:T,'Town-Wide Capital Planning'!$H:$H,$A101,'Town-Wide Capital Planning'!$B:$B,$G$2)+SUMIFS('Town-Wide Capital Planning'!T:T,'Town-Wide Capital Planning'!$H:$H,$A101,'Town-Wide Capital Planning'!$B:$B,$H$2) -> 0 | H101: =SUMIFS('Town-Wide Capital Planning'!U:U,'Town-Wide Capital Planning'!$H:$H,$A101,'Town-Wide Capital Planning'!$B:$B,$C$2)+SUMIFS('Town-Wide Capital Planning'!U:U,'Town-Wide Capital Planning'!$H:$H,$A101,'Town-Wide Capital Planning'!$B:$B,$D$2)+SUMIFS('Town-Wide Capital Planning'!U:U,'Town-Wide Capital Planning'!$H:$H,$A101,'Town-Wide Capital Planning'!$B:$B,$E$2)+SUMIFS('Town-Wide Capital Planning'!U:U,'Town-Wide Capital Planning'!$H:$H,$A101,'Town-Wide Capital Planning'!$B:$B,$F$2)+SUMIFS('Town-Wide Capital Planning'!U:U,'Town-Wide Capital Planning'!$H:$H,$A101,'Town-Wide Capital Planning'!$B:$B,$G$2)+SUMIFS('Town-Wide Capital Planning'!U:U,'Town-Wide Capital Planning'!$H:$H,$A101,'Town-Wide Capital Planning'!$B:$B,$H$2) -> 0 | I101: =SUMIFS('Town-Wide Capital Planning'!V:V,'Town-Wide Capital Planning'!$H:$H,$A101,'Town-Wide Capital Planning'!$B:$B,$C$2)+SUMIFS('Town-Wide Capital Planning'!V:V,'Town-Wide Capital Planning'!$H:$H,$A101,'Town-Wide Capital Planning'!$B:$B,$D$2)+SUMIFS('Town-Wide Capital Planning'!V:V,'Town-Wide Capital Planning'!$H:$H,$A101,'Town-Wide Capital Planning'!$B:$B,$E$2)+SUMIFS('Town-Wide Capital Planning'!V:V,'Town-Wide Capital Planning'!$H:$H,$A101,'Town-Wide Capital Planning'!$B:$B,$F$2)+SUMIFS('Town-Wide Capital Planning'!V:V,'Town-Wide Capital Planning'!$H:$H,$A101,'Town-Wide Capital Planning'!$B:$B,$G$2)+SUMIFS('Town-Wide Capital Planning'!V:V,'Town-Wide Capital Planning'!$H:$H,$A101,'Town-Wide Capital Planning'!$B:$B,$H$2) -> 0 | J101: =SUMIFS('Town-Wide Capital Planning'!W:W,'Town-Wide Capital Planning'!$H:$H,$A101,'Town-Wide Capital Planning'!$B:$B,$C$2)+SUMIFS('Town-Wide Capital Planning'!W:W,'Town-Wide Capital Planning'!$H:$H,$A101,'Town-Wide Capital Planning'!$B:$B,$D$2)+SUMIFS('Town-Wide Capital Planning'!W:W,'Town-Wide Capital Planning'!$H:$H,$A101,'Town-Wide Capital Planning'!$B:$B,$E$2)+SUMIFS('Town-Wide Capital Planning'!W:W,'Town-Wide Capital Planning'!$H:$H,$A101,'Town-Wide Capital Planning'!$B:$B,$F$2)+SUMIFS('Town-Wide Capital Planning'!W:W,'Town-Wide Capital Planning'!$H:$H,$A101,'Town-Wide Capital Planning'!$B:$B,$G$2)+SUMIFS('Town-Wide Capital Planning'!W:W,'Town-Wide Capital Planning'!$H:$H,$A101,'Town-Wide Capital Planning'!$B:$B,$H$2) -> 0 | K101: =SUMIFS('Town-Wide Capital Planning'!X:X,'Town-Wide Capital Planning'!$H:$H,$A101,'Town-Wide Capital Planning'!$B:$B,$C$2)+SUMIFS('Town-Wide Capital Planning'!X:X,'Town-Wide Capital Planning'!$H:$H,$A101,'Town-Wide Capital Planning'!$B:$B,$D$2)+SUMIFS('Town-Wide Capital Planning'!X:X,'Town-Wide Capital Planning'!$H:$H,$A101,'Town-Wide Capital Planning'!$B:$B,$E$2)+SUMIFS('Town-Wide Capital Planning'!X:X,'Town-Wide Capital Planning'!$H:$H,$A101,'Town-Wide Capital Planning'!$B:$B,$F$2)+SUMIFS('Town-Wide Capital Planning'!X:X,'Town-Wide Capital Planning'!$H:$H,$A101,'Town-Wide Capital Planning'!$B:$B,$G$2)+SUMIFS('Town-Wide Capital Planning'!X:X,'Town-Wide Capital Planning'!$H:$H,$A101,'Town-Wide Capital Planning'!$B:$B,$H$2) -> 0 | L101: =SUMIFS('Town-Wide Capital Planning'!Y:Y,'Town-Wide Capital Planning'!$H:$H,$A101,'Town-Wide Capital Planning'!$B:$B,$C$2)+SUMIFS('Town-Wide Capital Planning'!Y:Y,'Town-Wide Capital Planning'!$H:$H,$A101,'Town-Wide Capital Planning'!$B:$B,$D$2)+SUMIFS('Town-Wide Capital Planning'!Y:Y,'Town-Wide Capital Planning'!$H:$H,$A101,'Town-Wide Capital Planning'!$B:$B,$E$2)+SUMIFS('Town-Wide Capital Planning'!Y:Y,'Town-Wide Capital Planning'!$H:$H,$A101,'Town-Wide Capital Planning'!$B:$B,$F$2)+SUMIFS('Town-Wide Capital Planning'!Y:Y,'Town-Wide Capital Planning'!$H:$H,$A101,'Town-Wide Capital Planning'!$B:$B,$G$2)+SUMIFS('Town-Wide Capital Planning'!Y:Y,'Town-Wide Capital Planning'!$H:$H,$A101,'Town-Wide Capital Planning'!$B:$B,$H$2) -> 0 | M101: 0
A102: Green Communities Grant | C102: =SUMIFS('Town-Wide Capital Planning'!P:P,'Town-Wide Capital Planning'!$H:$H,$A102,'Town-Wide Capital Planning'!$B:$B,$C$2)+SUMIFS('Town-Wide Capital Planning'!P:P,'Town-Wide Capital Planning'!$H:$H,$A102,'Town-Wide Capital Planning'!$B:$B,$D$2)+SUMIFS('Town-Wide Capital Planning'!P:P,'Town-Wide Capital Planning'!$H:$H,$A102,'Town-Wide Capital Planning'!$B:$B,$E$2)+SUMIFS('Town-Wide Capital Planning'!P:P,'Town-Wide Capital Planning'!$H:$H,$A102,'Town-Wide Capital Planning'!$B:$B,$F$2)+SUMIFS('Town-Wide Capital Planning'!P:P,'Town-Wide Capital Planning'!$H:$H,$A102,'Town-Wide Capital Planning'!$B:$B,$G$2)+SUMIFS('Town-Wide Capital Planning'!P:P,'Town-Wide Capital Planning'!$H:$H,$A102,'Town-Wide Capital Planning'!$B:$B,$H$2) -> 0 | D102: =SUMIFS('Town-Wide Capital Planning'!Q:Q,'Town-Wide Capital Planning'!$H:$H,$A102,'Town-Wide Capital Planning'!$B:$B,$C$2)+SUMIFS('Town-Wide Capital Planning'!Q:Q,'Town-Wide Capital Planning'!$H:$H,$A102,'Town-Wide Capital Planning'!$B:$B,$D$2)+SUMIFS('Town-Wide Capital Planning'!Q:Q,'Town-Wide Capital Planning'!$H:$H,$A102,'Town-Wide Capital Planning'!$B:$B,$E$2)+SUMIFS('Town-Wide Capital Planning'!Q:Q,'Town-Wide Capital Planning'!$H:$H,$A102,'Town-Wide Capital Planning'!$B:$B,$F$2)+SUMIFS('Town-Wide Capital Planning'!Q:Q,'Town-Wide Capital Planning'!$H:$H,$A102,'Town-Wide Capital Planning'!$B:$B,$G$2)+SUMIFS('Town-Wide Capital Planning'!Q:Q,'Town-Wide Capital Planning'!$H:$H,$A102,'Town-Wide Capital Planning'!$B:$B,$H$2) -> 250000 | E102: =SUMIFS('Town-Wide Capital Planning'!R:R,'Town-Wide Capital Planning'!$H:$H,$A102,'Town-Wide Capital Planning'!$B:$B,$C$2)+SUMIFS('Town-Wide Capital Planning'!R:R,'Town-Wide Capital Planning'!$H:$H,$A102,'Town-Wide Capital Planning'!$B:$B,$D$2)+SUMIFS('Town-Wide Capital Planning'!R:R,'Town-Wide Capital Planning'!$H:$H,$A102,'Town-Wide Capital Planning'!$B:$B,$E$2)+SUMIFS('Town-Wide Capital Planning'!R:R,'Town-Wide Capital Planning'!$H:$H,$A102,'Town-Wide Capital Planning'!$B:$B,$F$2)+SUMIFS('Town-Wide Capital Planning'!R:R,'Town-Wide Capital Planning'!$H:$H,$A102,'Town-Wide Capital Planning'!$B:$B,$G$2)+SUMIFS('Town-Wide Capital Planning'!R:R,'Town-Wide Capital Planning'!$H:$H,$A102,'Town-Wide Capital Planning'!$B:$B,$H$2) -> 0 | F102: =SUMIFS('Town-Wide Capital Planning'!S:S,'Town-Wide Capital Planning'!$H:$H,$A102,'Town-Wide Capital Planning'!$B:$B,$C$2)+SUMIFS('Town-Wide Capital Planning'!S:S,'Town-Wide Capital Planning'!$H:$H,$A102,'Town-Wide Capital Planning'!$B:$B,$D$2)+SUMIFS('Town-Wide Capital Planning'!S:S,'Town-Wide Capital Planning'!$H:$H,$A102,'Town-Wide Capital Planning'!$B:$B,$E$2)+SUMIFS('Town-Wide Capital Planning'!S:S,'Town-Wide Capital Planning'!$H:$H,$A102,'Town-Wide Capital Planning'!$B:$B,$F$2)+SUMIFS('Town-Wide Capital Planning'!S:S,'Town-Wide Capital Planning'!$H:$H,$A102,'Town-Wide Capital Planning'!$B:$B,$G$2)+SUMIFS('Town-Wide Capital Planning'!S:S,'Town-Wide Capital Planning'!$H:$H,$A102,'Town-Wide Capital Planning'!$B:$B,$H$2) -> 0 | G102: =SUMIFS('Town-Wide Capital Planning'!T:T,'Town-Wide Capital Planning'!$H:$H,$A102,'Town-Wide Capital Planning'!$B:$B,$C$2)+SUMIFS('Town-Wide Capital Planning'!T:T,'Town-Wide Capital Planning'!$H:$H,$A102,'Town-Wide Capital Planning'!$B:$B,$D$2)+SUMIFS('Town-Wide Capital Planning'!T:T,'Town-Wide Capital Planning'!$H:$H,$A102,'Town-Wide Capital Planning'!$B:$B,$E$2)+SUMIFS('Town-Wide Capital Planning'!T:T,'Town-Wide Capital Planning'!$H:$H,$A102,'Town-Wide Capital Planning'!$B:$B,$F$2)+SUMIFS('Town-Wide Capital Planning'!T:T,'Town-Wide Capital Planning'!$H:$H,$A102,'Town-Wide Capital Planning'!$B:$B,$G$2)+SUMIFS('Town-Wide Capital Planning'!T:T,'Town-Wide Capital Planning'!$H:$H,$A102,'Town-Wide Capital Planning'!$B:$B,$H$2) -> 0 | H102: =SUMIFS('Town-Wide Capital Planning'!U:U,'Town-Wide Capital Planning'!$H:$H,$A102,'Town-Wide Capital Planning'!$B:$B,$C$2)+SUMIFS('Town-Wide Capital Planning'!U:U,'Town-Wide Capital Planning'!$H:$H,$A102,'Town-Wide Capital Planning'!$B:$B,$D$2)+SUMIFS('Town-Wide Capital Planning'!U:U,'Town-Wide Capital Planning'!$H:$H,$A102,'Town-Wide Capital Planning'!$B:$B,$E$2)+SUMIFS('Town-Wide Capital Planning'!U:U,'Town-Wide Capital Planning'!$H:$H,$A102,'Town-Wide Capital Planning'!$B:$B,$F$2)+SUMIFS('Town-Wide Capital Planning'!U:U,'Town-Wide Capital Planning'!$H:$H,$A102,'Town-Wide Capital Planning'!$B:$B,$G$2)+SUMIFS('Town-Wide Capital Planning'!U:U,'Town-Wide Capital Planning'!$H:$H,$A102,'Town-Wide Capital Planning'!$B:$B,$H$2) -> 0 | I102: =SUMIFS('Town-Wide Capital Planning'!V:V,'Town-Wide Capital Planning'!$H:$H,$A102,'Town-Wide Capital Planning'!$B:$B,$C$2)+SUMIFS('Town-Wide Capital Planning'!V:V,'Town-Wide Capital Planning'!$H:$H,$A102,'Town-Wide Capital Planning'!$B:$B,$D$2)+SUMIFS('Town-Wide Capital Planning'!V:V,'Town-Wide Capital Planning'!$H:$H,$A102,'Town-Wide Capital Planning'!$B:$B,$E$2)+SUMIFS('Town-Wide Capital Planning'!V:V,'Town-Wide Capital Planning'!$H:$H,$A102,'Town-Wide Capital Planning'!$B:$B,$F$2)+SUMIFS('Town-Wide Capital Planning'!V:V,'Town-Wide Capital Planning'!$H:$H,$A102,'Town-Wide Capital Planning'!$B:$B,$G$2)+SUMIFS('Town-Wide Capital Planning'!V:V,'Town-Wide Capital Planning'!$H:$H,$A102,'Town-Wide Capital Planning'!$B:$B,$H$2) -> 0 | J102: =SUMIFS('Town-Wide Capital Planning'!W:W,'Town-Wide Capital Planning'!$H:$H,$A102,'Town-Wide Capital Planning'!$B:$B,$C$2)+SUMIFS('Town-Wide Capital Planning'!W:W,'Town-Wide Capital Planning'!$H:$H,$A102,'Town-Wide Capital Planning'!$B:$B,$D$2)+SUMIFS('Town-Wide Capital Planning'!W:W,'Town-Wide Capital Planning'!$H:$H,$A102,'Town-Wide Capital Planning'!$B:$B,$E$2)+SUMIFS('Town-Wide Capital Planning'!W:W,'Town-Wide Capital Planning'!$H:$H,$A102,'Town-Wide Capital Planning'!$B:$B,$F$2)+SUMIFS('Town-Wide Capital Planning'!W:W,'Town-Wide Capital Planning'!$H:$H,$A102,'Town-Wide Capital Planning'!$B:$B,$G$2)+SUMIFS('Town-Wide Capital Planning'!W:W,'Town-Wide Capital Planning'!$H:$H,$A102,'Town-Wide Capital Planning'!$B:$B,$H$2) -> 10000 | K102: =SUMIFS('Town-Wide Capital Planning'!X:X,'Town-Wide Capital Planning'!$H:$H,$A102,'Town-Wide Capital Planning'!$B:$B,$C$2)+SUMIFS('Town-Wide Capital Planning'!X:X,'Town-Wide Capital Planning'!$H:$H,$A102,'Town-Wide Capital Planning'!$B:$B,$D$2)+SUMIFS('Town-Wide Capital Planning'!X:X,'Town-Wide Capital Planning'!$H:$H,$A102,'Town-Wide Capital Planning'!$B:$B,$E$2)+SUMIFS('Town-Wide Capital Planning'!X:X,'Town-Wide Capital Planning'!$H:$H,$A102,'Town-Wide Capital Planning'!$B:$B,$F$2)+SUMIFS('Town-Wide Capital Planning'!X:X,'Town-Wide Capital Planning'!$H:$H,$A102,'Town-Wide Capital Planning'!$B:$B,$G$2)+SUMIFS('Town-Wide Capital Planning'!X:X,'Town-Wide Capital Planning'!$H:$H,$A102,'Town-Wide Capital Planning'!$B:$B,$H$2) -> 0 | L102: =SUMIFS('Town-Wide Capital Planning'!Y:Y,'Town-Wide Capital Planning'!$H:$H,$A102,'Town-Wide Capital Planning'!$B:$B,$C$2)+SUMIFS('Town-Wide Capital Planning'!Y:Y,'Town-Wide Capital Planning'!$H:$H,$A102,'Town-Wide Capital Planning'!$B:$B,$D$2)+SUMIFS('Town-Wide Capital Planning'!Y:Y,'Town-Wide Capital Planning'!$H:$H,$A102,'Town-Wide Capital Planning'!$B:$B,$E$2)+SUMIFS('Town-Wide Capital Planning'!Y:Y,'Town-Wide Capital Planning'!$H:$H,$A102,'Town-Wide Capital Planning'!$B:$B,$F$2)+SUMIFS('Town-Wide Capital Planning'!Y:Y,'Town-Wide Capital Planning'!$H:$H,$A102,'Town-Wide Capital Planning'!$B:$B,$G$2)+SUMIFS('Town-Wide Capital Planning'!Y:Y,'Town-Wide Capital Planning'!$H:$H,$A102,'Town-Wide Capital Planning'!$B:$B,$H$2) -> 380000 | M102: 640000
A103: MVP Grant | C103: =SUMIFS('Town-Wide Capital Planning'!P:P,'Town-Wide Capital Planning'!$H:$H,$A103,'Town-Wide Capital Planning'!$B:$B,$C$2)+SUMIFS('Town-Wide Capital Planning'!P:P,'Town-Wide Capital Planning'!$H:$H,$A103,'Town-Wide Capital Planning'!$B:$B,$D$2)+SUMIFS('Town-Wide Capital Planning'!P:P,'Town-Wide Capital Planning'!$H:$H,$A103,'Town-Wide Capital Planning'!$B:$B,$E$2)+SUMIFS('Town-Wide Capital Planning'!P:P,'Town-Wide Capital Planning'!$H:$H,$A103,'Town-Wide Capital Planning'!$B:$B,$F$2)+SUMIFS('Town-Wide Capital Planning'!P:P,'Town-Wide Capital Planning'!$H:$H,$A103,'Town-Wide Capital Planning'!$B:$B,$G$2)+SUMIFS('Town-Wide Capital Planning'!P:P,'Town-Wide Capital Planning'!$H:$H,$A103,'Town-Wide Capital Planning'!$B:$B,$H$2) -> 0 | D103: =SUMIFS('Town-Wide Capital Planning'!Q:Q,'Town-Wide Capital Planning'!$H:$H,$A103,'Town-Wide Capital Planning'!$B:$B,$C$2)+SUMIFS('Town-Wide Capital Planning'!Q:Q,'Town-Wide Capital Planning'!$H:$H,$A103,'Town-Wide Capital Planning'!$B:$B,$D$2)+SUMIFS('Town-Wide Capital Planning'!Q:Q,'Town-Wide Capital Planning'!$H:$H,$A103,'Town-Wide Capital Planning'!$B:$B,$E$2)+SUMIFS('Town-Wide Capital Planning'!Q:Q,'Town-Wide Capital Planning'!$H:$H,$A103,'Town-Wide Capital Planning'!$B:$B,$F$2)+SUMIFS('Town-Wide Capital Planning'!Q:Q,'Town-Wide Capital Planning'!$H:$H,$A103,'Town-Wide Capital Planning'!$B:$B,$G$2)+SUMIFS('Town-Wide Capital Planning'!Q:Q,'Town-Wide Capital Planning'!$H:$H,$A103,'Town-Wide Capital Planning'!$B:$B,$H$2) -> 0 | E103: =SUMIFS('Town-Wide Capital Planning'!R:R,'Town-Wide Capital Planning'!$H:$H,$A103,'Town-Wide Capital Planning'!$B:$B,$C$2)+SUMIFS('Town-Wide Capital Planning'!R:R,'Town-Wide Capital Planning'!$H:$H,$A103,'Town-Wide Capital Planning'!$B:$B,$D$2)+SUMIFS('Town-Wide Capital Planning'!R:R,'Town-Wide Capital Planning'!$H:$H,$A103,'Town-Wide Capital Planning'!$B:$B,$E$2)+SUMIFS('Town-Wide Capital Planning'!R:R,'Town-Wide Capital Planning'!$H:$H,$A103,'Town-Wide Capital Planning'!$B:$B,$F$2)+SUMIFS('Town-Wide Capital Planning'!R:R,'Town-Wide Capital Planning'!$H:$H,$A103,'Town-Wide Capital Planning'!$B:$B,$G$2)+SUMIFS('Town-Wide Capital Planning'!R:R,'Town-Wide Capital Planning'!$H:$H,$A103,'Town-Wide Capital Planning'!$B:$B,$H$2) -> 0 | F103: =SUMIFS('Town-Wide Capital Planning'!S:S,'Town-Wide Capital Planning'!$H:$H,$A103,'Town-Wide Capital Planning'!$B:$B,$C$2)+SUMIFS('Town-Wide Capital Planning'!S:S,'Town-Wide Capital Planning'!$H:$H,$A103,'Town-Wide Capital Planning'!$B:$B,$D$2)+SUMIFS('Town-Wide Capital Planning'!S:S,'Town-Wide Capital Planning'!$H:$H,$A103,'Town-Wide Capital Planning'!$B:$B,$E$2)+SUMIFS('Town-Wide Capital Planning'!S:S,'Town-Wide Capital Planning'!$H:$H,$A103,'Town-Wide Capital Planning'!$B:$B,$F$2)+SUMIFS('Town-Wide Capital Planning'!S:S,'Town-Wide Capital Planning'!$H:$H,$A103,'Town-Wide Capital Planning'!$B:$B,$G$2)+SUMIFS('Town-Wide Capital Planning'!S:S,'Town-Wide Capital Planning'!$H:$H,$A103,'Town-Wide Capital Planning'!$B:$B,$H$2) -> 0 | G103: =SUMIFS('Town-Wide Capital Planning'!T:T,'Town-Wide Capital Planning'!$H:$H,$A103,'Town-Wide Capital Planning'!$B:$B,$C$2)+SUMIFS('Town-Wide Capital Planning'!T:T,'Town-Wide Capital Planning'!$H:$H,$A103,'Town-Wide Capital Planning'!$B:$B,$D$2)+SUMIFS('Town-Wide Capital Planning'!T:T,'Town-Wide Capital Planning'!$H:$H,$A103,'Town-Wide Capital Planning'!$B:$B,$E$2)+SUMIFS('Town-Wide Capital Planning'!T:T,'Town-Wide Capital Planning'!$H:$H,$A103,'Town-Wide Capital Planning'!$B:$B,$F$2)+SUMIFS('Town-Wide Capital Planning'!T:T,'Town-Wide Capital Planning'!$H:$H,$A103,'Town-Wide Capital Planning'!$B:$B,$G$2)+SUMIFS('Town-Wide Capital Planning'!T:T,'Town-Wide Capital Planning'!$H:$H,$A103,'Town-Wide Capital Planning'!$B:$B,$H$2) -> 0 | H103: =SUMIFS('Town-Wide Capital Planning'!U:U,'Town-Wide Capital Planning'!$H:$H,$A103,'Town-Wide Capital Planning'!$B:$B,$C$2)+SUMIFS('Town-Wide Capital Planning'!U:U,'Town-Wide Capital Planning'!$H:$H,$A103,'Town-Wide Capital Planning'!$B:$B,$D$2)+SUMIFS('Town-Wide Capital Planning'!U:U,'Town-Wide Capital Planning'!$H:$H,$A103,'Town-Wide Capital Planning'!$B:$B,$E$2)+SUMIFS('Town-Wide Capital Planning'!U:U,'Town-Wide Capital Planning'!$H:$H,$A103,'Town-Wide Capital Planning'!$B:$B,$F$2)+SUMIFS('Town-Wide Capital Planning'!U:U,'Town-Wide Capital Planning'!$H:$H,$A103,'Town-Wide Capital Planning'!$B:$B,$G$2)+SUMIFS('Town-Wide Capital Planning'!U:U,'Town-Wide Capital Planning'!$H:$H,$A103,'Town-Wide Capital Planning'!$B:$B,$H$2) -> 0 | I103: =SUMIFS('Town-Wide Capital Planning'!V:V,'Town-Wide Capital Planning'!$H:$H,$A103,'Town-Wide Capital Planning'!$B:$B,$C$2)+SUMIFS('Town-Wide Capital Planning'!V:V,'Town-Wide Capital Planning'!$H:$H,$A103,'Town-Wide Capital Planning'!$B:$B,$D$2)+SUMIFS('Town-Wide Capital Planning'!V:V,'Town-Wide Capital Planning'!$H:$H,$A103,'Town-Wide Capital Planning'!$B:$B,$E$2)+SUMIFS('Town-Wide Capital Planning'!V:V,'Town-Wide Capital Planning'!$H:$H,$A103,'Town-Wide Capital Planning'!$B:$B,$F$2)+SUMIFS('Town-Wide Capital Planning'!V:V,'Town-Wide Capital Planning'!$H:$H,$A103,'Town-Wide Capital Planning'!$B:$B,$G$2)+SUMIFS('Town-Wide Capital Planning'!V:V,'Town-Wide Capital Planning'!$H:$H,$A103,'Town-Wide Capital Planning'!$B:$B,$H$2) -> 0 | J103: =SUMIFS('Town-Wide Capital Planning'!W:W,'Town-Wide Capital Planning'!$H:$H,$A103,'Town-Wide Capital Planning'!$B:$B,$C$2)+SUMIFS('Town-Wide Capital Planning'!W:W,'Town-Wide Capital Planning'!$H:$H,$A103,'Town-Wide Capital Planning'!$B:$B,$D$2)+SUMIFS('Town-Wide Capital Planning'!W:W,'Town-Wide Capital Planning'!$H:$H,$A103,'Town-Wide Capital Planning'!$B:$B,$E$2)+SUMIFS('Town-Wide Capital Planning'!W:W,'Town-Wide Capital Planning'!$H:$H,$A103,'Town-Wide Capital Planning'!$B:$B,$F$2)+SUMIFS('Town-Wide Capital Planning'!W:W,'Town-Wide Capital Planning'!$H:$H,$A103,'Town-Wide Capital Planning'!$B:$B,$G$2)+SUMIFS('Town-Wide Capital Planning'!W:W,'Town-Wide Capital Planning'!$H:$H,$A103,'Town-Wide Capital Planning'!$B:$B,$H$2) -> 0 | K103: =SUMIFS('Town-Wide Capital Planning'!X:X,'Town-Wide Capital Planning'!$H:$H,$A103,'Town-Wide Capital Planning'!$B:$B,$C$2)+SUMIFS('Town-Wide Capital Planning'!X:X,'Town-Wide Capital Planning'!$H:$H,$A103,'Town-Wide Capital Planning'!$B:$B,$D$2)+SUMIFS('Town-Wide Capital Planning'!X:X,'Town-Wide Capital Planning'!$H:$H,$A103,'Town-Wide Capital Planning'!$B:$B,$E$2)+SUMIFS('Town-Wide Capital Planning'!X:X,'Town-Wide Capital Planning'!$H:$H,$A103,'Town-Wide Capital Planning'!$B:$B,$F$2)+SUMIFS('Town-Wide Capital Planning'!X:X,'Town-Wide Capital Planning'!$H:$H,$A103,'Town-Wide Capital Planning'!$B:$B,$G$2)+SUMIFS('Town-Wide Capital Planning'!X:X,'Town-Wide Capital Planning'!$H:$H,$A103,'Town-Wide Capital Planning'!$B:$B,$H$2) -> 0 | L103: =SUMIFS('Town-Wide Capital Planning'!Y:Y,'Town-Wide Capital Planning'!$H:$H,$A103,'Town-Wide Capital Planning'!$B:$B,$C$2)+SUMIFS('Town-Wide Capital Planning'!Y:Y,'Town-Wide Capital Planning'!$H:$H,$A103,'Town-Wide Capital Planning'!$B:$B,$D$2)+SUMIFS('Town-Wide Capital Planning'!Y:Y,'Town-Wide Capital Planning'!$H:$H,$A103,'Town-Wide Capital Planning'!$B:$B,$E$2)+SUMIFS('Town-Wide Capital Planning'!Y:Y,'Town-Wide Capital Planning'!$H:$H,$A103,'Town-Wide Capital Planning'!$B:$B,$F$2)+SUMIFS('Town-Wide Capital Planning'!Y:Y,'Town-Wide Capital Planning'!$H:$H,$A103,'Town-Wide Capital Planning'!$B:$B,$G$2)+SUMIFS('Town-Wide Capital Planning'!Y:Y,'Town-Wide Capital Planning'!$H:$H,$A103,'Town-Wide Capital Planning'!$B:$B,$H$2) -> 0 | M103: 0
A104: Action Grant | C104: =SUMIFS('Town-Wide Capital Planning'!P:P,'Town-Wide Capital Planning'!$H:$H,$A104,'Town-Wide Capital Planning'!$B:$B,$C$2)+SUMIFS('Town-Wide Capital Planning'!P:P,'Town-Wide Capital Planning'!$H:$H,$A104,'Town-Wide Capital Planning'!$B:$B,$D$2)+SUMIFS('Town-Wide Capital Planning'!P:P,'Town-Wide Capital Planning'!$H:$H,$A104,'Town-Wide Capital Planning'!$B:$B,$E$2)+SUMIFS('Town-Wide Capital Planning'!P:P,'Town-Wide Capital Planning'!$H:$H,$A104,'Town-Wide Capital Planning'!$B:$B,$F$2)+SUMIFS('Town-Wide Capital Planning'!P:P,'Town-Wide Capital Planning'!$H:$H,$A104,'Town-Wide Capital Planning'!$B:$B,$G$2)+SUMIFS('Town-Wide Capital Planning'!P:P,'Town-Wide Capital Planning'!$H:$H,$A104,'Town-Wide Capital Planning'!$B:$B,$H$2) -> 0 | D104: =SUMIFS('Town-Wide Capital Planning'!Q:Q,'Town-Wide Capital Planning'!$H:$H,$A104,'Town-Wide Capital Planning'!$B:$B,$C$2)+SUMIFS('Town-Wide Capital Planning'!Q:Q,'Town-Wide Capital Planning'!$H:$H,$A104,'Town-Wide Capital Planning'!$B:$B,$D$2)+SUMIFS('Town-Wide Capital Planning'!Q:Q,'Town-Wide Capital Planning'!$H:$H,$A104,'Town-Wide Capital Planning'!$B:$B,$E$2)+SUMIFS('Town-Wide Capital Planning'!Q:Q,'Town-Wide Capital Planning'!$H:$H,$A104,'Town-Wide Capital Planning'!$B:$B,$F$2)+SUMIFS('Town-Wide Capital Planning'!Q:Q,'Town-Wide Capital Planning'!$H:$H,$A104,'Town-Wide Capital Planning'!$B:$B,$G$2)+SUMIFS('Town-Wide Capital Planning'!Q:Q,'Town-Wide Capital Planning'!$H:$H,$A104,'Town-Wide Capital Planning'!$B:$B,$H$2) -> 20000 | E104: =SUMIFS('Town-Wide Capital Planning'!R:R,'Town-Wide Capital Planning'!$H:$H,$A104,'Town-Wide Capital Planning'!$B:$B,$C$2)+SUMIFS('Town-Wide Capital Planning'!R:R,'Town-Wide Capital Planning'!$H:$H,$A104,'Town-Wide Capital Planning'!$B:$B,$D$2)+SUMIFS('Town-Wide Capital Planning'!R:R,'Town-Wide Capital Planning'!$H:$H,$A104,'Town-Wide Capital Planning'!$B:$B,$E$2)+SUMIFS('Town-Wide Capital Planning'!R:R,'Town-Wide Capital Planning'!$H:$H,$A104,'Town-Wide Capital Planning'!$B:$B,$F$2)+SUMIFS('Town-Wide Capital Planning'!R:R,'Town-Wide Capital Planning'!$H:$H,$A104,'Town-Wide Capital Planning'!$B:$B,$G$2)+SUMIFS('Town-Wide Capital Planning'!R:R,'Town-Wide Capital Planning'!$H:$H,$A104,'Town-Wide Capital Planning'!$B:$B,$H$2) -> 0 | F104: =SUMIFS('Town-Wide Capital Planning'!S:S,'Town-Wide Capital Planning'!$H:$H,$A104,'Town-Wide Capital Planning'!$B:$B,$C$2)+SUMIFS('Town-Wide Capital Planning'!S:S,'Town-Wide Capital Planning'!$H:$H,$A104,'Town-Wide Capital Planning'!$B:$B,$D$2)+SUMIFS('Town-Wide Capital Planning'!S:S,'Town-Wide Capital Planning'!$H:$H,$A104,'Town-Wide Capital Planning'!$B:$B,$E$2)+SUMIFS('Town-Wide Capital Planning'!S:S,'Town-Wide Capital Planning'!$H:$H,$A104,'Town-Wide Capital Planning'!$B:$B,$F$2)+SUMIFS('Town-Wide Capital Planning'!S:S,'Town-Wide Capital Planning'!$H:$H,$A104,'Town-Wide Capital Planning'!$B:$B,$G$2)+SUMIFS('Town-Wide Capital Planning'!S:S,'Town-Wide Capital Planning'!$H:$H,$A104,'Town-Wide Capital Planning'!$B:$B,$H$2) -> 20000 | G104: =SUMIFS('Town-Wide Capital Planning'!T:T,'Town-Wide Capital Planning'!$H:$H,$A104,'Town-Wide Capital Planning'!$B:$B,$C$2)+SUMIFS('Town-Wide Capital Planning'!T:T,'Town-Wide Capital Planning'!$H:$H,$A104,'Town-Wide Capital Planning'!$B:$B,$D$2)+SUMIFS('Town-Wide Capital Planning'!T:T,'Town-Wide Capital Planning'!$H:$H,$A104,'Town-Wide Capital Planning'!$B:$B,$E$2)+SUMIFS('Town-Wide Capital Planning'!T:T,'Town-Wide Capital Planning'!$H:$H,$A104,'Town-Wide Capital Planning'!$B:$B,$F$2)+SUMIFS('Town-Wide Capital Planning'!T:T,'Town-Wide Capital Planning'!$H:$H,$A104,'Town-Wide Capital Planning'!$B:$B,$G$2)+SUMIFS('Town-Wide Capital Planning'!T:T,'Town-Wide Capital Planning'!$H:$H,$A104,'Town-Wide Capital Planning'!$B:$B,$H$2) -> 0 | H104: =SUMIFS('Town-Wide Capital Planning'!U:U,'Town-Wide Capital Planning'!$H:$H,$A104,'Town-Wide Capital Planning'!$B:$B,$C$2)+SUMIFS('Town-Wide Capital Planning'!U:U,'Town-Wide Capital Planning'!$H:$H,$A104,'Town-Wide Capital Planning'!$B:$B,$D$2)+SUMIFS('Town-Wide Capital Planning'!U:U,'Town-Wide Capital Planning'!$H:$H,$A104,'Town-Wide Capital Planning'!$B:$B,$E$2)+SUMIFS('Town-Wide Capital Planning'!U:U,'Town-Wide Capital Planning'!$H:$H,$A104,'Town-Wide Capital Planning'!$B:$B,$F$2)+SUMIFS('Town-Wide Capital Planning'!U:U,'Town-Wide Capital Planning'!$H:$H,$A104,'Town-Wide Capital Planning'!$B:$B,$G$2)+SUMIFS('Town-Wide Capital Planning'!U:U,'Town-Wide Capital Planning'!$H:$H,$A104,'Town-Wide Capital Planning'!$B:$B,$H$2) -> 20000 | I104: =SUMIFS('Town-Wide Capital Planning'!V:V,'Town-Wide Capital Planning'!$H:$H,$A104,'Town-Wide Capital Planning'!$B:$B,$C$2)+SUMIFS('Town-Wide Capital Planning'!V:V,'Town-Wide Capital Planning'!$H:$H,$A104,'Town-Wide Capital Planning'!$B:$B,$D$2)+SUMIFS('Town-Wide Capital Planning'!V:V,'Town-Wide Capital Planning'!$H:$H,$A104,'Town-Wide Capital Planning'!$B:$B,$E$2)+SUMIFS('Town-Wide Capital Planning'!V:V,'Town-Wide Capital Planning'!$H:$H,$A104,'Town-Wide Capital Planning'!$B:$B,$F$2)+SUMIFS('Town-Wide Capital Planning'!V:V,'Town-Wide Capital Planning'!$H:$H,$A104,'Town-Wide Capital Planning'!$B:$B,$G$2)+SUMIFS('Town-Wide Capital Planning'!V:V,'Town-Wide Capital Planning'!$H:$H,$A104,'Town-Wide Capital Planning'!$B:$B,$H$2) -> 0 | J104: =SUMIFS('Town-Wide Capital Planning'!W:W,'Town-Wide Capital Planning'!$H:$H,$A104,'Town-Wide Capital Planning'!$B:$B,$C$2)+SUMIFS('Town-Wide Capital Planning'!W:W,'Town-Wide Capital Planning'!$H:$H,$A104,'Town-Wide Capital Planning'!$B:$B,$D$2)+SUMIFS('Town-Wide Capital Planning'!W:W,'Town-Wide Capital Planning'!$H:$H,$A104,'Town-Wide Capital Planning'!$B:$B,$E$2)+SUMIFS('Town-Wide Capital Planning'!W:W,'Town-Wide Capital Planning'!$H:$H,$A104,'Town-Wide Capital Planning'!$B:$B,$F$2)+SUMIFS('Town-Wide Capital Planning'!W:W,'Town-Wide Capital Planning'!$H:$H,$A104,'Town-Wide Capital Planning'!$B:$B,$G$2)+SUMIFS('Town-Wide Capital Planning'!W:W,'Town-Wide Capital Planning'!$H:$H,$A104,'Town-Wide Capital Planning'!$B:$B,$H$2) -> 20000 | K104: =SUMIFS('Town-Wide Capital Planning'!X:X,'Town-Wide Capital Planning'!$H:$H,$A104,'Town-Wide Capital Planning'!$B:$B,$C$2)+SUMIFS('Town-Wide Capital Planning'!X:X,'Town-Wide Capital Planning'!$H:$H,$A104,'Town-Wide Capital Planning'!$B:$B,$D$2)+SUMIFS('Town-Wide Capital Planning'!X:X,'Town-Wide Capital Planning'!$H:$H,$A104,'Town-Wide Capital Planning'!$B:$B,$E$2)+SUMIFS('Town-Wide Capital Planning'!X:X,'Town-Wide Capital Planning'!$H:$H,$A104,'Town-Wide Capital Planning'!$B:$B,$F$2)+SUMIFS('Town-Wide Capital Planning'!X:X,'Town-Wide Capital Planning'!$H:$H,$A104,'Town-Wide Capital Planning'!$B:$B,$G$2)+SUMIFS('Town-Wide Capital Planning'!X:X,'Town-Wide Capital Planning'!$H:$H,$A104,'Town-Wide Capital Planning'!$B:$B,$H$2) -> 0 | L104: =SUMIFS('Town-Wide Capital Planning'!Y:Y,'Town-Wide Capital Planning'!$H:$H,$A104,'Town-Wide Capital Planning'!$B:$B,$C$2)+SUMIFS('Town-Wide Capital Planning'!Y:Y,'Town-Wide Capital Planning'!$H:$H,$A104,'Town-Wide Capital Planning'!$B:$B,$D$2)+SUMIFS('Town-Wide Capital Planning'!Y:Y,'Town-Wide Capital Planning'!$H:$H,$A104,'Town-Wide Capital Planning'!$B:$B,$E$2)+SUMIFS('Town-Wide Capital Planning'!Y:Y,'Town-Wide Capital Planning'!$H:$H,$A104,'Town-Wide Capital Planning'!$B:$B,$F$2)+SUMIFS('Town-Wide Capital Planning'!Y:Y,'Town-Wide Capital Planning'!$H:$H,$A104,'Town-Wide Capital Planning'!$B:$B,$G$2)+SUMIFS('Town-Wide Capital Planning'!Y:Y,'Town-Wide Capital Planning'!$H:$H,$A104,'Town-Wide Capital Planning'!$B:$B,$H$2) -> 20000 | M104: 100000
A105: Council on Aging Grant | C105: =SUMIFS('Town-Wide Capital Planning'!P:P,'Town-Wide Capital Planning'!$H:$H,$A105,'Town-Wide Capital Planning'!$B:$B,$C$2)+SUMIFS('Town-Wide Capital Planning'!P:P,'Town-Wide Capital Planning'!$H:$H,$A105,'Town-Wide Capital Planning'!$B:$B,$D$2)+SUMIFS('Town-Wide Capital Planning'!P:P,'Town-Wide Capital Planning'!$H:$H,$A105,'Town-Wide Capital Planning'!$B:$B,$E$2)+SUMIFS('Town-Wide Capital Planning'!P:P,'Town-Wide Capital Planning'!$H:$H,$A105,'Town-Wide Capital Planning'!$B:$B,$F$2)+SUMIFS('Town-Wide Capital Planning'!P:P,'Town-Wide Capital Planning'!$H:$H,$A105,'Town-Wide Capital Planning'!$B:$B,$G$2)+SUMIFS('Town-Wide Capital Planning'!P:P,'Town-Wide Capital Planning'!$H:$H,$A105,'Town-Wide Capital Planning'!$B:$B,$H$2) -> 0 | D105: =SUMIFS('Town-Wide Capital Planning'!Q:Q,'Town-Wide Capital Planning'!$H:$H,$A105,'Town-Wide Capital Planning'!$B:$B,$C$2)+SUMIFS('Town-Wide Capital Planning'!Q:Q,'Town-Wide Capital Planning'!$H:$H,$A105,'Town-Wide Capital Planning'!$B:$B,$D$2)+SUMIFS('Town-Wide Capital Planning'!Q:Q,'Town-Wide Capital Planning'!$H:$H,$A105,'Town-Wide Capital Planning'!$B:$B,$E$2)+SUMIFS('Town-Wide Capital Planning'!Q:Q,'Town-Wide Capital Planning'!$H:$H,$A105,'Town-Wide Capital Planning'!$B:$B,$F$2)+SUMIFS('Town-Wide Capital Planning'!Q:Q,'Town-Wide Capital Planning'!$H:$H,$A105,'Town-Wide Capital Planning'!$B:$B,$G$2)+SUMIFS('Town-Wide Capital Planning'!Q:Q,'Town-Wide Capital Planning'!$H:$H,$A105,'Town-Wide Capital Planning'!$B:$B,$H$2) -> 0 | E105: =SUMIFS('Town-Wide Capital Planning'!R:R,'Town-Wide Capital Planning'!$H:$H,$A105,'Town-Wide Capital Planning'!$B:$B,$C$2)+SUMIFS('Town-Wide Capital Planning'!R:R,'Town-Wide Capital Planning'!$H:$H,$A105,'Town-Wide Capital Planning'!$B:$B,$D$2)+SUMIFS('Town-Wide Capital Planning'!R:R,'Town-Wide Capital Planning'!$H:$H,$A105,'Town-Wide Capital Planning'!$B:$B,$E$2)+SUMIFS('Town-Wide Capital Planning'!R:R,'Town-Wide Capital Planning'!$H:$H,$A105,'Town-Wide Capital Planning'!$B:$B,$F$2)+SUMIFS('Town-Wide Capital Planning'!R:R,'Town-Wide Capital Planning'!$H:$H,$A105,'Town-Wide Capital Planning'!$B:$B,$G$2)+SUMIFS('Town-Wide Capital Planning'!R:R,'Town-Wide Capital Planning'!$H:$H,$A105,'Town-Wide Capital Planning'!$B:$B,$H$2) -> 0 | F105: =SUMIFS('Town-Wide Capital Planning'!S:S,'Town-Wide Capital Planning'!$H:$H,$A105,'Town-Wide Capital Planning'!$B:$B,$C$2)+SUMIFS('Town-Wide Capital Planning'!S:S,'Town-Wide Capital Planning'!$H:$H,$A105,'Town-Wide Capital Planning'!$B:$B,$D$2)+SUMIFS('Town-Wide Capital Planning'!S:S,'Town-Wide Capital Planning'!$H:$H,$A105,'Town-Wide Capital Planning'!$B:$B,$E$2)+SUMIFS('Town-Wide Capital Planning'!S:S,'Town-Wide Capital Planning'!$H:$H,$A105,'Town-Wide Capital Planning'!$B:$B,$F$2)+SUMIFS('Town-Wide Capital Planning'!S:S,'Town-Wide Capital Planning'!$H:$H,$A105,'Town-Wide Capital Planning'!$B:$B,$G$2)+SUMIFS('Town-Wide Capital Planning'!S:S,'Town-Wide Capital Planning'!$H:$H,$A105,'Town-Wide Capital Planning'!$B:$B,$H$2) -> 0 | G105: =SUMIFS('Town-Wide Capital Planning'!T:T,'Town-Wide Capital Planning'!$H:$H,$A105,'Town-Wide Capital Planning'!$B:$B,$C$2)+SUMIFS('Town-Wide Capital Planning'!T:T,'Town-Wide Capital Planning'!$H:$H,$A105,'Town-Wide Capital Planning'!$B:$B,$D$2)+SUMIFS('Town-Wide Capital Planning'!T:T,'Town-Wide Capital Planning'!$H:$H,$A105,'Town-Wide Capital Planning'!$B:$B,$E$2)+SUMIFS('Town-Wide Capital Planning'!T:T,'Town-Wide Capital Planning'!$H:$H,$A105,'Town-Wide Capital Planning'!$B:$B,$F$2)+SUMIFS('Town-Wide Capital Planning'!T:T,'Town-Wide Capital Planning'!$H:$H,$A105,'Town-Wide Capital Planning'!$B:$B,$G$2)+SUMIFS('Town-Wide Capital Planning'!T:T,'Town-Wide Capital Planning'!$H:$H,$A105,'Town-Wide Capital Planning'!$B:$B,$H$2) -> 5000 | H105: =SUMIFS('Town-Wide Capital Planning'!U:U,'Town-Wide Capital Planning'!$H:$H,$A105,'Town-Wide Capital Planning'!$B:$B,$C$2)+SUMIFS('Town-Wide Capital Planning'!U:U,'Town-Wide Capital Planning'!$H:$H,$A105,'Town-Wide Capital Planning'!$B:$B,$D$2)+SUMIFS('Town-Wide Capital Planning'!U:U,'Town-Wide Capital Planning'!$H:$H,$A105,'Town-Wide Capital Planning'!$B:$B,$E$2)+SUMIFS('Town-Wide Capital Planning'!U:U,'Town-Wide Capital Planning'!$H:$H,$A105,'Town-Wide Capital Planning'!$B:$B,$F$2)+SUMIFS('Town-Wide Capital Planning'!U:U,'Town-Wide Capital Planning'!$H:$H,$A105,'Town-Wide Capital Planning'!$B:$B,$G$2)+SUMIFS('Town-Wide Capital Planning'!U:U,'Town-Wide Capital Planning'!$H:$H,$A105,'Town-Wide Capital Planning'!$B:$B,$H$2) -> 0 | I105: =SUMIFS('Town-Wide Capital Planning'!V:V,'Town-Wide Capital Planning'!$H:$H,$A105,'Town-Wide Capital Planning'!$B:$B,$C$2)+SUMIFS('Town-Wide Capital Planning'!V:V,'Town-Wide Capital Planning'!$H:$H,$A105,'Town-Wide Capital Planning'!$B:$B,$D$2)+SUMIFS('Town-Wide Capital Planning'!V:V,'Town-Wide Capital Planning'!$H:$H,$A105,'Town-Wide Capital Planning'!$B:$B,$E$2)+SUMIFS('Town-Wide Capital Planning'!V:V,'Town-Wide Capital Planning'!$H:$H,$A105,'Town-Wide Capital Planning'!$B:$B,$F$2)+SUMIFS('Town-Wide Capital Planning'!V:V,'Town-Wide Capital Planning'!$H:$H,$A105,'Town-Wide Capital Planning'!$B:$B,$G$2)+SUMIFS('Town-Wide Capital Planning'!V:V,'Town-Wide Capital Planning'!$H:$H,$A105,'Town-Wide Capital Planning'!$B:$B,$H$2) -> 0 | J105: =SUMIFS('Town-Wide Capital Planning'!W:W,'Town-Wide Capital Planning'!$H:$H,$A105,'Town-Wide Capital Planning'!$B:$B,$C$2)+SUMIFS('Town-Wide Capital Planning'!W:W,'Town-Wide Capital Planning'!$H:$H,$A105,'Town-Wide Capital Planning'!$B:$B,$D$2)+SUMIFS('Town-Wide Capital Planning'!W:W,'Town-Wide Capital Planning'!$H:$H,$A105,'Town-Wide Capital Planning'!$B:$B,$E$2)+SUMIFS('Town-Wide Capital Planning'!W:W,'Town-Wide Capital Planning'!$H:$H,$A105,'Town-Wide Capital Planning'!$B:$B,$F$2)+SUMIFS('Town-Wide Capital Planning'!W:W,'Town-Wide Capital Planning'!$H:$H,$A105,'Town-Wide Capital Planning'!$B:$B,$G$2)+SUMIFS('Town-Wide Capital Planning'!W:W,'Town-Wide Capital Planning'!$H:$H,$A105,'Town-Wide Capital Planning'!$B:$B,$H$2) -> 0 | K105: =SUMIFS('Town-Wide Capital Planning'!X:X,'Town-Wide Capital Planning'!$H:$H,$A105,'Town-Wide Capital Planning'!$B:$B,$C$2)+SUMIFS('Town-Wide Capital Planning'!X:X,'Town-Wide Capital Planning'!$H:$H,$A105,'Town-Wide Capital Planning'!$B:$B,$D$2)+SUMIFS('Town-Wide Capital Planning'!X:X,'Town-Wide Capital Planning'!$H:$H,$A105,'Town-Wide Capital Planning'!$B:$B,$E$2)+SUMIFS('Town-Wide Capital Planning'!X:X,'Town-Wide Capital Planning'!$H:$H,$A105,'Town-Wide Capital Planning'!$B:$B,$F$2)+SUMIFS('Town-Wide Capital Planning'!X:X,'Town-Wide Capital Planning'!$H:$H,$A105,'Town-Wide Capital Planning'!$B:$B,$G$2)+SUMIFS('Town-Wide Capital Planning'!X:X,'Town-Wide Capital Planning'!$H:$H,$A105,'Town-Wide Capital Planning'!$B:$B,$H$2) -> 0 | L105: =SUMIFS('Town-Wide Capital Planning'!Y:Y,'Town-Wide Capital Planning'!$H:$H,$A105,'Town-Wide Capital Planning'!$B:$B,$C$2)+SUMIFS('Town-Wide Capital Planning'!Y:Y,'Town-Wide Capital Planning'!$H:$H,$A105,'Town-Wide Capital Planning'!$B:$B,$D$2)+SUMIFS('Town-Wide Capital Planning'!Y:Y,'Town-Wide Capital Planning'!$H:$H,$A105,'Town-Wide Capital Planning'!$B:$B,$E$2)+SUMIFS('Town-Wide Capital Planning'!Y:Y,'Town-Wide Capital Planning'!$H:$H,$A105,'Town-Wide Capital Planning'!$B:$B,$F$2)+SUMIFS('Town-Wide Capital Planning'!Y:Y,'Town-Wide Capital Planning'!$H:$H,$A105,'Town-Wide Capital Planning'!$B:$B,$G$2)+SUMIFS('Town-Wide Capital Planning'!Y:Y,'Town-Wide Capital Planning'!$H:$H,$A105,'Town-Wide Capital Planning'!$B:$B,$H$2) -> 5000 | M105: 10000
A106: Regional Dispatch Grant | C106: =SUMIFS('Town-Wide Capital Planning'!P:P,'Town-Wide Capital Planning'!$H:$H,$A106,'Town-Wide Capital Planning'!$B:$B,$C$2)+SUMIFS('Town-Wide Capital Planning'!P:P,'Town-Wide Capital Planning'!$H:$H,$A106,'Town-Wide Capital Planning'!$B:$B,$D$2)+SUMIFS('Town-Wide Capital Planning'!P:P,'Town-Wide Capital Planning'!$H:$H,$A106,'Town-Wide Capital Planning'!$B:$B,$E$2)+SUMIFS('Town-Wide Capital Planning'!P:P,'Town-Wide Capital Planning'!$H:$H,$A106,'Town-Wide Capital Planning'!$B:$B,$F$2)+SUMIFS('Town-Wide Capital Planning'!P:P,'Town-Wide Capital Planning'!$H:$H,$A106,'Town-Wide Capital Planning'!$B:$B,$G$2)+SUMIFS('Town-Wide Capital Planning'!P:P,'Town-Wide Capital Planning'!$H:$H,$A106,'Town-Wide Capital Planning'!$B:$B,$H$2) -> 0 | D106: =SUMIFS('Town-Wide Capital Planning'!Q:Q,'Town-Wide Capital Planning'!$H:$H,$A106,'Town-Wide Capital Planning'!$B:$B,$C$2)+SUMIFS('Town-Wide Capital Planning'!Q:Q,'Town-Wide Capital Planning'!$H:$H,$A106,'Town-Wide Capital Planning'!$B:$B,$D$2)+SUMIFS('Town-Wide Capital Planning'!Q:Q,'Town-Wide Capital Planning'!$H:$H,$A106,'Town-Wide Capital Planning'!$B:$B,$E$2)+SUMIFS('Town-Wide Capital Planning'!Q:Q,'Town-Wide Capital Planning'!$H:$H,$A106,'Town-Wide Capital Planning'!$B:$B,$F$2)+SUMIFS('Town-Wide Capital Planning'!Q:Q,'Town-Wide Capital Planning'!$H:$H,$A106,'Town-Wide Capital Planning'!$B:$B,$G$2)+SUMIFS('Town-Wide Capital Planning'!Q:Q,'Town-Wide Capital Planning'!$H:$H,$A106,'Town-Wide Capital Planning'!$B:$B,$H$2) -> 0 | E106: =SUMIFS('Town-Wide Capital Planning'!R:R,'Town-Wide Capital Planning'!$H:$H,$A106,'Town-Wide Capital Planning'!$B:$B,$C$2)+SUMIFS('Town-Wide Capital Planning'!R:R,'Town-Wide Capital Planning'!$H:$H,$A106,'Town-Wide Capital Planning'!$B:$B,$D$2)+SUMIFS('Town-Wide Capital Planning'!R:R,'Town-Wide Capital Planning'!$H:$H,$A106,'Town-Wide Capital Planning'!$B:$B,$E$2)+SUMIFS('Town-Wide Capital Planning'!R:R,'Town-Wide Capital Planning'!$H:$H,$A106,'Town-Wide Capital Planning'!$B:$B,$F$2)+SUMIFS('Town-Wide Capital Planning'!R:R,'Town-Wide Capital Planning'!$H:$H,$A106,'Town-Wide Capital Planning'!$B:$B,$G$2)+SUMIFS('Town-Wide Capital Planning'!R:R,'Town-Wide Capital Planning'!$H:$H,$A106,'Town-Wide Capital Planning'!$B:$B,$H$2) -> 0 | F106: =SUMIFS('Town-Wide Capital Planning'!S:S,'Town-Wide Capital Planning'!$H:$H,$A106,'Town-Wide Capital Planning'!$B:$B,$C$2)+SUMIFS('Town-Wide Capital Planning'!S:S,'Town-Wide Capital Planning'!$H:$H,$A106,'Town-Wide Capital Planning'!$B:$B,$D$2)+SUMIFS('Town-Wide Capital Planning'!S:S,'Town-Wide Capital Planning'!$H:$H,$A106,'Town-Wide Capital Planning'!$B:$B,$E$2)+SUMIFS('Town-Wide Capital Planning'!S:S,'Town-Wide Capital Planning'!$H:$H,$A106,'Town-Wide Capital Planning'!$B:$B,$F$2)+SUMIFS('Town-Wide Capital Planning'!S:S,'Town-Wide Capital Planning'!$H:$H,$A106,'Town-Wide Capital Planning'!$B:$B,$G$2)+SUMIFS('Town-Wide Capital Planning'!S:S,'Town-Wide Capital Planning'!$H:$H,$A106,'Town-Wide Capital Planning'!$B:$B,$H$2) -> 10400 | G106: =SUMIFS('Town-Wide Capital Planning'!T:T,'Town-Wide Capital Planning'!$H:$H,$A106,'Town-Wide Capital Planning'!$B:$B,$C$2)+SUMIFS('Town-Wide Capital Planning'!T:T,'Town-Wide Capital Planning'!$H:$H,$A106,'Town-Wide Capital Planning'!$B:$B,$D$2)+SUMIFS('Town-Wide Capital Planning'!T:T,'Town-Wide Capital Planning'!$H:$H,$A106,'Town-Wide Capital Planning'!$B:$B,$E$2)+SUMIFS('Town-Wide Capital Planning'!T:T,'Town-Wide Capital Planning'!$H:$H,$A106,'Town-Wide Capital Planning'!$B:$B,$F$2)+SUMIFS('Town-Wide Capital Planning'!T:T,'Town-Wide Capital Planning'!$H:$H,$A106,'Town-Wide Capital Planning'!$B:$B,$G$2)+SUMIFS('Town-Wide Capital Planning'!T:T,'Town-Wide Capital Planning'!$H:$H,$A106,'Town-Wide Capital Planning'!$B:$B,$H$2) -> 0 | H106: =SUMIFS('Town-Wide Capital Planning'!U:U,'Town-Wide Capital Planning'!$H:$H,$A106,'Town-Wide Capital Planning'!$B:$B,$C$2)+SUMIFS('Town-Wide Capital Planning'!U:U,'Town-Wide Capital Planning'!$H:$H,$A106,'Town-Wide Capital Planning'!$B:$B,$D$2)+SUMIFS('Town-Wide Capital Planning'!U:U,'Town-Wide Capital Planning'!$H:$H,$A106,'Town-Wide Capital Planning'!$B:$B,$E$2)+SUMIFS('Town-Wide Capital Planning'!U:U,'Town-Wide Capital Planning'!$H:$H,$A106,'Town-Wide Capital Planning'!$B:$B,$F$2)+SUMIFS('Town-Wide Capital Planning'!U:U,'Town-Wide Capital Planning'!$H:$H,$A106,'Town-Wide Capital Planning'!$B:$B,$G$2)+SUMIFS('Town-Wide Capital Planning'!U:U,'Town-Wide Capital Planning'!$H:$H,$A106,'Town-Wide Capital Planning'!$B:$B,$H$2) -> 0 | I106: =SUMIFS('Town-Wide Capital Planning'!V:V,'Town-Wide Capital Planning'!$H:$H,$A106,'Town-Wide Capital Planning'!$B:$B,$C$2)+SUMIFS('Town-Wide Capital Planning'!V:V,'Town-Wide Capital Planning'!$H:$H,$A106,'Town-Wide Capital Planning'!$B:$B,$D$2)+SUMIFS('Town-Wide Capital Planning'!V:V,'Town-Wide Capital Planning'!$H:$H,$A106,'Town-Wide Capital Planning'!$B:$B,$E$2)+SUMIFS('Town-Wide Capital Planning'!V:V,'Town-Wide Capital Planning'!$H:$H,$A106,'Town-Wide Capital Planning'!$B:$B,$F$2)+SUMIFS('Town-Wide Capital Planning'!V:V,'Town-Wide Capital Planning'!$H:$H,$A106,'Town-Wide Capital Planning'!$B:$B,$G$2)+SUMIFS('Town-Wide Capital Planning'!V:V,'Town-Wide Capital Planning'!$H:$H,$A106,'Town-Wide Capital Planning'!$B:$B,$H$2) -> 0 | J106: =SUMIFS('Town-Wide Capital Planning'!W:W,'Town-Wide Capital Planning'!$H:$H,$A106,'Town-Wide Capital Planning'!$B:$B,$C$2)+SUMIFS('Town-Wide Capital Planning'!W:W,'Town-Wide Capital Planning'!$H:$H,$A106,'Town-Wide Capital Planning'!$B:$B,$D$2)+SUMIFS('Town-Wide Capital Planning'!W:W,'Town-Wide Capital Planning'!$H:$H,$A106,'Town-Wide Capital Planning'!$B:$B,$E$2)+SUMIFS('Town-Wide Capital Planning'!W:W,'Town-Wide Capital Planning'!$H:$H,$A106,'Town-Wide Capital Planning'!$B:$B,$F$2)+SUMIFS('Town-Wide Capital Planning'!W:W,'Town-Wide Capital Planning'!$H:$H,$A106,'Town-Wide Capital Planning'!$B:$B,$G$2)+SUMIFS('Town-Wide Capital Planning'!W:W,'Town-Wide Capital Planning'!$H:$H,$A106,'Town-Wide Capital Planning'!$B:$B,$H$2) -> 10400 | K106: =SUMIFS('Town-Wide Capital Planning'!X:X,'Town-Wide Capital Planning'!$H:$H,$A106,'Town-Wide Capital Planning'!$B:$B,$C$2)+SUMIFS('Town-Wide Capital Planning'!X:X,'Town-Wide Capital Planning'!$H:$H,$A106,'Town-Wide Capital Planning'!$B:$B,$D$2)+SUMIFS('Town-Wide Capital Planning'!X:X,'Town-Wide Capital Planning'!$H:$H,$A106,'Town-Wide Capital Planning'!$B:$B,$E$2)+SUMIFS('Town-Wide Capital Planning'!X:X,'Town-Wide Capital Planning'!$H:$H,$A106,'Town-Wide Capital Planning'!$B:$B,$F$2)+SUMIFS('Town-Wide Capital Planning'!X:X,'Town-Wide Capital Planning'!$H:$H,$A106,'Town-Wide Capital Planning'!$B:$B,$G$2)+SUMIFS('Town-Wide Capital Planning'!X:X,'Town-Wide Capital Planning'!$H:$H,$A106,'Town-Wide Capital Planning'!$B:$B,$H$2) -> 0 | L106: =SUMIFS('Town-Wide Capital Planning'!Y:Y,'Town-Wide Capital Planning'!$H:$H,$A106,'Town-Wide Capital Planning'!$B:$B,$C$2)+SUMIFS('Town-Wide Capital Planning'!Y:Y,'Town-Wide Capital Planning'!$H:$H,$A106,'Town-Wide Capital Planning'!$B:$B,$D$2)+SUMIFS('Town-Wide Capital Planning'!Y:Y,'Town-Wide Capital Planning'!$H:$H,$A106,'Town-Wide Capital Planning'!$B:$B,$E$2)+SUMIFS('Town-Wide Capital Planning'!Y:Y,'Town-Wide Capital Planning'!$H:$H,$A106,'Town-Wide Capital Planning'!$B:$B,$F$2)+SUMIFS('Town-Wide Capital Planning'!Y:Y,'Town-Wide Capital Planning'!$H:$H,$A106,'Town-Wide Capital Planning'!$B:$B,$G$2)+SUMIFS('Town-Wide Capital Planning'!Y:Y,'Town-Wide Capital Planning'!$H:$H,$A106,'Town-Wide Capital Planning'!$B:$B,$H$2) -> 0 | M106: =SUM(C106:L106) -> 20800
A107: Other Federal/State Grant | C107: =SUMIFS('Town-Wide Capital Planning'!P:P,'Town-Wide Capital Planning'!$H:$H,$A107,'Town-Wide Capital Planning'!$B:$B,$C$2)+SUMIFS('Town-Wide Capital Planning'!P:P,'Town-Wide Capital Planning'!$H:$H,$A107,'Town-Wide Capital Planning'!$B:$B,$D$2)+SUMIFS('Town-Wide Capital Planning'!P:P,'Town-Wide Capital Planning'!$H:$H,$A107,'Town-Wide Capital Planning'!$B:$B,$E$2)+SUMIFS('Town-Wide Capital Planning'!P:P,'Town-Wide Capital Planning'!$H:$H,$A107,'Town-Wide Capital Planning'!$B:$B,$F$2)+SUMIFS('Town-Wide Capital Planning'!P:P,'Town-Wide Capital Planning'!$H:$H,$A107,'Town-Wide Capital Planning'!$B:$B,$G$2)+SUMIFS('Town-Wide Capital Planning'!P:P,'Town-Wide Capital Planning'!$H:$H,$A107,'Town-Wide Capital Planning'!$B:$B,$H$2) -> 0 | D107: =SUMIFS('Town-Wide Capital Planning'!Q:Q,'Town-Wide Capital Planning'!$H:$H,$A107,'Town-Wide Capital Planning'!$B:$B,$C$2)+SUMIFS('Town-Wide Capital Planning'!Q:Q,'Town-Wide Capital Planning'!$H:$H,$A107,'Town-Wide Capital Planning'!$B:$B,$D$2)+SUMIFS('Town-Wide Capital Planning'!Q:Q,'Town-Wide Capital Planning'!$H:$H,$A107,'Town-Wide Capital Planning'!$B:$B,$E$2)+SUMIFS('Town-Wide Capital Planning'!Q:Q,'Town-Wide Capital Planning'!$H:$H,$A107,'Town-Wide Capital Planning'!$B:$B,$F$2)+SUMIFS('Town-Wide Capital Planning'!Q:Q,'Town-Wide Capital Planning'!$H:$H,$A107,'Town-Wide Capital Planning'!$B:$B,$G$2)+SUMIFS('Town-Wide Capital Planning'!Q:Q,'Town-Wide Capital Planning'!$H:$H,$A107,'Town-Wide Capital Planning'!$B:$B,$H$2) -> 0 | E107: =SUMIFS('Town-Wide Capital Planning'!R:R,'Town-Wide Capital Planning'!$H:$H,$A107,'Town-Wide Capital Planning'!$B:$B,$C$2)+SUMIFS('Town-Wide Capital Planning'!R:R,'Town-Wide Capital Planning'!$H:$H,$A107,'Town-Wide Capital Planning'!$B:$B,$D$2)+SUMIFS('Town-Wide Capital Planning'!R:R,'Town-Wide Capital Planning'!$H:$H,$A107,'Town-Wide Capital Planning'!$B:$B,$E$2)+SUMIFS('Town-Wide Capital Planning'!R:R,'Town-Wide Capital Planning'!$H:$H,$A107,'Town-Wide Capital Planning'!$B:$B,$F$2)+SUMIFS('Town-Wide Capital Planning'!R:R,'Town-Wide Capital Planning'!$H:$H,$A107,'Town-Wide Capital Planning'!$B:$B,$G$2)+SUMIFS('Town-Wide Capital Planning'!R:R,'Town-Wide Capital Planning'!$H:$H,$A107,'Town-Wide Capital Planning'!$B:$B,$H$2) -> 0 | F107: =SUMIFS('Town-Wide Capital Planning'!S:S,'Town-Wide Capital Planning'!$H:$H,$A107,'Town-Wide Capital Planning'!$B:$B,$C$2)+SUMIFS('Town-Wide Capital Planning'!S:S,'Town-Wide Capital Planning'!$H:$H,$A107,'Town-Wide Capital Planning'!$B:$B,$D$2)+SUMIFS('Town-Wide Capital Planning'!S:S,'Town-Wide Capital Planning'!$H:$H,$A107,'Town-Wide Capital Planning'!$B:$B,$E$2)+SUMIFS('Town-Wide Capital Planning'!S:S,'Town-Wide Capital Planning'!$H:$H,$A107,'Town-Wide Capital Planning'!$B:$B,$F$2)+SUMIFS('Town-Wide Capital Planning'!S:S,'Town-Wide Capital Planning'!$H:$H,$A107,'Town-Wide Capital Planning'!$B:$B,$G$2)+SUMIFS('Town-Wide Capital Planning'!S:S,'Town-Wide Capital Planning'!$H:$H,$A107,'Town-Wide Capital Planning'!$B:$B,$H$2) -> 0 | G107: =SUMIFS('Town-Wide Capital Planning'!T:T,'Town-Wide Capital Planning'!$H:$H,$A107,'Town-Wide Capital Planning'!$B:$B,$C$2)+SUMIFS('Town-Wide Capital Planning'!T:T,'Town-Wide Capital Planning'!$H:$H,$A107,'Town-Wide Capital Planning'!$B:$B,$D$2)+SUMIFS('Town-Wide Capital Planning'!T:T,'Town-Wide Capital Planning'!$H:$H,$A107,'Town-Wide Capital Planning'!$B:$B,$E$2)+SUMIFS('Town-Wide Capital Planning'!T:T,'Town-Wide Capital Planning'!$H:$H,$A107,'Town-Wide Capital Planning'!$B:$B,$F$2)+SUMIFS('Town-Wide Capital Planning'!T:T,'Town-Wide Capital Planning'!$H:$H,$A107,'Town-Wide Capital Planning'!$B:$B,$G$2)+SUMIFS('Town-Wide Capital Planning'!T:T,'Town-Wide Capital Planning'!$H:$H,$A107,'Town-Wide Capital Planning'!$B:$B,$H$2) -> 0 | H107: =SUMIFS('Town-Wide Capital Planning'!U:U,'Town-Wide Capital Planning'!$H:$H,$A107,'Town-Wide Capital Planning'!$B:$B,$C$2)+SUMIFS('Town-Wide Capital Planning'!U:U,'Town-Wide Capital Planning'!$H:$H,$A107,'Town-Wide Capital Planning'!$B:$B,$D$2)+SUMIFS('Town-Wide Capital Planning'!U:U,'Town-Wide Capital Planning'!$H:$H,$A107,'Town-Wide Capital Planning'!$B:$B,$E$2)+SUMIFS('Town-Wide Capital Planning'!U:U,'Town-Wide Capital Planning'!$H:$H,$A107,'Town-Wide Capital Planning'!$B:$B,$F$2)+SUMIFS('Town-Wide Capital Planning'!U:U,'Town-Wide Capital Planning'!$H:$H,$A107,'Town-Wide Capital Planning'!$B:$B,$G$2)+SUMIFS('Town-Wide Capital Planning'!U:U,'Town-Wide Capital Planning'!$H:$H,$A107,'Town-Wide Capital Planning'!$B:$B,$H$2) -> 0 | I107: =SUMIFS('Town-Wide Capital Planning'!V:V,'Town-Wide Capital Planning'!$H:$H,$A107,'Town-Wide Capital Planning'!$B:$B,$C$2)+SUMIFS('Town-Wide Capital Planning'!V:V,'Town-Wide Capital Planning'!$H:$H,$A107,'Town-Wide Capital Planning'!$B:$B,$D$2)+SUMIFS('Town-Wide Capital Planning'!V:V,'Town-Wide Capital Planning'!$H:$H,$A107,'Town-Wide Capital Planning'!$B:$B,$E$2)+SUMIFS('Town-Wide Capital Planning'!V:V,'Town-Wide Capital Planning'!$H:$H,$A107,'Town-Wide Capital Planning'!$B:$B,$F$2)+SUMIFS('Town-Wide Capital Planning'!V:V,'Town-Wide Capital Planning'!$H:$H,$A107,'Town-Wide Capital Planning'!$B:$B,$G$2)+SUMIFS('Town-Wide Capital Planning'!V:V,'Town-Wide Capital Planning'!$H:$H,$A107,'Town-Wide Capital Planning'!$B:$B,$H$2) -> 20000 | J107: =SUMIFS('Town-Wide Capital Planning'!W:W,'Town-Wide Capital Planning'!$H:$H,$A107,'Town-Wide Capital Planning'!$B:$B,$C$2)+SUMIFS('Town-Wide Capital Planning'!W:W,'Town-Wide Capital Planning'!$H:$H,$A107,'Town-Wide Capital Planning'!$B:$B,$D$2)+SUMIFS('Town-Wide Capital Planning'!W:W,'Town-Wide Capital Planning'!$H:$H,$A107,'Town-Wide Capital Planning'!$B:$B,$E$2)+SUMIFS('Town-Wide Capital Planning'!W:W,'Town-Wide Capital Planning'!$H:$H,$A107,'Town-Wide Capital Planning'!$B:$B,$F$2)+SUMIFS('Town-Wide Capital Planning'!W:W,'Town-Wide Capital Planning'!$H:$H,$A107,'Town-Wide Capital Planning'!$B:$B,$G$2)+SUMIFS('Town-Wide Capital Planning'!W:W,'Town-Wide Capital Planning'!$H:$H,$A107,'Town-Wide Capital Planning'!$B:$B,$H$2) -> 0 | K107: =SUMIFS('Town-Wide Capital Planning'!X:X,'Town-Wide Capital Planning'!$H:$H,$A107,'Town-Wide Capital Planning'!$B:$B,$C$2)+SUMIFS('Town-Wide Capital Planning'!X:X,'Town-Wide Capital Planning'!$H:$H,$A107,'Town-Wide Capital Planning'!$B:$B,$D$2)+SUMIFS('Town-Wide Capital Planning'!X:X,'Town-Wide Capital Planning'!$H:$H,$A107,'Town-Wide Capital Planning'!$B:$B,$E$2)+SUMIFS('Town-Wide Capital Planning'!X:X,'Town-Wide Capital Planning'!$H:$H,$A107,'Town-Wide Capital Planning'!$B:$B,$F$2)+SUMIFS('Town-Wide Capital Planning'!X:X,'Town-Wide Capital Planning'!$H:$H,$A107,'Town-Wide Capital Planning'!$B:$B,$G$2)+SUMIFS('Town-Wide Capital Planning'!X:X,'Town-Wide Capital Planning'!$H:$H,$A107,'Town-Wide Capital Planning'!$B:$B,$H$2) -> 0 | L107: =SUMIFS('Town-Wide Capital Planning'!Y:Y,'Town-Wide Capital Planning'!$H:$H,$A107,'Town-Wide Capital Planning'!$B:$B,$C$2)+SUMIFS('Town-Wide Capital Planning'!Y:Y,'Town-Wide Capital Planning'!$H:$H,$A107,'Town-Wide Capital Planning'!$B:$B,$D$2)+SUMIFS('Town-Wide Capital Planning'!Y:Y,'Town-Wide Capital Planning'!$H:$H,$A107,'Town-Wide Capital Planning'!$B:$B,$E$2)+SUMIFS('Town-Wide Capital Planning'!Y:Y,'Town-Wide Capital Planning'!$H:$H,$A107,'Town-Wide Capital Planning'!$B:$B,$F$2)+SUMIFS('Town-Wide Capital Planning'!Y:Y,'Town-Wide Capital Planning'!$H:$H,$A107,'Town-Wide Capital Planning'!$B:$B,$G$2)+SUMIFS('Town-Wide Capital Planning'!Y:Y,'Town-Wide Capital Planning'!$H:$H,$A107,'Town-Wide Capital Planning'!$B:$B,$H$2) -> 0 | M107: =SUM(C107:L107) -> 20000
A108: Library Endowment | C108: =SUMIFS('Town-Wide Capital Planning'!P:P,'Town-Wide Capital Planning'!$H:$H,$A108,'Town-Wide Capital Planning'!$B:$B,$C$2)+SUMIFS('Town-Wide Capital Planning'!P:P,'Town-Wide Capital Planning'!$H:$H,$A108,'Town-Wide Capital Planning'!$B:$B,$D$2)+SUMIFS('Town-Wide Capital Planning'!P:P,'Town-Wide Capital Planning'!$H:$H,$A108,'Town-Wide Capital Planning'!$B:$B,$E$2)+SUMIFS('Town-Wide Capital Planning'!P:P,'Town-Wide Capital Planning'!$H:$H,$A108,'Town-Wide Capital Planning'!$B:$B,$F$2)+SUMIFS('Town-Wide Capital Planning'!P:P,'Town-Wide Capital Planning'!$H:$H,$A108,'Town-Wide Capital Planning'!$B:$B,$G$2)+SUMIFS('Town-Wide Capital Planning'!P:P,'Town-Wide Capital Planning'!$H:$H,$A108,'Town-Wide Capital Planning'!$B:$B,$H$2) -> 0 | D108: =SUMIFS('Town-Wide Capital Planning'!Q:Q,'Town-Wide Capital Planning'!$H:$H,$A108,'Town-Wide Capital Planning'!$B:$B,$C$2)+SUMIFS('Town-Wide Capital Planning'!Q:Q,'Town-Wide Capital Planning'!$H:$H,$A108,'Town-Wide Capital Planning'!$B:$B,$D$2)+SUMIFS('Town-Wide Capital Planning'!Q:Q,'Town-Wide Capital Planning'!$H:$H,$A108,'Town-Wide Capital Planning'!$B:$B,$E$2)+SUMIFS('Town-Wide Capital Planning'!Q:Q,'Town-Wide Capital Planning'!$H:$H,$A108,'Town-Wide Capital Planning'!$B:$B,$F$2)+SUMIFS('Town-Wide Capital Planning'!Q:Q,'Town-Wide Capital Planning'!$H:$H,$A108,'Town-Wide Capital Planning'!$B:$B,$G$2)+SUMIFS('Town-Wide Capital Planning'!Q:Q,'Town-Wide Capital Planning'!$H:$H,$A108,'Town-Wide Capital Planning'!$B:$B,$H$2) -> 0 | E108: =SUMIFS('Town-Wide Capital Planning'!R:R,'Town-Wide Capital Planning'!$H:$H,$A108,'Town-Wide Capital Planning'!$B:$B,$C$2)+SUMIFS('Town-Wide Capital Planning'!R:R,'Town-Wide Capital Planning'!$H:$H,$A108,'Town-Wide Capital Planning'!$B:$B,$D$2)+SUMIFS('Town-Wide Capital Planning'!R:R,'Town-Wide Capital Planning'!$H:$H,$A108,'Town-Wide Capital Planning'!$B:$B,$E$2)+SUMIFS('Town-Wide Capital Planning'!R:R,'Town-Wide Capital Planning'!$H:$H,$A108,'Town-Wide Capital Planning'!$B:$B,$F$2)+SUMIFS('Town-Wide Capital Planning'!R:R,'Town-Wide Capital Planning'!$H:$H,$A108,'Town-Wide Capital Planning'!$B:$B,$G$2)+SUMIFS('Town-Wide Capital Planning'!R:R,'Town-Wide Capital Planning'!$H:$H,$A108,'Town-Wide Capital Planning'!$B:$B,$H$2) -> 0 | F108: =SUMIFS('Town-Wide Capital Planning'!S:S,'Town-Wide Capital Planning'!$H:$H,$A108,'Town-Wide Capital Planning'!$B:$B,$C$2)+SUMIFS('Town-Wide Capital Planning'!S:S,'Town-Wide Capital Planning'!$H:$H,$A108,'Town-Wide Capital Planning'!$B:$B,$D$2)+SUMIFS('Town-Wide Capital Planning'!S:S,'Town-Wide Capital Planning'!$H:$H,$A108,'Town-Wide Capital Planning'!$B:$B,$E$2)+SUMIFS('Town-Wide Capital Planning'!S:S,'Town-Wide Capital Planning'!$H:$H,$A108,'Town-Wide Capital Planning'!$B:$B,$F$2)+SUMIFS('Town-Wide Capital Planning'!S:S,'Town-Wide Capital Planning'!$H:$H,$A108,'Town-Wide Capital Planning'!$B:$B,$G$2)+SUMIFS('Town-Wide Capital Planning'!S:S,'Town-Wide Capital Planning'!$H:$H,$A108,'Town-Wide Capital Planning'!$B:$B,$H$2) -> 250000 | G108: =SUMIFS('Town-Wide Capital Planning'!T:T,'Town-Wide Capital Planning'!$H:$H,$A108,'Town-Wide Capital Planning'!$B:$B,$C$2)+SUMIFS('Town-Wide Capital Planning'!T:T,'Town-Wide Capital Planning'!$H:$H,$A108,'Town-Wide Capital Planning'!$B:$B,$D$2)+SUMIFS('Town-Wide Capital Planning'!T:T,'Town-Wide Capital Planning'!$H:$H,$A108,'Town-Wide Capital Planning'!$B:$B,$E$2)+SUMIFS('Town-Wide Capital Planning'!T:T,'Town-Wide Capital Planning'!$H:$H,$A108,'Town-Wide Capital Planning'!$B:$B,$F$2)+SUMIFS('Town-Wide Capital Planning'!T:T,'Town-Wide Capital Planning'!$H:$H,$A108,'Town-Wide Capital Planning'!$B:$B,$G$2)+SUMIFS('Town-Wide Capital Planning'!T:T,'Town-Wide Capital Planning'!$H:$H,$A108,'Town-Wide Capital Planning'!$B:$B,$H$2) -> 0 | H108: =SUMIFS('Town-Wide Capital Planning'!U:U,'Town-Wide Capital Planning'!$H:$H,$A108,'Town-Wide Capital Planning'!$B:$B,$C$2)+SUMIFS('Town-Wide Capital Planning'!U:U,'Town-Wide Capital Planning'!$H:$H,$A108,'Town-Wide Capital Planning'!$B:$B,$D$2)+SUMIFS('Town-Wide Capital Planning'!U:U,'Town-Wide Capital Planning'!$H:$H,$A108,'Town-Wide Capital Planning'!$B:$B,$E$2)+SUMIFS('Town-Wide Capital Planning'!U:U,'Town-Wide Capital Planning'!$H:$H,$A108,'Town-Wide Capital Planning'!$B:$B,$F$2)+SUMIFS('Town-Wide Capital Planning'!U:U,'Town-Wide Capital Planning'!$H:$H,$A108,'Town-Wide Capital Planning'!$B:$B,$G$2)+SUMIFS('Town-Wide Capital Planning'!U:U,'Town-Wide Capital Planning'!$H:$H,$A108,'Town-Wide Capital Planning'!$B:$B,$H$2) -> 0 | I108: =SUMIFS('Town-Wide Capital Planning'!V:V,'Town-Wide Capital Planning'!$H:$H,$A108,'Town-Wide Capital Planning'!$B:$B,$C$2)+SUMIFS('Town-Wide Capital Planning'!V:V,'Town-Wide Capital Planning'!$H:$H,$A108,'Town-Wide Capital Planning'!$B:$B,$D$2)+SUMIFS('Town-Wide Capital Planning'!V:V,'Town-Wide Capital Planning'!$H:$H,$A108,'Town-Wide Capital Planning'!$B:$B,$E$2)+SUMIFS('Town-Wide Capital Planning'!V:V,'Town-Wide Capital Planning'!$H:$H,$A108,'Town-Wide Capital Planning'!$B:$B,$F$2)+SUMIFS('Town-Wide Capital Planning'!V:V,'Town-Wide Capital Planning'!$H:$H,$A108,'Town-Wide Capital Planning'!$B:$B,$G$2)+SUMIFS('Town-Wide Capital Planning'!V:V,'Town-Wide Capital Planning'!$H:$H,$A108,'Town-Wide Capital Planning'!$B:$B,$H$2) -> 0 | J108: =SUMIFS('Town-Wide Capital Planning'!W:W,'Town-Wide Capital Planning'!$H:$H,$A108,'Town-Wide Capital Planning'!$B:$B,$C$2)+SUMIFS('Town-Wide Capital Planning'!W:W,'Town-Wide Capital Planning'!$H:$H,$A108,'Town-Wide Capital Planning'!$B:$B,$D$2)+SUMIFS('Town-Wide Capital Planning'!W:W,'Town-Wide Capital Planning'!$H:$H,$A108,'Town-Wide Capital Planning'!$B:$B,$E$2)+SUMIFS('Town-Wide Capital Planning'!W:W,'Town-Wide Capital Planning'!$H:$H,$A108,'Town-Wide Capital Planning'!$B:$B,$F$2)+SUMIFS('Town-Wide Capital Planning'!W:W,'Town-Wide Capital Planning'!$H:$H,$A108,'Town-Wide Capital Planning'!$B:$B,$G$2)+SUMIFS('Town-Wide Capital Planning'!W:W,'Town-Wide Capital Planning'!$H:$H,$A108,'Town-Wide Capital Planning'!$B:$B,$H$2) -> 0 | K108: =SUMIFS('Town-Wide Capital Planning'!X:X,'Town-Wide Capital Planning'!$H:$H,$A108,'Town-Wide Capital Planning'!$B:$B,$C$2)+SUMIFS('Town-Wide Capital Planning'!X:X,'Town-Wide Capital Planning'!$H:$H,$A108,'Town-Wide Capital Planning'!$B:$B,$D$2)+SUMIFS('Town-Wide Capital Planning'!X:X,'Town-Wide Capital Planning'!$H:$H,$A108,'Town-Wide Capital Planning'!$B:$B,$E$2)+SUMIFS('Town-Wide Capital Planning'!X:X,'Town-Wide Capital Planning'!$H:$H,$A108,'Town-Wide Capital Planning'!$B:$B,$F$2)+SUMIFS('Town-Wide Capital Planning'!X:X,'Town-Wide Capital Planning'!$H:$H,$A108,'Town-Wide Capital Planning'!$B:$B,$G$2)+SUMIFS('Town-Wide Capital Planning'!X:X,'Town-Wide Capital Planning'!$H:$H,$A108,'Town-Wide Capital Planning'!$B:$B,$H$2) -> 0 | L108: =SUMIFS('Town-Wide Capital Planning'!Y:Y,'Town-Wide Capital Planning'!$H:$H,$A108,'Town-Wide Capital Planning'!$B:$B,$C$2)+SUMIFS('Town-Wide Capital Planning'!Y:Y,'Town-Wide Capital Planning'!$H:$H,$A108,'Town-Wide Capital Planning'!$B:$B,$D$2)+SUMIFS('Town-Wide Capital Planning'!Y:Y,'Town-Wide Capital Planning'!$H:$H,$A108,'Town-Wide Capital Planning'!$B:$B,$E$2)+SUMIFS('Town-Wide Capital Planning'!Y:Y,'Town-Wide Capital Planning'!$H:$H,$A108,'Town-Wide Capital Planning'!$B:$B,$F$2)+SUMIFS('Town-Wide Capital Planning'!Y:Y,'Town-Wide Capital Planning'!$H:$H,$A108,'Town-Wide Capital Planning'!$B:$B,$G$2)+SUMIFS('Town-Wide Capital Planning'!Y:Y,'Town-Wide Capital Planning'!$H:$H,$A108,'Town-Wide Capital Planning'!$B:$B,$H$2) -> 0 | M108: =SUM(C108:L108) -> 250000
A109: Water Retained Earnings | C109: =SUMIFS('Town-Wide Capital Planning'!P:P,'Town-Wide Capital Planning'!$H:$H,$A109,'Town-Wide Capital Planning'!$B:$B,$C$2)+SUMIFS('Town-Wide Capital Planning'!P:P,'Town-Wide Capital Planning'!$H:$H,$A109,'Town-Wide Capital Planning'!$B:$B,$D$2)+SUMIFS('Town-Wide Capital Planning'!P:P,'Town-Wide Capital Planning'!$H:$H,$A109,'Town-Wide Capital Planning'!$B:$B,#REF!)+SUMIFS('Town-Wide Capital Planning'!P:P,'Town-Wide Capital Planning'!$H:$H,$A109,'Town-Wide Capital Planning'!$B:$B,#REF!)+SUMIFS('Town-Wide Capital Planning'!P:P,'Town-Wide Capital Planning'!$H:$H,$A109,'Town-Wide Capital Planning'!$B:$B,#REF!)+SUMIFS('Town-Wide Capital Planning'!P:P,'Town-Wide Capital Planning'!$H:$H,$A109,'Town-Wide Capital Planning'!$B:$B,#REF!) -> 0 | D109: =SUMIFS('Town-Wide Capital Planning'!Q:Q,'Town-Wide Capital Planning'!$H:$H,$A109,'Town-Wide Capital Planning'!$B:$B,$C$2)+SUMIFS('Town-Wide Capital Planning'!Q:Q,'Town-Wide Capital Planning'!$H:$H,$A109,'Town-Wide Capital Planning'!$B:$B,$D$2)+SUMIFS('Town-Wide Capital Planning'!Q:Q,'Town-Wide Capital Planning'!$H:$H,$A109,'Town-Wide Capital Planning'!$B:$B,#REF!)+SUMIFS('Town-Wide Capital Planning'!Q:Q,'Town-Wide Capital Planning'!$H:$H,$A109,'Town-Wide Capital Planning'!$B:$B,#REF!)+SUMIFS('Town-Wide Capital Planning'!Q:Q,'Town-Wide Capital Planning'!$H:$H,$A109,'Town-Wide Capital Planning'!$B:$B,#REF!)+SUMIFS('Town-Wide Capital Planning'!Q:Q,'Town-Wide Capital Planning'!$H:$H,$A109,'Town-Wide Capital Planning'!$B:$B,#REF!) -> 0 | E109: =SUMIFS('Town-Wide Capital Planning'!R:R,'Town-Wide Capital Planning'!$H:$H,$A109,'Town-Wide Capital Planning'!$B:$B,$C$2)+SUMIFS('Town-Wide Capital Planning'!R:R,'Town-Wide Capital Planning'!$H:$H,$A109,'Town-Wide Capital Planning'!$B:$B,$D$2)+SUMIFS('Town-Wide Capital Planning'!R:R,'Town-Wide Capital Planning'!$H:$H,$A109,'Town-Wide Capital Planning'!$B:$B,#REF!)+SUMIFS('Town-Wide Capital Planning'!R:R,'Town-Wide Capital Planning'!$H:$H,$A109,'Town-Wide Capital Planning'!$B:$B,#REF!)+SUMIFS('Town-Wide Capital Planning'!R:R,'Town-Wide Capital Planning'!$H:$H,$A109,'Town-Wide Capital Planning'!$B:$B,#REF!)+SUMIFS('Town-Wide Capital Planning'!R:R,'Town-Wide Capital Planning'!$H:$H,$A109,'Town-Wide Capital Planning'!$B:$B,#REF!) -> 0 | F109: =SUMIFS('Town-Wide Capital Planning'!S:S,'Town-Wide Capital Planning'!$H:$H,$A109,'Town-Wide Capital Planning'!$B:$B,$C$2)+SUMIFS('Town-Wide Capital Planning'!S:S,'Town-Wide Capital Planning'!$H:$H,$A109,'Town-Wide Capital Planning'!$B:$B,$D$2)+SUMIFS('Town-Wide Capital Planning'!S:S,'Town-Wide Capital Planning'!$H:$H,$A109,'Town-Wide Capital Planning'!$B:$B,#REF!)+SUMIFS('Town-Wide Capital Planning'!S:S,'Town-Wide Capital Planning'!$H:$H,$A109,'Town-Wide Capital Planning'!$B:$B,#REF!)+SUMIFS('Town-Wide Capital Planning'!S:S,'Town-Wide Capital Planning'!$H:$H,$A109,'Town-Wide Capital Planning'!$B:$B,#REF!)+SUMIFS('Town-Wide Capital Planning'!S:S,'Town-Wide Capital Planning'!$H:$H,$A109,'Town-Wide Capital Planning'!$B:$B,#REF!) -> 0 | G109: =SUMIFS('Town-Wide Capital Planning'!T:T,'Town-Wide Capital Planning'!$H:$H,$A109,'Town-Wide Capital Planning'!$B:$B,$C$2)+SUMIFS('Town-Wide Capital Planning'!T:T,'Town-Wide Capital Planning'!$H:$H,$A109,'Town-Wide Capital Planning'!$B:$B,$D$2)+SUMIFS('Town-Wide Capital Planning'!T:T,'Town-Wide Capital Planning'!$H:$H,$A109,'Town-Wide Capital Planning'!$B:$B,#REF!)+SUMIFS('Town-Wide Capital Planning'!T:T,'Town-Wide Capital Planning'!$H:$H,$A109,'Town-Wide Capital Planning'!$B:$B,#REF!)+SUMIFS('Town-Wide Capital Planning'!T:T,'Town-Wide Capital Planning'!$H:$H,$A109,'Town-Wide Capital Planning'!$B:$B,#REF!)+SUMIFS('Town-Wide Capital Planning'!T:T,'Town-Wide Capital Planning'!$H:$H,$A109,'Town-Wide Capital Planning'!$B:$B,#REF!) -> 0 | H109: =SUMIFS('Town-Wide Capital Planning'!U:U,'Town-Wide Capital Planning'!$H:$H,$A109,'Town-Wide Capital Planning'!$B:$B,$C$2)+SUMIFS('Town-Wide Capital Planning'!U:U,'Town-Wide Capital Planning'!$H:$H,$A109,'Town-Wide Capital Planning'!$B:$B,$D$2)+SUMIFS('Town-Wide Capital Planning'!U:U,'Town-Wide Capital Planning'!$H:$H,$A109,'Town-Wide Capital Planning'!$B:$B,#REF!)+SUMIFS('Town-Wide Capital Planning'!U:U,'Town-Wide Capital Planning'!$H:$H,$A109,'Town-Wide Capital Planning'!$B:$B,#REF!)+SUMIFS('Town-Wide Capital Planning'!U:U,'Town-Wide Capital Planning'!$H:$H,$A109,'Town-Wide Capital Planning'!$B:$B,#REF!)+SUMIFS('Town-Wide Capital Planning'!U:U,'Town-Wide Capital Planning'!$H:$H,$A109,'Town-Wide Capital Planning'!$B:$B,#REF!) -> 0 | I109: =SUMIFS('Town-Wide Capital Planning'!V:V,'Town-Wide Capital Planning'!$H:$H,$A109,'Town-Wide Capital Planning'!$B:$B,$C$2)+SUMIFS('Town-Wide Capital Planning'!V:V,'Town-Wide Capital Planning'!$H:$H,$A109,'Town-Wide Capital Planning'!$B:$B,$D$2)+SUMIFS('Town-Wide Capital Planning'!V:V,'Town-Wide Capital Planning'!$H:$H,$A109,'Town-Wide Capital Planning'!$B:$B,#REF!)+SUMIFS('Town-Wide Capital Planning'!V:V,'Town-Wide Capital Planning'!$H:$H,$A109,'Town-Wide Capital Planning'!$B:$B,#REF!)+SUMIFS('Town-Wide Capital Planning'!V:V,'Town-Wide Capital Planning'!$H:$H,$A109,'Town-Wide Capital Planning'!$B:$B,#REF!)+SUMIFS('Town-Wide Capital Planning'!V:V,'Town-Wide Capital Planning'!$H:$H,$A109,'Town-Wide Capital Planning'!$B:$B,#REF!) -> 0 | J109: =SUMIFS('Town-Wide Capital Planning'!W:W,'Town-Wide Capital Planning'!$H:$H,$A109,'Town-Wide Capital Planning'!$B:$B,$C$2)+SUMIFS('Town-Wide Capital Planning'!W:W,'Town-Wide Capital Planning'!$H:$H,$A109,'Town-Wide Capital Planning'!$B:$B,$D$2)+SUMIFS('Town-Wide Capital Planning'!W:W,'Town-Wide Capital Planning'!$H:$H,$A109,'Town-Wide Capital Planning'!$B:$B,#REF!)+SUMIFS('Town-Wide Capital Planning'!W:W,'Town-Wide Capital Planning'!$H:$H,$A109,'Town-Wide Capital Planning'!$B:$B,#REF!)+SUMIFS('Town-Wide Capital Planning'!W:W,'Town-Wide Capital Planning'!$H:$H,$A109,'Town-Wide Capital Planning'!$B:$B,#REF!)+SUMIFS('Town-Wide Capital Planning'!W:W,'Town-Wide Capital Planning'!$H:$H,$A109,'Town-Wide Capital Planning'!$B:$B,#REF!) -> 0 | K109: =SUMIFS('Town-Wide Capital Planning'!X:X,'Town-Wide Capital Planning'!$H:$H,$A109,'Town-Wide Capital Planning'!$B:$B,$C$2)+SUMIFS('Town-Wide Capital Planning'!X:X,'Town-Wide Capital Planning'!$H:$H,$A109,'Town-Wide Capital Planning'!$B:$B,$D$2)+SUMIFS('Town-Wide Capital Planning'!X:X,'Town-Wide Capital Planning'!$H:$H,$A109,'Town-Wide Capital Planning'!$B:$B,#REF!)+SUMIFS('Town-Wide Capital Planning'!X:X,'Town-Wide Capital Planning'!$H:$H,$A109,'Town-Wide Capital Planning'!$B:$B,#REF!)+SUMIFS('Town-Wide Capital Planning'!X:X,'Town-Wide Capital Planning'!$H:$H,$A109,'Town-Wide Capital Planning'!$B:$B,#REF!)+SUMIFS('Town-Wide Capital Planning'!X:X,'Town-Wide Capital Planning'!$H:$H,$A109,'Town-Wide Capital Planning'!$B:$B,#REF!) -> 0 | L109: =SUMIFS('Town-Wide Capital Planning'!Y:Y,'Town-Wide Capital Planning'!$H:$H,$A109,'Town-Wide Capital Planning'!$B:$B,$C$2)+SUMIFS('Town-Wide Capital Planning'!Y:Y,'Town-Wide Capital Planning'!$H:$H,$A109,'Town-Wide Capital Planning'!$B:$B,$D$2)+SUMIFS('Town-Wide Capital Planning'!Y:Y,'Town-Wide Capital Planning'!$H:$H,$A109,'Town-Wide Capital Planning'!$B:$B,#REF!)+SUMIFS('Town-Wide Capital Planning'!Y:Y,'Town-Wide Capital Planning'!$H:$H,$A109,'Town-Wide Capital Planning'!$B:$B,#REF!)+SUMIFS('Town-Wide Capital Planning'!Y:Y,'Town-Wide Capital Planning'!$H:$H,$A109,'Town-Wide Capital Planning'!$B:$B,#REF!)+SUMIFS('Town-Wide Capital Planning'!Y:Y,'Town-Wide Capital Planning'!$H:$H,$A109,'Town-Wide Capital Planning'!$B:$B,#REF!) -> 0 | M109: 0
A110: Sewer Retained Earnings | C110: =SUMIFS('Town-Wide Capital Planning'!P:P,'Town-Wide Capital Planning'!$H:$H,$A110,'Town-Wide Capital Planning'!$B:$B,$C$2)+SUMIFS('Town-Wide Capital Planning'!P:P,'Town-Wide Capital Planning'!$H:$H,$A110,'Town-Wide Capital Planning'!$B:$B,$D$2)+SUMIFS('Town-Wide Capital Planning'!P:P,'Town-Wide Capital Planning'!$H:$H,$A110,'Town-Wide Capital Planning'!$B:$B,#REF!)+SUMIFS('Town-Wide Capital Planning'!P:P,'Town-Wide Capital Planning'!$H:$H,$A110,'Town-Wide Capital Planning'!$B:$B,#REF!)+SUMIFS('Town-Wide Capital Planning'!P:P,'Town-Wide Capital Planning'!$H:$H,$A110,'Town-Wide Capital Planning'!$B:$B,#REF!)+SUMIFS('Town-Wide Capital Planning'!P:P,'Town-Wide Capital Planning'!$H:$H,$A110,'Town-Wide Capital Planning'!$B:$B,#REF!) -> 0 | D110: =SUMIFS('Town-Wide Capital Planning'!Q:Q,'Town-Wide Capital Planning'!$H:$H,$A110,'Town-Wide Capital Planning'!$B:$B,$C$2)+SUMIFS('Town-Wide Capital Planning'!Q:Q,'Town-Wide Capital Planning'!$H:$H,$A110,'Town-Wide Capital Planning'!$B:$B,$D$2)+SUMIFS('Town-Wide Capital Planning'!Q:Q,'Town-Wide Capital Planning'!$H:$H,$A110,'Town-Wide Capital Planning'!$B:$B,#REF!)+SUMIFS('Town-Wide Capital Planning'!Q:Q,'Town-Wide Capital Planning'!$H:$H,$A110,'Town-Wide Capital Planning'!$B:$B,#REF!)+SUMIFS('Town-Wide Capital Planning'!Q:Q,'Town-Wide Capital Planning'!$H:$H,$A110,'Town-Wide Capital Planning'!$B:$B,#REF!)+SUMIFS('Town-Wide Capital Planning'!Q:Q,'Town-Wide Capital Planning'!$H:$H,$A110,'Town-Wide Capital Planning'!$B:$B,#REF!) -> 0 | E110: =SUMIFS('Town-Wide Capital Planning'!R:R,'Town-Wide Capital Planning'!$H:$H,$A110,'Town-Wide Capital Planning'!$B:$B,$C$2)+SUMIFS('Town-Wide Capital Planning'!R:R,'Town-Wide Capital Planning'!$H:$H,$A110,'Town-Wide Capital Planning'!$B:$B,$D$2)+SUMIFS('Town-Wide Capital Planning'!R:R,'Town-Wide Capital Planning'!$H:$H,$A110,'Town-Wide Capital Planning'!$B:$B,#REF!)+SUMIFS('Town-Wide Capital Planning'!R:R,'Town-Wide Capital Planning'!$H:$H,$A110,'Town-Wide Capital Planning'!$B:$B,#REF!)+SUMIFS('Town-Wide Capital Planning'!R:R,'Town-Wide Capital Planning'!$H:$H,$A110,'Town-Wide Capital Planning'!$B:$B,#REF!)+SUMIFS('Town-Wide Capital Planning'!R:R,'Town-Wide Capital Planning'!$H:$H,$A110,'Town-Wide Capital Planning'!$B:$B,#REF!) -> 0 | F110: =SUMIFS('Town-Wide Capital Planning'!S:S,'Town-Wide Capital Planning'!$H:$H,$A110,'Town-Wide Capital Planning'!$B:$B,$C$2)+SUMIFS('Town-Wide Capital Planning'!S:S,'Town-Wide Capital Planning'!$H:$H,$A110,'Town-Wide Capital Planning'!$B:$B,$D$2)+SUMIFS('Town-Wide Capital Planning'!S:S,'Town-Wide Capital Planning'!$H:$H,$A110,'Town-Wide Capital Planning'!$B:$B,#REF!)+SUMIFS('Town-Wide Capital Planning'!S:S,'Town-Wide Capital Planning'!$H:$H,$A110,'Town-Wide Capital Planning'!$B:$B,#REF!)+SUMIFS('Town-Wide Capital Planning'!S:S,'Town-Wide Capital Planning'!$H:$H,$A110,'Town-Wide Capital Planning'!$B:$B,#REF!)+SUMIFS('Town-Wide Capital Planning'!S:S,'Town-Wide Capital Planning'!$H:$H,$A110,'Town-Wide Capital Planning'!$B:$B,#REF!) -> 0 | G110: =SUMIFS('Town-Wide Capital Planning'!T:T,'Town-Wide Capital Planning'!$H:$H,$A110,'Town-Wide Capital Planning'!$B:$B,$C$2)+SUMIFS('Town-Wide Capital Planning'!T:T,'Town-Wide Capital Planning'!$H:$H,$A110,'Town-Wide Capital Planning'!$B:$B,$D$2)+SUMIFS('Town-Wide Capital Planning'!T:T,'Town-Wide Capital Planning'!$H:$H,$A110,'Town-Wide Capital Planning'!$B:$B,#REF!)+SUMIFS('Town-Wide Capital Planning'!T:T,'Town-Wide Capital Planning'!$H:$H,$A110,'Town-Wide Capital Planning'!$B:$B,#REF!)+SUMIFS('Town-Wide Capital Planning'!T:T,'Town-Wide Capital Planning'!$H:$H,$A110,'Town-Wide Capital Planning'!$B:$B,#REF!)+SUMIFS('Town-Wide Capital Planning'!T:T,'Town-Wide Capital Planning'!$H:$H,$A110,'Town-Wide Capital Planning'!$B:$B,#REF!) -> 0 | H110: =SUMIFS('Town-Wide Capital Planning'!U:U,'Town-Wide Capital Planning'!$H:$H,$A110,'Town-Wide Capital Planning'!$B:$B,$C$2)+SUMIFS('Town-Wide Capital Planning'!U:U,'Town-Wide Capital Planning'!$H:$H,$A110,'Town-Wide Capital Planning'!$B:$B,$D$2)+SUMIFS('Town-Wide Capital Planning'!U:U,'Town-Wide Capital Planning'!$H:$H,$A110,'Town-Wide Capital Planning'!$B:$B,#REF!)+SUMIFS('Town-Wide Capital Planning'!U:U,'Town-Wide Capital Planning'!$H:$H,$A110,'Town-Wide Capital Planning'!$B:$B,#REF!)+SUMIFS('Town-Wide Capital Planning'!U:U,'Town-Wide Capital Planning'!$H:$H,$A110,'Town-Wide Capital Planning'!$B:$B,#REF!)+SUMIFS('Town-Wide Capital Planning'!U:U,'Town-Wide Capital Planning'!$H:$H,$A110,'Town-Wide Capital Planning'!$B:$B,#REF!) -> 0 | I110: =SUMIFS('Town-Wide Capital Planning'!V:V,'Town-Wide Capital Planning'!$H:$H,$A110,'Town-Wide Capital Planning'!$B:$B,$C$2)+SUMIFS('Town-Wide Capital Planning'!V:V,'Town-Wide Capital Planning'!$H:$H,$A110,'Town-Wide Capital Planning'!$B:$B,$D$2)+SUMIFS('Town-Wide Capital Planning'!V:V,'Town-Wide Capital Planning'!$H:$H,$A110,'Town-Wide Capital Planning'!$B:$B,#REF!)+SUMIFS('Town-Wide Capital Planning'!V:V,'Town-Wide Capital Planning'!$H:$H,$A110,'Town-Wide Capital Planning'!$B:$B,#REF!)+SUMIFS('Town-Wide Capital Planning'!V:V,'Town-Wide Capital Planning'!$H:$H,$A110,'Town-Wide Capital Planning'!$B:$B,#REF!)+SUMIFS('Town-Wide Capital Planning'!V:V,'Town-Wide Capital Planning'!$H:$H,$A110,'Town-Wide Capital Planning'!$B:$B,#REF!) -> 0 | J110: =SUMIFS('Town-Wide Capital Planning'!W:W,'Town-Wide Capital Planning'!$H:$H,$A110,'Town-Wide Capital Planning'!$B:$B,$C$2)+SUMIFS('Town-Wide Capital Planning'!W:W,'Town-Wide Capital Planning'!$H:$H,$A110,'Town-Wide Capital Planning'!$B:$B,$D$2)+SUMIFS('Town-Wide Capital Planning'!W:W,'Town-Wide Capital Planning'!$H:$H,$A110,'Town-Wide Capital Planning'!$B:$B,#REF!)+SUMIFS('Town-Wide Capital Planning'!W:W,'Town-Wide Capital Planning'!$H:$H,$A110,'Town-Wide Capital Planning'!$B:$B,#REF!)+SUMIFS('Town-Wide Capital Planning'!W:W,'Town-Wide Capital Planning'!$H:$H,$A110,'Town-Wide Capital Planning'!$B:$B,#REF!)+SUMIFS('Town-Wide Capital Planning'!W:W,'Town-Wide Capital Planning'!$H:$H,$A110,'Town-Wide Capital Planning'!$B:$B,#REF!) -> 0 | K110: =SUMIFS('Town-Wide Capital Planning'!X:X,'Town-Wide Capital Planning'!$H:$H,$A110,'Town-Wide Capital Planning'!$B:$B,$C$2)+SUMIFS('Town-Wide Capital Planning'!X:X,'Town-Wide Capital Planning'!$H:$H,$A110,'Town-Wide Capital Planning'!$B:$B,$D$2)+SUMIFS('Town-Wide Capital Planning'!X:X,'Town-Wide Capital Planning'!$H:$H,$A110,'Town-Wide Capital Planning'!$B:$B,#REF!)+SUMIFS('Town-Wide Capital Planning'!X:X,'Town-Wide Capital Planning'!$H:$H,$A110,'Town-Wide Capital Planning'!$B:$B,#REF!)+SUMIFS('Town-Wide Capital Planning'!X:X,'Town-Wide Capital Planning'!$H:$H,$A110,'Town-Wide Capital Planning'!$B:$B,#REF!)+SUMIFS('Town-Wide Capital Planning'!X:X,'Town-Wide Capital Planning'!$H:$H,$A110,'Town-Wide Capital Planning'!$B:$B,#REF!) -> 0 | L110: =SUMIFS('Town-Wide Capital Planning'!Y:Y,'Town-Wide Capital Planning'!$H:$H,$A110,'Town-Wide Capital Planning'!$B:$B,$C$2)+SUMIFS('Town-Wide Capital Planning'!Y:Y,'Town-Wide Capital Planning'!$H:$H,$A110,'Town-Wide Capital Planning'!$B:$B,$D$2)+SUMIFS('Town-Wide Capital Planning'!Y:Y,'Town-Wide Capital Planning'!$H:$H,$A110,'Town-Wide Capital Planning'!$B:$B,#REF!)+SUMIFS('Town-Wide Capital Planning'!Y:Y,'Town-Wide Capital Planning'!$H:$H,$A110,'Town-Wide Capital Planning'!$B:$B,#REF!)+SUMIFS('Town-Wide Capital Planning'!Y:Y,'Town-Wide Capital Planning'!$H:$H,$A110,'Town-Wide Capital Planning'!$B:$B,#REF!)+SUMIFS('Town-Wide Capital Planning'!Y:Y,'Town-Wide Capital Planning'!$H:$H,$A110,'Town-Wide Capital Planning'!$B:$B,#REF!) -> 0 | M110: 0
A111: Total | C111: =SUM(C94:C110) -> 139400 | D111: 640200 | E111: 337890 | F111: 698060 | G111: 446890 | H111: 591136 | I111: 666492 | J111: 736794 | K111: 690036 | L111: 1254120 | M111: 6201018
A112: Control | C112: ='Town-Wide Capital Planning'!P198 -> 139400 | D112: ='Town-Wide Capital Planning'!Q198 -> 640200 | E112: ='Town-Wide Capital Planning'!R198 -> 337890 | F112: ='Town-Wide Capital Planning'!S198 -> 698060 | G112: ='Town-Wide Capital Planning'!T198 -> 446890 | H112: ='Town-Wide Capital Planning'!U198 -> 591136 | I112: ='Town-Wide Capital Planning'!V198 -> 666492 | J112: ='Town-Wide Capital Planning'!W198 -> 736794 | K112: ='Town-Wide Capital Planning'!X198 -> 690036 | L112: ='Town-Wide Capital Planning'!Y198 -> 1254120 | M112: =SUM('Town-Wide Capital Planning'!P198:Y198) -> 6201018
A113: Difference | C113: =C111-C112 -> 0 | D113: =D111-D112 -> 0 | E113: 0 | F113: 0 | G113: 0 | H113: 0 | I113: 0 | J113: 0 | K113: =K111-K112 -> 0 | L113: =L111-L112 -> 0 | M113: =M111-M112 -> 0
A138: Debt Analysis
A140: The following table contains debt already on the books.
A141: Existing Debt | C141: =C$93 -> FY 2020 | D141: FY 2021 | E141: FY 2022 | F141: FY 2023 | G141: FY 2024 | H141: FY 2025 | I141: FY 2026 | J141: FY 2027 | K141: FY 2028 | L141: FY 2029 | M141: Total
A142: Excluded Debt | C142: =SUMIF('Existing Debt'!3:3,VALUE(RIGHT('Summary-General Government'!C141,4)),'Existing Debt'!11:11)+SUMIF('Existing Debt'!3:3,VALUE(RIGHT('Summary-General Government'!C141,4)),'Existing Debt'!12:12)+SUMIF('Existing Debt'!3:3,VALUE(RIGHT('Summary-General Government'!C141,4)),'Existing Debt'!13:13)+229712 -> 1198115.75 | D142: =SUMIF('Existing Debt'!3:3,VALUE(RIGHT('Summary-General Government'!D141,4)),'Existing Debt'!11:11)+SUMIF('Existing Debt'!3:3,VALUE(RIGHT('Summary-General Government'!D141,4)),'Existing Debt'!12:12)+SUMIF('Existing Debt'!3:3,VALUE(RIGHT('Summary-General Government'!D141,4)),'Existing Debt'!13:13) -> 938480 | E142: =SUMIF('Existing Debt'!3:3,VALUE(RIGHT('Summary-General Government'!E141,4)),'Existing Debt'!11:11)+SUMIF('Existing Debt'!3:3,VALUE(RIGHT('Summary-General Government'!E141,4)),'Existing Debt'!12:12)+SUMIF('Existing Debt'!3:3,VALUE(RIGHT('Summary-General Government'!E141,4)),'Existing Debt'!13:13) -> 908140.63 | F142: =SUMIF('Existing Debt'!3:3,VALUE(RIGHT('Summary-General Government'!F141,4)),'Existing Debt'!11:11)+SUMIF('Existing Debt'!3:3,VALUE(RIGHT('Summary-General Government'!F141,4)),'Existing Debt'!12:12)+SUMIF('Existing Debt'!3:3,VALUE(RIGHT('Summary-General Government'!F141,4)),'Existing Debt'!13:13) -> 877646.88 | G142: =SUMIF('Existing Debt'!3:3,VALUE(RIGHT('Summary-General Government'!G141,4)),'Existing Debt'!11:11)+SUMIF('Existing Debt'!3:3,VALUE(RIGHT('Summary-General Government'!G141,4)),'Existing Debt'!12:12)+SUMIF('Existing Debt'!3:3,VALUE(RIGHT('Summary-General Government'!G141,4)),'Existing Debt'!13:13) -> 479200 | H142: =SUMIF('Existing Debt'!3:3,VALUE(RIGHT('Summary-General Government'!H141,4)),'Existing Debt'!11:11)+SUMIF('Existing Debt'!3:3,VALUE(RIGHT('Summary-General Government'!H141,4)),'Existing Debt'!12:12)+SUMIF('Existing Debt'!3:3,VALUE(RIGHT('Summary-General Government'!H141,4)),'Existing Debt'!13:13) -> 466400 | I142: =SUMIF('Existing Debt'!3:3,VALUE(RIGHT('Summary-General Government'!I141,4)),'Existing Debt'!11:11)+SUMIF('Existing Debt'!3:3,VALUE(RIGHT('Summary-General Government'!I141,4)),'Existing Debt'!12:12)+SUMIF('Existing Debt'!3:3,VALUE(RIGHT('Summary-General Government'!I141,4)),'Existing Debt'!13:13) -> 453600 | J142: =SUMIF('Existing Debt'!3:3,VALUE(RIGHT('Summary-General Government'!J141,4)),'Existing Debt'!11:11)+SUMIF('Existing Debt'!3:3,VALUE(RIGHT('Summary-General Government'!J141,4)),'Existing Debt'!12:12)+SUMIF('Existing Debt'!3:3,VALUE(RIGHT('Summary-General Government'!J141,4)),'Existing Debt'!13:13) -> 440800 | K142: =SUMIF('Existing Debt'!3:3,VALUE(RIGHT('Summary-General Government'!K141,4)),'Existing Debt'!11:11)+SUMIF('Existing Debt'!3:3,VALUE(RIGHT('Summary-General Government'!K141,4)),'Existing Debt'!12:12)+SUMIF('Existing Debt'!3:3,VALUE(RIGHT('Summary-General Government'!K141,4)),'Existing Debt'!13:13) -> 431200 | L142: =SUMIF('Existing Debt'!3:3,VALUE(RIGHT('Summary-General Government'!L141,4)),'Existing Debt'!11:11)+SUMIF('Existing Debt'!3:3,VALUE(RIGHT('Summary-General Government'!L141,4)),'Existing Debt'!12:12)+SUMIF('Existing Debt'!3:3,VALUE(RIGHT('Summary-General Government'!L141,4)),'Existing Debt'!13:13) -> 421600 | M142: =SUM(C142:L142) -> 6615183.26
A143: Non-Excluded Debt | C143: =SUMIF('Existing Debt'!3:3,VALUE(RIGHT('Summary-General Government'!C141,4)),'Existing Debt'!10:10) -> 0 | D143: =SUMIF('Existing Debt'!3:3,VALUE(RIGHT('Summary-General Government'!D141,4)),'Existing Debt'!10:10) -> 0 | E143: =SUMIF('Existing Debt'!3:3,VALUE(RIGHT('Summary-General Government'!E141,4)),'Existing Debt'!10:10) -> 0 | F143: =SUMIF('Existing Debt'!3:3,VALUE(RIGHT('Summary-General Government'!F141,4)),'Existing Debt'!10:10) -> 0 | G143: =SUMIF('Existing Debt'!3:3,VALUE(RIGHT('Summary-General Government'!G141,4)),'Existing Debt'!10:10) -> 0 | H143: =SUMIF('Existing Debt'!3:3,VALUE(RIGHT('Summary-General Government'!H141,4)),'Existing Debt'!10:10) -> 0 | I143: =SUMIF('Existing Debt'!3:3,VALUE(RIGHT('Summary-General Government'!I141,4)),'Existing Debt'!10:10) -> 0 | J143: =SUMIF('Existing Debt'!3:3,VALUE(RIGHT('Summary-General Government'!J141,4)),'Existing Debt'!10:10) -> 0 | K143: =SUMIF('Existing Debt'!3:3,VALUE(RIGHT('Summary-General Government'!K141,4)),'Existing Debt'!10:10) -> 0 | L143: =SUMIF('Existing Debt'!3:3,VALUE(RIGHT('Summary-General Government'!L141,4)),'Existing Debt'!10:10) -> 0 | M143: =SUM(C143:L143) -> 0
A144: Totals | C144: =SUM(C141:C143) -> 1198115.75 | D144: 938480 | E144: 908140.63 | F144: 877646.88 | G144: 479200 | H144: 466400 | I144: 453600 | J144: 440800 | K144: 431200 | L144: 421600 | M144: 6615183.26
D145: This includes some yet-to-be-confirmed other debt for the Fire Station.
A146: The following table contains other excluded debt the Town pays for regularly.
A147: Other Existing Excl. Debt | C147: =C$93 -> FY 2020 | D147: FY 2021 | E147: FY 2022 | F147: FY 2023 | G147: FY 2024 | H147: FY 2025 | I147: FY 2026 | J147: FY 2027 | K147: FY 2028 | L147: FY 2029 | M147: Total
A148: Dudley-Charlton RSD | C148: 56891 | D148: =(56891/187637.5)*181637.5 -> 55071.82206 | E148: =(56891/187637.5)*175637.5 -> 53252.64413 | F148: =(56891/187637.5)*169637.5 -> 51433.46619 | G148: =(56891/187637.5)*163637.5 -> 49614.28826 | H148: =(56891/187637.5)*135637.5 -> 41124.79122 | I148: =(56891/187637.5)*113137.5 -> 34302.87396 | J148: =(56891/187637.5)*105906.26 -> 32110.38858 | K148: =(56891/187637.5)*78656.26 -> 23848.28879 | L148: =(56891/187637.5)*76875 -> 23308.21731 | M148: =SUM(C148:L148) -> 420957.7805
A149: Town of Webster | C149: =137002.38-85 -> 136917.38 | D149: =54394.04-85 -> 54309.04 | E149: =54394.04-85 -> 54309.04 | F149: 54309.04 | G149: 54309.04 | H149: 54309.04 | I149: 54309.04 | J149: 54309.04 | K149: 54309.04 | L149: 54309.04 | M149: =SUM(C149:L149) -> 625698.74
A150: Bay Path VSD | C150: 161754 | D150: =472577.5*(161754/475077.5) -> 160902.802 | E150: =474927.5*(161754/475077.5) -> 161702.9281 | F150: =476977.5*(161754/475077.5) -> 162400.9105 | G150: =473727.5*(161754/475077.5) -> 161294.3531 | H150: =472847.5*(161754/475077.5) -> 160994.7314 | I150: =476577.5*(161754/475077.5) -> 162264.7188 | J150: =474940*(161754/475077.5) -> 161707.1841 | K150: =472890*(161754/475077.5) -> 161009.2018 | L150: =475417.5*(161754/475077.5) -> 161869.7629 | M150: =SUM(C150:L150) -> 1615900.593
A151: Totals | C151: =SUM(C148:C150) -> 355562.38 | D151: 270283.6641 | E151: 269264.6122 | F151: 268143.4166 | G151: 265217.6814 | H151: 256428.5626 | I151: 250876.6327 | J151: 248126.6127 | K151: 239166.5306 | L151: 239487.0202 | M151: 2662557.113
D152: These numbers carried forward until they are known.
A153: The following table is to contain projected debt for borrowings authorized but not yet borrowed.
A154: Proj Debt (authorizations) | C154: =C$93 -> FY 2020 | D154: FY 2021 | E154: FY 2022 | F154: FY 2023 | G154: FY 2024 | H154: FY 2025 | I154: FY 2026 | J154: FY 2027 | K154: FY 2028 | L154: FY 2029 | M154: Total
A155: Excluded Debt | M155: =SUM(C155:L155) -> 0
A156: Non-Excluded Debt | M156: =SUM(C156:L156) -> 0
A157: Totals | C157: =SUM(C155:C156) -> 0 | D157: 0 | E157: 0 | F157: 0 | G157: 0 | H157: 0 | I157: 0 | J157: 0 | K157: 0 | L157: 0 | M157: 0
A159: The following table contains projected debt for borrowings selected on the Town-Wide Capital Planning tab in this file.
A160: Proj Debt (planning tab) | C160: =C$93 -> FY 2020 | D160: FY 2021 | E160: FY 2022 | F160: FY 2023 | G160: FY 2024 | H160: FY 2025 | I160: FY 2026 | J160: FY 2027 | K160: FY 2028 | L160: FY 2029 | M160: Total
A161: Excluded Debt | C161: =C94 -> 0 | D161: =D94 -> 0 | E161: 68400 | F161: 125380 | G161: 149560 | H161: 211390 | I161: 206520 | J161: 233150 | K161: 227580 | L161: 249010 | M161: =SUM(C161:L161) -> 1470990
A162: Non-Excluded Debt | C162: =C95 -> 0 | D162: 20700 | E162: 71990 | F162: 138780 | G162: 162830 | H162: 175746 | I162: 206472 | J162: 218244 | K162: 300656 | L162: 319110 | M162: =SUM(C162:L162) -> 1614528
A163: Totals | C163: =SUM(C160:C162) -> 0 | D163: 20700 | E163: 140390 | F163: 264160 | G163: 312390 | H163: 387136 | I163: 412992 | J163: 451394 | K163: 528236 | L163: 568120 | M163: 3085518
A165: The following table contains projected debt for borrowings selected on the Town-Wide Capital Planning tab in this file.
A166: Total Debt | C166: =C$93 -> FY 2020 | D166: FY 2021 | E166: FY 2022 | F166: FY 2023 | G166: FY 2024 | H166: FY 2025 | I166: FY 2026 | J166: FY 2027 | K166: FY 2028 | L166: FY 2029 | M166: Total
A167: Excluded Debt | C167: =C142+C155+C161 -> 1198115.75 | D167: =D142+D155+D161 -> 938480 | E167: 976540.63 | F167: 1003026.88 | G167: 628760 | H167: 677790 | I167: 660120 | J167: 673950 | K167: 658780 | L167: 670610 | M167: =SUM(C167:L167) -> 8086173.26
A168: Non-Excluded Debt | C168: =C143+C156+C162 -> 0 | D168: 20700 | E168: 71990 | F168: 138780 | G168: 162830 | H168: 175746 | I168: 206472 | J168: 218244 | K168: 300656 | L168: 319110 | M168: =SUM(C168:L168) -> 1614528
A169: Totals | C169: =SUM(C167:C168) -> 1198115.75 | D169: =SUM(D167:D168) -> 959180 | E169: 1048530.63 | F169: 1141806.88 | G169: 791590 | H169: 853536 | I169: 866592 | J169: 892194 | K169: 959436 | L169: 989720 | M169: =SUM(C169:L169) -> 9700701.26
A171: The following table contains the latest General Fund operating budget and the yearly increase to use each year to project future budgets.
C172: =C$93 -> FY 2020 | D172: FY 2021 | E172: FY 2022 | F172: FY 2023 | G172: FY 2024 | H172: FY 2025 | I172: FY 2026 | J172: FY 2027 | K172: FY 2028 | L172: FY 2029
A173: Operating Budget | C173: 18915847.47 | D173: =C173+(C173*$C174) -> 19672481.37 | E173: 20459380.62 | F173: 21277755.85 | G173: 22128866.08 | H173: 23014020.73 | I173: 23934581.55 | J173: 24891964.82 | K173: 25887643.41 | L173: 26923149.15
A174: Yearly Budget % Incr: | C174: 0.04
A176: The following table contains the yearly comparison of the total debt to the operating budget. Any percentage between 2% and 10% appears in green. Any other in red.
C177: =C$93 -> FY 2020 | D177: FY 2021 | E177: FY 2022 | F177: FY 2023 | G177: FY 2024 | H177: FY 2025 | I177: FY 2026 | J177: FY 2027 | K177: FY 2028 | L177: FY 2029
A178: Debt as % of Budget | C178: =C169/C173 -> 0.06333925836 | D178: 0.04875744864 | E178: 0.05124938283 | F178: 0.05366199745 | G178: 0.03577182839 | H178: 0.03708765236 | I178: 0.03620669106 | J178: 0.03584265069 | K178: 0.03706154264 | L178: 0.03676092996
A180: This table shows other excluded debt carried by schools and Webster for the wastewater treatment plant.
C181: =C$93 -> FY 2020 | D181: FY 2021 | E181: FY 2022 | F181: FY 2023 | G181: FY 2024 | H181: FY 2025 | I181: FY 2026 | J181: FY 2027 | K181: FY 2028 | L181: FY 2029 | M181: Total
A182: Other Excl. Debt (Above) | C182: =C151 -> 355562.38 | D182: =D151 -> 270283.6641 | E182: 269264.6122 | F182: 268143.4166 | G182: 265217.6814 | H182: 256428.5626 | I182: 250876.6327 | J182: 248126.6127 | K182: 239166.5306 | L182: 239487.0202 | M182: =SUM(C182:L182) -> 2662557.113
A184: The following table contains the Town's yearly debt target as compared to the operating budget and the amount of additional debt the Town could take on to hit the target.
C185: =C$93 -> FY 2020 | D185: FY 2021 | E185: FY 2022 | F185: FY 2023 | G185: FY 2024 | H185: FY 2025 | I185: FY 2026 | J185: FY 2027 | K185: FY 2028 | L185: FY 2029 | M185: Total
A186: Debt Target (as % Budget) | C186: 0.07 | D186: 0.08 | E186: 0.09 | F186: 0.1 | G186: 0.1 | H186: 0.1 | I186: 0.1 | J186: 0.1 | K186: 0.1 | L186: 0.1
A187: Remaining Debt Available | C187: =(C186-C178)*C173 -> 125993.5729 | D187: =(D186-D178)*D173 -> 614618.5095 | E187: 792813.6261 | F187: 985968.7048 | G187: 1421296.608 | H187: 1447866.073 | I187: 1526866.155 | J187: 1597002.482 | K187: 1629328.341 | L187: 1702594.915 | M187: =SUM(C187:L187) -> 11844348.99

Sheet Summary-Water
B1: Departmental Totals from Capital Needs List
B2: Year | C2: Water
B3: 2020 | C3: =SUMIF(Water!$C$3:$C$12,$B3,Water!$D$3:$D$12) -> 300000
B4: =B3+1 -> 2021 | C4: =SUMIF(Water!$C$3:$C$12,$B4,Water!$D$3:$D$12) -> 3025000
B5: =B4+1 -> 2022 | C5: =SUMIF(Water!$C$3:$C$12,$B5,Water!$D$3:$D$12) -> 810000
B6: 2023 | C6: =SUMIF(Water!$C$3:$C$12,$B6,Water!$D$3:$D$12) -> 3140000
B7: 2024 | C7: =SUMIF(Water!$C$3:$C$12,$B7,Water!$D$3:$D$12) -> 3525000
B8: 2025 | C8: =SUMIF(Water!$C$3:$C$12,$B8,Water!$D$3:$D$12) -> 3175000
B9: 2026 | C9: =SUMIF(Water!$C$3:$C$12,$B9,Water!$D$3:$D$12) -> 5255000
B10: 2027 | C10: =SUMIF(Water!$C$3:$C$12,$B10,Water!$D$3:$D$12) -> 7000000
B11: 2028 | C11: =SUMIF(Water!$C$3:$C$12,$B11,Water!$D$3:$D$12) -> 1625000
B12: 2029 | C12: =SUMIF(Water!$C$3:$C$12,$B12,Water!$D$3:$D$12) -> 1035000
B13: Total | C13: =SUM(C3:C12) -> 28890000
A93: Funding Sources
A94: Funding Sources | C94: ='Town-Wide Capital Planning'!P2 -> FY 2020 | D94: ='Town-Wide Capital Planning'!Q2 -> FY 2021 | E94: ='Town-Wide Capital Planning'!R2 -> FY 2022 | F94: ='Town-Wide Capital Planning'!S2 -> FY 2023 | G94: ='Town-Wide Capital Planning'!T2 -> FY 2024 | H94: ='Town-Wide Capital Planning'!U2 -> FY 2025 | I94: ='Town-Wide Capital Planning'!V2 -> FY 2026 | J94: ='Town-Wide Capital Planning'!W2 -> FY 2027 | K94: ='Town-Wide Capital Planning'!X2 -> FY 2028 | L94: ='Town-Wide Capital Planning'!Y2 -> FY 2029 | M94: Total
A95: ='Summary-General Government'!A94 -> Debt (Excluded) | C95: =SUMIFS('Town-Wide Capital Planning'!P:P,'Town-Wide Capital Planning'!$H:$H,$A95,'Town-Wide Capital Planning'!$B:$B,$C$2)+SUMIFS('Town-Wide Capital Planning'!P:P,'Town-Wide Capital Planning'!$H:$H,$A95,'Town-Wide Capital Planning'!$B:$B,$D$2)+SUMIFS('Town-Wide Capital Planning'!P:P,'Town-Wide Capital Planning'!$H:$H,$A95,'Town-Wide Capital Planning'!$B:$B,$E$2)+SUMIFS('Town-Wide Capital Planning'!P:P,'Town-Wide Capital Planning'!$H:$H,$A95,'Town-Wide Capital Planning'!$B:$B,$F$2)+SUMIFS('Town-Wide Capital Planning'!P:P,'Town-Wide Capital Planning'!$H:$H,$A95,'Town-Wide Capital Planning'!$B:$B,$G$2)+SUMIFS('Town-Wide Capital Planning'!P:P,'Town-Wide Capital Planning'!$H:$H,$A95,'Town-Wide Capital Planning'!$B:$B,$H$2) -> 0 | D95: =SUMIFS('Town-Wide Capital Planning'!Q:Q,'Town-Wide Capital Planning'!$H:$H,$A95,'Town-Wide Capital Planning'!$B:$B,$C$2)+SUMIFS('Town-Wide Capital Planning'!Q:Q,'Town-Wide Capital Planning'!$H:$H,$A95,'Town-Wide Capital Planning'!$B:$B,$D$2)+SUMIFS('Town-Wide Capital Planning'!Q:Q,'Town-Wide Capital Planning'!$H:$H,$A95,'Town-Wide Capital Planning'!$B:$B,$E$2)+SUMIFS('Town-Wide Capital Planning'!Q:Q,'Town-Wide Capital Planning'!$H:$H,$A95,'Town-Wide Capital Planning'!$B:$B,$F$2)+SUMIFS('Town-Wide Capital Planning'!Q:Q,'Town-Wide Capital Planning'!$H:$H,$A95,'Town-Wide Capital Planning'!$B:$B,$G$2)+SUMIFS('Town-Wide Capital Planning'!Q:Q,'Town-Wide Capital Planning'!$H:$H,$A95,'Town-Wide Capital Planning'!$B:$B,$H$2) -> 27000 | E95: =SUMIFS('Town-Wide Capital Planning'!R:R,'Town-Wide Capital Planning'!$H:$H,$A95,'Town-Wide Capital Planning'!$B:$B,$C$2)+SUMIFS('Town-Wide Capital Planning'!R:R,'Town-Wide Capital Planning'!$H:$H,$A95,'Town-Wide Capital Planning'!$B:$B,$D$2)+SUMIFS('Town-Wide Capital Planning'!R:R,'Town-Wide Capital Planning'!$H:$H,$A95,'Town-Wide Capital Planning'!$B:$B,$E$2)+SUMIFS('Town-Wide Capital Planning'!R:R,'Town-Wide Capital Planning'!$H:$H,$A95,'Town-Wide Capital Planning'!$B:$B,$F$2)+SUMIFS('Town-Wide Capital Planning'!R:R,'Town-Wide Capital Planning'!$H:$H,$A95,'Town-Wide Capital Planning'!$B:$B,$G$2)+SUMIFS('Town-Wide Capital Planning'!R:R,'Town-Wide Capital Planning'!$H:$H,$A95,'Town-Wide Capital Planning'!$B:$B,$H$2) -> 294600 | F95: =SUMIFS('Town-Wide Capital Planning'!S:S,'Town-Wide Capital Planning'!$H:$H,$A95,'Town-Wide Capital Planning'!$B:$B,$C$2)+SUMIFS('Town-Wide Capital Planning'!S:S,'Town-Wide Capital Planning'!$H:$H,$A95,'Town-Wide Capital Planning'!$B:$B,$D$2)+SUMIFS('Town-Wide Capital Planning'!S:S,'Town-Wide Capital Planning'!$H:$H,$A95,'Town-Wide Capital Planning'!$B:$B,$E$2)+SUMIFS('Town-Wide Capital Planning'!S:S,'Town-Wide Capital Planning'!$H:$H,$A95,'Town-Wide Capital Planning'!$B:$B,$F$2)+SUMIFS('Town-Wide Capital Planning'!S:S,'Town-Wide Capital Planning'!$H:$H,$A95,'Town-Wide Capital Planning'!$B:$B,$G$2)+SUMIFS('Town-Wide Capital Planning'!S:S,'Town-Wide Capital Planning'!$H:$H,$A95,'Town-Wide Capital Planning'!$B:$B,$H$2) -> 342040 | G95: =SUMIFS('Town-Wide Capital Planning'!T:T,'Town-Wide Capital Planning'!$H:$H,$A95,'Town-Wide Capital Planning'!$B:$B,$C$2)+SUMIFS('Town-Wide Capital Planning'!T:T,'Town-Wide Capital Planning'!$H:$H,$A95,'Town-Wide Capital Planning'!$B:$B,$D$2)+SUMIFS('Town-Wide Capital Planning'!T:T,'Town-Wide Capital Planning'!$H:$H,$A95,'Town-Wide Capital Planning'!$B:$B,$E$2)+SUMIFS('Town-Wide Capital Planning'!T:T,'Town-Wide Capital Planning'!$H:$H,$A95,'Town-Wide Capital Planning'!$B:$B,$F$2)+SUMIFS('Town-Wide Capital Planning'!T:T,'Town-Wide Capital Planning'!$H:$H,$A95,'Town-Wide Capital Planning'!$B:$B,$G$2)+SUMIFS('Town-Wide Capital Planning'!T:T,'Town-Wide Capital Planning'!$H:$H,$A95,'Town-Wide Capital Planning'!$B:$B,$H$2) -> 616880 | H95: =SUMIFS('Town-Wide Capital Planning'!U:U,'Town-Wide Capital Planning'!$H:$H,$A95,'Town-Wide Capital Planning'!$B:$B,$C$2)+SUMIFS('Town-Wide Capital Planning'!U:U,'Town-Wide Capital Planning'!$H:$H,$A95,'Town-Wide Capital Planning'!$B:$B,$D$2)+SUMIFS('Town-Wide Capital Planning'!U:U,'Town-Wide Capital Planning'!$H:$H,$A95,'Town-Wide Capital Planning'!$B:$B,$E$2)+SUMIFS('Town-Wide Capital Planning'!U:U,'Town-Wide Capital Planning'!$H:$H,$A95,'Town-Wide Capital Planning'!$B:$B,$F$2)+SUMIFS('Town-Wide Capital Planning'!U:U,'Town-Wide Capital Planning'!$H:$H,$A95,'Town-Wide Capital Planning'!$B:$B,$G$2)+SUMIFS('Town-Wide Capital Planning'!U:U,'Town-Wide Capital Planning'!$H:$H,$A95,'Town-Wide Capital Planning'!$B:$B,$H$2) -> 916940 | I95: =SUMIFS('Town-Wide Capital Planning'!V:V,'Town-Wide Capital Planning'!$H:$H,$A95,'Town-Wide Capital Planning'!$B:$B,$C$2)+SUMIFS('Town-Wide Capital Planning'!V:V,'Town-Wide Capital Planning'!$H:$H,$A95,'Town-Wide Capital Planning'!$B:$B,$D$2)+SUMIFS('Town-Wide Capital Planning'!V:V,'Town-Wide Capital Planning'!$H:$H,$A95,'Town-Wide Capital Planning'!$B:$B,$E$2)+SUMIFS('Town-Wide Capital Planning'!V:V,'Town-Wide Capital Planning'!$H:$H,$A95,'Town-Wide Capital Planning'!$B:$B,$F$2)+SUMIFS('Town-Wide Capital Planning'!V:V,'Town-Wide Capital Planning'!$H:$H,$A95,'Town-Wide Capital Planning'!$B:$B,$G$2)+SUMIFS('Town-Wide Capital Planning'!V:V,'Town-Wide Capital Planning'!$H:$H,$A95,'Town-Wide Capital Planning'!$B:$B,$H$2) -> 1170420 | J95: =SUMIFS('Town-Wide Capital Planning'!W:W,'Town-Wide Capital Planning'!$H:$H,$A95,'Town-Wide Capital Planning'!$B:$B,$C$2)+SUMIFS('Town-Wide Capital Planning'!W:W,'Town-Wide Capital Planning'!$H:$H,$A95,'Town-Wide Capital Planning'!$B:$B,$D$2)+SUMIFS('Town-Wide Capital Planning'!W:W,'Town-Wide Capital Planning'!$H:$H,$A95,'Town-Wide Capital Planning'!$B:$B,$E$2)+SUMIFS('Town-Wide Capital Planning'!W:W,'Town-Wide Capital Planning'!$H:$H,$A95,'Town-Wide Capital Planning'!$B:$B,$F$2)+SUMIFS('Town-Wide Capital Planning'!W:W,'Town-Wide Capital Planning'!$H:$H,$A95,'Town-Wide Capital Planning'!$B:$B,$G$2)+SUMIFS('Town-Wide Capital Planning'!W:W,'Town-Wide Capital Planning'!$H:$H,$A95,'Town-Wide Capital Planning'!$B:$B,$H$2) -> 1590600 | K95: =SUMIFS('Town-Wide Capital Planning'!X:X,'Town-Wide Capital Planning'!$H:$H,$A95,'Town-Wide Capital Planning'!$B:$B,$C$2)+SUMIFS('Town-Wide Capital Planning'!X:X,'Town-Wide Capital Planning'!$H:$H,$A95,'Town-Wide Capital Planning'!$B:$B,$D$2)+SUMIFS('Town-Wide Capital Planning'!X:X,'Town-Wide Capital Planning'!$H:$H,$A95,'Town-Wide Capital Planning'!$B:$B,$E$2)+SUMIFS('Town-Wide Capital Planning'!X:X,'Town-Wide Capital Planning'!$H:$H,$A95,'Town-Wide Capital Planning'!$B:$B,$F$2)+SUMIFS('Town-Wide Capital Planning'!X:X,'Town-Wide Capital Planning'!$H:$H,$A95,'Town-Wide Capital Planning'!$B:$B,$G$2)+SUMIFS('Town-Wide Capital Planning'!X:X,'Town-Wide Capital Planning'!$H:$H,$A95,'Town-Wide Capital Planning'!$B:$B,$H$2) -> 2183540 | L95: =SUMIFS('Town-Wide Capital Planning'!Y:Y,'Town-Wide Capital Planning'!$H:$H,$A95,'Town-Wide Capital Planning'!$B:$B,$C$2)+SUMIFS('Town-Wide Capital Planning'!Y:Y,'Town-Wide Capital Planning'!$H:$H,$A95,'Town-Wide Capital Planning'!$B:$B,$D$2)+SUMIFS('Town-Wide Capital Planning'!Y:Y,'Town-Wide Capital Planning'!$H:$H,$A95,'Town-Wide Capital Planning'!$B:$B,$E$2)+SUMIFS('Town-Wide Capital Planning'!Y:Y,'Town-Wide Capital Planning'!$H:$H,$A95,'Town-Wide Capital Planning'!$B:$B,$F$2)+SUMIFS('Town-Wide Capital Planning'!Y:Y,'Town-Wide Capital Planning'!$H:$H,$A95,'Town-Wide Capital Planning'!$B:$B,$G$2)+SUMIFS('Town-Wide Capital Planning'!Y:Y,'Town-Wide Capital Planning'!$H:$H,$A95,'Town-Wide Capital Planning'!$B:$B,$H$2) -> 2276480 | M95: =SUM(C95:L95) -> 9418500
A96: ='Summary-General Government'!A95 -> Debt (Non-Excluded) | C96: =SUMIFS('Town-Wide Capital Planning'!P:P,'Town-Wide Capital Planning'!$H:$H,$A96,'Town-Wide Capital Planning'!$B:$B,$C$2)+SUMIFS('Town-Wide Capital Planning'!P:P,'Town-Wide Capital Planning'!$H:$H,$A96,'Town-Wide Capital Planning'!$B:$B,$D$2)+SUMIFS('Town-Wide Capital Planning'!P:P,'Town-Wide Capital Planning'!$H:$H,$A96,'Town-Wide Capital Planning'!$B:$B,$E$2)+SUMIFS('Town-Wide Capital Planning'!P:P,'Town-Wide Capital Planning'!$H:$H,$A96,'Town-Wide Capital Planning'!$B:$B,$F$2)+SUMIFS('Town-Wide Capital Planning'!P:P,'Town-Wide Capital Planning'!$H:$H,$A96,'Town-Wide Capital Planning'!$B:$B,$G$2)+SUMIFS('Town-Wide Capital Planning'!P:P,'Town-Wide Capital Planning'!$H:$H,$A96,'Town-Wide Capital Planning'!$B:$B,$H$2) -> 0 | D96: =SUMIFS('Town-Wide Capital Planning'!Q:Q,'Town-Wide Capital Planning'!$H:$H,$A96,'Town-Wide Capital Planning'!$B:$B,$C$2)+SUMIFS('Town-Wide Capital Planning'!Q:Q,'Town-Wide Capital Planning'!$H:$H,$A96,'Town-Wide Capital Planning'!$B:$B,$D$2)+SUMIFS('Town-Wide Capital Planning'!Q:Q,'Town-Wide Capital Planning'!$H:$H,$A96,'Town-Wide Capital Planning'!$B:$B,$E$2)+SUMIFS('Town-Wide Capital Planning'!Q:Q,'Town-Wide Capital Planning'!$H:$H,$A96,'Town-Wide Capital Planning'!$B:$B,$F$2)+SUMIFS('Town-Wide Capital Planning'!Q:Q,'Town-Wide Capital Planning'!$H:$H,$A96,'Town-Wide Capital Planning'!$B:$B,$G$2)+SUMIFS('Town-Wide Capital Planning'!Q:Q,'Town-Wide Capital Planning'!$H:$H,$A96,'Town-Wide Capital Planning'!$B:$B,$H$2) -> 0 | E96: =SUMIFS('Town-Wide Capital Planning'!R:R,'Town-Wide Capital Planning'!$H:$H,$A96,'Town-Wide Capital Planning'!$B:$B,$C$2)+SUMIFS('Town-Wide Capital Planning'!R:R,'Town-Wide Capital Planning'!$H:$H,$A96,'Town-Wide Capital Planning'!$B:$B,$D$2)+SUMIFS('Town-Wide Capital Planning'!R:R,'Town-Wide Capital Planning'!$H:$H,$A96,'Town-Wide Capital Planning'!$B:$B,$E$2)+SUMIFS('Town-Wide Capital Planning'!R:R,'Town-Wide Capital Planning'!$H:$H,$A96,'Town-Wide Capital Planning'!$B:$B,$F$2)+SUMIFS('Town-Wide Capital Planning'!R:R,'Town-Wide Capital Planning'!$H:$H,$A96,'Town-Wide Capital Planning'!$B:$B,$G$2)+SUMIFS('Town-Wide Capital Planning'!R:R,'Town-Wide Capital Planning'!$H:$H,$A96,'Town-Wide Capital Planning'!$B:$B,$H$2) -> 0 | F96: =SUMIFS('Town-Wide Capital Planning'!S:S,'Town-Wide Capital Planning'!$H:$H,$A96,'Town-Wide Capital Planning'!$B:$B,$C$2)+SUMIFS('Town-Wide Capital Planning'!S:S,'Town-Wide Capital Planning'!$H:$H,$A96,'Town-Wide Capital Planning'!$B:$B,$D$2)+SUMIFS('Town-Wide Capital Planning'!S:S,'Town-Wide Capital Planning'!$H:$H,$A96,'Town-Wide Capital Planning'!$B:$B,$E$2)+SUMIFS('Town-Wide Capital Planning'!S:S,'Town-Wide Capital Planning'!$H:$H,$A96,'Town-Wide Capital Planning'!$B:$B,$F$2)+SUMIFS('Town-Wide Capital Planning'!S:S,'Town-Wide Capital Planning'!$H:$H,$A96,'Town-Wide Capital Planning'!$B:$B,$G$2)+SUMIFS('Town-Wide Capital Planning'!S:S,'Town-Wide Capital Planning'!$H:$H,$A96,'Town-Wide Capital Planning'!$B:$B,$H$2) -> 16200 | G96: =SUMIFS('Town-Wide Capital Planning'!T:T,'Town-Wide Capital Planning'!$H:$H,$A96,'Town-Wide Capital Planning'!$B:$B,$C$2)+SUMIFS('Town-Wide Capital Planning'!T:T,'Town-Wide Capital Planning'!$H:$H,$A96,'Town-Wide Capital Planning'!$B:$B,$D$2)+SUMIFS('Town-Wide Capital Planning'!T:T,'Town-Wide Capital Planning'!$H:$H,$A96,'Town-Wide Capital Planning'!$B:$B,$E$2)+SUMIFS('Town-Wide Capital Planning'!T:T,'Town-Wide Capital Planning'!$H:$H,$A96,'Town-Wide Capital Planning'!$B:$B,$F$2)+SUMIFS('Town-Wide Capital Planning'!T:T,'Town-Wide Capital Planning'!$H:$H,$A96,'Town-Wide Capital Planning'!$B:$B,$G$2)+SUMIFS('Town-Wide Capital Planning'!T:T,'Town-Wide Capital Planning'!$H:$H,$A96,'Town-Wide Capital Planning'!$B:$B,$H$2) -> 15840 | H96: =SUMIFS('Town-Wide Capital Planning'!U:U,'Town-Wide Capital Planning'!$H:$H,$A96,'Town-Wide Capital Planning'!$B:$B,$C$2)+SUMIFS('Town-Wide Capital Planning'!U:U,'Town-Wide Capital Planning'!$H:$H,$A96,'Town-Wide Capital Planning'!$B:$B,$D$2)+SUMIFS('Town-Wide Capital Planning'!U:U,'Town-Wide Capital Planning'!$H:$H,$A96,'Town-Wide Capital Planning'!$B:$B,$E$2)+SUMIFS('Town-Wide Capital Planning'!U:U,'Town-Wide Capital Planning'!$H:$H,$A96,'Town-Wide Capital Planning'!$B:$B,$F$2)+SUMIFS('Town-Wide Capital Planning'!U:U,'Town-Wide Capital Planning'!$H:$H,$A96,'Town-Wide Capital Planning'!$B:$B,$G$2)+SUMIFS('Town-Wide Capital Planning'!U:U,'Town-Wide Capital Planning'!$H:$H,$A96,'Town-Wide Capital Planning'!$B:$B,$H$2) -> 15480 | I96: =SUMIFS('Town-Wide Capital Planning'!V:V,'Town-Wide Capital Planning'!$H:$H,$A96,'Town-Wide Capital Planning'!$B:$B,$C$2)+SUMIFS('Town-Wide Capital Planning'!V:V,'Town-Wide Capital Planning'!$H:$H,$A96,'Town-Wide Capital Planning'!$B:$B,$D$2)+SUMIFS('Town-Wide Capital Planning'!V:V,'Town-Wide Capital Planning'!$H:$H,$A96,'Town-Wide Capital Planning'!$B:$B,$E$2)+SUMIFS('Town-Wide Capital Planning'!V:V,'Town-Wide Capital Planning'!$H:$H,$A96,'Town-Wide Capital Planning'!$B:$B,$F$2)+SUMIFS('Town-Wide Capital Planning'!V:V,'Town-Wide Capital Planning'!$H:$H,$A96,'Town-Wide Capital Planning'!$B:$B,$G$2)+SUMIFS('Town-Wide Capital Planning'!V:V,'Town-Wide Capital Planning'!$H:$H,$A96,'Town-Wide Capital Planning'!$B:$B,$H$2) -> 26370 | J96: =SUMIFS('Town-Wide Capital Planning'!W:W,'Town-Wide Capital Planning'!$H:$H,$A96,'Town-Wide Capital Planning'!$B:$B,$C$2)+SUMIFS('Town-Wide Capital Planning'!W:W,'Town-Wide Capital Planning'!$H:$H,$A96,'Town-Wide Capital Planning'!$B:$B,$D$2)+SUMIFS('Town-Wide Capital Planning'!W:W,'Town-Wide Capital Planning'!$H:$H,$A96,'Town-Wide Capital Planning'!$B:$B,$E$2)+SUMIFS('Town-Wide Capital Planning'!W:W,'Town-Wide Capital Planning'!$H:$H,$A96,'Town-Wide Capital Planning'!$B:$B,$F$2)+SUMIFS('Town-Wide Capital Planning'!W:W,'Town-Wide Capital Planning'!$H:$H,$A96,'Town-Wide Capital Planning'!$B:$B,$G$2)+SUMIFS('Town-Wide Capital Planning'!W:W,'Town-Wide Capital Planning'!$H:$H,$A96,'Town-Wide Capital Planning'!$B:$B,$H$2) -> 51410 | K96: =SUMIFS('Town-Wide Capital Planning'!X:X,'Town-Wide Capital Planning'!$H:$H,$A96,'Town-Wide Capital Planning'!$B:$B,$C$2)+SUMIFS('Town-Wide Capital Planning'!X:X,'Town-Wide Capital Planning'!$H:$H,$A96,'Town-Wide Capital Planning'!$B:$B,$D$2)+SUMIFS('Town-Wide Capital Planning'!X:X,'Town-Wide Capital Planning'!$H:$H,$A96,'Town-Wide Capital Planning'!$B:$B,$E$2)+SUMIFS('Town-Wide Capital Planning'!X:X,'Town-Wide Capital Planning'!$H:$H,$A96,'Town-Wide Capital Planning'!$B:$B,$F$2)+SUMIFS('Town-Wide Capital Planning'!X:X,'Town-Wide Capital Planning'!$H:$H,$A96,'Town-Wide Capital Planning'!$B:$B,$G$2)+SUMIFS('Town-Wide Capital Planning'!X:X,'Town-Wide Capital Planning'!$H:$H,$A96,'Town-Wide Capital Planning'!$B:$B,$H$2) -> 50230 | L96: =SUMIFS('Town-Wide Capital Planning'!Y:Y,'Town-Wide Capital Planning'!$H:$H,$A96,'Town-Wide Capital Planning'!$B:$B,$C$2)+SUMIFS('Town-Wide Capital Planning'!Y:Y,'Town-Wide Capital Planning'!$H:$H,$A96,'Town-Wide Capital Planning'!$B:$B,$D$2)+SUMIFS('Town-Wide Capital Planning'!Y:Y,'Town-Wide Capital Planning'!$H:$H,$A96,'Town-Wide Capital Planning'!$B:$B,$E$2)+SUMIFS('Town-Wide Capital Planning'!Y:Y,'Town-Wide Capital Planning'!$H:$H,$A96,'Town-Wide Capital Planning'!$B:$B,$F$2)+SUMIFS('Town-Wide Capital Planning'!Y:Y,'Town-Wide Capital Planning'!$H:$H,$A96,'Town-Wide Capital Planning'!$B:$B,$G$2)+SUMIFS('Town-Wide Capital Planning'!Y:Y,'Town-Wide Capital Planning'!$H:$H,$A96,'Town-Wide Capital Planning'!$B:$B,$H$2) -> 49050 | M96: =SUM(C96:L96) -> 224580
A97: ='Summary-General Government'!A96 -> Free Cash | C97: =SUMIFS('Town-Wide Capital Planning'!P:P,'Town-Wide Capital Planning'!$H:$H,$A97,'Town-Wide Capital Planning'!$B:$B,$C$2)+SUMIFS('Town-Wide Capital Planning'!P:P,'Town-Wide Capital Planning'!$H:$H,$A97,'Town-Wide Capital Planning'!$B:$B,$D$2)+SUMIFS('Town-Wide Capital Planning'!P:P,'Town-Wide Capital Planning'!$H:$H,$A97,'Town-Wide Capital Planning'!$B:$B,$E$2)+SUMIFS('Town-Wide Capital Planning'!P:P,'Town-Wide Capital Planning'!$H:$H,$A97,'Town-Wide Capital Planning'!$B:$B,$F$2)+SUMIFS('Town-Wide Capital Planning'!P:P,'Town-Wide Capital Planning'!$H:$H,$A97,'Town-Wide Capital Planning'!$B:$B,$G$2)+SUMIFS('Town-Wide Capital Planning'!P:P,'Town-Wide Capital Planning'!$H:$H,$A97,'Town-Wide Capital Planning'!$B:$B,$H$2) -> 0 | D97: =SUMIFS('Town-Wide Capital Planning'!Q:Q,'Town-Wide Capital Planning'!$H:$H,$A97,'Town-Wide Capital Planning'!$B:$B,$C$2)+SUMIFS('Town-Wide Capital Planning'!Q:Q,'Town-Wide Capital Planning'!$H:$H,$A97,'Town-Wide Capital Planning'!$B:$B,$D$2)+SUMIFS('Town-Wide Capital Planning'!Q:Q,'Town-Wide Capital Planning'!$H:$H,$A97,'Town-Wide Capital Planning'!$B:$B,$E$2)+SUMIFS('Town-Wide Capital Planning'!Q:Q,'Town-Wide Capital Planning'!$H:$H,$A97,'Town-Wide Capital Planning'!$B:$B,$F$2)+SUMIFS('Town-Wide Capital Planning'!Q:Q,'Town-Wide Capital Planning'!$H:$H,$A97,'Town-Wide Capital Planning'!$B:$B,$G$2)+SUMIFS('Town-Wide Capital Planning'!Q:Q,'Town-Wide Capital Planning'!$H:$H,$A97,'Town-Wide Capital Planning'!$B:$B,$H$2) -> 0 | E97: =SUMIFS('Town-Wide Capital Planning'!R:R,'Town-Wide Capital Planning'!$H:$H,$A97,'Town-Wide Capital Planning'!$B:$B,$C$2)+SUMIFS('Town-Wide Capital Planning'!R:R,'Town-Wide Capital Planning'!$H:$H,$A97,'Town-Wide Capital Planning'!$B:$B,$D$2)+SUMIFS('Town-Wide Capital Planning'!R:R,'Town-Wide Capital Planning'!$H:$H,$A97,'Town-Wide Capital Planning'!$B:$B,$E$2)+SUMIFS('Town-Wide Capital Planning'!R:R,'Town-Wide Capital Planning'!$H:$H,$A97,'Town-Wide Capital Planning'!$B:$B,$F$2)+SUMIFS('Town-Wide Capital Planning'!R:R,'Town-Wide Capital Planning'!$H:$H,$A97,'Town-Wide Capital Planning'!$B:$B,$G$2)+SUMIFS('Town-Wide Capital Planning'!R:R,'Town-Wide Capital Planning'!$H:$H,$A97,'Town-Wide Capital Planning'!$B:$B,$H$2) -> 0 | F97: =SUMIFS('Town-Wide Capital Planning'!S:S,'Town-Wide Capital Planning'!$H:$H,$A97,'Town-Wide Capital Planning'!$B:$B,$C$2)+SUMIFS('Town-Wide Capital Planning'!S:S,'Town-Wide Capital Planning'!$H:$H,$A97,'Town-Wide Capital Planning'!$B:$B,$D$2)+SUMIFS('Town-Wide Capital Planning'!S:S,'Town-Wide Capital Planning'!$H:$H,$A97,'Town-Wide Capital Planning'!$B:$B,$E$2)+SUMIFS('Town-Wide Capital Planning'!S:S,'Town-Wide Capital Planning'!$H:$H,$A97,'Town-Wide Capital Planning'!$B:$B,$F$2)+SUMIFS('Town-Wide Capital Planning'!S:S,'Town-Wide Capital Planning'!$H:$H,$A97,'Town-Wide Capital Planning'!$B:$B,$G$2)+SUMIFS('Town-Wide Capital Planning'!S:S,'Town-Wide Capital Planning'!$H:$H,$A97,'Town-Wide Capital Planning'!$B:$B,$H$2) -> 0 | G97: =SUMIFS('Town-Wide Capital Planning'!T:T,'Town-Wide Capital Planning'!$H:$H,$A97,'Town-Wide Capital Planning'!$B:$B,$C$2)+SUMIFS('Town-Wide Capital Planning'!T:T,'Town-Wide Capital Planning'!$H:$H,$A97,'Town-Wide Capital Planning'!$B:$B,$D$2)+SUMIFS('Town-Wide Capital Planning'!T:T,'Town-Wide Capital Planning'!$H:$H,$A97,'Town-Wide Capital Planning'!$B:$B,$E$2)+SUMIFS('Town-Wide Capital Planning'!T:T,'Town-Wide Capital Planning'!$H:$H,$A97,'Town-Wide Capital Planning'!$B:$B,$F$2)+SUMIFS('Town-Wide Capital Planning'!T:T,'Town-Wide Capital Planning'!$H:$H,$A97,'Town-Wide Capital Planning'!$B:$B,$G$2)+SUMIFS('Town-Wide Capital Planning'!T:T,'Town-Wide Capital Planning'!$H:$H,$A97,'Town-Wide Capital Planning'!$B:$B,$H$2) -> 0 | H97: =SUMIFS('Town-Wide Capital Planning'!U:U,'Town-Wide Capital Planning'!$H:$H,$A97,'Town-Wide Capital Planning'!$B:$B,$C$2)+SUMIFS('Town-Wide Capital Planning'!U:U,'Town-Wide Capital Planning'!$H:$H,$A97,'Town-Wide Capital Planning'!$B:$B,$D$2)+SUMIFS('Town-Wide Capital Planning'!U:U,'Town-Wide Capital Planning'!$H:$H,$A97,'Town-Wide Capital Planning'!$B:$B,$E$2)+SUMIFS('Town-Wide Capital Planning'!U:U,'Town-Wide Capital Planning'!$H:$H,$A97,'Town-Wide Capital Planning'!$B:$B,$F$2)+SUMIFS('Town-Wide Capital Planning'!U:U,'Town-Wide Capital Planning'!$H:$H,$A97,'Town-Wide Capital Planning'!$B:$B,$G$2)+SUMIFS('Town-Wide Capital Planning'!U:U,'Town-Wide Capital Planning'!$H:$H,$A97,'Town-Wide Capital Planning'!$B:$B,$H$2) -> 0 | I97: =SUMIFS('Town-Wide Capital Planning'!V:V,'Town-Wide Capital Planning'!$H:$H,$A97,'Town-Wide Capital Planning'!$B:$B,$C$2)+SUMIFS('Town-Wide Capital Planning'!V:V,'Town-Wide Capital Planning'!$H:$H,$A97,'Town-Wide Capital Planning'!$B:$B,$D$2)+SUMIFS('Town-Wide Capital Planning'!V:V,'Town-Wide Capital Planning'!$H:$H,$A97,'Town-Wide Capital Planning'!$B:$B,$E$2)+SUMIFS('Town-Wide Capital Planning'!V:V,'Town-Wide Capital Planning'!$H:$H,$A97,'Town-Wide Capital Planning'!$B:$B,$F$2)+SUMIFS('Town-Wide Capital Planning'!V:V,'Town-Wide Capital Planning'!$H:$H,$A97,'Town-Wide Capital Planning'!$B:$B,$G$2)+SUMIFS('Town-Wide Capital Planning'!V:V,'Town-Wide Capital Planning'!$H:$H,$A97,'Town-Wide Capital Planning'!$B:$B,$H$2) -> 0 | J97: =SUMIFS('Town-Wide Capital Planning'!W:W,'Town-Wide Capital Planning'!$H:$H,$A97,'Town-Wide Capital Planning'!$B:$B,$C$2)+SUMIFS('Town-Wide Capital Planning'!W:W,'Town-Wide Capital Planning'!$H:$H,$A97,'Town-Wide Capital Planning'!$B:$B,$D$2)+SUMIFS('Town-Wide Capital Planning'!W:W,'Town-Wide Capital Planning'!$H:$H,$A97,'Town-Wide Capital Planning'!$B:$B,$E$2)+SUMIFS('Town-Wide Capital Planning'!W:W,'Town-Wide Capital Planning'!$H:$H,$A97,'Town-Wide Capital Planning'!$B:$B,$F$2)+SUMIFS('Town-Wide Capital Planning'!W:W,'Town-Wide Capital Planning'!$H:$H,$A97,'Town-Wide Capital Planning'!$B:$B,$G$2)+SUMIFS('Town-Wide Capital Planning'!W:W,'Town-Wide Capital Planning'!$H:$H,$A97,'Town-Wide Capital Planning'!$B:$B,$H$2) -> 0 | K97: =SUMIFS('Town-Wide Capital Planning'!X:X,'Town-Wide Capital Planning'!$H:$H,$A97,'Town-Wide Capital Planning'!$B:$B,$C$2)+SUMIFS('Town-Wide Capital Planning'!X:X,'Town-Wide Capital Planning'!$H:$H,$A97,'Town-Wide Capital Planning'!$B:$B,$D$2)+SUMIFS('Town-Wide Capital Planning'!X:X,'Town-Wide Capital Planning'!$H:$H,$A97,'Town-Wide Capital Planning'!$B:$B,$E$2)+SUMIFS('Town-Wide Capital Planning'!X:X,'Town-Wide Capital Planning'!$H:$H,$A97,'Town-Wide Capital Planning'!$B:$B,$F$2)+SUMIFS('Town-Wide Capital Planning'!X:X,'Town-Wide Capital Planning'!$H:$H,$A97,'Town-Wide Capital Planning'!$B:$B,$G$2)+SUMIFS('Town-Wide Capital Planning'!X:X,'Town-Wide Capital Planning'!$H:$H,$A97,'Town-Wide Capital Planning'!$B:$B,$H$2) -> 0 | L97: =SUMIFS('Town-Wide Capital Planning'!Y:Y,'Town-Wide Capital Planning'!$H:$H,$A97,'Town-Wide Capital Planning'!$B:$B,$C$2)+SUMIFS('Town-Wide Capital Planning'!Y:Y,'Town-Wide Capital Planning'!$H:$H,$A97,'Town-Wide Capital Planning'!$B:$B,$D$2)+SUMIFS('Town-Wide Capital Planning'!Y:Y,'Town-Wide Capital Planning'!$H:$H,$A97,'Town-Wide Capital Planning'!$B:$B,$E$2)+SUMIFS('Town-Wide Capital Planning'!Y:Y,'Town-Wide Capital Planning'!$H:$H,$A97,'Town-Wide Capital Planning'!$B:$B,$F$2)+SUMIFS('Town-Wide Capital Planning'!Y:Y,'Town-Wide Capital Planning'!$H:$H,$A97,'Town-Wide Capital Planning'!$B:$B,$G$2)+SUMIFS('Town-Wide Capital Planning'!Y:Y,'Town-Wide Capital Planning'!$H:$H,$A97,'Town-Wide Capital Planning'!$B:$B,$H$2) -> 0 | M97: =SUM(C97:L97) -> 0
A98: ='Summary-General Government'!A97 -> Cable Franchise | C98: =SUMIFS('Town-Wide Capital Planning'!P:P,'Town-Wide Capital Planning'!$H:$H,$A98,'Town-Wide Capital Planning'!$B:$B,$C$2)+SUMIFS('Town-Wide Capital Planning'!P:P,'Town-Wide Capital Planning'!$H:$H,$A98,'Town-Wide Capital Planning'!$B:$B,$D$2)+SUMIFS('Town-Wide Capital Planning'!P:P,'Town-Wide Capital Planning'!$H:$H,$A98,'Town-Wide Capital Planning'!$B:$B,$E$2)+SUMIFS('Town-Wide Capital Planning'!P:P,'Town-Wide Capital Planning'!$H:$H,$A98,'Town-Wide Capital Planning'!$B:$B,$F$2)+SUMIFS('Town-Wide Capital Planning'!P:P,'Town-Wide Capital Planning'!$H:$H,$A98,'Town-Wide Capital Planning'!$B:$B,$G$2)+SUMIFS('Town-Wide Capital Planning'!P:P,'Town-Wide Capital Planning'!$H:$H,$A98,'Town-Wide Capital Planning'!$B:$B,$H$2) -> 0 | D98: =SUMIFS('Town-Wide Capital Planning'!Q:Q,'Town-Wide Capital Planning'!$H:$H,$A98,'Town-Wide Capital Planning'!$B:$B,$C$2)+SUMIFS('Town-Wide Capital Planning'!Q:Q,'Town-Wide Capital Planning'!$H:$H,$A98,'Town-Wide Capital Planning'!$B:$B,$D$2)+SUMIFS('Town-Wide Capital Planning'!Q:Q,'Town-Wide Capital Planning'!$H:$H,$A98,'Town-Wide Capital Planning'!$B:$B,$E$2)+SUMIFS('Town-Wide Capital Planning'!Q:Q,'Town-Wide Capital Planning'!$H:$H,$A98,'Town-Wide Capital Planning'!$B:$B,$F$2)+SUMIFS('Town-Wide Capital Planning'!Q:Q,'Town-Wide Capital Planning'!$H:$H,$A98,'Town-Wide Capital Planning'!$B:$B,$G$2)+SUMIFS('Town-Wide Capital Planning'!Q:Q,'Town-Wide Capital Planning'!$H:$H,$A98,'Town-Wide Capital Planning'!$B:$B,$H$2) -> 0 | E98: =SUMIFS('Town-Wide Capital Planning'!R:R,'Town-Wide Capital Planning'!$H:$H,$A98,'Town-Wide Capital Planning'!$B:$B,$C$2)+SUMIFS('Town-Wide Capital Planning'!R:R,'Town-Wide Capital Planning'!$H:$H,$A98,'Town-Wide Capital Planning'!$B:$B,$D$2)+SUMIFS('Town-Wide Capital Planning'!R:R,'Town-Wide Capital Planning'!$H:$H,$A98,'Town-Wide Capital Planning'!$B:$B,$E$2)+SUMIFS('Town-Wide Capital Planning'!R:R,'Town-Wide Capital Planning'!$H:$H,$A98,'Town-Wide Capital Planning'!$B:$B,$F$2)+SUMIFS('Town-Wide Capital Planning'!R:R,'Town-Wide Capital Planning'!$H:$H,$A98,'Town-Wide Capital Planning'!$B:$B,$G$2)+SUMIFS('Town-Wide Capital Planning'!R:R,'Town-Wide Capital Planning'!$H:$H,$A98,'Town-Wide Capital Planning'!$B:$B,$H$2) -> 0 | F98: =SUMIFS('Town-Wide Capital Planning'!S:S,'Town-Wide Capital Planning'!$H:$H,$A98,'Town-Wide Capital Planning'!$B:$B,$C$2)+SUMIFS('Town-Wide Capital Planning'!S:S,'Town-Wide Capital Planning'!$H:$H,$A98,'Town-Wide Capital Planning'!$B:$B,$D$2)+SUMIFS('Town-Wide Capital Planning'!S:S,'Town-Wide Capital Planning'!$H:$H,$A98,'Town-Wide Capital Planning'!$B:$B,$E$2)+SUMIFS('Town-Wide Capital Planning'!S:S,'Town-Wide Capital Planning'!$H:$H,$A98,'Town-Wide Capital Planning'!$B:$B,$F$2)+SUMIFS('Town-Wide Capital Planning'!S:S,'Town-Wide Capital Planning'!$H:$H,$A98,'Town-Wide Capital Planning'!$B:$B,$G$2)+SUMIFS('Town-Wide Capital Planning'!S:S,'Town-Wide Capital Planning'!$H:$H,$A98,'Town-Wide Capital Planning'!$B:$B,$H$2) -> 0 | G98: =SUMIFS('Town-Wide Capital Planning'!T:T,'Town-Wide Capital Planning'!$H:$H,$A98,'Town-Wide Capital Planning'!$B:$B,$C$2)+SUMIFS('Town-Wide Capital Planning'!T:T,'Town-Wide Capital Planning'!$H:$H,$A98,'Town-Wide Capital Planning'!$B:$B,$D$2)+SUMIFS('Town-Wide Capital Planning'!T:T,'Town-Wide Capital Planning'!$H:$H,$A98,'Town-Wide Capital Planning'!$B:$B,$E$2)+SUMIFS('Town-Wide Capital Planning'!T:T,'Town-Wide Capital Planning'!$H:$H,$A98,'Town-Wide Capital Planning'!$B:$B,$F$2)+SUMIFS('Town-Wide Capital Planning'!T:T,'Town-Wide Capital Planning'!$H:$H,$A98,'Town-Wide Capital Planning'!$B:$B,$G$2)+SUMIFS('Town-Wide Capital Planning'!T:T,'Town-Wide Capital Planning'!$H:$H,$A98,'Town-Wide Capital Planning'!$B:$B,$H$2) -> 0 | H98: =SUMIFS('Town-Wide Capital Planning'!U:U,'Town-Wide Capital Planning'!$H:$H,$A98,'Town-Wide Capital Planning'!$B:$B,$C$2)+SUMIFS('Town-Wide Capital Planning'!U:U,'Town-Wide Capital Planning'!$H:$H,$A98,'Town-Wide Capital Planning'!$B:$B,$D$2)+SUMIFS('Town-Wide Capital Planning'!U:U,'Town-Wide Capital Planning'!$H:$H,$A98,'Town-Wide Capital Planning'!$B:$B,$E$2)+SUMIFS('Town-Wide Capital Planning'!U:U,'Town-Wide Capital Planning'!$H:$H,$A98,'Town-Wide Capital Planning'!$B:$B,$F$2)+SUMIFS('Town-Wide Capital Planning'!U:U,'Town-Wide Capital Planning'!$H:$H,$A98,'Town-Wide Capital Planning'!$B:$B,$G$2)+SUMIFS('Town-Wide Capital Planning'!U:U,'Town-Wide Capital Planning'!$H:$H,$A98,'Town-Wide Capital Planning'!$B:$B,$H$2) -> 0 | I98: =SUMIFS('Town-Wide Capital Planning'!V:V,'Town-Wide Capital Planning'!$H:$H,$A98,'Town-Wide Capital Planning'!$B:$B,$C$2)+SUMIFS('Town-Wide Capital Planning'!V:V,'Town-Wide Capital Planning'!$H:$H,$A98,'Town-Wide Capital Planning'!$B:$B,$D$2)+SUMIFS('Town-Wide Capital Planning'!V:V,'Town-Wide Capital Planning'!$H:$H,$A98,'Town-Wide Capital Planning'!$B:$B,$E$2)+SUMIFS('Town-Wide Capital Planning'!V:V,'Town-Wide Capital Planning'!$H:$H,$A98,'Town-Wide Capital Planning'!$B:$B,$F$2)+SUMIFS('Town-Wide Capital Planning'!V:V,'Town-Wide Capital Planning'!$H:$H,$A98,'Town-Wide Capital Planning'!$B:$B,$G$2)+SUMIFS('Town-Wide Capital Planning'!V:V,'Town-Wide Capital Planning'!$H:$H,$A98,'Town-Wide Capital Planning'!$B:$B,$H$2) -> 0 | J98: =SUMIFS('Town-Wide Capital Planning'!W:W,'Town-Wide Capital Planning'!$H:$H,$A98,'Town-Wide Capital Planning'!$B:$B,$C$2)+SUMIFS('Town-Wide Capital Planning'!W:W,'Town-Wide Capital Planning'!$H:$H,$A98,'Town-Wide Capital Planning'!$B:$B,$D$2)+SUMIFS('Town-Wide Capital Planning'!W:W,'Town-Wide Capital Planning'!$H:$H,$A98,'Town-Wide Capital Planning'!$B:$B,$E$2)+SUMIFS('Town-Wide Capital Planning'!W:W,'Town-Wide Capital Planning'!$H:$H,$A98,'Town-Wide Capital Planning'!$B:$B,$F$2)+SUMIFS('Town-Wide Capital Planning'!W:W,'Town-Wide Capital Planning'!$H:$H,$A98,'Town-Wide Capital Planning'!$B:$B,$G$2)+SUMIFS('Town-Wide Capital Planning'!W:W,'Town-Wide Capital Planning'!$H:$H,$A98,'Town-Wide Capital Planning'!$B:$B,$H$2) -> 0 | K98: =SUMIFS('Town-Wide Capital Planning'!X:X,'Town-Wide Capital Planning'!$H:$H,$A98,'Town-Wide Capital Planning'!$B:$B,$C$2)+SUMIFS('Town-Wide Capital Planning'!X:X,'Town-Wide Capital Planning'!$H:$H,$A98,'Town-Wide Capital Planning'!$B:$B,$D$2)+SUMIFS('Town-Wide Capital Planning'!X:X,'Town-Wide Capital Planning'!$H:$H,$A98,'Town-Wide Capital Planning'!$B:$B,$E$2)+SUMIFS('Town-Wide Capital Planning'!X:X,'Town-Wide Capital Planning'!$H:$H,$A98,'Town-Wide Capital Planning'!$B:$B,$F$2)+SUMIFS('Town-Wide Capital Planning'!X:X,'Town-Wide Capital Planning'!$H:$H,$A98,'Town-Wide Capital Planning'!$B:$B,$G$2)+SUMIFS('Town-Wide Capital Planning'!X:X,'Town-Wide Capital Planning'!$H:$H,$A98,'Town-Wide Capital Planning'!$B:$B,$H$2) -> 0 | L98: =SUMIFS('Town-Wide Capital Planning'!Y:Y,'Town-Wide Capital Planning'!$H:$H,$A98,'Town-Wide Capital Planning'!$B:$B,$C$2)+SUMIFS('Town-Wide Capital Planning'!Y:Y,'Town-Wide Capital Planning'!$H:$H,$A98,'Town-Wide Capital Planning'!$B:$B,$D$2)+SUMIFS('Town-Wide Capital Planning'!Y:Y,'Town-Wide Capital Planning'!$H:$H,$A98,'Town-Wide Capital Planning'!$B:$B,$E$2)+SUMIFS('Town-Wide Capital Planning'!Y:Y,'Town-Wide Capital Planning'!$H:$H,$A98,'Town-Wide Capital Planning'!$B:$B,$F$2)+SUMIFS('Town-Wide Capital Planning'!Y:Y,'Town-Wide Capital Planning'!$H:$H,$A98,'Town-Wide Capital Planning'!$B:$B,$G$2)+SUMIFS('Town-Wide Capital Planning'!Y:Y,'Town-Wide Capital Planning'!$H:$H,$A98,'Town-Wide Capital Planning'!$B:$B,$H$2) -> 0 | M98: 0
A99: ='Summary-General Government'!A98 -> Capital Stabilization Fees | C99: =SUMIFS('Town-Wide Capital Planning'!P:P,'Town-Wide Capital Planning'!$H:$H,$A99,'Town-Wide Capital Planning'!$B:$B,$C$2)+SUMIFS('Town-Wide Capital Planning'!P:P,'Town-Wide Capital Planning'!$H:$H,$A99,'Town-Wide Capital Planning'!$B:$B,$D$2)+SUMIFS('Town-Wide Capital Planning'!P:P,'Town-Wide Capital Planning'!$H:$H,$A99,'Town-Wide Capital Planning'!$B:$B,$E$2)+SUMIFS('Town-Wide Capital Planning'!P:P,'Town-Wide Capital Planning'!$H:$H,$A99,'Town-Wide Capital Planning'!$B:$B,$F$2)+SUMIFS('Town-Wide Capital Planning'!P:P,'Town-Wide Capital Planning'!$H:$H,$A99,'Town-Wide Capital Planning'!$B:$B,$G$2)+SUMIFS('Town-Wide Capital Planning'!P:P,'Town-Wide Capital Planning'!$H:$H,$A99,'Town-Wide Capital Planning'!$B:$B,$H$2) -> 0 | D99: =SUMIFS('Town-Wide Capital Planning'!Q:Q,'Town-Wide Capital Planning'!$H:$H,$A99,'Town-Wide Capital Planning'!$B:$B,$C$2)+SUMIFS('Town-Wide Capital Planning'!Q:Q,'Town-Wide Capital Planning'!$H:$H,$A99,'Town-Wide Capital Planning'!$B:$B,$D$2)+SUMIFS('Town-Wide Capital Planning'!Q:Q,'Town-Wide Capital Planning'!$H:$H,$A99,'Town-Wide Capital Planning'!$B:$B,$E$2)+SUMIFS('Town-Wide Capital Planning'!Q:Q,'Town-Wide Capital Planning'!$H:$H,$A99,'Town-Wide Capital Planning'!$B:$B,$F$2)+SUMIFS('Town-Wide Capital Planning'!Q:Q,'Town-Wide Capital Planning'!$H:$H,$A99,'Town-Wide Capital Planning'!$B:$B,$G$2)+SUMIFS('Town-Wide Capital Planning'!Q:Q,'Town-Wide Capital Planning'!$H:$H,$A99,'Town-Wide Capital Planning'!$B:$B,$H$2) -> 0 | E99: =SUMIFS('Town-Wide Capital Planning'!R:R,'Town-Wide Capital Planning'!$H:$H,$A99,'Town-Wide Capital Planning'!$B:$B,$C$2)+SUMIFS('Town-Wide Capital Planning'!R:R,'Town-Wide Capital Planning'!$H:$H,$A99,'Town-Wide Capital Planning'!$B:$B,$D$2)+SUMIFS('Town-Wide Capital Planning'!R:R,'Town-Wide Capital Planning'!$H:$H,$A99,'Town-Wide Capital Planning'!$B:$B,$E$2)+SUMIFS('Town-Wide Capital Planning'!R:R,'Town-Wide Capital Planning'!$H:$H,$A99,'Town-Wide Capital Planning'!$B:$B,$F$2)+SUMIFS('Town-Wide Capital Planning'!R:R,'Town-Wide Capital Planning'!$H:$H,$A99,'Town-Wide Capital Planning'!$B:$B,$G$2)+SUMIFS('Town-Wide Capital Planning'!R:R,'Town-Wide Capital Planning'!$H:$H,$A99,'Town-Wide Capital Planning'!$B:$B,$H$2) -> 0 | F99: =SUMIFS('Town-Wide Capital Planning'!S:S,'Town-Wide Capital Planning'!$H:$H,$A99,'Town-Wide Capital Planning'!$B:$B,$C$2)+SUMIFS('Town-Wide Capital Planning'!S:S,'Town-Wide Capital Planning'!$H:$H,$A99,'Town-Wide Capital Planning'!$B:$B,$D$2)+SUMIFS('Town-Wide Capital Planning'!S:S,'Town-Wide Capital Planning'!$H:$H,$A99,'Town-Wide Capital Planning'!$B:$B,$E$2)+SUMIFS('Town-Wide Capital Planning'!S:S,'Town-Wide Capital Planning'!$H:$H,$A99,'Town-Wide Capital Planning'!$B:$B,$F$2)+SUMIFS('Town-Wide Capital Planning'!S:S,'Town-Wide Capital Planning'!$H:$H,$A99,'Town-Wide Capital Planning'!$B:$B,$G$2)+SUMIFS('Town-Wide Capital Planning'!S:S,'Town-Wide Capital Planning'!$H:$H,$A99,'Town-Wide Capital Planning'!$B:$B,$H$2) -> 0 | G99: =SUMIFS('Town-Wide Capital Planning'!T:T,'Town-Wide Capital Planning'!$H:$H,$A99,'Town-Wide Capital Planning'!$B:$B,$C$2)+SUMIFS('Town-Wide Capital Planning'!T:T,'Town-Wide Capital Planning'!$H:$H,$A99,'Town-Wide Capital Planning'!$B:$B,$D$2)+SUMIFS('Town-Wide Capital Planning'!T:T,'Town-Wide Capital Planning'!$H:$H,$A99,'Town-Wide Capital Planning'!$B:$B,$E$2)+SUMIFS('Town-Wide Capital Planning'!T:T,'Town-Wide Capital Planning'!$H:$H,$A99,'Town-Wide Capital Planning'!$B:$B,$F$2)+SUMIFS('Town-Wide Capital Planning'!T:T,'Town-Wide Capital Planning'!$H:$H,$A99,'Town-Wide Capital Planning'!$B:$B,$G$2)+SUMIFS('Town-Wide Capital Planning'!T:T,'Town-Wide Capital Planning'!$H:$H,$A99,'Town-Wide Capital Planning'!$B:$B,$H$2) -> 0 | H99: =SUMIFS('Town-Wide Capital Planning'!U:U,'Town-Wide Capital Planning'!$H:$H,$A99,'Town-Wide Capital Planning'!$B:$B,$C$2)+SUMIFS('Town-Wide Capital Planning'!U:U,'Town-Wide Capital Planning'!$H:$H,$A99,'Town-Wide Capital Planning'!$B:$B,$D$2)+SUMIFS('Town-Wide Capital Planning'!U:U,'Town-Wide Capital Planning'!$H:$H,$A99,'Town-Wide Capital Planning'!$B:$B,$E$2)+SUMIFS('Town-Wide Capital Planning'!U:U,'Town-Wide Capital Planning'!$H:$H,$A99,'Town-Wide Capital Planning'!$B:$B,$F$2)+SUMIFS('Town-Wide Capital Planning'!U:U,'Town-Wide Capital Planning'!$H:$H,$A99,'Town-Wide Capital Planning'!$B:$B,$G$2)+SUMIFS('Town-Wide Capital Planning'!U:U,'Town-Wide Capital Planning'!$H:$H,$A99,'Town-Wide Capital Planning'!$B:$B,$H$2) -> 0 | I99: =SUMIFS('Town-Wide Capital Planning'!V:V,'Town-Wide Capital Planning'!$H:$H,$A99,'Town-Wide Capital Planning'!$B:$B,$C$2)+SUMIFS('Town-Wide Capital Planning'!V:V,'Town-Wide Capital Planning'!$H:$H,$A99,'Town-Wide Capital Planning'!$B:$B,$D$2)+SUMIFS('Town-Wide Capital Planning'!V:V,'Town-Wide Capital Planning'!$H:$H,$A99,'Town-Wide Capital Planning'!$B:$B,$E$2)+SUMIFS('Town-Wide Capital Planning'!V:V,'Town-Wide Capital Planning'!$H:$H,$A99,'Town-Wide Capital Planning'!$B:$B,$F$2)+SUMIFS('Town-Wide Capital Planning'!V:V,'Town-Wide Capital Planning'!$H:$H,$A99,'Town-Wide Capital Planning'!$B:$B,$G$2)+SUMIFS('Town-Wide Capital Planning'!V:V,'Town-Wide Capital Planning'!$H:$H,$A99,'Town-Wide Capital Planning'!$B:$B,$H$2) -> 0 | J99: =SUMIFS('Town-Wide Capital Planning'!W:W,'Town-Wide Capital Planning'!$H:$H,$A99,'Town-Wide Capital Planning'!$B:$B,$C$2)+SUMIFS('Town-Wide Capital Planning'!W:W,'Town-Wide Capital Planning'!$H:$H,$A99,'Town-Wide Capital Planning'!$B:$B,$D$2)+SUMIFS('Town-Wide Capital Planning'!W:W,'Town-Wide Capital Planning'!$H:$H,$A99,'Town-Wide Capital Planning'!$B:$B,$E$2)+SUMIFS('Town-Wide Capital Planning'!W:W,'Town-Wide Capital Planning'!$H:$H,$A99,'Town-Wide Capital Planning'!$B:$B,$F$2)+SUMIFS('Town-Wide Capital Planning'!W:W,'Town-Wide Capital Planning'!$H:$H,$A99,'Town-Wide Capital Planning'!$B:$B,$G$2)+SUMIFS('Town-Wide Capital Planning'!W:W,'Town-Wide Capital Planning'!$H:$H,$A99,'Town-Wide Capital Planning'!$B:$B,$H$2) -> 0 | K99: =SUMIFS('Town-Wide Capital Planning'!X:X,'Town-Wide Capital Planning'!$H:$H,$A99,'Town-Wide Capital Planning'!$B:$B,$C$2)+SUMIFS('Town-Wide Capital Planning'!X:X,'Town-Wide Capital Planning'!$H:$H,$A99,'Town-Wide Capital Planning'!$B:$B,$D$2)+SUMIFS('Town-Wide Capital Planning'!X:X,'Town-Wide Capital Planning'!$H:$H,$A99,'Town-Wide Capital Planning'!$B:$B,$E$2)+SUMIFS('Town-Wide Capital Planning'!X:X,'Town-Wide Capital Planning'!$H:$H,$A99,'Town-Wide Capital Planning'!$B:$B,$F$2)+SUMIFS('Town-Wide Capital Planning'!X:X,'Town-Wide Capital Planning'!$H:$H,$A99,'Town-Wide Capital Planning'!$B:$B,$G$2)+SUMIFS('Town-Wide Capital Planning'!X:X,'Town-Wide Capital Planning'!$H:$H,$A99,'Town-Wide Capital Planning'!$B:$B,$H$2) -> 0 | L99: =SUMIFS('Town-Wide Capital Planning'!Y:Y,'Town-Wide Capital Planning'!$H:$H,$A99,'Town-Wide Capital Planning'!$B:$B,$C$2)+SUMIFS('Town-Wide Capital Planning'!Y:Y,'Town-Wide Capital Planning'!$H:$H,$A99,'Town-Wide Capital Planning'!$B:$B,$D$2)+SUMIFS('Town-Wide Capital Planning'!Y:Y,'Town-Wide Capital Planning'!$H:$H,$A99,'Town-Wide Capital Planning'!$B:$B,$E$2)+SUMIFS('Town-Wide Capital Planning'!Y:Y,'Town-Wide Capital Planning'!$H:$H,$A99,'Town-Wide Capital Planning'!$B:$B,$F$2)+SUMIFS('Town-Wide Capital Planning'!Y:Y,'Town-Wide Capital Planning'!$H:$H,$A99,'Town-Wide Capital Planning'!$B:$B,$G$2)+SUMIFS('Town-Wide Capital Planning'!Y:Y,'Town-Wide Capital Planning'!$H:$H,$A99,'Town-Wide Capital Planning'!$B:$B,$H$2) -> 0 | M99: 0
A100: ='Summary-General Government'!A99 -> Cruiser Revolving | C100: =SUMIFS('Town-Wide Capital Planning'!P:P,'Town-Wide Capital Planning'!$H:$H,$A100,'Town-Wide Capital Planning'!$B:$B,$C$2)+SUMIFS('Town-Wide Capital Planning'!P:P,'Town-Wide Capital Planning'!$H:$H,$A100,'Town-Wide Capital Planning'!$B:$B,$D$2)+SUMIFS('Town-Wide Capital Planning'!P:P,'Town-Wide Capital Planning'!$H:$H,$A100,'Town-Wide Capital Planning'!$B:$B,$E$2)+SUMIFS('Town-Wide Capital Planning'!P:P,'Town-Wide Capital Planning'!$H:$H,$A100,'Town-Wide Capital Planning'!$B:$B,$F$2)+SUMIFS('Town-Wide Capital Planning'!P:P,'Town-Wide Capital Planning'!$H:$H,$A100,'Town-Wide Capital Planning'!$B:$B,$G$2)+SUMIFS('Town-Wide Capital Planning'!P:P,'Town-Wide Capital Planning'!$H:$H,$A100,'Town-Wide Capital Planning'!$B:$B,$H$2) -> 0 | D100: =SUMIFS('Town-Wide Capital Planning'!Q:Q,'Town-Wide Capital Planning'!$H:$H,$A100,'Town-Wide Capital Planning'!$B:$B,$C$2)+SUMIFS('Town-Wide Capital Planning'!Q:Q,'Town-Wide Capital Planning'!$H:$H,$A100,'Town-Wide Capital Planning'!$B:$B,$D$2)+SUMIFS('Town-Wide Capital Planning'!Q:Q,'Town-Wide Capital Planning'!$H:$H,$A100,'Town-Wide Capital Planning'!$B:$B,$E$2)+SUMIFS('Town-Wide Capital Planning'!Q:Q,'Town-Wide Capital Planning'!$H:$H,$A100,'Town-Wide Capital Planning'!$B:$B,$F$2)+SUMIFS('Town-Wide Capital Planning'!Q:Q,'Town-Wide Capital Planning'!$H:$H,$A100,'Town-Wide Capital Planning'!$B:$B,$G$2)+SUMIFS('Town-Wide Capital Planning'!Q:Q,'Town-Wide Capital Planning'!$H:$H,$A100,'Town-Wide Capital Planning'!$B:$B,$H$2) -> 0 | E100: =SUMIFS('Town-Wide Capital Planning'!R:R,'Town-Wide Capital Planning'!$H:$H,$A100,'Town-Wide Capital Planning'!$B:$B,$C$2)+SUMIFS('Town-Wide Capital Planning'!R:R,'Town-Wide Capital Planning'!$H:$H,$A100,'Town-Wide Capital Planning'!$B:$B,$D$2)+SUMIFS('Town-Wide Capital Planning'!R:R,'Town-Wide Capital Planning'!$H:$H,$A100,'Town-Wide Capital Planning'!$B:$B,$E$2)+SUMIFS('Town-Wide Capital Planning'!R:R,'Town-Wide Capital Planning'!$H:$H,$A100,'Town-Wide Capital Planning'!$B:$B,$F$2)+SUMIFS('Town-Wide Capital Planning'!R:R,'Town-Wide Capital Planning'!$H:$H,$A100,'Town-Wide Capital Planning'!$B:$B,$G$2)+SUMIFS('Town-Wide Capital Planning'!R:R,'Town-Wide Capital Planning'!$H:$H,$A100,'Town-Wide Capital Planning'!$B:$B,$H$2) -> 0 | F100: =SUMIFS('Town-Wide Capital Planning'!S:S,'Town-Wide Capital Planning'!$H:$H,$A100,'Town-Wide Capital Planning'!$B:$B,$C$2)+SUMIFS('Town-Wide Capital Planning'!S:S,'Town-Wide Capital Planning'!$H:$H,$A100,'Town-Wide Capital Planning'!$B:$B,$D$2)+SUMIFS('Town-Wide Capital Planning'!S:S,'Town-Wide Capital Planning'!$H:$H,$A100,'Town-Wide Capital Planning'!$B:$B,$E$2)+SUMIFS('Town-Wide Capital Planning'!S:S,'Town-Wide Capital Planning'!$H:$H,$A100,'Town-Wide Capital Planning'!$B:$B,$F$2)+SUMIFS('Town-Wide Capital Planning'!S:S,'Town-Wide Capital Planning'!$H:$H,$A100,'Town-Wide Capital Planning'!$B:$B,$G$2)+SUMIFS('Town-Wide Capital Planning'!S:S,'Town-Wide Capital Planning'!$H:$H,$A100,'Town-Wide Capital Planning'!$B:$B,$H$2) -> 0 | G100: =SUMIFS('Town-Wide Capital Planning'!T:T,'Town-Wide Capital Planning'!$H:$H,$A100,'Town-Wide Capital Planning'!$B:$B,$C$2)+SUMIFS('Town-Wide Capital Planning'!T:T,'Town-Wide Capital Planning'!$H:$H,$A100,'Town-Wide Capital Planning'!$B:$B,$D$2)+SUMIFS('Town-Wide Capital Planning'!T:T,'Town-Wide Capital Planning'!$H:$H,$A100,'Town-Wide Capital Planning'!$B:$B,$E$2)+SUMIFS('Town-Wide Capital Planning'!T:T,'Town-Wide Capital Planning'!$H:$H,$A100,'Town-Wide Capital Planning'!$B:$B,$F$2)+SUMIFS('Town-Wide Capital Planning'!T:T,'Town-Wide Capital Planning'!$H:$H,$A100,'Town-Wide Capital Planning'!$B:$B,$G$2)+SUMIFS('Town-Wide Capital Planning'!T:T,'Town-Wide Capital Planning'!$H:$H,$A100,'Town-Wide Capital Planning'!$B:$B,$H$2) -> 0 | H100: =SUMIFS('Town-Wide Capital Planning'!U:U,'Town-Wide Capital Planning'!$H:$H,$A100,'Town-Wide Capital Planning'!$B:$B,$C$2)+SUMIFS('Town-Wide Capital Planning'!U:U,'Town-Wide Capital Planning'!$H:$H,$A100,'Town-Wide Capital Planning'!$B:$B,$D$2)+SUMIFS('Town-Wide Capital Planning'!U:U,'Town-Wide Capital Planning'!$H:$H,$A100,'Town-Wide Capital Planning'!$B:$B,$E$2)+SUMIFS('Town-Wide Capital Planning'!U:U,'Town-Wide Capital Planning'!$H:$H,$A100,'Town-Wide Capital Planning'!$B:$B,$F$2)+SUMIFS('Town-Wide Capital Planning'!U:U,'Town-Wide Capital Planning'!$H:$H,$A100,'Town-Wide Capital Planning'!$B:$B,$G$2)+SUMIFS('Town-Wide Capital Planning'!U:U,'Town-Wide Capital Planning'!$H:$H,$A100,'Town-Wide Capital Planning'!$B:$B,$H$2) -> 0 | I100: =SUMIFS('Town-Wide Capital Planning'!V:V,'Town-Wide Capital Planning'!$H:$H,$A100,'Town-Wide Capital Planning'!$B:$B,$C$2)+SUMIFS('Town-Wide Capital Planning'!V:V,'Town-Wide Capital Planning'!$H:$H,$A100,'Town-Wide Capital Planning'!$B:$B,$D$2)+SUMIFS('Town-Wide Capital Planning'!V:V,'Town-Wide Capital Planning'!$H:$H,$A100,'Town-Wide Capital Planning'!$B:$B,$E$2)+SUMIFS('Town-Wide Capital Planning'!V:V,'Town-Wide Capital Planning'!$H:$H,$A100,'Town-Wide Capital Planning'!$B:$B,$F$2)+SUMIFS('Town-Wide Capital Planning'!V:V,'Town-Wide Capital Planning'!$H:$H,$A100,'Town-Wide Capital Planning'!$B:$B,$G$2)+SUMIFS('Town-Wide Capital Planning'!V:V,'Town-Wide Capital Planning'!$H:$H,$A100,'Town-Wide Capital Planning'!$B:$B,$H$2) -> 0 | J100: =SUMIFS('Town-Wide Capital Planning'!W:W,'Town-Wide Capital Planning'!$H:$H,$A100,'Town-Wide Capital Planning'!$B:$B,$C$2)+SUMIFS('Town-Wide Capital Planning'!W:W,'Town-Wide Capital Planning'!$H:$H,$A100,'Town-Wide Capital Planning'!$B:$B,$D$2)+SUMIFS('Town-Wide Capital Planning'!W:W,'Town-Wide Capital Planning'!$H:$H,$A100,'Town-Wide Capital Planning'!$B:$B,$E$2)+SUMIFS('Town-Wide Capital Planning'!W:W,'Town-Wide Capital Planning'!$H:$H,$A100,'Town-Wide Capital Planning'!$B:$B,$F$2)+SUMIFS('Town-Wide Capital Planning'!W:W,'Town-Wide Capital Planning'!$H:$H,$A100,'Town-Wide Capital Planning'!$B:$B,$G$2)+SUMIFS('Town-Wide Capital Planning'!W:W,'Town-Wide Capital Planning'!$H:$H,$A100,'Town-Wide Capital Planning'!$B:$B,$H$2) -> 0 | K100: =SUMIFS('Town-Wide Capital Planning'!X:X,'Town-Wide Capital Planning'!$H:$H,$A100,'Town-Wide Capital Planning'!$B:$B,$C$2)+SUMIFS('Town-Wide Capital Planning'!X:X,'Town-Wide Capital Planning'!$H:$H,$A100,'Town-Wide Capital Planning'!$B:$B,$D$2)+SUMIFS('Town-Wide Capital Planning'!X:X,'Town-Wide Capital Planning'!$H:$H,$A100,'Town-Wide Capital Planning'!$B:$B,$E$2)+SUMIFS('Town-Wide Capital Planning'!X:X,'Town-Wide Capital Planning'!$H:$H,$A100,'Town-Wide Capital Planning'!$B:$B,$F$2)+SUMIFS('Town-Wide Capital Planning'!X:X,'Town-Wide Capital Planning'!$H:$H,$A100,'Town-Wide Capital Planning'!$B:$B,$G$2)+SUMIFS('Town-Wide Capital Planning'!X:X,'Town-Wide Capital Planning'!$H:$H,$A100,'Town-Wide Capital Planning'!$B:$B,$H$2) -> 0 | L100: =SUMIFS('Town-Wide Capital Planning'!Y:Y,'Town-Wide Capital Planning'!$H:$H,$A100,'Town-Wide Capital Planning'!$B:$B,$C$2)+SUMIFS('Town-Wide Capital Planning'!Y:Y,'Town-Wide Capital Planning'!$H:$H,$A100,'Town-Wide Capital Planning'!$B:$B,$D$2)+SUMIFS('Town-Wide Capital Planning'!Y:Y,'Town-Wide Capital Planning'!$H:$H,$A100,'Town-Wide Capital Planning'!$B:$B,$E$2)+SUMIFS('Town-Wide Capital Planning'!Y:Y,'Town-Wide Capital Planning'!$H:$H,$A100,'Town-Wide Capital Planning'!$B:$B,$F$2)+SUMIFS('Town-Wide Capital Planning'!Y:Y,'Town-Wide Capital Planning'!$H:$H,$A100,'Town-Wide Capital Planning'!$B:$B,$G$2)+SUMIFS('Town-Wide Capital Planning'!Y:Y,'Town-Wide Capital Planning'!$H:$H,$A100,'Town-Wide Capital Planning'!$B:$B,$H$2) -> 0 | M100: 0
